Workbook

Sheet Info (hidden)
A1: Info: | B1: Dieses Tabellenblatt bitte weder löschen noch verändern.

Sheet KALENDER
D1: Auswahl der gesetzlichen Feiertage (mit einem kleinen x ankreuzen)
D2: Jan | E2: 1 | F2: 2 | G2: 3 | H2: 4 | I2: 5 | J2: 6 | K2: 7 | L2: 8 | M2: 9 | N2: 10 | O2: 11 | P2: 12 | Q2: 13 | R2: 14 | S2: 15 | T2: 16 | U2: 17 | V2: 18 | W2: 19 | X2: 20 | Y2: 21 | Z2: 22 | AA2: 23 | AB2: 24 | AC2: 25 | AD2: 26 | AE2: 27 | AF2: 28 | AG2: 29 | AH2: 30 | AI2: 31
D4: Feb | E4: 1 | F4: 2 | G4: 3 | H4: 4 | I4: 5 | J4: 6 | K4: 7 | L4: 8 | M4: 9 | N4: 10 | O4: 11 | P4: 12 | Q4: 13 | R4: 14 | S4: 15 | T4: 16 | U4: 17 | V4: 18 | W4: 19 | X4: 20 | Y4: 21 | Z4: 22 | AA4: 23 | AB4: 24 | AC4: 25 | AD4: 26 | AE4: 27 | AF4: 28 | AG4: 29
D6: Mrz | E6: 1 | F6: 2 | G6: 3 | H6: 4 | I6: 5 | J6: 6 | K6: 7 | L6: 8 | M6: 9 | N6: 10 | O6: 11 | P6: 12 | Q6: 13 | R6: 14 | S6: 15 | T6: 16 | U6: 17 | V6: 18 | W6: 19 | X6: 20 | Y6: 21 | Z6: 22 | AA6: 23 | AB6: 24 | AC6: 25 | AD6: 26 | AE6: 27 | AF6: 28 | AG6: 29 | AH6: 30 | AI6: 31
D8: Apr | E8: 1 | F8: 2 | G8: 3 | H8: 4 | I8: 5 | J8: 6 | K8: 7 | L8: 8 | M8: 9 | N8: 10 | O8: 11 | P8: 12 | Q8: 13 | R8: 14 | S8: 15 | T8: 16 | U8: 17 | V8: 18 | W8: 19 | X8: 20 | Y8: 21 | Z8: 22 | AA8: 23 | AB8: 24 | AC8: 25 | AD8: 26 | AE8: 27 | AF8: 28 | AG8: 29 | AH8: 30
D10: Mai | E10: 1 | F10: 2 | G10: 3 | H10: 4 | I10: 5 | J10: 6 | K10: 7 | L10: 8 | M10: 9 | N10: 10 | O10: 11 | P10: 12 | Q10: 13 | R10: 14 | S10: 15 | T10: 16 | U10: 17 | V10: 18 | W10: 19 | X10: 20 | Y10: 21 | Z10: 22 | AA10: 23 | AB10: 24 | AC10: 25 | AD10: 26 | AE10: 27 | AF10: 28 | AG10: 29 | AH10: 30 | AI10: 31
D12: Jun | E12: 1 | F12: 2 | G12: 3 | H12: 4 | I12: 5 | J12: 6 | K12: 7 | L12: 8 | M12: 9 | N12: 10 | O12: 11 | P12: 12 | Q12: 13 | R12: 14 | S12: 15 | T12: 16 | U12: 17 | V12: 18 | W12: 19 | X12: 20 | Y12: 21 | Z12: 22 | AA12: 23 | AB12: 24 | AC12: 25 | AD12: 26 | AE12: 27 | AF12: 28 | AG12: 29 | AH12: 30
D14: Jul | E14: 1 | F14: 2 | G14: 3 | H14: 4 | I14: 5 | J14: 6 | K14: 7 | L14: 8 | M14: 9 | N14: 10 | O14: 11 | P14: 12 | Q14: 13 | R14: 14 | S14: 15 | T14: 16 | U14: 17 | V14: 18 | W14: 19 | X14: 20 | Y14: 21 | Z14: 22 | AA14: 23 | AB14: 24 | AC14: 25 | AD14: 26 | AE14: 27 | AF14: 28 | AG14: 29 | AH14: 30 | AI14: 31
D16: Aug | E16: 1 | F16: 2 | G16: 3 | H16: 4 | I16: 5 | J16: 6 | K16: 7 | L16: 8 | M16: 9 | N16: 10 | O16: 11 | P16: 12 | Q16: 13 | R16: 14 | S16: 15 | T16: 16 | U16: 17 | V16: 18 | W16: 19 | X16: 20 | Y16: 21 | Z16: 22 | AA16: 23 | AB16: 24 | AC16: 25 | AD16: 26 | AE16: 27 | AF16: 28 | AG16: 29 | AH16: 30 | AI16: 31
D18: Sep | E18: 1 | F18: 2 | G18: 3 | H18: 4 | I18: 5 | J18: 6 | K18: 7 | L18: 8 | M18: 9 | N18: 10 | O18: 11 | P18: 12 | Q18: 13 | R18: 14 | S18: 15 | T18: 16 | U18: 17 | V18: 18 | W18: 19 | X18: 20 | Y18: 21 | Z18: 22 | AA18: 23 | AB18: 24 | AC18: 25 | AD18: 26 | AE18: 27 | AF18: 28 | AG18: 29 | AH18: 30
D20: Okt | E20: 1 | F20: 2 | G20: 3 | H20: 4 | I20: 5 | J20: 6 | K20: 7 | L20: 8 | M20: 9 | N20: 10 | O20: 11 | P20: 12 | Q20: 13 | R20: 14 | S20: 15 | T20: 16 | U20: 17 | V20: 18 | W20: 19 | X20: 20 | Y20: 21 | Z20: 22 | AA20: 23 | AB20: 24 | AC20: 25 | AD20: 26 | AE20: 27 | AF20: 28 | AG20: 29 | AH20: 30 | AI20: 31
D22: Nov | E22: 1 | F22: 2 | G22: 3 | H22: 4 | I22: 5 | J22: 6 | K22: 7 | L22: 8 | M22: 9 | N22: 10 | O22: 11 | P22: 12 | Q22: 13 | R22: 14 | S22: 15 | T22: 16 | U22: 17 | V22: 18 | W22: 19 | X22: 20 | Y22: 21 | Z22: 22 | AA22: 23 | AB22: 24 | AC22: 25 | AD22: 26 | AE22: 27 | AF22: 28 | AG22: 29 | AH22: 30
D24: Dez | E24: 1 | F24: 2 | G24: 3 | H24: 4 | I24: 5 | J24: 6 | K24: 7 | L24: 8 | M24: 9 | N24: 10 | O24: 11 | P24: 12 | Q24: 13 | R24: 14 | S24: 15 | T24: 16 | U24: 17 | V24: 18 | W24: 19 | X24: 20 | Y24: 21 | Z24: 22 | AA24: 23 | AB24: 24 | AC24: 25 | AD24: 26 | AE24: 27 | AF24: 28 | AG24: 29 | AH24: 30 | AI24: 31

Sheet Konfiguration (hidden)
A1: Globale Konfiguration
H2: Memo =>
A3: Jahr | B3: 2020 | C3: ="01.01."&B3 -> 01.01.2020 | D3: Schaljahr j/n | E3: =IF(F3=1,"ja","nein") -> ja | F3: =IF(MOD(YEAR($C$3),400)=0,"",IF(MOD(YEAR($C$3),100)=0,"kein",IF(MOD(YEAR($C$3),4)=0,1,0))) -> 1 | H3: 1.Tag des Jahes | I3: formel
A4: max. Std/Woche gem. GAV | B4: 48 | H4: letzter Tag des Jahres | I4: formel
A5: Std/Tag gem. GAV | B5: 8 | D5: Jahresbruttosollstunden | H5: Anz. Wochentage | I5: formel
H6: % Nachzuschlag | I6: eingabe
H7: % Sonn- & Feiertagszuschlag | I7: eingabe
H8: % Wochenzuschlag | I8: eingabe
H9: Ausahlung mit Zuschlag (max. Std) | I9: eingabe
A11: Standard Kalender | B11: calendar
A14: Standard Sprache | B14: DE | H14: Sprachen | I14: Deutsch | J14: DE
I15: Français | J15: FR
I16: English | J16: EN
I17: Italiano | J17: IT

Sheet Labels (hidden)
A1: Achtung: | B1: lange Texte sind jeweils manuell einzusetzen
A3: gewählte Sprache | B3: DE
A12: Index | B12: Dargestellt | C12: DE | D12: EN | E12: FR | F12: IT
A13: 2 | B13: =HLOOKUP($B$3,$C$12:$F$506,A13,FALSE) -> [$-807] | C13: [$-807] | D13: [$-409] | E13: [$-40C] | F13: [$-410]
A14: 3 | B14: SMGV | C14: SMGV | D14: =C14 -> SMGV | E14: ASEPP | F14: ASIPG
A15: 4 | B15: GAV | C15: GAV | D15: =C15 -> GAV | E15: CCT | F15: CCL
A16: 5 | B16: Kontrolle | C16: Kontrolle | D16: Kontrolle | E16: Contrôle | F16: Controllo
A17: 6 | B17: A r b e i t s z e i t k o n t r o l l e | C17: A r b e i t s z e i t k o n t r o l l e | D17: A r b e i t s z e i t k o n t r o l l e | E17: Contrôle des heures de travail | F17: Controllo d'orario di lavoro
A18: 7 | B18: Mitarbeiter/In | C18: Mitarbeiter/In | D18: Mitarbeiter/In | E18: Nom/Prénom | F18: Nome/Conome
A19: 8 | B19: Muster Peter | C19: Muster Peter | D19: Muster Peter | E19: Modèle Pierre | F19: Modello Pietro
A20: 9 | B20: Anstellung % | C20: Anstellung % | D20: Anstellung % | E20: Emploi % | F20: Occupazione %
A21: 10 | B21: Saldo für das Jahr | C21: Saldo für das Jahr | D21: Saldo für das Jahr | E21: Solde année en cours | F21: =C21 -> Saldo für das Jahr
A22: 11 | B22: Saldo Vorjahresstunden (+) | C22: Saldo Vorjahresstunden (+) | D22: Saldo Vorjahresstunden (+) | E22: Solde année passée (+) | F22: =C22 -> Saldo Vorjahresstunden (+)
A23: 12 | B23: Saldo Vorjahresstunden (-) | C23: Saldo Vorjahresstunden (-) | D23: Saldo Vorjahresstunden (-) | E23: Solde année passée (-) | F23: Saldo Vorjahresstunden (-)
A24: 13 | B24: Ferienguthaben Vorjahr | C24: Ferienguthaben Vorjahr | D24: Ferienguthaben Vorjahr | E24: Solde vacances année passée | F24: Ferienguthaben Vorjahr
A25: 14 | B25: Ferienguthaben laufendes Jahr | C25: Ferienguthaben laufendes Jahr | D25: Ferienguthaben laufendes Jahr | E25: Vacances selon art. 12.1. CCT | F25: Ferienguthaben laufendes Jahr
A26: 15 | B26: Stunden | C26: Stunden | D26: Stunden | E26: Heures | F26: Stunden
A27: 16 | B27: Max. Std / Woche gemäss GAV | C27: Max. Std / Woche gemäss GAV | D27: Max. Std / Woche gemäss GAV | E27: max heures / semain CCT | F27: Max. Std / Woche gemäss GAV
A28: 17 | B28: Std/Tag gemäss GAV | C28: Std/Tag gemäss GAV | D28: Std/Tag gemäss GAV | E28: heures/jour CCT | F28: Std/Tag gemäss GAV
A29: 18 | B29: Schaltjahr (j/n) | C29: Schaltjahr (j/n) | D29: Schaltjahr (j/n) | E29: Année bissextile (j/n) | F29: Schaltjahr (j/n)
A30: 19 | B30: Arbeitstage (Jahr) | C30: Arbeitstage (Jahr) | D30: Arbeitstage (Jahr) | E30: jours ouvrables (année) | F30: Arbeitstage (Jahr)
A31: 20 | B31: Jahresbruttosollstunden | C31: Jahresbruttosollstunden | D31: Jahresbruttosollstunden | E31: brut annuel d'heures | F31: Jahresbruttosollstunden
A32: 21 | B32: Saldo Monat + / - | C32: Saldo Monat + / - | D32: Saldo Monat + / - | E32: Solde mois + / - | F32: Saldo Monat + / -
A33: 22 | B33: = | C33: = | D33: = | E33: = | F33: =
A34: 23 | B34: Gelbe Felder müssen ausgefüllt werden (die übrigen werden automatisch berechnet) | C34: Gelbe Felder müssen ausgefüllt werden (die übrigen werden automatisch berechnet) | D34: Gelbe Felder müssen ausgefüllt werden (die übrigen werden automatisch berechnet) | E34: Les cases marquées en jaune doivent être remplies (les autres seront calculées automatiquement) | F34: Gelbe Felder müssen ausgefüllt werden (die übrigen werden automatisch berechnet)
A35: 24 | B35: Tag | C35: Tag | D35: Tag | E35: Jour | F35: Tag
A36: 25 | B36: Kalenderwoche | C36: Kalenderwoche | D36: Kalenderwoche | E36: semaine civile | F36: Kalenderwoche
A37: 26 | B37: Sollstunden | C37: Sollstunden | D37: Sollstunden | E37: Théorique sel. CCT | F37: Sollstunden
A38: 27 | B38: Absenz in Std | C38: Absenz in Std | D38: Absenz in Std | E38: Absences | F38: Absenz in Std
A39: 28 | B39: Code | C39: Code | D39: Code | E39: Code | F39: Code
A40: 29 | B40: 00.00-06.00h | C40: 00.00-06.00h | D40: 00.00-06.00h | E40: 00h00-06h00 1) | F40: 00.00-06.00
A41: 30 | B41: 06.00-20.00h | C41: 06.00-20.00h | D41: 06.00-20.00h | E41: 06h00-20h00 2) | F41: 06.00-20.00
A42: 31 | B42: 20.00-24.00h | C42: 20.00-24.00h | D42: 20.00-24.00h | E42: 20h00-24h00 3) | F42: 20.00-24.00
A43: 32 | B43: Feiertag "ft" | C43: Feiertag "ft" | D43: Feiertag "ft" | E43: Jours fériés "jf" | F43: Giorni festivi "gf"
A44: 33 | B44: Gutschrift "ft" | C44: Gutschrift "ft" | D44: Gutschrift "ft" | E44: Majoration "jf" | F44: Credito "gf"
A45: 34 | B45: Tagestotal | C45: Tagestotal | D45: Tagestotal | E45: total quotidien | F45: totale quotidiano
A46: 35 | B46: . | C46: . | D46: . | E46: . | F46: .
A47: 36 | B47: . | C47: . | D47: . | E47: . | F47: .
A48: 37 | B48: Monatsübergang | C48: Monatsübergang | D48: Monatsübergang | E48: transition mois | F48: transizione mensile
A49: 38 | B49: Wochentotal | C49: Wochentotal | D49: Wochentotal | E49: Total hebdomadaire | F49: totale settimana
A50: 39 | B50: Zeitzuschlag 1) | C50: Zeitzuschlag 1) | D50: Zeitzuschlag 1) | E50: Majorations temp. 1) | F50: Supplemento in ore 1)
A51: 40 | B51: Zeitzuschlag 2) | C51: Zeitzuschlag 2) | D51: Zeitzuschlag 2) | E51: Majorations temp. 2) | F51: Supplemento in ore 2)
A52: 41 | B52: Zeitzuschlag 3) | C52: Zeitzuschlag 3) | D52: Zeitzuschlag 3) | E52: Majorations temp. 3) | F52: Supplemento in ore 3)
A53: 42 | B53: Sonntag Tag | C53: Sonntag Tag | D53: Sonntag Tag | E53: Dimanche journée | F53: Domenica giorno
A54: 43 | B54: Sonntag Nacht | C54: Sonntag Nacht | D54: Sonntag Nacht | E54: Dimanche nuit | F54: Domenica notte
A55: 44 | B55: ft-Tazuschlag | C55: ft-Tazuschlag | D55: ft-Tazuschlag | E55: jf-jomajoration | F55: gf-gisupplemento
A56: 45 | B56: ft-Nazuschlag | C56: ft-Nazuschlag | D56: ft-Nazuschlag | E56: jf-numajoration | F56: gf-nosupplemento
A57: 46 | B57: Zuschlag blind (Wochentotal) | C57: Zuschlag blind (Wochentotal) | D57: Zuschlag blind (Wochentotal) | E57: majoration caché (total hebd.) | F57: Supplemento nascosto (totale sett.)
A58: 47 | B58: 1) 25% Zeitzuschlag für Überschreitung Wochentotal | C58: 1) 25% Zeitzuschlag für Überschreitung Wochentotal | D58: 1) 25% Zeitzuschlag für Überschreitung Wochentotal | E58: 1) 25% majoration temporelle pour depassement total hebdomadaire | F58: 1) 25%
A59: 48 | B59: 2) 100% Zeitzuschlag für Nachtarbeit | C59: 2) 100% Zeitzuschlag für Nachtarbeit | D59: 2) 100% Zeitzuschlag für Nachtarbeit | E59: 2) 100% majoration temporelle pour travail de nuit | F59: 2) 100%
A60: 49 | B60: 3) 100% Zeitzuschlag für Sonn- und Feiertagsarbeit | C60: 3) 100% Zeitzuschlag für Sonn- und Feiertagsarbeit | D60: 3) 100% Zeitzuschlag für Sonn- und Feiertagsarbeit | E60: 3) 100% majoration temporelle pour travail du dimanche et jour férié | F60: 3) 100%
A61: 50 | B61: Eingabe der ausbezahlten Stunden Vorjahressaldo | C61: Eingabe der ausbezahlten Stunden Vorjahressaldo | D61: Eingabe der ausbezahlten Stunden Vorjahressaldo | E61: Saisie des heures payées l'année passée | F61: =C61 -> Eingabe der ausbezahlten Stunden Vorjahressaldo
A62: 51 | B62: Eingabe der ausbezahlten Stunden laufendes Jahr (Überstunden) | C62: Eingabe der ausbezahlten Stunden laufendes Jahr (Überstunden) | D62: Eingabe der ausbezahlten Stunden laufendes Jahr (Überstunden) | E62: Saisie des heures payées exercice en cours (heures supplémentaires) | F62: =C62 -> Eingabe der ausbezahlten Stunden laufendes Jahr (Überstunden)
A63: 52 | B63: Tage | C63: Tage | D63: Tage | E63: Jours | F63: Tage
A64: 53 | B64: Druckvorschau aufheben | C64: Druckvorschau aufheben | D64: Druckvorschau aufheben | E64: Annulation de la sélection | F64: Druckvorschau aufheben
A65: 54 | B65: Januar | C65: Januar | D65: January | E65: Janvier | F65: Gennaio
A66: 55 | B66: Februar | C66: Februar | D66: February | E66: Février | F66: Febbraio
A67: 56 | B67: März | C67: März | D67: March | E67: Mars | F67: Marzo
A68: 57 | B68: April | C68: April | D68: April | E68: April | F68: Aprile
A69: 58 | B69: Mai | C69: Mai | D69: May | E69: Mai | F69: Maggio
A70: 59 | B70: Juni | C70: Juni | D70: June | E70: Juin | F70: Giugno
A71: 60 | B71: Juli | C71: Juli | D71: July | E71: Juillet | F71: Iuglio
A72: 61 | B72: August | C72: August | D72: August | E72: Août | F72: Agosto
A73: 62 | B73: September | C73: September | D73: September | E73: Septembre | F73: Settembre
A74: 63 | B74: Oktober | C74: Oktober | D74: October | E74: Octobre | F74: Ottobre
A75: 64 | B75: November | C75: November | D75: November | E75: Novembre | F75: Novembre
A76: 65 | B76: Dezember | C76: Dezember | D76: December | E76: Décembre | F76: Dicembre
A77: 66 | B77: =HLOOKUP($B$3,$C$12:$F$506,A77,FALSE) -> Jan | C77: Jan | D77: Jan | E77: Jan | F77: Gen
A78: 67 | B78: Feb | C78: Feb | D78: Feb | E78: Fév | F78: Feb
A79: 68 | B79: Mrz | C79: Mrz | D79: Mar | E79: Mar | F79: Mar
A80: 69 | B80: Apr | C80: Apr | D80: Apr | E80: Avr | F80: Apr
A81: 70 | B81: Mai | C81: Mai | D81: May | E81: Mai | F81: Mag
A82: 71 | B82: Jun | C82: Jun | D82: Jun | E82: Jun | F82: Giu
A83: 72 | B83: Jul | C83: Jul | D83: Jul | E83: Jul | F83: Iug
A84: 73 | B84: Aug | C84: Aug | D84: Aug | E84: Aoû | F84: Ago
A85: 74 | B85: Sep | C85: Sep | D85: Sep | E85: Sep | F85: Set
A86: 75 | B86: Okt | C86: Okt | D86: Oct | E86: Oct | F86: Ott
A87: 76 | B87: Nov | C87: Nov | D87: Nov | E87: Nov | F87: Nov
A88: 77 | B88: Dez | C88: Dez | D88: Dec | E88: Déc | F88: Dic
A89: 78 | B89: im Januar | C89: im Januar | D89: in January | E89: en janvier | F89: a Gennaio
A90: 79 | B90: im Februar | C90: im Februar | D90: in February | E90: en février | F90: a Febbraio
A91: 80 | B91: im März | C91: im März | D91: in March | E91: en mars | F91: a Marzo
A92: 81 | B92: im April | C92: im April | D92: in April | E92: en avril | F92: ad Aprile
A93: 82 | B93: im Mai | C93: im Mai | D93: in May | E93: en mai | F93: a Maggio
A94: 83 | B94: im Juni | C94: im Juni | D94: in June | E94: en juin | F94: a Giugno
A95: 84 | B95: im Juli | C95: im Juli | D95: in July | E95: en juillet | F95: a Iuglio
A96: 85 | B96: im August | C96: im August | D96: in August | E96: en août | F96: ad Agosto
A97: 86 | B97: im September | C97: im September | D97: in September | E97: en septembre | F97: a Settembre
A98: 87 | B98: im Oktober | C98: im Oktober | D98: in October | E98: en octobre | F98: ad Ottobre
A99: 88 | B99: im November | C99: im November | D99: in November | E99: en novembre | F99: a Novembre
A100: 89 | B100: im Dezember | C100: im Dezember | D100: in December | E100: en décembre | F100: a Dicembre
A101: 90 | B101: Jahr | C101: Jahr | D101: Year | E101: Année | F101: Anno
A102: 91 | B102: Total | C102: Total | D102: Total | E102: Total | F102: Total
A103: 92 | B103: Zusammenstellung | C103: Zusammenstellung | D103: Report | E103: Résumé | F103: Zusammenstellung
A104: 93 | B104: Sollstunden gemäss GAV | C104: Sollstunden gemäss GAV | D104: Planed hours acc.to CLA | E104: Heures théoriques selon CCT | F104: Orario teoricamente sec. CCL
A105: 94 | B105: Produktive Stunden | C105: Produktive Stunden | D105: =C105 -> Produktive Stunden | E105: Total heures productives | F105: Orario produttivo totale
A106: 95 | B106: 06.00 - 20.00 Uhr | C106: 06.00 - 20.00 Uhr | D106: =C106 -> 06.00 - 20.00 Uhr | E106: 06.00 - 20.00 h | F106: 06.00 - 20.00
A107: 96 | B107: Nacht-, Sonn-, Feiertagsarbeit | C107: Nacht-, Sonn-, Feiertagsarbeit | D107: Nacht-, Sonn-, Feiertagsarbeit | E107: nuit, dimanche et jour férié | F107: notturno, domenica e festivo
A108: 97 | B108: Zeitzuschläge | C108: Zeitzuschläge | D108: Zeitzuschläge | E108: Majorations temporelles | F108: Supplemento in ore
A109: 98 | B109: aus Wochentotal | C109: aus Wochentotal | D109: aus Wochentotal | E109: total hebdomadaire | F109: di lavoro settimanale
A110: 99 | B110: aus Nacht-, Sonn-, Feiertagsarbeiten | C110: aus Nacht-, Sonn-, Feiertagsarbeiten | D110: aus Nacht-, Sonn-, Feiertagsarbeiten | E110: nuit, dimanche et jour férié | F110: di notturno, domenica e festivo
A111: 100 | B111: Unproduktive Stunden | C111: Unproduktive Stunden | D111: Unproduktive Stunden | E111: Heures inproductives | F111: orario non produttivo
A112: 101 | B112: Absenzen, Kurzabsenzen Art. 11 GAV | C112: Absenzen, Kurzabsenzen Art. 11 GAV | D112: Absenzen, Kurzabsenzen Art. 11 GAV | E112: Absences art. 11 CCT | F112: Assenze art. 11 CCL
A113: 102 | B113: a | C113: a | D113: a | E113: ab | F113: as
A114: 103 | B114: Ferien Art. 12.1 GAV | C114: Ferien Art. 12.1 GAV | D114: Ferien Art. 12.1 GAV | E114: Vacances art. 12.1 CCT | F114: Vacanze art. 12.1 CCL
A115: 104 | B115: f | C115: f | D115: f | E115: va | F115: va
A116: 105 | B116: Feiertage Art. 12.2 GAV | C116: Feiertage Art. 12.2 GAV | D116: Feiertage Art. 12.2 GAV | E116: Jours fériés art. 12.2 CCT | F116: Giorni festivi art. 12.2 CCL
A117: 106 | B117: zu viele ft !) | C117: zu viele ft !) | D117: zu viele ft !) | E117: trop de jf !) | F117: (tropo giorni festivi !)
A118: 107 | B118: ft | C118: ft | D118: ft | E118: jf | F118: gf
A119: 108 | B119: Krankheit Art. 13 GAV | C119: Krankheit Art. 13 GAV | D119: Krankheit Art. 13 GAV | E119: Maladie art. 13 CCT | F119: Malattia art. 13 CCL
A120: 109 | B120: k | C120: k | D120: k | E120: ma | F120: ma
A121: 110 | B121: Unfall Art. 14 GAV | C121: Unfall Art. 14 GAV | D121: Unfall Art. 14 GAV | E121: Accident art. 14 CCT | F121: Infortunio art. 14 CCL
A122: 111 | B122: u | C122: u | D122: u | E122: ac | F122: in
A123: 112 | B123: Schwangerschaft/Mutterschaft Art. 15 GAV | C123: Schwangerschaft/Mutterschaft Art. 15 GAV | D123: Schwangerschaft/Mutterschaft Art. 15 GAV | E123: Grossesse/Maternité art. 15 CCT | F123: Gravidanza/Maternità art. 15 CCL
A124: 113 | B124: s | C124: s | D124: s | E124: gm | F124: gm
A125: 114 | B125: Militär/Beförderung/Zivilschutz Art. 16 GAV | C125: Militär/Beförderung/Zivilschutz Art. 16 GAV | D125: Militär/Beförderung/Zivilschutz Art. 16 GAV | E125: Militaire/Promotion/Protection civile art. 16 CCT | F125: Militare/Promotione/Civile art. 16 CCL
A126: 115 | B126: m | C126: m | D126: m | E126: mi | F126: mi
A127: 116 | B127: Kurzarbeit und Schlechtwetterausfälle | C127: Kurzarbeit und Schlechtwetterausfälle | D127: Kurzarbeit und Schlechtwetterausfälle | E127: Chômage partiel et perte de travail cause d'intempéries | F127: =C127 -> Kurzarbeit und Schlechtwetterausfälle
A128: 117 | B128: ka | C128: ka | D128: ka | E128: ch | F128: =C128 -> ka
A129: 118 | B129: Berufsschule | C129: Berufsschule | D129: Berufsschule | E129: Ecole professionnelle | F129: Berufsschule
A130: 119 | B130: bs | C130: bs | D130: bs | E130: ep | F130: bs
A131: 120 | B131: Kurse | C131: Kurse | D131: Kurse | E131: Cours | F131: Kurse
A132: 121 | B132: ku | C132: ku | D132: ku | E132: co | F132: ku
A133: 122 | B133: Kompensations-Std | C133: Kompensations-Std | D133: Kompensations-Std | E133: Heures de compensation | F133: Kompensations-Std
A134: 123 | B134: aus Vorjahr | C134: aus Vorjahr | D134: aus Vorjahr | E134: de l'année passée | F134: aus Vorjahr
A135: 124 | B135: kv | C135: kv | D135: kv | E135: cp | F135: kv
A136: 125 | B136: aus laufendem Jahr (Kontrolle) | C136: aus laufendem Jahr (Kontrolle) | D136: aus laufendem Jahr (Kontrolle) | E136: de l'année en cours (contrôle) | F136: aus laufendem Jahr (Kontrolle)
A137: 126 | B137: kj | C137: kj | D137: kj | E137: cc | F137: kj
A138: 127 | B138: Auszahlung | C138: Auszahlung | D138: Auszahlung | E138: Paiement des heures | F138: Auszahlung
A139: 128 | B139: Stunden Vorjahressaldo | C139: Stunden Vorjahressaldo | D139: Stunden Vorjahressaldo | E139: de l'année passée | F139: Stunden Vorjahressaldo
A140: 129 | B140: Differenz | C140: Differenz | D140: Differenz | E140: Différence en heures | F140: Differenz
A141: 130 | B141: =HLOOKUP($B$3,$C$12:$F$506,A141,FALSE) -> nach Kompensation und Auszahlung | C141: nach Kompensation und Auszahlung | D141: nach Kompensation und Auszahlung | E141: après compensation et paiement | F141: nach Kompensation und Auszahlung
A142: 131 | B142: Stunden laufendes Jahr | C142: Stunden laufendes Jahr | D142: Stunden laufendes Jahr | E142: de l'année en cours | F142: Stunden laufendes Jahr
A143: 132 | B143: Fehlstunden | C143: Fehlstunden | D143: Fehlstunden | E143: Heures manquantes | F143: Fehlstunden
A144: 133 | B144: laufendes Jahr (Kontrolle) | C144: laufendes Jahr (Kontrolle) | D144: laufendes Jahr (Kontrolle) | E144: de l'année en cours (contrôle) | F144: laufendes Jahr (Kontrolle)
A145: 134 | B145: fe | C145: fe | D145: fe | E145: hm | F145: fe
A146: 135 | B146: Total inkl. Zeitzuschläge | C146: Total inkl. Zeitzuschläge | D146: Total inkl. Zeitzuschläge | E146: Total (majorations inclus) | F146: Total inkl. Zeitzuschläge
A147: 136 | B147: Stunden produktiv und unproduktiv | C147: Stunden produktiv und unproduktiv | D147: Stunden produktiv und unproduktiv | E147: heures productives et inproductives | F147: Stunden produktiv und unproduktiv
A148: 137 | B148: Vergleich | C148: Vergleich | D148: Vergleich | E148: Comparaison des heures | F148: Vergleich
A149: 138 | B149: Stunden zu Soll-Stunden (inkl. allfälli- ge Minusstunden Vorjahr) | C149: Stunden zu Soll-Stunden (inkl. allfälli- ge Minusstunden Vorjahr) | D149: Stunden zu Soll-Stunden (inkl. allfälli- ge Minusstunden Vorjahr) | E149: aux heures théorique CCT (heures manquantes de l'année passée incl.) | F149: Stunden zu Soll-Stunden (inkl. allfälli- ge Minusstunden Vorjahr)
A150: 139 | B150: [] | C150: [] | D150: [] | E150: [] | F150: []
A151: 140 | B151: Stunden zu Soll-Stunden (kumuliert) | C151: Stunden zu Soll-Stunden (kumuliert) | D151: Stunden zu Soll-Stunden (kumuliert) | E151: aux heures théorique (cumulées) | F151: Stunden zu Soll-Stunden (kumuliert)
A152: 141 | B152: . | C152: . | D152: . | E152: . | F152: .
A153: 142 | B153: Ferienkontrolle | C153: Ferienkontrolle | D153: Ferienkontrolle | E153: Vacances (contrôle) | F153: Ferienkontrolle
A154: 143 | B154: Ferienguthaben Vorjahr | C154: Ferienguthaben Vorjahr | D154: Ferienguthaben Vorjahr | E154: Vacances année passée | F154: Ferienguthaben Vorjahr
A155: 144 | B155: Ferienguthaben nach Art. 12.1 GAV | C155: Ferienguthaben nach Art. 12.1 GAV | D155: Ferienguthaben nach Art. 12.1 GAV | E155: Vacances selon art 12.1 CCT | F155: Ferienguthaben nach Art. 12.1 GAV
A156: 145 | B156: Ferienguthaben total | C156: Ferienguthaben total | D156: Ferienguthaben total | E156: Total des vacances | F156: Ferienguthaben total
A157: 146 | B157: Ferien bezogen | C157: Ferien bezogen | D157: Ferien bezogen | E157: Vacances prises | F157: Ferien bezogen
A158: 147 | B158: Aktuelles Ferienguthaben | C158: Aktuelles Ferienguthaben | D158: Aktuelles Ferienguthaben | E158: Vacances restantes | F158: Aktuelles Ferienguthaben
A159: 148 | B159: Bemerkungen | C159: Bemerkungen | D159: Bemerkungen | E159: Notes | F159: Bemerkungen
A160: 149 | B160: Anzahl ft | C160: Anzahl ft | D160: Anzahl ft | E160: Nombre jf | F160: Anzahl ft
A161: 150 | B161: Meldung | C161: Meldung | D161: Meldung | E161: Message | F161: Meldung
A162: 151 | B162: Feiertagzuschläge gemäss Anstellungsprozent | C162: Feiertagzuschläge gemäss Anstellungsprozent | D162: Feiertagzuschläge gemäss Anstellungsprozent | E162: Majorations selon emploi % | F162: Feiertagzuschläge gemäss Anstellungsprozent
A163: 152 | B163: div | C163: div | D163: div | E163: div | F163: div
A164: 153 | B164: Den gewünschten Monat mit einem Klick wählen (gehe zu) Den gewünschten Monat mit einem Klick in die Druckvorschau versetzen (für Druck) | C164: Den gewünschten Monat mit einem Klick wählen (gehe zu) Den gewünschten Monat mit einem Klick in die Druckvorschau versetzen (für Druck) | D164: Den gewünschten Monat mit einem Klick wählen (gehe zu) Den gewünschten Monat mit einem Klick in die Druckvorschau versetzen (für Druck) | E164: Sélectionnez le mois désiré en un clic Sélectionnez le mois à imprimer en un clic | F164: Den gewünschten Monat mit einem Klick wählen (gehe zu) Den gewünschten Monat mit einem Klick in die Druckvorschau versetzen (für Druck)
A165: 154 | B165: Produktivstunden | C165: Produktivstunden | D165: Produktivstunden | E165: Heures productives | F165: Produktivstunden
A166: 155 | B166: Feiertage [ft] | C166: Feiertage [ft] | D166: Feiertage [ft] | E166: Jours fériés [jf] | F166: Feiertage [ft]
A167: 156 | B167: Ferien [f] | C167: Ferien [f] | D167: Ferien [f] | E167: Vacances [va] | F167: Ferien [f]
A168: 157 | B168: Kompensation (Vorjahr) [kv] | C168: Kompensation (Vorjahr) [kv] | D168: Kompensation (Vorjahr) [kv] | E168: Compensation (année passée) [cp] | F168: Kompensation (Vorjahr) [kv]
A169: 158 | B169: Kompensation (laufend) [kj] | C169: Kompensation (laufend) [kj] | D169: Kompensation (laufend) [kj] | E169: Compensation (année courant) [cc] | F169: Kompensation (laufend) [kj]
A170: 159 | B170: Absenzen, Kurzabsenzen [a] | C170: Absenzen, Kurzabsenzen [a] | D170: =C170 -> Absenzen, Kurzabsenzen [a] | E170: Absences [ab] | F170: Absenzen, Kurzabsenzen [a]
A171: 160 | B171: Krankheit [k] | C171: Krankheit [k] | D171: Krankheit [k] | E171: Maladie [ma] | F171: Krankheit [k]
A172: 161 | B172: Unfall [u] | C172: Unfall [u] | D172: Unfall [u] | E172: Accident [ac] | F172: Unfall [u]
A173: 162 | B173: Schwangerschaft/Mutterschaft [s] | C173: Schwangerschaft/Mutterschaft [s] | D173: Schwangerschaft/Mutterschaft [s] | E173: Grossesse/Maternité [gm] | F173: Schwangerschaft/Mutterschaft [s]
A174: 163 | B174: Militär/Beförderung/Zivilschutz [m] | C174: Militär/Beförderung/Zivilschutz [m] | D174: Militär/Beförderung/Zivilschutz [m] | E174: Militaire/Promotion/Protection civile [mi] | F174: Militär/Beförderung/Zivilschutz [m]
A175: 164 | B175: Berufsschule [bs] | C175: Berufsschule [bs] | D175: Berufsschule [bs] | E175: Ecole professionelle [ep] | F175: Berufsschule [bs]
A176: 165 | B176: Kurse [ku] | C176: Kurse [ku] | D176: Kurse [ku] | E176: Cours [co] | F176: Kurse [ku]
A177: 166 | B177: Kurzarbeit und Schlechtwetter [ka] | C177: Kurzarbeit und Schlechtwetter [ka] | D177: Kurzarbeit und Schlechtwetter [ka] | E177: Chômage partiel et intempéries [ch] | F177: Kurzarbeit und Schlechtwetter [ka]
A178: 167 | B178: Fehlstunden (unbezahlt) [fe] | C178: Fehlstunden (unbezahlt) [fe] | D178: Fehlstunden (unbezahlt) [fe] | E178: Heures manquantes [hm] | F178: Fehlstunden (unbezahlt) [fe]
A179: 168 | B179: 0 | D179: 0 | F179: 0
A180: 169 | B180: 0 | D180: 0 | F180: 0
A181: 170 | B181: 0 | D181: 0 | F181: 0
A182: 171 | B182: 0 | D182: 0 | F182: 0
A183: 172 | B183: 0 | D183: 0 | F183: 0
A184: 173 | B184: 0 | D184: 0 | F184: 0
A185: 174 | B185: 0 | D185: 0 | F185: 0
A186: 175 | B186: 0 | D186: 0 | F186: 0
A187: 176 | B187: 0 | D187: 0 | F187: 0
A188: 177 | B188: 0 | D188: 0 | F188: 0
A189: 178 | B189: 0 | D189: 0 | F189: 0
A190: 179 | B190: 0 | D190: 0 | F190: 0
A191: 180 | B191: 0 | D191: 0 | F191: 0
A192: 181 | B192: 0 | D192: 0 | F192: =C192 -> 0
A193: 182 | B193: 0 | D193: 0 | F193: 0
A194: 183 | B194: 0 | D194: 0 | F194: 0
A195: 184 | B195: 0 | D195: 0 | F195: 0
A196: 185 | B196: 0 | D196: 0 | F196: 0
A197: 186 | B197: 0 | D197: 0 | F197: 0
A198: 187 | B198: 0 | D198: 0 | F198: 0
A199: 188 | B199: 0 | D199: 0 | F199: 0
A200: 189 | B200: 0 | D200: 0 | F200: 0
A201: 190 | B201: 0 | D201: 0 | F201: 0
A202: 191 | B202: 0 | D202: 0 | F202: 0
A203: 192 | B203: 0 | D203: 0 | F203: 0
A204: 193 | B204: 0 | D204: 0 | F204: 0
A205: 194 | B205: =HLOOKUP($B$3,$C$12:$F$506,A205,FALSE) -> 0 | D205: 0 | F205: 0
A206: 195 | B206: 0 | D206: 0 | F206: 0
A207: 196 | B207: 0 | D207: 0 | F207: 0
A208: 197 | B208: 0 | D208: 0 | F208: 0
A209: 198 | B209: 0 | D209: 0 | F209: 0
... 297 more rows

Sheet Calendar Backup (hidden)
D1: Auswahl der gesetzlichen Feiertage (mit einem kleinen x ankreuzen)
D2: Jan | E2: 1 | F2: 2 | G2: 3 | H2: 4 | I2: 5 | J2: 6 | K2: 7 | L2: 8 | M2: 9 | N2: 10 | O2: 11 | P2: 12 | Q2: 13 | R2: 14 | S2: 15 | T2: 16 | U2: 17 | V2: 18 | W2: 19 | X2: 20 | Y2: 21 | Z2: 22 | AA2: 23 | AB2: 24 | AC2: 25 | AD2: 26 | AE2: 27 | AF2: 28 | AG2: 29 | AH2: 30 | AI2: 31
D4: Feb | E4: 1 | F4: 2 | G4: 3 | H4: 4 | I4: 5 | J4: 6 | K4: 7 | L4: 8 | M4: 9 | N4: 10 | O4: 11 | P4: 12 | Q4: 13 | R4: 14 | S4: 15 | T4: 16 | U4: 17 | V4: 18 | W4: 19 | X4: 20 | Y4: 21 | Z4: 22 | AA4: 23 | AB4: 24 | AC4: 25 | AD4: 26 | AE4: 27 | AF4: 28 | AG4: 29
D6: Mrz | E6: 1 | F6: 2 | G6: 3 | H6: 4 | I6: 5 | J6: 6 | K6: 7 | L6: 8 | M6: 9 | N6: 10 | O6: 11 | P6: 12 | Q6: 13 | R6: 14 | S6: 15 | T6: 16 | U6: 17 | V6: 18 | W6: 19 | X6: 20 | Y6: 21 | Z6: 22 | AA6: 23 | AB6: 24 | AC6: 25 | AD6: 26 | AE6: 27 | AF6: 28 | AG6: 29 | AH6: 30 | AI6: 31
D8: Apr | E8: 1 | F8: 2 | G8: 3 | H8: 4 | I8: 5 | J8: 6 | K8: 7 | L8: 8 | M8: 9 | N8: 10 | O8: 11 | P8: 12 | Q8: 13 | R8: 14 | S8: 15 | T8: 16 | U8: 17 | V8: 18 | W8: 19 | X8: 20 | Y8: 21 | Z8: 22 | AA8: 23 | AB8: 24 | AC8: 25 | AD8: 26 | AE8: 27 | AF8: 28 | AG8: 29 | AH8: 30
D10: Mai | E10: 1 | F10: 2 | G10: 3 | H10: 4 | I10: 5 | J10: 6 | K10: 7 | L10: 8 | M10: 9 | N10: 10 | O10: 11 | P10: 12 | Q10: 13 | R10: 14 | S10: 15 | T10: 16 | U10: 17 | V10: 18 | W10: 19 | X10: 20 | Y10: 21 | Z10: 22 | AA10: 23 | AB10: 24 | AC10: 25 | AD10: 26 | AE10: 27 | AF10: 28 | AG10: 29 | AH10: 30 | AI10: 31
D12: Jun | E12: 1 | F12: 2 | G12: 3 | H12: 4 | I12: 5 | J12: 6 | K12: 7 | L12: 8 | M12: 9 | N12: 10 | O12: 11 | P12: 12 | Q12: 13 | R12: 14 | S12: 15 | T12: 16 | U12: 17 | V12: 18 | W12: 19 | X12: 20 | Y12: 21 | Z12: 22 | AA12: 23 | AB12: 24 | AC12: 25 | AD12: 26 | AE12: 27 | AF12: 28 | AG12: 29 | AH12: 30
D14: Jul | E14: 1 | F14: 2 | G14: 3 | H14: 4 | I14: 5 | J14: 6 | K14: 7 | L14: 8 | M14: 9 | N14: 10 | O14: 11 | P14: 12 | Q14: 13 | R14: 14 | S14: 15 | T14: 16 | U14: 17 | V14: 18 | W14: 19 | X14: 20 | Y14: 21 | Z14: 22 | AA14: 23 | AB14: 24 | AC14: 25 | AD14: 26 | AE14: 27 | AF14: 28 | AG14: 29 | AH14: 30 | AI14: 31
D16: Aug | E16: 1 | F16: 2 | G16: 3 | H16: 4 | I16: 5 | J16: 6 | K16: 7 | L16: 8 | M16: 9 | N16: 10 | O16: 11 | P16: 12 | Q16: 13 | R16: 14 | S16: 15 | T16: 16 | U16: 17 | V16: 18 | W16: 19 | X16: 20 | Y16: 21 | Z16: 22 | AA16: 23 | AB16: 24 | AC16: 25 | AD16: 26 | AE16: 27 | AF16: 28 | AG16: 29 | AH16: 30 | AI16: 31
D18: Sep | E18: 1 | F18: 2 | G18: 3 | H18: 4 | I18: 5 | J18: 6 | K18: 7 | L18: 8 | M18: 9 | N18: 10 | O18: 11 | P18: 12 | Q18: 13 | R18: 14 | S18: 15 | T18: 16 | U18: 17 | V18: 18 | W18: 19 | X18: 20 | Y18: 21 | Z18: 22 | AA18: 23 | AB18: 24 | AC18: 25 | AD18: 26 | AE18: 27 | AF18: 28 | AG18: 29 | AH18: 30
D20: Okt | E20: 1 | F20: 2 | G20: 3 | H20: 4 | I20: 5 | J20: 6 | K20: 7 | L20: 8 | M20: 9 | N20: 10 | O20: 11 | P20: 12 | Q20: 13 | R20: 14 | S20: 15 | T20: 16 | U20: 17 | V20: 18 | W20: 19 | X20: 20 | Y20: 21 | Z20: 22 | AA20: 23 | AB20: 24 | AC20: 25 | AD20: 26 | AE20: 27 | AF20: 28 | AG20: 29 | AH20: 30 | AI20: 31
D22: Nov | E22: 1 | F22: 2 | G22: 3 | H22: 4 | I22: 5 | J22: 6 | K22: 7 | L22: 8 | M22: 9 | N22: 10 | O22: 11 | P22: 12 | Q22: 13 | R22: 14 | S22: 15 | T22: 16 | U22: 17 | V22: 18 | W22: 19 | X22: 20 | Y22: 21 | Z22: 22 | AA22: 23 | AB22: 24 | AC22: 25 | AD22: 26 | AE22: 27 | AF22: 28 | AG22: 29 | AH22: 30
D24: Dez | E24: 1 | F24: 2 | G24: 3 | H24: 4 | I24: 5 | J24: 6 | K24: 7 | L24: 8 | M24: 9 | N24: 10 | O24: 11 | P24: 12 | Q24: 13 | R24: 14 | S24: 15 | T24: 16 | U24: 17 | V24: 18 | W24: 19 | X24: 20 | Y24: 21 | Z24: 22 | AA24: 23 | AB24: 24 | AC24: 25 | AD24: 26 | AE24: 27 | AF24: 28 | AG24: 29 | AH24: 30 | AI24: 31

Sheet Timesheet Backup (hidden)
A1: =Labels!B164 -> Den gewünschten Monat mit einem Klick wählen (gehe zu) Den gewünschten Monat mit einem Klick in die Druckvorschau versetzen (für Druck)
A2: =Labels!B17 &B5 -> A r b e i t s z e i t k o n t r o l l e 2020 | AG2: 2020 | AI2: Hilfstabelle | AJ2: =Labels!B77 -> Jan | AK2: =Labels!B78 -> Feb | AL2: =Labels!B79 -> Mrz | AM2: =Labels!B80 -> Apr | AN2: =Labels!B81 -> Mai | AO2: =Labels!B82 -> Jun | AP2: =Labels!B83 -> Jul | AQ2: =Labels!B84 -> Aug | AR2: =Labels!B85 -> Sep | AS2: =Labels!B86 -> Okt | AT2: =Labels!B87 -> Nov | AU2: =Labels!B88 -> Dez | AV2: =Labels!B102 -> Total | AX2: Legenden, Erklärungen & Meldungen
A3: =Labels!B18 -> Mitarbeiter/In | B3: =Labels!B19 -> Muster Peter | AI3: =Labels!B113 -> a | AJ3: =AG809 -> 0 | AK3: =AG832 -> 0 | AL3: =AG855 -> 0 | AM3: =AG878 -> 0 | AN3: =AG901 -> 0 | AO3: =AG924 -> 0 | AP3: =AG947 -> 0 | AQ3: =AG970 -> 0 | AR3: =AG993 -> 0 | AS3: =AG1016 -> 0 | AT3: =AG1039 -> 0 | AU3: =AG1062 -> 0 | AV3: =SUM(AJ3:AU3) -> 0
A4: =Labels!B20 -> Anstellung % | B4: 100 | D4: =Labels!B89 -> im Januar | K4: =Labels!B22 -> Saldo Vorjahresstunden (+) | U4: =Labels!B24 -> Ferienguthaben Vorjahr | AC4: =Labels!B26 -> Stunden | AI4: =Labels!B115 -> f | AJ4: =AG806 -> 0 | AK4: =AG829 -> 0 | AL4: =AG852 -> 0 | AM4: =AG875 -> 0 | AN4: =AG898 -> 0 | AO4: =AG921 -> 0 | AP4: =AG944 -> 0 | AQ4: =AG967 -> 0 | AR4: =AG990 -> 0 | AS4: =AG1013 -> 0 | AT4: =AG1036 -> 0 | AU4: =AG1059 -> 0 | AV4: 0 | AX4: Legende Stunden zu Zuschläge (DE)
A5: =Labels!B21 -> Saldo für das Jahr | B5: =AG2 -> 2020 | D5: =IF($AE$64=0,0,$AE$64) -> -2096 | K5: =Labels!B23 -> Saldo Vorjahresstunden (-) | U5: =Labels!B25 -> Ferienguthaben laufendes Jahr | AA5: 0 | AC5: =Labels!B26 -> Stunden | AI5: =Labels!B120 -> k | AJ5: =AG810 -> 0 | AK5: =AG833 -> 0 | AL5: =AG856 -> 0 | AM5: =AG879 -> 0 | AN5: =AG902 -> 0 | AO5: =AG925 -> 0 | AP5: =AG948 -> 0 | AQ5: =AG971 -> 0 | AR5: =AG994 -> 0 | AS5: =AG1017 -> 0 | AT5: =AG1040 -> 0 | AU5: =AG1063 -> 0 | AV5: 0
AI6: =Labels!B122 -> u | AJ6: 0 | AK6: 0 | AL6: 0 | AM6: 0 | AN6: 0 | AO6: 0 | AP6: 0 | AQ6: 0 | AR6: 0 | AS6: 0 | AT6: 0 | AU6: 0 | AV6: 0 | AX6: [0] | AY6: Feiertagzuschläge gemäss Anstellungsprozent
A7: ="01.01."&B5 -> 01.01.2020 | B7: 48 | C7: =Labels!B27 -> Max. Std / Woche gemäss GAV | J7: 8 | K7: =Labels!B28 -> Std/Tag gemäss GAV | P7: =IF(MOD(YEAR($A$7),400)=0,"n",IF(MOD(YEAR($A$7),100)=0,"n",IF(MOD(YEAR($A$7),4)=0,"j","n"))) -> j | Q7: =Labels!B29 -> Schaltjahr (j/n) | U7: =NETWORKDAYS(DATE(B5,1,1),DATE(B5,12,31)) -> 262 | V7: =Labels!B30 -> Arbeitstage (Jahr) | Z7: =J7*U7 -> 2096 | AA7: =Labels!B31 -> Jahresbruttosollstunden | AI7: =Labels!B124 -> s | AJ7: 0 | AK7: 0 | AL7: 0 | AM7: 0 | AN7: 0 | AO7: 0 | AP7: 0 | AQ7: 0 | AR7: 0 | AS7: 0 | AT7: 0 | AU7: 0 | AV7: 0 | AX7: [1] | AY7: Sonntag Tag Zuschlag
AI8: =Labels!B126 -> m | AJ8: 0 | AK8: 0 | AL8: 0 | AM8: 0 | AN8: 0 | AO8: 0 | AP8: 0 | AQ8: 0 | AR8: 0 | AS8: 0 | AT8: 0 | AU8: 0 | AV8: 0 | AX8: [2] | AY8: Sonntag Nacht Zuschlag
A9: =TEXT(AP28,"MMMM"&Labels!B13) -> Januar | B9: =Labels!B32 -> Saldo Monat + / - | F9: =(AG12-(SUM(AG13:AG27)-AE34))*-1 -> -184 | K9: =Labels!B33 -> = | L9: =Labels!B34 -> Gelbe Felder müssen ausgefüllt werden (die übrigen werden automatisch berechnet) | AI9: =Labels!B130 -> bs | AJ9: 0 | AK9: 0 | AL9: 0 | AM9: 0 | AN9: 0 | AO9: 0 | AP9: 0 | AQ9: 0 | AR9: 0 | AS9: 0 | AT9: 0 | AU9: 0 | AV9: 0 | AX9: [3] | AY9: Zuschläge für ft-Tagarbeit
A10: =Labels!B35 -> Tag | B10: =AP28 -> 2020-01-01 | C10: =B10+1 -> 2020-01-02 | D10: 2020-01-03 | E10: 2020-01-04 | F10: 2020-01-05 | G10: 2020-01-06 | H10: 2020-01-07 | I10: 2020-01-08 | J10: 2020-01-09 | K10: 2020-01-10 | L10: 2020-01-11 | M10: 2020-01-12 | N10: 2020-01-13 | O10: 2020-01-14 | P10: 2020-01-15 | Q10: 2020-01-16 | R10: 2020-01-17 | S10: 2020-01-18 | T10: 2020-01-19 | U10: 2020-01-20 | V10: 2020-01-21 | W10: 2020-01-22 | X10: 2020-01-23 | Y10: 2020-01-24 | Z10: 2020-01-25 | AA10: 2020-01-26 | AB10: 2020-01-27 | AC10: 2020-01-28 | AD10: 2020-01-29 | AE10: 2020-01-30 | AF10: 2020-01-31 | AG10: =COUNT(B12:AF12)&" "&Labels!$B$63 -> 23 Tage | AI10: =Labels!B132 -> ku | AJ10: 0 | AK10: 0 | AL10: 0 | AM10: 0 | AN10: 0 | AO10: 0 | AP10: 0 | AQ10: 0 | AR10: 0 | AS10: 0 | AT10: 0 | AU10: 0 | AV10: 0 | AX10: [4] | AY10: Zuschläge für ft-Nachtarbeit
A11: =Labels!B36 -> Kalenderwoche | B11: =IF(B10="","",TRUNC((B10-DATE(YEAR(B10+3-MOD(B10-2,7)),1,MOD(B10-2,7)-9))/7)) -> 1 | C11: =IF(C10="","",TRUNC((C10-DATE(YEAR(C10+3-MOD(C10-2,7)),1,MOD(C10-2,7)-9))/7)) -> 1 | D11: 1 | E11: 1 | F11: 1 | G11: 2 | H11: 2 | I11: 2 | J11: 2 | K11: 2 | L11: 2 | M11: 2 | N11: 3 | O11: 3 | P11: 3 | Q11: 3 | R11: 3 | S11: 3 | T11: 3 | U11: 4 | V11: 4 | W11: 4 | X11: 4 | Y11: 4 | Z11: 4 | AA11: 4 | AB11: 5 | AC11: 5 | AD11: 5 | AE11: 5 | AF11: 5 | AI11: =Labels!B128 -> ka | AJ11: 0 | AK11: 0 | AL11: 0 | AM11: 0 | AN11: 0 | AO11: 0 | AP11: 0 | AQ11: 0 | AR11: 0 | AS11: 0 | AT11: 0 | AU11: 0 | AV11: 0 | AX11: [5] | AY11: Produktive Stunden Tag 06.00-20.00 Uhr
A12: =Labels!B37 -> Sollstunden | B12: =IF(MOD(B10,7)>=2,$J$7*$B$4%,"") -> 8 | C12: 8 | D12: 8 | G12: 8 | H12: 8 | I12: 8 | J12: 8 | K12: 8 | N12: 8 | O12: 8 | P12: 8 | Q12: 8 | R12: 8 | U12: 8 | V12: 8 | W12: 8 | X12: 8 | Y12: 8 | AB12: 8 | AC12: 8 | AD12: 8 | AE12: 8 | AF12: 8 | AG12: =SUM(B12:AF12) -> 184 | AI12: =Labels!B135 -> kv | AJ12: =AG807 -> 0 | AK12: =AG830 -> 0 | AL12: =AG853 -> 0 | AM12: =AG876 -> 0 | AN12: =AG899 -> 0 | AO12: =AG922 -> 0 | AP12: =AG945 -> 0 | AQ12: =AG968 -> 0 | AR12: =AG991 -> 0 | AS12: =AG1014 -> 0 | AT12: =AG1037 -> 0 | AU12: =AG1060 -> 0 | AV12: =SUM(AJ12:AU12) -> 0 | AX12: [6] | AY12: Produktive Stunden Nacht 20.00-06.00 Uhr
A13: =Labels!B38 -> Absenz in Std | B13: =B819 -> 0 | C13: =C819 -> 0 | D13: 0 | E13: 0 | F13: 0 | G13: 0 | H13: 0 | I13: 0 | J13: 0 | K13: 0 | L13: 0 | M13: 0 | N13: 0 | O13: 0 | P13: 0 | Q13: 0 | R13: 0 | S13: 0 | T13: 0 | U13: 0 | V13: 0 | W13: 0 | X13: 0 | Y13: 0 | Z13: 0 | AA13: 0 | AB13: 0 | AC13: 0 | AD13: 0 | AE13: 0 | AF13: 0 | AG13: =SUM(AJ3:AJ12) -> 0 | AI13: =Labels!B145 -> fe | AJ13: =AG818 -> 0 | AK13: =AG841 -> 0 | AL13: =AG864 -> 0 | AM13: =AG887 -> 0 | AN13: =AG910 -> 0 | AO13: =AG933 -> 0 | AP13: =AG956 -> 0 | AQ13: =AG979 -> 0 | AR13: =AG1002 -> 0 | AS13: =AG1025 -> 0 | AT13: =AG1048 -> 0 | AU13: =AG1071 -> 0 | AV13: =SUM(AJ13:AU13) -> 0 | AX13: [7] | AY13: Produktive Stunden im Monat ohne Zeitzuschläge und Absenzen
A14: =Labels!B39 -> Code | B14: =IF(B819<>0,IF(MAX(B806:B818)<B819,Labels!$B$163,INDEX($AH$806:$AH$818,MATCH(MAX(B806:B818),B806:B818,0))),"") ->  | C14: =IF(C819<>0,IF(MAX(C806:C818)<C819,Labels!$B$163,INDEX($AH$806:$AH$818,MATCH(MAX(C806:C818),C806:C818,0))),"") ->  | D14: =IF(D819<>0,IF(MAX(D806:D818)<D819,Labels!$B$163,INDEX($AH$806:$AH$818,MATCH(MAX(D806:D818),D806:D818,0))),"") ->  | E14: =IF(E819<>0,IF(MAX(E806:E818)<E819,Labels!$B$163,INDEX($AH$806:$AH$818,MATCH(MAX(E806:E818),E806:E818,0))),"") ->  | F14: =IF(F819<>0,IF(MAX(F806:F818)<F819,Labels!$B$163,INDEX($AH$806:$AH$818,MATCH(MAX(F806:F818),F806:F818,0))),"") ->  | G14: =IF(G819<>0,IF(MAX(G806:G818)<G819,Labels!$B$163,INDEX($AH$806:$AH$818,MATCH(MAX(G806:G818),G806:G818,0))),"") ->  | H14: =IF(H819<>0,IF(MAX(H806:H818)<H819,Labels!$B$163,INDEX($AH$806:$AH$818,MATCH(MAX(H806:H818),H806:H818,0))),"") ->  | I14: =IF(I819<>0,IF(MAX(I806:I818)<I819,Labels!$B$163,INDEX($AH$806:$AH$818,MATCH(MAX(I806:I818),I806:I818,0))),"") ->  | J14: =IF(J819<>0,IF(MAX(J806:J818)<J819,Labels!$B$163,INDEX($AH$806:$AH$818,MATCH(MAX(J806:J818),J806:J818,0))),"") ->  | K14: =IF(K819<>0,IF(MAX(K806:K818)<K819,Labels!$B$163,INDEX($AH$806:$AH$818,MATCH(MAX(K806:K818),K806:K818,0))),"") ->  | L14: =IF(L819<>0,IF(MAX(L806:L818)<L819,Labels!$B$163,INDEX($AH$806:$AH$818,MATCH(MAX(L806:L818),L806:L818,0))),"") ->  | M14: =IF(M819<>0,IF(MAX(M806:M818)<M819,Labels!$B$163,INDEX($AH$806:$AH$818,MATCH(MAX(M806:M818),M806:M818,0))),"") ->  | N14: =IF(N819<>0,IF(MAX(N806:N818)<N819,Labels!$B$163,INDEX($AH$806:$AH$818,MATCH(MAX(N806:N818),N806:N818,0))),"") ->  | O14: =IF(O819<>0,IF(MAX(O806:O818)<O819,Labels!$B$163,INDEX($AH$806:$AH$818,MATCH(MAX(O806:O818),O806:O818,0))),"") ->  | P14: =IF(P819<>0,IF(MAX(P806:P818)<P819,Labels!$B$163,INDEX($AH$806:$AH$818,MATCH(MAX(P806:P818),P806:P818,0))),"") ->  | Q14: =IF(Q819<>0,IF(MAX(Q806:Q818)<Q819,Labels!$B$163,INDEX($AH$806:$AH$818,MATCH(MAX(Q806:Q818),Q806:Q818,0))),"") ->  | R14: =IF(R819<>0,IF(MAX(R806:R818)<R819,Labels!$B$163,INDEX($AH$806:$AH$818,MATCH(MAX(R806:R818),R806:R818,0))),"") ->  | S14: =IF(S819<>0,IF(MAX(S806:S818)<S819,Labels!$B$163,INDEX($AH$806:$AH$818,MATCH(MAX(S806:S818),S806:S818,0))),"") ->  | T14: =IF(T819<>0,IF(MAX(T806:T818)<T819,Labels!$B$163,INDEX($AH$806:$AH$818,MATCH(MAX(T806:T818),T806:T818,0))),"") ->  | U14: =IF(U819<>0,IF(MAX(U806:U818)<U819,Labels!$B$163,INDEX($AH$806:$AH$818,MATCH(MAX(U806:U818),U806:U818,0))),"") ->  | V14: =IF(V819<>0,IF(MAX(V806:V818)<V819,Labels!$B$163,INDEX($AH$806:$AH$818,MATCH(MAX(V806:V818),V806:V818,0))),"") ->  | W14: =IF(W819<>0,IF(MAX(W806:W818)<W819,Labels!$B$163,INDEX($AH$806:$AH$818,MATCH(MAX(W806:W818),W806:W818,0))),"") ->  | X14: =IF(X819<>0,IF(MAX(X806:X818)<X819,Labels!$B$163,INDEX($AH$806:$AH$818,MATCH(MAX(X806:X818),X806:X818,0))),"") ->  | Y14: =IF(Y819<>0,IF(MAX(Y806:Y818)<Y819,Labels!$B$163,INDEX($AH$806:$AH$818,MATCH(MAX(Y806:Y818),Y806:Y818,0))),"") ->  | Z14: =IF(Z819<>0,IF(MAX(Z806:Z818)<Z819,Labels!$B$163,INDEX($AH$806:$AH$818,MATCH(MAX(Z806:Z818),Z806:Z818,0))),"") ->  | AA14: =IF(AA819<>0,IF(MAX(AA806:AA818)<AA819,Labels!$B$163,INDEX($AH$806:$AH$818,MATCH(MAX(AA806:AA818),AA806:AA818,0))),"") ->  | AB14: =IF(AB819<>0,IF(MAX(AB806:AB818)<AB819,Labels!$B$163,INDEX($AH$806:$AH$818,MATCH(MAX(AB806:AB818),AB806:AB818,0))),"") ->  | AC14: =IF(AC819<>0,IF(MAX(AC806:AC818)<AC819,Labels!$B$163,INDEX($AH$806:$AH$818,MATCH(MAX(AC806:AC818),AC806:AC818,0))),"") ->  | AD14: =IF(AD819<>0,IF(MAX(AD806:AD818)<AD819,Labels!$B$163,INDEX($AH$806:$AH$818,MATCH(MAX(AD806:AD818),AD806:AD818,0))),"") ->  | AE14: =IF(AE819<>0,IF(MAX(AE806:AE818)<AE819,Labels!$B$163,INDEX($AH$806:$AH$818,MATCH(MAX(AE806:AE818),AE806:AE818,0))),"") ->  | AF14: =IF(AF819<>0,IF(MAX(AF806:AF818)<AF819,Labels!$B$163,INDEX($AH$806:$AH$818,MATCH(MAX(AF806:AF818),AF806:AF818,0))),"") ->  | AI14: =Labels!B137 -> kj | AJ14: =AG808 -> 0 | AK14: =AG831 -> 0 | AL14: =AG854 -> 0 | AM14: =AG877 -> 0 | AN14: =AG900 -> 0 | AO14: =AG923 -> 0 | AP14: =AG946 -> 0 | AQ14: =AG969 -> 0 | AR14: =AG992 -> 0 | AS14: =AG1015 -> 0 | AT14: =AG1038 -> 0 | AU14: =AG1061 -> 0 | AV14: =SUM(AJ14:AU14) -> 0 | AX14: [8] | AY14: Unproduktive Stunden (Feiertag, Absenzen)
A15: =Labels!B40 -> 00.00-06.00h | AG15: =SUM(B15:AF15) -> 0 | AI15: =Labels!B118 -> ft | AJ15: =SUMIF($B$18:$AF$18,$AI$15,$B$19:$AF$19) -> 0 | AK15: =SUMIF($B$81:$AD$81,$AI$15,$B$82:$AD$82) -> 0 | AL15: =SUMIF($B$144:$AF$144,$AI$15,$B$145:$AF$145) -> 0 | AM15: =SUMIF($B$207:$AE$207,$AI$15,$B$208:$AE$208) -> 0 | AN15: =SUMIF($B$270:$AF$270,$AI$15,$B$271:$AF$271) -> 0 | AO15: =SUMIF($B$333:$AE$333,$AI$15,$B$334:$AE$334) -> 0 | AP15: =SUMIF($B$396:$AF$396,$AI$15,$B$397:$AF$397) -> 0 | AQ15: =SUMIF($B$459:$AF$459,$AI$15,$B$460:$AF$460) -> 0 | AR15: =SUMIF($B$522:$AE$522,$AI$15,$B$523:$AE$523) -> 0 | AS15: =SUMIF($B$585:$AF$585,$AI$15,$B$586:$AF$586) -> 0 | AT15: =SUMIF($B$648:$AE$648,$AI$15,$B$649:$AE$649) -> 0 | AU15: =SUMIF($B$711:$AF$711,$AI$15,$B$712:$AF$712) -> 0 | AV15: 0 | AX15: [9] | AY15: Total gearbeitete Std. im Monat mit Zeitzuschlägen und Absenzen abz. ausbezahlte Stunden
A16: =Labels!B41 -> 06.00-20.00h | AG16: =SUM(B16:AF16) -> 0 | AI16: =Labels!B160 -> Anzahl ft | AJ16: =COUNTIF($B$18:$AF$18,$AI$15) -> 0 | AK16: =COUNTIF($B$81:$AD$81,$AI$15) -> 0 | AL16: =COUNTIF($B$144:$AF$144,$AI$15) -> 0 | AM16: =COUNTIF($B$207:$AE$207,$AI$15) -> 0 | AN16: =COUNTIF($B$270:$AF$270,$AI$15) -> 0 | AO16: =COUNTIF($B$333:$AE$333,$AI$15) -> 0 | AP16: =COUNTIF($B$396:$AF$396,$AI$15) -> 0 | AQ16: =COUNTIF($B$459:$AF$459,$AI$15) -> 0 | AR16: =COUNTIF($B$522:$AE$522,$AI$15) -> 0 | AS16: =COUNTIF($B$585:$AF$585,$AI$15) -> 0 | AT16: =COUNTIF($B$648:$AE$648,$AI$15) -> 0 | AU16: =COUNTIF($B$711:$AF$711,$AI$15) -> 0 | AV16: 0 | AX16: [10] | AY16: Soll-Stunden
A17: =Labels!B42 -> 20.00-24.00h | AG17: =SUM(B17:AF17) -> 0 | AI17: =Labels!B161 -> Meldung | AJ17: =IF($AV$16>9,"(" & $AV$16 & " = " & Labels!B117,"") ->  | AX17: [11] | AY17: Vergleich im Monat gearbeitete Std. inkl. Zeitzuschläge minus Zahlung Vorjahr zu Soll-Stunden + / -
A18: =Labels!B43 -> Feiertag "ft" | B18: =IF(WEEKDAY(B10,2)<=6,IF(KALENDER!E3="x",Labels!$B$118,""),"") ->  | C18: =IF(WEEKDAY(C10,2)<=6,IF(KALENDER!F3="x",Labels!$B$118,""),"") ->  | D18: =IF(WEEKDAY(D10,2)<=6,IF(KALENDER!G3="x",Labels!$B$118,""),"") ->  | E18: =IF(WEEKDAY(E10,2)<=6,IF(KALENDER!H3="x",Labels!$B$118,""),"") ->  | F18: =IF(WEEKDAY(F10,2)<=6,IF(KALENDER!I3="x",Labels!$B$118,""),"") ->  | G18: =IF(WEEKDAY(G10,2)<=6,IF(KALENDER!J3="x",Labels!$B$118,""),"") ->  | H18: =IF(WEEKDAY(H10,2)<=6,IF(KALENDER!K3="x",Labels!$B$118,""),"") ->  | I18: =IF(WEEKDAY(I10,2)<=6,IF(KALENDER!L3="x",Labels!$B$118,""),"") ->  | J18: =IF(WEEKDAY(J10,2)<=6,IF(KALENDER!M3="x",Labels!$B$118,""),"") ->  | K18: =IF(WEEKDAY(K10,2)<=6,IF(KALENDER!N3="x",Labels!$B$118,""),"") ->  | L18: =IF(WEEKDAY(L10,2)<=6,IF(KALENDER!O3="x",Labels!$B$118,""),"") ->  | M18: =IF(WEEKDAY(M10,2)<=6,IF(KALENDER!P3="x",Labels!$B$118,""),"") ->  | N18: =IF(WEEKDAY(N10,2)<=6,IF(KALENDER!Q3="x",Labels!$B$118,""),"") ->  | O18: =IF(WEEKDAY(O10,2)<=6,IF(KALENDER!R3="x",Labels!$B$118,""),"") ->  | P18: =IF(WEEKDAY(P10,2)<=6,IF(KALENDER!S3="x",Labels!$B$118,""),"") ->  | Q18: =IF(WEEKDAY(Q10,2)<=6,IF(KALENDER!T3="x",Labels!$B$118,""),"") ->  | R18: =IF(WEEKDAY(R10,2)<=6,IF(KALENDER!U3="x",Labels!$B$118,""),"") ->  | S18: =IF(WEEKDAY(S10,2)<=6,IF(KALENDER!V3="x",Labels!$B$118,""),"") ->  | T18: =IF(WEEKDAY(T10,2)<=6,IF(KALENDER!W3="x",Labels!$B$118,""),"") ->  | U18: =IF(WEEKDAY(U10,2)<=6,IF(KALENDER!X3="x",Labels!$B$118,""),"") ->  | V18: =IF(WEEKDAY(V10,2)<=6,IF(KALENDER!Y3="x",Labels!$B$118,""),"") ->  | W18: =IF(WEEKDAY(W10,2)<=6,IF(KALENDER!Z3="x",Labels!$B$118,""),"") ->  | X18: =IF(WEEKDAY(X10,2)<=6,IF(KALENDER!AA3="x",Labels!$B$118,""),"") ->  | Y18: =IF(WEEKDAY(Y10,2)<=6,IF(KALENDER!AB3="x",Labels!$B$118,""),"") ->  | Z18: =IF(WEEKDAY(Z10,2)<=6,IF(KALENDER!AC3="x",Labels!$B$118,""),"") ->  | AA18: =IF(WEEKDAY(AA10,2)<=6,IF(KALENDER!AD3="x",Labels!$B$118,""),"") ->  | AB18: =IF(WEEKDAY(AB10,2)<=6,IF(KALENDER!AE3="x",Labels!$B$118,""),"") ->  | AC18: =IF(WEEKDAY(AC10,2)<=6,IF(KALENDER!AF3="x",Labels!$B$118,""),"") ->  | AD18: =IF(WEEKDAY(AD10,2)<=6,IF(KALENDER!AG3="x",Labels!$B$118,""),"") ->  | AE18: =IF(WEEKDAY(AE10,2)<=6,IF(KALENDER!AH3="x",Labels!$B$118,""),"") ->  | AF18: =IF(WEEKDAY(AF10,2)<=6,IF(KALENDER!AI3="x",Labels!$B$118,""),"") ->  | AH18: [0] | AI18: Bez VoJa | AJ18: =$AE$33 -> 0 | AK18: =$AE$96 -> 0 | AL18: =$AE$159 -> 0 | AM18: =$AE$222 -> 0 | AN18: =$AE$285 -> 0 | AO18: =$AE$348 -> 0 | AP18: =$AE$411 -> 0 | AQ18: =$AE$474 -> 0 | AR18: =$AE$537 -> 0 | AV18: =SUM(AJ18:AU18) -> 0
A19: =Labels!B44 -> Gutschrift "ft" | B19: =IF(AND(B18=Labels!$B$118,WEEKDAY(B10,2)<6),$J$7*$B$4%,"") ->  | C19: =IF(AND(C18=Labels!$B$118,WEEKDAY(C10,2)<6),$J$7*$B$4%,"") ->  | D19: =IF(AND(D18=Labels!$B$118,WEEKDAY(D10,2)<6),$J$7*$B$4%,"") ->  | E19: =IF(AND(E18=Labels!$B$118,WEEKDAY(E10,2)<6),$J$7*$B$4%,"") ->  | F19: =IF(AND(F18=Labels!$B$118,WEEKDAY(F10,2)<6),$J$7*$B$4%,"") ->  | G19: =IF(AND(G18=Labels!$B$118,WEEKDAY(G10,2)<6),$J$7*$B$4%,"") ->  | H19: =IF(AND(H18=Labels!$B$118,WEEKDAY(H10,2)<6),$J$7*$B$4%,"") ->  | I19: =IF(AND(I18=Labels!$B$118,WEEKDAY(I10,2)<6),$J$7*$B$4%,"") ->  | J19: =IF(AND(J18=Labels!$B$118,WEEKDAY(J10,2)<6),$J$7*$B$4%,"") ->  | K19: =IF(AND(K18=Labels!$B$118,WEEKDAY(K10,2)<6),$J$7*$B$4%,"") ->  | L19: =IF(AND(L18=Labels!$B$118,WEEKDAY(L10,2)<6),$J$7*$B$4%,"") ->  | M19: =IF(AND(M18=Labels!$B$118,WEEKDAY(M10,2)<6),$J$7*$B$4%,"") ->  | N19: =IF(AND(N18=Labels!$B$118,WEEKDAY(N10,2)<6),$J$7*$B$4%,"") ->  | O19: =IF(AND(O18=Labels!$B$118,WEEKDAY(O10,2)<6),$J$7*$B$4%,"") ->  | P19: =IF(AND(P18=Labels!$B$118,WEEKDAY(P10,2)<6),$J$7*$B$4%,"") ->  | Q19: =IF(AND(Q18=Labels!$B$118,WEEKDAY(Q10,2)<6),$J$7*$B$4%,"") ->  | R19: =IF(AND(R18=Labels!$B$118,WEEKDAY(R10,2)<6),$J$7*$B$4%,"") ->  | S19: =IF(AND(S18=Labels!$B$118,WEEKDAY(S10,2)<6),$J$7*$B$4%,"") ->  | T19: =IF(AND(T18=Labels!$B$118,WEEKDAY(T10,2)<6),$J$7*$B$4%,"") ->  | U19: =IF(AND(U18=Labels!$B$118,WEEKDAY(U10,2)<6),$J$7*$B$4%,"") ->  | V19: =IF(AND(V18=Labels!$B$118,WEEKDAY(V10,2)<6),$J$7*$B$4%,"") ->  | W19: =IF(AND(W18=Labels!$B$118,WEEKDAY(W10,2)<6),$J$7*$B$4%,"") ->  | X19: =IF(AND(X18=Labels!$B$118,WEEKDAY(X10,2)<6),$J$7*$B$4%,"") ->  | Y19: =IF(AND(Y18=Labels!$B$118,WEEKDAY(Y10,2)<6),$J$7*$B$4%,"") ->  | Z19: =IF(AND(Z18=Labels!$B$118,WEEKDAY(Z10,2)<6),$J$7*$B$4%,"") ->  | AA19: =IF(AND(AA18=Labels!$B$118,WEEKDAY(AA10,2)<6),$J$7*$B$4%,"") ->  | AB19: =IF(AND(AB18=Labels!$B$118,WEEKDAY(AB10,2)<6),$J$7*$B$4%,"") ->  | AC19: =IF(AND(AC18=Labels!$B$118,WEEKDAY(AC10,2)<6),$J$7*$B$4%,"") ->  | AD19: =IF(AND(AD18=Labels!$B$118,WEEKDAY(AD10,2)<6),$J$7*$B$4%,"") ->  | AE19: =IF(AND(AE18=Labels!$B$118,WEEKDAY(AE10,2)<6),$J$7*$B$4%,"") ->  | AF19: =IF(AND(AF18=Labels!$B$118,WEEKDAY(AF10,2)<6),$J$7*$B$4%,"") ->  | AG19: =SUM(B19:AF19) -> 0 | AI19: Bez LaJa | AJ19: =$AE$34 -> 0 | AK19: =$AE$97 -> 0 | AL19: =$AE$160 -> 0 | AM19: =$AE$223 -> 0 | AN19: =$AE$286 -> 0 | AO19: =$AE$349 -> 0 | AP19: =$AE$412 -> 0 | AQ19: =$AE$475 -> 0 | AR19: =$AE$538 -> 0 | AS19: =$AE$601 -> 0 | AT19: =$AE$664 -> 0 | AU19: =$AE$727 -> 0 | AV19: =SUM(AJ19:AU19) -> 0
A20: =Labels!B45 -> Tagestotal | B20: =SUM(B15:B17) -> 0 | C20: =SUM(C15:C17) -> 0 | D20: 0 | E20: 0 | F20: 0 | G20: 0 | H20: 0 | I20: 0 | J20: 0 | K20: 0 | L20: 0 | M20: 0 | N20: 0 | O20: 0 | P20: 0 | Q20: 0 | R20: 0 | S20: 0 | T20: 0 | U20: 0 | V20: 0 | W20: 0 | X20: 0 | Y20: 0 | Z20: 0 | AA20: 0 | AB20: 0 | AC20: 0 | AD20: 0 | AE20: 0 | AF20: 0 | AI20: Zuschläge Nacht/Sonn-/Feiertag | AJ20: =SUM(AG26+AG27) -> 0 | AK20: =SUM(AG89+AG90) -> 0 | AL20: =SUM(AG152+AG153) -> 0 | AM20: =SUM(AG215+AG216) -> 0 | AN20: =SUM(AG278+AG279) -> 0 | AO20: =SUM(AG341+AG342) -> 0 | AP20: =SUM(AG404+AG405) -> 0 | AQ20: =SUM(AG467+AG468) -> 0 | AR20: =SUM(AG530+AG531) -> 0 | AS20: =SUM(AG593+AG594) -> 0 | AT20: =SUM(AG656+AG657) -> 0 | AU20: =SUM(AG719+AG720) -> 0 | AV20: =SUM(AJ20:AU20) -> 0 | AX20: Legende Absenztypen (DE)
A21: =Labels!B46 -> .
A22: =Labels!B47 -> . | AX22: a | AY22: Absenzen, Kurzabsenzen Art. 11 GAV
A23: =Labels!B48 -> Monatsübergang | B23: =IF(WEEKDAY(B10)=1,TEXT(B10-1,"MMM"&Labels!B13),"") ->  | AF23: =IF(AND(WEEKDAY(AF10)>1,WEEKDAY(AF10)<7),TEXT(DATE($B$5,MONTH(AF10)+1,1),"MMM"&Labels!B13),"") -> Feb | AX23: f | AY23: Ferien Art. 12.1. GAV
A24: =Labels!B49 -> Wochentotal | B24: =IF(WEEKDAY(B10)=7,SUMIF($B11:$AF11,B11,$B20:$AF20)+SUMIF($B74:$AD74,B11,$B83:$AD83),IF(WEEKDAY(B10)=1,SUMIF($B11:$AF11,B11,$B20:$AF20)+SUMIF($B74:$AD74,B11,$B83:$AD83),"")) ->  | C24: =IF(WEEKDAY(C10)=7,SUMIF($B11:$AF11,C11,$B20:$AF20)+SUMIF($B74:$AD74,C11,$B83:$AD83),"") ->  | E24: 0 | L24: 0 | S24: 0 | Z24: 0 | AF24: =IF(WEEKDAY(AF10)=7,SUMIF($B11:$AF11,AF11,$B20:$AF20)+SUMIF($B74:$AD74,AF11,$B83:$AD83),AF23) -> Feb | AX24: k | AY24: Krankheit Art. 13 GAV
A25: =Labels!B50 -> Zeitzuschlag 1) | B25: =IF(B32="FALSCH","",B32) ->  | C25: =IF(C32="FALSCH","",C32) ->  | AG25: =SUM(B25:AF25) -> 0 | AX25: m | AY25: Militär, Zivilschutz Art. 16 GAV
A26: =Labels!B51 -> Zeitzuschlag 2) | B26: =IF((B15+B17)=0,"",SUM(B15,B17)) ->  | C26: =IF((C15+C17)=0,"",SUM(C15,C17)) ->  | D26: =IF((D15+D17)=0,"",SUM(D15,D17)) ->  | E26: =IF((E15+E17)=0,"",SUM(E15,E17)) ->  | AG26: 0 | AH26: [1] | AI26: Konfiguration (lokal) | AX26: s | AY26: Schwanger-/Mutterschaft Art. 15 GAV
A27: =Labels!B52 -> Zeitzuschlag 3) | B27: =SUM(B28:B31) -> 0 | C27: 0 | D27: 0 | E27: 0 | F27: 0 | G27: 0 | H27: 0 | I27: 0 | J27: 0 | K27: 0 | L27: 0 | M27: 0 | N27: 0 | O27: 0 | P27: 0 | Q27: 0 | R27: 0 | S27: 0 | T27: 0 | U27: 0 | V27: 0 | W27: 0 | X27: 0 | Y27: 0 | Z27: 0 | AA27: 0 | AB27: 0 | AC27: 0 | AD27: 0 | AE27: 0 | AF27: 0 | AG27: =SUM(B27:AF27) -> 0 | AH27: [2] | AX27: u | AY27: Unfall Art. 14 GAV
A28: =Labels!B53 -> Sonntag Tag | B28: =IF(WEEKDAY(B10)=1,B16,"") ->  | C28: =IF(WEEKDAY(C10)=1,C16,"") ->  | F28: 0 | M28: 0 | T28: 0 | AA28: 0 | AG28: 0 | AH28: [3] | AI28: Erster Januar aktuelles Jahr | AP28: =DATE(YEAR($A$7),MONTH($A$7),DAY($A$7)) -> 2020-01-01 | AX28: bs | AY28: Berufsschule
A29: =Labels!B54 -> Sonntag Nacht | B29: =IF(WEEKDAY(B10)=1,SUM(B15+B17),"") ->  | C29: =IF(WEEKDAY(C10)=1,SUM(C15+C17),"") ->  | F29: 0 | M29: 0 | T29: 0 | AA29: 0 | AG29: 0 | AH29: [4] | AI29: (Berechnungsgrundlage Kalender) | AX29: fe | AY29: Fehlstunden zur Information ohne Berechnung in der Zusammenfassung
A30: =Labels!B55 -> ft-Tazuschlag | B30: =IF(B18=Labels!$B$118,B16,"") ->  | C30: =IF(C18=Labels!$B$118,C16,"") ->  | D30: =IF(D18=Labels!$B$118,D16,"") ->  | E30: =IF(E18=Labels!$B$118,E16,"") ->  | F30: =IF(F18=Labels!$B$118,F16,"") ->  | G30: =IF(G18=Labels!$B$118,G16,"") ->  | H30: =IF(H18=Labels!$B$118,H16,"") ->  | I30: =IF(I18=Labels!$B$118,I16,"") ->  | J30: =IF(J18=Labels!$B$118,J16,"") ->  | K30: =IF(K18=Labels!$B$118,K16,"") ->  | L30: =IF(L18=Labels!$B$118,L16,"") ->  | M30: =IF(M18=Labels!$B$118,M16,"") ->  | N30: =IF(N18=Labels!$B$118,N16,"") ->  | O30: =IF(O18=Labels!$B$118,O16,"") ->  | P30: =IF(P18=Labels!$B$118,P16,"") ->  | Q30: =IF(Q18=Labels!$B$118,Q16,"") ->  | R30: =IF(R18=Labels!$B$118,R16,"") ->  | S30: =IF(S18=Labels!$B$118,S16,"") ->  | T30: =IF(T18=Labels!$B$118,T16,"") ->  | U30: =IF(U18=Labels!$B$118,U16,"") ->  | V30: =IF(V18=Labels!$B$118,V16,"") ->  | W30: =IF(W18=Labels!$B$118,W16,"") ->  | X30: =IF(X18=Labels!$B$118,X16,"") ->  | Y30: =IF(Y18=Labels!$B$118,Y16,"") ->  | Z30: =IF(Z18=Labels!$B$118,Z16,"") ->  | AA30: =IF(AA18=Labels!$B$118,AA16,"") ->  | AB30: =IF(AB18=Labels!$B$118,AB16,"") ->  | AC30: =IF(AC18=Labels!$B$118,AC16,"") ->  | AD30: =IF(AD18=Labels!$B$118,AD16,"") ->  | AE30: =IF(AE18=Labels!$B$118,AE16,"") ->  | AF30: =IF(AF18=Labels!$B$118,AF16,"") ->  | AG30: 0 | AH30: [5] | AX30: ka | AY30: Kurzabeit, Schlechtwetterausfälle
A31: =Labels!B56 -> ft-Nazuschlag | B31: =IF(B18=Labels!$B$118,SUM(B15,B17),"") ->  | C31: =IF(C18=Labels!$B$118,SUM(C15,C17),"") ->  | D31: =IF(D18=Labels!$B$118,SUM(D15,D17),"") ->  | E31: =IF(E18=Labels!$B$118,SUM(E15,E17),"") ->  | F31: =IF(F18=Labels!$B$118,SUM(F15,F17),"") ->  | G31: =IF(G18=Labels!$B$118,SUM(G15,G17),"") ->  | H31: =IF(H18=Labels!$B$118,SUM(H15,H17),"") ->  | I31: =IF(I18=Labels!$B$118,SUM(I15,I17),"") ->  | J31: =IF(J18=Labels!$B$118,SUM(J15,J17),"") ->  | K31: =IF(K18=Labels!$B$118,SUM(K15,K17),"") ->  | L31: =IF(L18=Labels!$B$118,SUM(L15,L17),"") ->  | M31: =IF(M18=Labels!$B$118,SUM(M15,M17),"") ->  | N31: =IF(N18=Labels!$B$118,SUM(N15,N17),"") ->  | O31: =IF(O18=Labels!$B$118,SUM(O15,O17),"") ->  | P31: =IF(P18=Labels!$B$118,SUM(P15,P17),"") ->  | Q31: =IF(Q18=Labels!$B$118,SUM(Q15,Q17),"") ->  | R31: =IF(R18=Labels!$B$118,SUM(R15,R17),"") ->  | S31: =IF(S18=Labels!$B$118,SUM(S15,S17),"") ->  | T31: =IF(T18=Labels!$B$118,SUM(T15,T17),"") ->  | U31: =IF(U18=Labels!$B$118,SUM(U15,U17),"") ->  | V31: =IF(V18=Labels!$B$118,SUM(V15,V17),"") ->  | W31: =IF(W18=Labels!$B$118,SUM(W15,W17),"") ->  | X31: =IF(X18=Labels!$B$118,SUM(X15,X17),"") ->  | Y31: =IF(Y18=Labels!$B$118,SUM(Y15,Y17),"") ->  | Z31: =IF(Z18=Labels!$B$118,SUM(Z15,Z17),"") ->  | AA31: =IF(AA18=Labels!$B$118,SUM(AA15,AA17),"") ->  | AB31: =IF(AB18=Labels!$B$118,SUM(AB15,AB17),"") ->  | AC31: =IF(AC18=Labels!$B$118,SUM(AC15,AC17),"") ->  | AD31: =IF(AD18=Labels!$B$118,SUM(AD15,AD17),"") ->  | AE31: =IF(AE18=Labels!$B$118,SUM(AE15,AE17),"") ->  | AF31: =IF(AF18=Labels!$B$118,SUM(AF15,AF17),"") ->  | AG31: 0 | AH31: [6] | AI31: Hilfszelle Feiertage | AQ31: =Labels!$B$118 -> ft | AX31: kj | AY31: Kompensation laufendes Jahr siehe Zusammenfassung
A32: =Labels!B57 -> Zuschlag blind (Wochentotal) | B32: =IF(OR(ISTEXT(B24),B24="",B24<$B$7),"",ROUND(((B24-$B$7)*25%)/25,4)*25) ->  | C32: =IF(OR(ISTEXT(C24),C24="",C24<$B$7),"",ROUND(((C24-$B$7)*25%)/25,4)*25) ->  | AG32: =AG16 -> 0 | AH32: [7] | AX32: ku | AY32: Kurse
B33: =Labels!B58 -> 1) 25% Zeitzuschlag für Überschreitung Wochentotal | L33: =Labels!B59 -> 2) 100% Zeitzuschlag für Nachtarbeit | T33: =Labels!B61 -> Eingabe der ausbezahlten Stunden Vorjahressaldo | AG33: =SUM(AG15+AG17) -> 0 | AH33: [8] | AI33: aktueller Kalender | AK33: calendar | AQ33: KALENDER | AX33: kv | AY33: Kompensation Vorjahressaldo für Abrechnung in der Zusammenfassung
B34: =Labels!B60 -> 3) 100% Zeitzuschlag für Sonn- und Feiertagsarbeit | T34: =Labels!B62 -> Eingabe der ausbezahlten Stunden laufendes Jahr (Überstunden) | AG34: =SUM(AG15:AG17) -> 0 | AH34: [9]
A35: =Labels!B159 -> Bemerkungen | AG35: =SUM(AG13+AG19) -> 0 | AH35: [10]
AG36: =SUM(AG13:AG27) -> 0 | AH36: [11] | AI36: alter Kalender | AK36: calendar1 | AQ36: Kalender Müller
AG37: =AG12 -> 184 | AI37: neuer Kalender | AK37: calendar | AQ37: KALENDER | AX37: Meldungen & Beschriftungen
AG38: =SUM(AG36-AG12) -> -184
A39: =Labels!B103 -> Zusammenstellung | G39: =Labels!B77 -> Jan | I39: =Labels!B78 -> Feb | K39: =Labels!B79 -> Mrz | M39: =Labels!B80 -> Apr | O39: =Labels!B81 -> Mai | Q39: =Labels!B82 -> Jun | S39: =Labels!B83 -> Jul | U39: =Labels!B84 -> Aug | W39: =Labels!B85 -> Sep | Y39: =Labels!B86 -> Okt | AA39: =Labels!B87 -> Nov | AC39: =Labels!B88 -> Dez | AE39: =Labels!B101 -> Jahr | AY39: ="Das Vorjahresguthaben beträgt noch "&TEXT(W60,"0.0000")&" Std." -> Das Vorjahresguthaben beträgt noch 0.0000 Std.
A40: =Labels!B20 -> Anstellung % | G40: =IF($B$4=0,0,$B$4) -> 100 | I40: =IF($B$70=0,0,$B$70) -> 100 | K40: =IF($B$133=0,0,$B$133) -> 100 | M40: =IF($B$196=0,0,$B$196) -> 100 | O40: =IF($B$259=0,0,$B$259) -> 100 | Q40: =IF($B$322=0,0,$B$322) -> 100 | S40: =IF($B$385=0,0,$B$385) -> 100 | U40: =IF($B$448=0,0,$B$448) -> 100 | W40: =IF($B$511=0,0,$B$511) -> 100 | Y40: =IF($B$574=0,0,$B$574) -> 100 | AA40: =IF($B$637=0,0,$B$637) -> 100 | AC40: =IF($B$700=0,0,$B$700) -> 100 | AY40: Total
A41: =Labels!B104 -> Sollstunden gemäss GAV | G41: =IF($AG$37=0,0,$AG$37) -> 184 | I41: =IF($AG$100=0,0,$AG$100) -> 160 | K41: =IF($AG$138=0,0,$AG$138) -> 176 | M41: =IF($AG$226=0,0,$AG$226) -> 176 | O41: =IF($AG$289=0,0,$AG$289) -> 168 | Q41: =IF($AG$352=0,0,$AG$352) -> 176 | S41: =IF($AG$415=0,0,$AG$415) -> 184 | U41: =IF($AG$478=0,0,$AG$478) -> 168 | W41: =IF($AG$541=0,0,$AG$541) -> 176 | Y41: =IF($AG$604=0,0,$AG$604) -> 176 | AA41: =IF($AG$667=0,0,$AG$667) -> 168 | AC41: =IF($AG$730=0,0,$AG$730) -> 184 | AE41: =SUM(G41:AD41) -> 2096
A42: =Labels!B105 -> Produktive Stunden | B42: =Labels!B106 -> 06.00 - 20.00 Uhr | G42: =IF($AG$32=0,0,$AG$32) -> 0 | I42: =IF($AG$95=0,0,$AG$95) -> 0 | K42: =IF($AG$158=0,0,$AG$158) -> 0 | M42: =IF($AG$221=0,0,$AG$221) -> 0 | O42: =IF($AG$284=0,0,$AG$284) -> 0 | Q42: =IF($AG$347=0,0,$AG$347) -> 0 | S42: =IF($AG$410=0,0,$AG$410) -> 0 | U42: =IF($AG$473=0,0,$AG$473) -> 0 | W42: =IF($AG$536=0,0,$AG$536) -> 0 | Y42: =IF($AG$599=0,0,$AG$599) -> 0 | AA42: =IF($AG$662=0,0,$AG$662) -> 0 | AC42: =IF($AG$725=0,0,$AG$725) -> 0 | AE42: =SUM(G42:AD42) -> 0
B43: =Labels!B107 -> Nacht-, Sonn-, Feiertagsarbeit | G43: =IF($AG$33=0,0,$AG$33) -> 0 | I43: =IF($AG$96=0,0,$AG$96) -> 0 | K43: =IF($AG$159=0,0,$AG$159) -> 0 | M43: =IF($AG$222=0,0,$AG$222) -> 0 | O43: =IF($AG$285=0,0,$AG$285) -> 0 | Q43: =IF($AG$348=0,0,$AG$348) -> 0 | S43: =IF($AG$411=0,0,$AG$411) -> 0 | U43: =IF($AG$474=0,0,$AG$474) -> 0 | W43: =IF($AG$537=0,0,$AG$537) -> 0 | Y43: =IF($AG$600=0,0,$AG$600) -> 0 | AA43: =IF($AG$663=0,0,$AG$663) -> 0 | AC43: =IF($AG$726=0,0,$AG$726) -> 0 | AE43: =SUM(G43:AD43) -> 0
A44: =Labels!B108 -> Zeitzuschläge | B44: =Labels!B109 -> aus Wochentotal | G44: =IF($AG$25=0,0,$AG$25) -> 0 | I44: =IF($AG$88=0,0,$AG$88) -> 0 | K44: =IF($AG$151=0,0,$AG$151) -> 0 | M44: =IF($AG$214=0,0,$AG$214) -> 0 | O44: =IF($AG$277=0,0,$AG$277) -> 0 | Q44: =IF($AG$340=0,0,$AG$340) -> 0 | S44: =IF($AG$403=0,0,$AG$403) -> 0 | U44: =IF($AG$466=0,0,$AG$466) -> 0 | W44: =IF($AG$529=0,0,$AG$529) -> 0 | Y44: =IF($AG$592=0,0,$AG$592) -> 0 | AA44: =IF($AG$655=0,0,$AG$655) -> 0 | AC44: =IF($AG$718=0,0,$AG$718) -> 0 | AE44: =SUM(G44:AD44) -> 0
B45: =Labels!B110 -> aus Nacht-, Sonn-, Feiertagsarbeiten | G45: =IF($AJ$20=0,0,$AJ$20) -> 0 | I45: =IF($AK$20=0,0,$AK$20) -> 0 | K45: =IF($AL$20=0,0,$AL$20) -> 0 | M45: =IF($AM$20=0,0,$AM$20) -> 0 | O45: =IF($AN$20=0,0,$AN$20) -> 0 | Q45: =IF($AO$20=0,0,$AO$20) -> 0 | S45: =IF($AP$20=0,0,$AP$20) -> 0 | U45: =IF($AQ$20=0,0,$AQ$20) -> 0 | W45: =IF($AR$20=0,0,$AR$20) -> 0 | Y45: =IF($AS$20=0,0,$AS$20) -> 0 | AA45: =IF($AT$20=0,0,$AT$20) -> 0 | AC45: =IF($AU$20=0,0,$AU$20) -> 0 | AE45: =SUM(G45:AD45) -> 0
A46: =Labels!B111 -> Unproduktive Stunden
A47: =Labels!B112 -> Absenzen, Kurzabsenzen Art. 11 GAV | F47: =Labels!B113 -> a | G47: =IF($AJ$3=0,0,$AJ$3) -> 0 | I47: =IF($AK$3=0,0,$AK$3) -> 0 | K47: =IF($AL$3=0,0,$AL$3) -> 0 | M47: =IF($AM$3=0,0,$AM$3) -> 0 | O47: =IF($AN$3=0,0,$AN$3) -> 0 | Q47: =IF($AO$3=0,0,$AO$3) -> 0 | S47: =IF($AP$3=0,0,$AP$3) -> 0 | U47: =IF($AQ$3=0,0,$AQ$3) -> 0 | W47: =IF($AR$3=0,0,$AR$3) -> 0 | Y47: =IF($AS$3=0,0,$AS$3) -> 0 | AA47: =IF(AT$3=0,0,$AT$3) -> 0 | AC47: =IF($AU$3=0,0,$AU$3) -> 0 | AE47: =IF($AV$3=0,0,$AV$3) -> 0
A48: =Labels!B114 -> Ferien Art. 12.1 GAV | F48: =Labels!B115 -> f | G48: =IF($AJ$4=0,0,$AJ$4) -> 0 | I48: =IF($AK$4=0,0,$AK$4) -> 0 | K48: =IF($AL$4=0,0,$AL$4) -> 0 | M48: =IF($AM$4=0,0,$AM$4) -> 0 | O48: =IF($AN$4=0,0,$AN$4) -> 0 | Q48: =IF($AO$4=0,0,$AO$4) -> 0 | S48: =IF($AP$4=0,0,$AP$4) -> 0 | U48: =IF($AQ$4=0,0,$AQ$4) -> 0 | W48: =IF($AR$4=0,0,$AR$4) -> 0 | Y48: =IF($AS$4=0,0,$AS$4) -> 0 | AA48: =IF($AT$4=0,0,$AT$4) -> 0 | AC48: =IF($AU$4=0,0,$AU$4) -> 0 | AE48: =IF($AV$4=0,0,$AV$4) -> 0
A49: =Labels!B116 -> Feiertage Art. 12.2 GAV | C49: =IF($AJ$17="","",$AJ$17) ->  | F49: =Labels!B118 -> ft | G49: =IF($AJ$15=0,0,$AJ$15) -> 0 | I49: =IF($AK$15=0,0,$AK$15) -> 0 | K49: =IF($AL$15=0,0,$AL$15) -> 0 | M49: =IF($AM$15=0,0,$AM$15) -> 0 | O49: =IF($AN$15=0,0,$AN$15) -> 0 | Q49: =IF($AO$15=0,0,$AO$15) -> 0 | S49: =IF($AP$15=0,0,$AP$15) -> 0 | U49: =IF($AQ$15=0,0,$AQ$15) -> 0 | W49: =IF($AR$15=0,0,$AR$15) -> 0 | Y49: =IF($AS$15=0,0,$AS$15) -> 0 | AA49: =IF($AT$15=0,0,$AT$15) -> 0 | AC49: =IF($AU$15=0,0,$AU$15) -> 0 | AE49: =IF($AV$15=0,0,$AV$15) -> 0
A50: =Labels!B119 -> Krankheit Art. 13 GAV | F50: =Labels!B120 -> k | G50: =IF($AJ$5=0,0,$AJ$5) -> 0 | I50: =IF($AK$5=0,0,$AK$5) -> 0 | K50: =IF($AL$5=0,0,$AL$5) -> 0 | M50: =IF($AM$5=0,0,$AM$5) -> 0 | O50: =IF($AN$5=0,0,$AN$5) -> 0 | Q50: =IF($AO$5=0,0,$AO$5) -> 0 | S50: =IF($AP$5=0,0,$AP$5) -> 0 | U50: =IF($AQ$5=0,0,$AQ$5) -> 0 | W50: =IF($AR$5=0,0,$AR$5) -> 0 | Y50: =IF($AS$5=0,0,$AS$5) -> 0 | AA50: =IF($AT$5=0,0,$AT$5) -> 0 | AC50: =IF($AU$5=0,0,$AU$5) -> 0 | AE50: =IF($AV$5=0,0,$AV$5) -> 0
A51: =Labels!B121 -> Unfall Art. 14 GAV | F51: =Labels!B122 -> u | G51: =IF($AJ$6=0,0,$AJ$6) -> 0 | I51: =IF($AK$6=0,0,$AK$6) -> 0 | K51: =IF($AL$6=0,0,$AL$6) -> 0 | M51: =IF($AM$6=0,0,$AM$6) -> 0 | O51: =IF($AN$6=0,0,$AN$6) -> 0 | Q51: =IF($AO$6=0,0,$AO$6) -> 0 | S51: =IF($AP$6=0,0,$AP$6) -> 0 | U51: =IF($AQ$6=0,0,$AQ$6) -> 0 | W51: =IF($AR$6=0,0,$AR$6) -> 0 | Y51: =IF($AS$6=0,0,$AS$6) -> 0 | AA51: =IF($AT$6=0,0,$AT$6) -> 0 | AC51: =IF($AU$6=0,0,$AU$6) -> 0 | AE51: =IF($AV$6=0,0,$AV$6) -> 0
A52: =Labels!B123 -> Schwangerschaft/Mutterschaft Art. 15 GAV | F52: =Labels!B124 -> s | G52: =IF($AJ$7=0,0,$AJ$7) -> 0 | I52: =IF($AK$7=0,0,$AK$7) -> 0 | K52: =IF($AL$7=0,0,$AL$7) -> 0 | M52: =IF($AM$7=0,0,$AM$7) -> 0 | O52: =IF($AN$7=0,0,$AN$7) -> 0 | Q52: =IF($AO$7=0,0,$AO$7) -> 0 | S52: =IF($AP$7=0,0,$AP$7) -> 0 | U52: =IF($AQ$7=0,0,$AQ$7) -> 0 | W52: =IF($AR$7=0,0,$AR$7) -> 0 | Y52: =IF($AS$7=0,0,$AS$7) -> 0 | AA52: =IF($AT$7=0,0,$AT$7) -> 0 | AC52: =IF($AU$7=0,0,$AU$7) -> 0 | AE52: =IF($AV$7=0,0,$AV$7) -> 0
A53: =Labels!B125 -> Militär/Beförderung/Zivilschutz Art. 16 GAV | F53: =Labels!B126 -> m | G53: =IF($AJ$8=0,0,$AJ$8) -> 0 | I53: =IF($AK$8=0,0,$AK$8) -> 0 | K53: =IF($AL$8=0,0,$AL$8) -> 0 | M53: =IF($AM$8=0,0,$AM$8) -> 0 | O53: =IF($AN$8=0,0,$AN$8) -> 0 | Q53: =IF($AO$8=0,0,$AO$8) -> 0 | S53: =IF($AP$8=0,0,$AP$8) -> 0 | U53: =IF($AQ$8=0,0,$AQ$8) -> 0 | W53: =IF($AR$8=0,0,$AR$8) -> 0 | Y53: =IF($AS$8=0,0,$AS$8) -> 0 | AA53: =IF($AT$8=0,0,$AT$8) -> 0 | AC53: =IF($AU$8=0,0,$AU$8) -> 0 | AE53: =IF($AV$8=0,0,$AV$8) -> 0
A54: =Labels!B127 -> Kurzarbeit und Schlechtwetterausfälle | F54: =Labels!B128 -> ka | G54: =IF($AJ$11=0,0,$AJ$11) -> 0 | I54: =IF($AK$11=0,0,$AK$11) -> 0 | K54: =IF($AL$11=0,0,$AL$11) -> 0 | M54: =IF($AM$11=0,0,$AM$11) -> 0 | O54: =IF($AN$11=0,0,$AN$11) -> 0 | Q54: =IF($AO$11=0,0,$AO$11) -> 0 | S54: =IF($AP$11=0,0,$AP$11) -> 0 | U54: =IF($AQ$11=0,0,$AQ$11) -> 0 | W54: =IF($AR$11=0,0,$AR$11) -> 0 | Y54: =IF($AS$11=0,0,$AS$11) -> 0 | AA54: =IF($AT$11=0,0,$AT$11) -> 0 | AC54: =IF($AU$11=0,0,$AU$11) -> 0 | AE54: =IF($AV$11=0,0,$AV$11) -> 0
A55: =Labels!B129 -> Berufsschule | F55: =Labels!B130 -> bs | G55: =IF($AJ$9=0,0,$AJ$9) -> 0 | I55: =IF($AK$9=0,0,$AK$9) -> 0 | K55: =IF($AL$9=0,0,$AL$9) -> 0 | M55: =IF($AM$9=0,0,$AM$9) -> 0 | O55: =IF($AN$9=0,0,$AN$9) -> 0 | Q55: =IF($AO$9=0,0,$AO$9) -> 0 | S55: =IF($AP$9=0,0,$AP$9) -> 0 | U55: =IF($AQ$9=0,0,$AQ$9) -> 0 | W55: =IF($AR$9=0,0,$AR$9) -> 0 | Y55: =IF($AS$9=0,0,$AS$9) -> 0 | AA55: =IF($AT$9=0,0,$AT$9) -> 0 | AC55: =IF($AU$9=0,0,$AU$9) -> 0 | AE55: =IF($AV$9=0,0,$AV$9) -> 0
A56: =Labels!B131 -> Kurse | F56: =Labels!B132 -> ku | G56: =IF($AJ$10=0,0,$AJ$10) -> 0 | I56: =IF($AK$10=0,0,$AK$10) -> 0 | K56: =IF($AL$10=0,0,$AL$10) -> 0 | M56: =IF($AM$10=0,0,$AM$10) -> 0 | O56: =IF($AN$10=0,0,$AN$10) -> 0 | Q56: =IF($AO$10=0,0,$AO$10) -> 0 | S56: =IF($AP$10=0,0,$AP$10) -> 0 | U56: =IF($AQ$10=0,0,$AQ$10) -> 0 | W56: =IF($AR$10=0,0,$AR$10) -> 0 | Y56: =IF($AS$10=0,0,$AS$10) -> 0 | AA56: =IF($AT$10=0,0,$AT$10) -> 0 | AC56: =IF($AU$10=0,0,$AU$10) -> 0 | AE56: =IF($AV$10=0,0,$AV$10) -> 0
A57: =Labels!B133 -> Kompensations-Std | B57: =Labels!B134 -> aus Vorjahr | F57: =Labels!B135 -> kv | G57: =IF($AJ$12=0,0,$AJ$12) -> 0 | I57: =IF($AK$12=0,0,$AK$12) -> 0 | K57: =IF($AL$12=0,0,$AL$12) -> 0 | M57: =IF($AM$12=0,0,$AM$12) -> 0 | O57: =IF($AN$12=0,0,$AN$12) -> 0 | Q57: =IF($AO$12=0,0,$AO$12) -> 0 | S57: =IF($AP$12=0,0,$AP$12) -> 0 | U57: =IF($AQ$12=0,0,$AQ$12) -> 0 | W57: =IF($AR$12=0,0,$AR$12) -> 0 | AE57: =IF($AV$12=0,0,$AV$12) -> 0
B58: =Labels!B136 -> aus laufendem Jahr (Kontrolle) | F58: =Labels!B137 -> kj | G58: =IF($AJ$14=0,0,$AJ$14) -> 0 | I58: =IF($AK$14=0,0,$AK$14) -> 0 | K58: =IF($AL$14=0,0,$AL$14) -> 0 | M58: =IF($AM$14=0,0,$AM$14) -> 0 | O58: =IF($AN$14=0,0,$AN$14) -> 0 | Q58: =IF($AO$14=0,0,$AO$14) -> 0 | S58: =IF($AP$14=0,0,$AP$14) -> 0 | U58: =IF($AQ$14=0,0,$AQ$14) -> 0 | W58: =IF($AR$14=0,0,$AR$14) -> 0 | Y58: =IF($AS$14=0,0,$AS$14) -> 0 | AA58: =IF($AT$14=0,0,$AT$14) -> 0 | AC58: =IF($AU$14=0,0,$AU$14) -> 0 | AE58: =IF($AV$14=0,0,$AV$14) -> 0
A59: =Labels!B138 -> Auszahlung | B59: =Labels!B139 -> Stunden Vorjahressaldo | G59: =IF($AJ$18=0,0,$AJ$18) -> 0 | I59: =IF($AK$18=0,0,$AK$18) -> 0 | K59: =IF($AL$18=0,0,$AL$18) -> 0 | M59: =IF($AM$18=0,0,$AM$18) -> 0 | O59: =IF($AN$18=0,0,$AN$18) -> 0 | Q59: =IF($AO$18=0,0,$AO$18) -> 0 | S59: =IF($AP$18=0,0,$AP$18) -> 0 | U59: =IF($AQ$18=0,0,$AQ$18) -> 0 | W59: =IF($AR$18=0,0,$AR$18) -> 0 | AE59: =IF($AV$18=0,0,$AV$18) -> 0
A60: =Labels!B140 -> Differenz | B60: =Labels!B141 -> nach Kompensation und Auszahlung | G60: =IF(ROUND($P$4,3)=0,0,$P$4-G57-G59) -> 0 | I60: =IF(ROUND(G60,3)=0,0,G60-(SUM(I57+I59))) -> 0 | K60: =IF(ROUND(I60,3)=0,0,I60-K59-K57) -> 0 | M60: =IF(ROUND(K60,3)=0,0,K60-(SUM(M59+M57))) -> 0 | O60: =IF(ROUND(M60,3)=0,0,M60-(SUM(O59+O57))) -> 0 | Q60: =IF(ROUND(O60,3)=0,0,O60-(SUM(Q59+Q57))) -> 0 | S60: =IF(ROUND(Q60,3)=0,0,Q60-(SUM(S59+S57))) -> 0 | U60: =IF(ROUND(S60,3)=0,0,S60-(SUM(U59+U57))) -> 0 | W60: =IF(ROUND(U60,3)=0,0,U60-(SUM(W59+W57))) -> 0 | Y60: =IF($W$60<0.1,"",AY39) -> 
A61: =Labels!B138 -> Auszahlung | B61: =Labels!B142 -> Stunden laufendes Jahr | G61: =IF($AJ$19=0,0,$AJ$19) -> 0 | I61: =IF($AK$19=0,0,$AK$19) -> 0 | K61: =IF($AL$19=0,0,$AL$19) -> 0 | M61: =IF($AM$19=0,0,$AM$19) -> 0 | O61: =IF($AN$19=0,0,$AN$19) -> 0 | Q61: =IF($AO$19=0,0,$AO$19) -> 0 | S61: =IF($AP$19=0,0,$AP$19) -> 0 | U61: =IF($AQ$19=0,0,$AQ$19) -> 0 | W61: =IF($AR$19=0,0,$AR$19) -> 0 | Y61: =IF($AS$19=0,0,$AS$19) -> 0 | AA61: =IF($AT$19=0,0,$AT$19) -> 0 | AC61: =IF($AU$19=0,0,$AU$19) -> 0 | AE61: =IF($AV$19=0,0,$AV$19) -> 0
A62: =Labels!B143 -> Fehlstunden | B62: =Labels!B144 -> laufendes Jahr (Kontrolle) | F62: =Labels!B145 -> fe | G62: =IF($AJ$13=0,0,$AJ$13) -> 0 | I62: =IF($AK$13=0,0,$AK$13) -> 0 | K62: =IF($AL$13=0,0,$AL$13) -> 0 | M62: =IF($AM$13=0,0,$AM$13) -> 0 | O62: =IF($AN$13=0,0,$AN$13) -> 0 | Q62: =IF($AO$13=0,0,$AO$13) -> 0 | S62: =IF($AP$13=0,0,$AP$13) -> 0 | U62: =IF($AQ$13=0,0,$AQ$13) -> 0 | W62: =IF($AR$13=0,0,$AR$13) -> 0 | Y62: =IF($AS$13=0,0,$AS$13) -> 0 | AA62: =IF($AT$13=0,0,$AT$13) -> 0 | AC62: =IF($AU$13=0,0,$AU$13) -> 0 | AE62: =IF($AV$13=0,0,$AV$13) -> 0
A63: =Labels!B146 -> Total inkl. Zeitzuschläge | B63: =Labels!B147 -> Stunden produktiv und unproduktiv | G63: =IF($AG$36=0,0,$AG$36) -> 0 | I63: =IF($AG$99=0,0,$AG$99) -> 0 | K63: =IF($AG$162=0,0,$AG$162) -> 0 | M63: =IF($AG$225=0,0,$AG$225) -> 0 | O63: =IF($AG$288=0,0,$AG$288) -> 0 | Q63: =IF($AG$351=0,0,$AG$351) -> 0 | S63: =IF($AG$414=0,0,$AG$414) -> 0 | U63: =IF($AG$477=0,0,$AG$477) -> 0 | W63: =IF($AG$540=0,0,$AG$540) -> 0 | Y63: =IF($AG$603=0,0,$AG$603) -> 0 | AA63: =IF($AG$666=0,0,$AG$666) -> 0 | AC63: =IF($AG$729=0,0,$AG$729) -> 0 | AE63: =SUM($G$63:$AD$63) -> 0
A64: =Labels!B148 -> Vergleich | B64: =Labels!B149 -> Stunden zu Soll-Stunden (inkl. allfälli- ge Minusstunden Vorjahr) | G64: =IF($AG$38=0,0,$AG$38)-$AE$34+$P$5 -> -184 | I64: =IF($AG$101=0,0,$AG$101)-$AE$97 -> -160 | K64: =IF($AG$164=0,0,$AG$164)-$AE$160 -> -176 | M64: =IF($AG$227=0,0,$AG$227)-$AE$223 -> -176 | O64: =IF($AG$290=0,0,$AG$290)-$AE$286 -> -168 | Q64: =IF($AG$353=0,0,$AG$353)-$AE$349 -> -176 | S64: =IF($AG$416=0,0,$AG$416)-$AE$412 -> -184 | U64: =IF($AG$479=0,0,$AG$479)-$AE$475 -> -168 | W64: =IF($AG$542=0,0,$AG$542)-$AE$538 -> -176 | Y64: =IF($AG$605=0,0,$AG$605)-$AE$601 -> -176 | AA64: =IF($AG$668=0,0,$AG$668)-$AE$664 -> -168 | AC64: =IF($AG$731=0,0,$AG$731)-$AE$727 -> -184 | AE64: =SUM($G$64:$AD$64) -> -2096
B65: =Labels!B151 -> Stunden zu Soll-Stunden (kumuliert) | G65: =IF(G40=0,0,$G$64) -> -184 | I65: =IF(I40=0,0,SUM($G$64:$J$64)) -> -344 | K65: =IF(K40=0,0,SUM($G$64:$L$64)) -> -520 | M65: =IF(M40=0,0,SUM($G$64:$N$64)) -> -696 | O65: =IF(O40=0,0,SUM($G$64:$P$64)) -> -864 | Q65: =IF(Q40=0,0,SUM($G$64:$R$64)) -> -1040 | S65: =IF(S40=0,0,SUM($G$64:$T$64)) -> -1224 | U65: =IF(U40=0,0,SUM($G$64:$V$64)) -> -1392 | W65: =IF(W40=0,0,SUM($G$64:$X$64)) -> -1568 | Y65: =IF(Y40=0,0,SUM($G$64:$Z$64)) -> -1744 | AA65: =IF(AA40=0,0,SUM($G$64:$AB$64)) -> -1912 | AC65: =IF(AC40=0,0,SUM($G$64:$AD$64)) -> -2096
A66: =Labels!B153 -> Ferienkontrolle | B66: =Labels!B154 -> Ferienguthaben Vorjahr | G66: =IF($AA$4=0,0,$AA$4) -> 0 | I66: =Labels!B155 -> Ferienguthaben nach Art. 12.1 GAV | M66: =IF($AA$5=0,0,$AA$5) -> 0 | O66: =Labels!B156 -> Ferienguthaben total | S66: =SUM(G66+M66) -> 0 | U66: =Labels!B157 -> Ferien bezogen | Y66: =IF($AV$4=0,0,$AV$4) -> 0 | AA66: =Labels!B158 -> Aktuelles Ferienguthaben | AE66: =IF(S66=0,0,S66-Y66) -> 0
A69: =$A$3 -> Mitarbeiter/In | B69: =IF($B$3="","",$B$3) -> Muster Peter | AF69: =AF3 -> 0
A70: =$A$4 -> Anstellung % | B70: 100 | D70: =Labels!B90 -> im Februar
A71: =$A$5 -> Saldo für das Jahr | D71: =IF($AE$64=0,0,$AE$64) -> -2096
A72: =TEXT(DATE(YEAR(AP28),MONTH(AP28)+1,1),"MMMM"&Labels!B13) -> Februar | B72: =$B$9 -> Saldo Monat + / - | F72: =(AG75-(SUM(AG76:AG90)-AE97))*-1 -> -160 | K72: =$K$9 -> = | L72: =$L$9 -> Gelbe Felder müssen ausgefüllt werden (die übrigen werden automatisch berechnet)
A73: =$A$10 -> Tag | B73: =AF10+1 -> 2020-02-01 | C73: =B73+1 -> 2020-02-02 | D73: 2020-02-03 | E73: 2020-02-04 | F73: 2020-02-05 | G73: 2020-02-06 | H73: 2020-02-07 | I73: 2020-02-08 | J73: 2020-02-09 | K73: 2020-02-10 | L73: 2020-02-11 | M73: 2020-02-12 | N73: 2020-02-13 | O73: 2020-02-14 | P73: 2020-02-15 | Q73: 2020-02-16 | R73: 2020-02-17 | S73: 2020-02-18 | T73: 2020-02-19 | U73: 2020-02-20 | V73: 2020-02-21 | W73: 2020-02-22 | X73: 2020-02-23 | Y73: 2020-02-24 | Z73: 2020-02-25 | AA73: 2020-02-26 | AB73: 2020-02-27 | AC73: 2020-02-28 | AD73: =IF(MOD($AE$95,4)=0,$AC$73+1,"") -> 2020-02-29 | AG73: =COUNT(B75:AF75)&" "&Labels!$B$63 -> 20 Tage
A74: =$A$11 -> Kalenderwoche | B74: =IF(B73="","",TRUNC((B73-DATE(YEAR(B73+3-MOD(B73-2,7)),1,MOD(B73-2,7)-9))/7)) -> 5 | C74: 5 | D74: 6 | E74: 6 | F74: 6 | G74: 6 | H74: 6 | I74: 6 | J74: 6 | K74: 7 | L74: 7 | M74: 7 | N74: 7 | O74: 7 | P74: 7 | Q74: 7 | R74: 8 | S74: 8 | T74: 8 | U74: 8 | V74: 8 | W74: 8 | X74: 8 | Y74: 9 | Z74: 9 | AA74: 9 | AB74: 9 | AC74: 9 | AD74: 9
A75: =$A$12 -> Sollstunden | B75: =IF(MOD(B73,7)>=2,$J$7*$B$70%,"") ->  | D75: 8 | E75: 8 | F75: 8 | G75: 8 | H75: 8 | K75: 8 | L75: 8 | M75: 8 | N75: 8 | O75: 8 | R75: 8 | S75: 8 | T75: 8 | U75: 8 | V75: 8 | Y75: 8 | Z75: 8 | AA75: 8 | AB75: 8 | AC75: 8 | AD75: =IF(AD73<>"",IF(MOD(AD73,7)>=2,$J$7*$B$70%,""),"") ->  | AG75: =IF($AD$73="",SUM(B75:AC75),SUM(B75:AF75)) -> 160
A76: =$A$13 -> Absenz in Std | B76: =B842 -> 0 | C76: =C842 -> 0 | D76: 0 | E76: 0 | F76: 0 | G76: 0 | H76: 0 | I76: 0 | J76: 0 | K76: 0 | L76: 0 | M76: 0 | N76: 0 | O76: 0 | P76: 0 | Q76: 0 | R76: 0 | S76: 0 | T76: 0 | U76: 0 | V76: 0 | W76: 0 | X76: 0 | Y76: 0 | Z76: 0 | AA76: 0 | AB76: 0 | AC76: 0 | AD76: =IF(AD73<>"",AD842,"") -> 0 | AG76: =SUM(AK3:AK12) -> 0
A77: =$A$14 -> Code | B77: =IF(B842<>0,IF(MAX(B829:B841)<B842,Labels!$B$163,INDEX($AH$829:$AH$841,MATCH(MAX(B829:B841),B829:B841,0))),"") ->  | C77: =IF(C842<>0,IF(MAX(C829:C841)<C842,Labels!$B$163,INDEX($AH$829:$AH$841,MATCH(MAX(C829:C841),C829:C841,0))),"") ->  | D77: =IF(D842<>0,IF(MAX(D829:D841)<D842,Labels!$B$163,INDEX($AH$829:$AH$841,MATCH(MAX(D829:D841),D829:D841,0))),"") ->  | E77: =IF(E842<>0,IF(MAX(E829:E841)<E842,Labels!$B$163,INDEX($AH$829:$AH$841,MATCH(MAX(E829:E841),E829:E841,0))),"") ->  | F77: =IF(F842<>0,IF(MAX(F829:F841)<F842,Labels!$B$163,INDEX($AH$829:$AH$841,MATCH(MAX(F829:F841),F829:F841,0))),"") ->  | G77: =IF(G842<>0,IF(MAX(G829:G841)<G842,Labels!$B$163,INDEX($AH$829:$AH$841,MATCH(MAX(G829:G841),G829:G841,0))),"") ->  | H77: =IF(H842<>0,IF(MAX(H829:H841)<H842,Labels!$B$163,INDEX($AH$829:$AH$841,MATCH(MAX(H829:H841),H829:H841,0))),"") ->  | I77: =IF(I842<>0,IF(MAX(I829:I841)<I842,Labels!$B$163,INDEX($AH$829:$AH$841,MATCH(MAX(I829:I841),I829:I841,0))),"") ->  | J77: =IF(J842<>0,IF(MAX(J829:J841)<J842,Labels!$B$163,INDEX($AH$829:$AH$841,MATCH(MAX(J829:J841),J829:J841,0))),"") ->  | K77: =IF(K842<>0,IF(MAX(K829:K841)<K842,Labels!$B$163,INDEX($AH$829:$AH$841,MATCH(MAX(K829:K841),K829:K841,0))),"") ->  | L77: =IF(L842<>0,IF(MAX(L829:L841)<L842,Labels!$B$163,INDEX($AH$829:$AH$841,MATCH(MAX(L829:L841),L829:L841,0))),"") ->  | M77: =IF(M842<>0,IF(MAX(M829:M841)<M842,Labels!$B$163,INDEX($AH$829:$AH$841,MATCH(MAX(M829:M841),M829:M841,0))),"") ->  | N77: =IF(N842<>0,IF(MAX(N829:N841)<N842,Labels!$B$163,INDEX($AH$829:$AH$841,MATCH(MAX(N829:N841),N829:N841,0))),"") ->  | O77: =IF(O842<>0,IF(MAX(O829:O841)<O842,Labels!$B$163,INDEX($AH$829:$AH$841,MATCH(MAX(O829:O841),O829:O841,0))),"") ->  | P77: =IF(P842<>0,IF(MAX(P829:P841)<P842,Labels!$B$163,INDEX($AH$829:$AH$841,MATCH(MAX(P829:P841),P829:P841,0))),"") ->  | Q77: =IF(Q842<>0,IF(MAX(Q829:Q841)<Q842,Labels!$B$163,INDEX($AH$829:$AH$841,MATCH(MAX(Q829:Q841),Q829:Q841,0))),"") ->  | R77: =IF(R842<>0,IF(MAX(R829:R841)<R842,Labels!$B$163,INDEX($AH$829:$AH$841,MATCH(MAX(R829:R841),R829:R841,0))),"") ->  | S77: =IF(S842<>0,IF(MAX(S829:S841)<S842,Labels!$B$163,INDEX($AH$829:$AH$841,MATCH(MAX(S829:S841),S829:S841,0))),"") ->  | T77: =IF(T842<>0,IF(MAX(T829:T841)<T842,Labels!$B$163,INDEX($AH$829:$AH$841,MATCH(MAX(T829:T841),T829:T841,0))),"") ->  | U77: =IF(U842<>0,IF(MAX(U829:U841)<U842,Labels!$B$163,INDEX($AH$829:$AH$841,MATCH(MAX(U829:U841),U829:U841,0))),"") ->  | V77: =IF(V842<>0,IF(MAX(V829:V841)<V842,Labels!$B$163,INDEX($AH$829:$AH$841,MATCH(MAX(V829:V841),V829:V841,0))),"") ->  | W77: =IF(W842<>0,IF(MAX(W829:W841)<W842,Labels!$B$163,INDEX($AH$829:$AH$841,MATCH(MAX(W829:W841),W829:W841,0))),"") ->  | X77: =IF(X842<>0,IF(MAX(X829:X841)<X842,Labels!$B$163,INDEX($AH$829:$AH$841,MATCH(MAX(X829:X841),X829:X841,0))),"") ->  | Y77: =IF(Y842<>0,IF(MAX(Y829:Y841)<Y842,Labels!$B$163,INDEX($AH$829:$AH$841,MATCH(MAX(Y829:Y841),Y829:Y841,0))),"") ->  | Z77: =IF(Z842<>0,IF(MAX(Z829:Z841)<Z842,Labels!$B$163,INDEX($AH$829:$AH$841,MATCH(MAX(Z829:Z841),Z829:Z841,0))),"") ->  | AA77: =IF(AA842<>0,IF(MAX(AA829:AA841)<AA842,Labels!$B$163,INDEX($AH$829:$AH$841,MATCH(MAX(AA829:AA841),AA829:AA841,0))),"") ->  | AB77: =IF(AB842<>0,IF(MAX(AB829:AB841)<AB842,Labels!$B$163,INDEX($AH$829:$AH$841,MATCH(MAX(AB829:AB841),AB829:AB841,0))),"") ->  | AC77: =IF(AC842<>0,IF(MAX(AC829:AC841)<AC842,Labels!$B$163,INDEX($AH$829:$AH$841,MATCH(MAX(AC829:AC841),AC829:AC841,0))),"") ->  | AD77: =IF(AD842<>0,IF(MAX(AD829:AD841)<AD842,Labels!$B$163,INDEX($AH$829:$AH$841,MATCH(MAX(AD829:AD841),AD829:AD841,0))),"") -> 
A78: =$A$15 -> 00.00-06.00h | AG78: =IF($AD$73="",SUM(B78:AC78),SUM(B78:AF78)) -> 0
A79: =$A$16 -> 06.00-20.00h | AG79: =IF($AD$73="",SUM(B79:AC79),SUM(B79:AF79)) -> 0
A80: =$A$17 -> 20.00-24.00h | AG80: =IF($AD$73="",SUM(B80:AC80),SUM(B80:AF80)) -> 0 | AH80: [0]
A81: =$A$18 -> Feiertag "ft" | B81: =IF(WEEKDAY(B73,2)<=6,IF(KALENDER!E5="x",Labels!$B$118,""),"") ->  | C81: =IF(WEEKDAY(C73,2)<=6,IF(KALENDER!F5="x",Labels!$B$118,""),"") ->  | D81: =IF(WEEKDAY(D73,2)<=6,IF(KALENDER!G5="x",Labels!$B$118,""),"") ->  | E81: =IF(WEEKDAY(E73,2)<=6,IF(KALENDER!H5="x",Labels!$B$118,""),"") ->  | F81: =IF(WEEKDAY(F73,2)<=6,IF(KALENDER!I5="x",Labels!$B$118,""),"") ->  | G81: =IF(WEEKDAY(G73,2)<=6,IF(KALENDER!J5="x",Labels!$B$118,""),"") ->  | H81: =IF(WEEKDAY(H73,2)<=6,IF(KALENDER!K5="x",Labels!$B$118,""),"") ->  | I81: =IF(WEEKDAY(I73,2)<=6,IF(KALENDER!L5="x",Labels!$B$118,""),"") ->  | J81: =IF(WEEKDAY(J73,2)<=6,IF(KALENDER!M5="x",Labels!$B$118,""),"") ->  | K81: =IF(WEEKDAY(K73,2)<=6,IF(KALENDER!N5="x",Labels!$B$118,""),"") ->  | L81: =IF(WEEKDAY(L73,2)<=6,IF(KALENDER!O5="x",Labels!$B$118,""),"") ->  | M81: =IF(WEEKDAY(M73,2)<=6,IF(KALENDER!P5="x",Labels!$B$118,""),"") ->  | N81: =IF(WEEKDAY(N73,2)<=6,IF(KALENDER!Q5="x",Labels!$B$118,""),"") ->  | O81: =IF(WEEKDAY(O73,2)<=6,IF(KALENDER!R5="x",Labels!$B$118,""),"") ->  | P81: =IF(WEEKDAY(P73,2)<=6,IF(KALENDER!S5="x",Labels!$B$118,""),"") ->  | Q81: =IF(WEEKDAY(Q73,2)<=6,IF(KALENDER!T5="x",Labels!$B$118,""),"") ->  | R81: =IF(WEEKDAY(R73,2)<=6,IF(KALENDER!U5="x",Labels!$B$118,""),"") ->  | S81: =IF(WEEKDAY(S73,2)<=6,IF(KALENDER!V5="x",Labels!$B$118,""),"") ->  | T81: =IF(WEEKDAY(T73,2)<=6,IF(KALENDER!W5="x",Labels!$B$118,""),"") ->  | U81: =IF(WEEKDAY(U73,2)<=6,IF(KALENDER!X5="x",Labels!$B$118,""),"") ->  | V81: =IF(WEEKDAY(V73,2)<=6,IF(KALENDER!Y5="x",Labels!$B$118,""),"") ->  | W81: =IF(WEEKDAY(W73,2)<=6,IF(KALENDER!Z5="x",Labels!$B$118,""),"") ->  | X81: =IF(WEEKDAY(X73,2)<=6,IF(KALENDER!AA5="x",Labels!$B$118,""),"") ->  | Y81: =IF(WEEKDAY(Y73,2)<=6,IF(KALENDER!AB5="x",Labels!$B$118,""),"") ->  | Z81: =IF(WEEKDAY(Z73,2)<=6,IF(KALENDER!AC5="x",Labels!$B$118,""),"") ->  | AA81: =IF(WEEKDAY(AA73,2)<=6,IF(KALENDER!AD5="x",Labels!$B$118,""),"") ->  | AB81: =IF(WEEKDAY(AB73,2)<=6,IF(KALENDER!AE5="x",Labels!$B$118,""),"") ->  | AC81: =IF(WEEKDAY(AC73,2)<=6,IF(KALENDER!AF5="x",Labels!$B$118,""),"") ->  | AD81: =IF(WEEKDAY(AD73,2)<=6,IF(KALENDER!AG5="x",Labels!$B$118,""),"") ->  | AE81: =IF(WEEKDAY(AE73,2)<=6,IF(KALENDER!AH5="x",Labels!$B$118,""),"") ->  | AF81: =IF(WEEKDAY(AF73,2)<=6,IF(KALENDER!AI5="x",Labels!$B$118,""),"") -> 
A82: =$A$19 -> Gutschrift "ft" | B82: =IF(AND(B81=Labels!$B$118,WEEKDAY(B73,2)<6),$J$7*$B$70%,"") ->  | C82: =IF(AND(C81=Labels!$B$118,WEEKDAY(C73,2)<6),$J$7*$B$70%,"") ->  | D82: =IF(AND(D81=Labels!$B$118,WEEKDAY(D73,2)<6),$J$7*$B$70%,"") ->  | E82: =IF(AND(E81=Labels!$B$118,WEEKDAY(E73,2)<6),$J$7*$B$70%,"") ->  | F82: =IF(AND(F81=Labels!$B$118,WEEKDAY(F73,2)<6),$J$7*$B$70%,"") ->  | G82: =IF(AND(G81=Labels!$B$118,WEEKDAY(G73,2)<6),$J$7*$B$70%,"") ->  | H82: =IF(AND(H81=Labels!$B$118,WEEKDAY(H73,2)<6),$J$7*$B$70%,"") ->  | I82: =IF(AND(I81=Labels!$B$118,WEEKDAY(I73,2)<6),$J$7*$B$70%,"") ->  | J82: =IF(AND(J81=Labels!$B$118,WEEKDAY(J73,2)<6),$J$7*$B$70%,"") ->  | K82: =IF(AND(K81=Labels!$B$118,WEEKDAY(K73,2)<6),$J$7*$B$70%,"") ->  | L82: =IF(AND(L81=Labels!$B$118,WEEKDAY(L73,2)<6),$J$7*$B$70%,"") ->  | M82: =IF(AND(M81=Labels!$B$118,WEEKDAY(M73,2)<6),$J$7*$B$70%,"") ->  | N82: =IF(AND(N81=Labels!$B$118,WEEKDAY(N73,2)<6),$J$7*$B$70%,"") ->  | O82: =IF(AND(O81=Labels!$B$118,WEEKDAY(O73,2)<6),$J$7*$B$70%,"") ->  | P82: =IF(AND(P81=Labels!$B$118,WEEKDAY(P73,2)<6),$J$7*$B$70%,"") ->  | Q82: =IF(AND(Q81=Labels!$B$118,WEEKDAY(Q73,2)<6),$J$7*$B$70%,"") ->  | R82: =IF(AND(R81=Labels!$B$118,WEEKDAY(R73,2)<6),$J$7*$B$70%,"") ->  | S82: =IF(AND(S81=Labels!$B$118,WEEKDAY(S73,2)<6),$J$7*$B$70%,"") ->  | T82: =IF(AND(T81=Labels!$B$118,WEEKDAY(T73,2)<6),$J$7*$B$70%,"") ->  | U82: =IF(AND(U81=Labels!$B$118,WEEKDAY(U73,2)<6),$J$7*$B$70%,"") ->  | V82: =IF(AND(V81=Labels!$B$118,WEEKDAY(V73,2)<6),$J$7*$B$70%,"") ->  | W82: =IF(AND(W81=Labels!$B$118,WEEKDAY(W73,2)<6),$J$7*$B$70%,"") ->  | X82: =IF(AND(X81=Labels!$B$118,WEEKDAY(X73,2)<6),$J$7*$B$70%,"") ->  | Y82: =IF(AND(Y81=Labels!$B$118,WEEKDAY(Y73,2)<6),$J$7*$B$70%,"") ->  | Z82: =IF(AND(Z81=Labels!$B$118,WEEKDAY(Z73,2)<6),$J$7*$B$70%,"") ->  | AA82: =IF(AND(AA81=Labels!$B$118,WEEKDAY(AA73,2)<6),$J$7*$B$70%,"") ->  | AB82: =IF(AND(AB81=Labels!$B$118,WEEKDAY(AB73,2)<6),$J$7*$B$70%,"") ->  | AC82: =IF(AND(AC81=Labels!$B$118,WEEKDAY(AC73,2)<6),$J$7*$B$70%,"") ->  | AD82: =IF(AND(AD81=Labels!$B$118,WEEKDAY(AD73,2)<6),$J$7*$B$70%,"") ->  | AE82: =IF(AND(AE81=Labels!$B$118,WEEKDAY(AE73,2)<6),$J$7*$B$70%,"") ->  | AF82: =IF(AND(AF81=Labels!$B$118,WEEKDAY(AF73,2)<6),$J$7*$B$70%,"") ->  | AG82: 0
A83: =$A$20 -> Tagestotal | B83: =SUM(B78:B80) -> 0 | C83: =SUM(C78:C80) -> 0 | D83: 0 | E83: 0 | F83: 0 | G83: 0 | H83: 0 | I83: 0 | J83: 0 | K83: 0 | L83: 0 | M83: 0 | N83: 0 | O83: 0 | P83: 0 | Q83: 0 | R83: 0 | S83: 0 | T83: 0 | U83: 0 | V83: 0 | W83: 0 | X83: 0 | Y83: 0 | Z83: 0 | AA83: 0 | AB83: 0 | AC83: 0 | AD83: =IF(AD73="","",SUM(AD78:AD80)) -> 0
A84: =$A$21 -> .
A85: =$A$22 -> .
A86: =$A$23 -> Monatsübergang | B86: =IF(WEEKDAY(B73)=1,TEXT(B73-1,"MMM"&Labels!B13),"") ->  | AC86: =IF(AND(WEEKDAY(AC73)>1,WEEKDAY(AC73)<7,AD73=""),TEXT(DATE($B$5,MONTH(AC73)+1,1),"MMM"&Labels!B13),"") ->  | AD86: =IF(ISERROR(WEEKDAY(AD73)),"",IF(AND(WEEKDAY(AD73)>1,WEEKDAY(AD73)<7),TEXT(DATE($B$5,MONTH(AD73)+1,1),"MMM"&Labels!B13),"")) -> 
A87: =$A$24 -> Wochentotal | B87: =IF(WEEKDAY(B73)=7,SUMIF($B11:$AF11,B74,$B20:$AF20)+SUMIF($B74:$AF74,B74,$B83:$AF83)+SUMIF($B137:$AF137,B74,$B146:$AF146),B86) -> 0 | C87: =IF(WEEKDAY(C73)=7,SUMIF($B11:$AF11,C74,$B20:$AF20)+SUMIF($B74:$AF74,C74,$B83:$AF83)+SUMIF($B137:$AF137,C74,$B146:$AF146),"") ->  | I87: 0 | P87: 0 | W87: 0 | AC87: =IF(WEEKDAY(AC73)=7,SUMIF($B11:$AF11,AC74,$B20:$AF20)+SUMIF($B74:$AF74,AC74,$B83:$AF83)+SUMIF($B137:$AF137,AC74,$B146:$AF146),AC86) ->  | AD87: =IF(ISERROR(WEEKDAY(AD73)=7),"",IF(WEEKDAY(AD73)=7,SUMIF($B11:$AF11,AD74,$B20:$AF20)+SUMIF($B74:$AF74,AD74,$B83:$AF83)+SUMIF($B137:$AF137,AD74,$B146:$AF146),AD86)) -> 0
A88: =$A$25 -> Zeitzuschlag 1) | B88: =IF(B95="FALSCH","",B95) ->  | C88: =IF(C95="FALSCH","",C95) ->  | AG88: 0
A89: =$A$26 -> Zeitzuschlag 2) | B89: =IF((B78+B80)=0,"",SUM(B78,B80)) ->  | C89: =IF((C78+C80)=0,"",SUM(C78,C80)) ->  | AG89: 0 | AH89: [1]
A90: =$A$27 -> Zeitzuschlag 3) | B90: =SUM(B91:B94) -> 0 | C90: =SUM(C91:C94) -> 0 | D90: 0 | E90: 0 | F90: 0 | G90: 0 | H90: 0 | I90: 0 | J90: 0 | K90: 0 | L90: 0 | M90: 0 | N90: 0 | O90: 0 | P90: 0 | Q90: 0 | R90: 0 | S90: 0 | T90: 0 | U90: 0 | V90: 0 | W90: 0 | X90: 0 | Y90: 0 | Z90: 0 | AA90: 0 | AB90: 0 | AC90: 0 | AD90: =IF(ISERROR(WEEKDAY(AD73)=1),"",SUM(AD91:AD94)) -> 0 | AG90: 0 | AH90: [2]
A91: =$A$28 -> Sonntag Tag | B91: =IF(WEEKDAY(B73)=1,B79,"") ->  | C91: =IF(WEEKDAY(C73)=1,C79,"") -> 0 | J91: 0 | Q91: 0 | X91: 0 | AD91: =IF(ISERROR(WEEKDAY(AD73)=1),"",IF(WEEKDAY(AD73)=1,AD79,"")) ->  | AG91: 0 | AH91: [3]
A92: =$A$29 -> Sonntag Nacht | B92: =IF(WEEKDAY(B73)=1,SUM(B78+B80),"") ->  | C92: =IF(WEEKDAY(C73)=1,SUM(C78+C80),"") -> 0 | J92: 0 | Q92: 0 | X92: 0 | AD92: =IF(ISERROR(WEEKDAY(AD73)=1),"",IF(WEEKDAY(AD73)=1,SUM(AD78+AD80),"")) ->  | AG92: 0 | AH92: [4]
A93: =$A$30 -> ft-Tazuschlag | B93: =IF(B81=Labels!$B$118,B79,"") ->  | C93: =IF(C81=Labels!$B$118,C79,"") ->  | D93: =IF(D81=Labels!$B$118,D79,"") ->  | E93: =IF(E81=Labels!$B$118,E79,"") ->  | F93: =IF(F81=Labels!$B$118,F79,"") ->  | G93: =IF(G81=Labels!$B$118,G79,"") ->  | H93: =IF(H81=Labels!$B$118,H79,"") ->  | I93: =IF(I81=Labels!$B$118,I79,"") ->  | J93: =IF(J81=Labels!$B$118,J79,"") ->  | K93: =IF(K81=Labels!$B$118,K79,"") ->  | L93: =IF(L81=Labels!$B$118,L79,"") ->  | M93: =IF(M81=Labels!$B$118,M79,"") ->  | N93: =IF(N81=Labels!$B$118,N79,"") ->  | O93: =IF(O81=Labels!$B$118,O79,"") ->  | P93: =IF(P81=Labels!$B$118,P79,"") ->  | Q93: =IF(Q81=Labels!$B$118,Q79,"") ->  | R93: =IF(R81=Labels!$B$118,R79,"") ->  | S93: =IF(S81=Labels!$B$118,S79,"") ->  | T93: =IF(T81=Labels!$B$118,T79,"") ->  | U93: =IF(U81=Labels!$B$118,U79,"") ->  | V93: =IF(V81=Labels!$B$118,V79,"") ->  | W93: =IF(W81=Labels!$B$118,W79,"") ->  | X93: =IF(X81=Labels!$B$118,X79,"") ->  | Y93: =IF(Y81=Labels!$B$118,Y79,"") ->  | Z93: =IF(Z81=Labels!$B$118,Z79,"") ->  | AA93: =IF(AA81=Labels!$B$118,AA79,"") ->  | AB93: =IF(AB81=Labels!$B$118,AB79,"") ->  | AC93: =IF(AC81=Labels!$B$118,AC79,"") ->  | AD93: =IF(AD81=Labels!$B$118,AD79,"") ->  | AG93: 0 | AH93: [5]
A94: =$A$31 -> ft-Nazuschlag | B94: =IF(B81=Labels!$B$118,SUM(B78,B80),"") ->  | C94: =IF(C81=Labels!$B$118,SUM(C78,C80),"") ->  | D94: =IF(D81=Labels!$B$118,SUM(D78,D80),"") ->  | E94: =IF(E81=Labels!$B$118,SUM(E78,E80),"") ->  | F94: =IF(F81=Labels!$B$118,SUM(F78,F80),"") ->  | G94: =IF(G81=Labels!$B$118,SUM(G78,G80),"") ->  | H94: =IF(H81=Labels!$B$118,SUM(H78,H80),"") ->  | I94: =IF(I81=Labels!$B$118,SUM(I78,I80),"") ->  | J94: =IF(J81=Labels!$B$118,SUM(J78,J80),"") ->  | K94: =IF(K81=Labels!$B$118,SUM(K78,K80),"") ->  | L94: =IF(L81=Labels!$B$118,SUM(L78,L80),"") ->  | M94: =IF(M81=Labels!$B$118,SUM(M78,M80),"") ->  | N94: =IF(N81=Labels!$B$118,SUM(N78,N80),"") ->  | O94: =IF(O81=Labels!$B$118,SUM(O78,O80),"") ->  | P94: =IF(P81=Labels!$B$118,SUM(P78,P80),"") ->  | Q94: =IF(Q81=Labels!$B$118,SUM(Q78,Q80),"") ->  | R94: =IF(R81=Labels!$B$118,SUM(R78,R80),"") ->  | S94: =IF(S81=Labels!$B$118,SUM(S78,S80),"") ->  | T94: =IF(T81=Labels!$B$118,SUM(T78,T80),"") ->  | U94: =IF(U81=Labels!$B$118,SUM(U78,U80),"") ->  | V94: =IF(V81=Labels!$B$118,SUM(V78,V80),"") ->  | W94: =IF(W81=Labels!$B$118,SUM(W78,W80),"") ->  | X94: =IF(X81=Labels!$B$118,SUM(X78,X80),"") ->  | Y94: =IF(Y81=Labels!$B$118,SUM(Y78,Y80),"") ->  | Z94: =IF(Z81=Labels!$B$118,SUM(Z78,Z80),"") ->  | AA94: =IF(AA81=Labels!$B$118,SUM(AA78,AA80),"") ->  | AB94: =IF(AB81=Labels!$B$118,SUM(AB78,AB80),"") ->  | AC94: =IF(AC81=Labels!$B$118,SUM(AC78,AC80),"") ->  | AD94: =IF(AD81=Labels!$B$118,SUM(AD78,AD80),"") ->  | AG94: 0 | AH94: [6]
A95: =$A$32 -> Zuschlag blind (Wochentotal) | B95: =IF(OR(ISTEXT(B87),B87="",B87<$B$7),"",ROUND(((B87-$B$7)*25%)/25,4)*25) ->  | C95: =IF(OR(ISTEXT(C87),C87="",C87<$B$7),"",ROUND(((C87-$B$7)*25%)/25,4)*25) ->  | AE95: =YEAR(AC73) -> 2020 | AG95: =AG79 -> 0 | AH95: [7]
B96: =$B$33 -> 1) 25% Zeitzuschlag für Überschreitung Wochentotal | L96: =$L$33 -> 2) 100% Zeitzuschlag für Nachtarbeit | T96: =$T$33 -> Eingabe der ausbezahlten Stunden Vorjahressaldo | AG96: =SUM(AG78+AG80) -> 0 | AH96: [8]
B97: =$B$34 -> 3) 100% Zeitzuschlag für Sonn- und Feiertagsarbeit | T97: =$T$34 -> Eingabe der ausbezahlten Stunden laufendes Jahr (Überstunden) | AG97: =SUM(AG78:AG80) -> 0 | AH97: [9]
A98: =$A$35 -> Bemerkungen | AG98: =SUM(AG76+AG82) -> 0 | AH98: [10]
AG99: =SUM(AG76:AG90) -> 0 | AH99: [11]
AG100: =AG75 -> 160
AG101: =SUM(AG99-AG75) -> -160
A102: =$A$39 -> Zusammenstellung | G102: =$G$39 -> Jan | I102: =$I$39 -> Feb | K102: =$K$39 -> Mrz | M102: =$M$39 -> Apr | O102: =$O$39 -> Mai | Q102: =$Q$39 -> Jun | S102: =$S$39 -> Jul | U102: =$U$39 -> Aug | W102: =$W$39 -> Sep | Y102: =$Y$39 -> Okt | AA102: =$AA$39 -> Nov | AC102: =$AC$39 -> Dez | AE102: =$AE$39 -> Jahr
A103: =$A$40 -> Anstellung % | G103: =IF($B$4=0,0,$B$4) -> 100 | I103: =IF($B$70=0,0,$B$70) -> 100 | K103: =IF($B$133=0,0,$B$133) -> 100 | M103: =IF($B$196=0,0,$B$196) -> 100 | O103: =IF($B$259=0,0,$B$259) -> 100 | Q103: =IF($B$322=0,0,$B$322) -> 100 | S103: =IF($B$385=0,0,$B$385) -> 100 | U103: =IF($B$448=0,0,$B$448) -> 100 | W103: =IF($B$511=0,0,$B$511) -> 100 | Y103: =IF($B$574=0,0,$B$574) -> 100 | AA103: =IF($B$637=0,0,$B$637) -> 100 | AC103: =IF($B$700=0,0,$B$700) -> 100
A104: =$A$41 -> Sollstunden gemäss GAV | G104: =IF($AG$37=0,0,$AG$37) -> 184 | I104: =IF($AG$100=0,0,$AG$100) -> 160 | K104: =IF($AG$138=0,0,$AG$138) -> 176 | M104: =IF($AG$226=0,0,$AG$226) -> 176 | O104: =IF($AG$289=0,0,$AG$289) -> 168 | Q104: =IF($AG$352=0,0,$AG$352) -> 176 | S104: =IF($AG$415=0,0,$AG$415) -> 184 | U104: =IF($AG$478=0,0,$AG$478) -> 168 | W104: =IF($AG$541=0,0,$AG$541) -> 176 | Y104: =IF($AG$604=0,0,$AG$604) -> 176 | AA104: =IF($AG$667=0,0,$AG$667) -> 168 | AC104: =IF($AG$730=0,0,$AG$730) -> 184 | AE104: =SUM(G104:AD104) -> 2096
A105: =$A$42 -> Produktive Stunden | B105: =$B$42 -> 06.00 - 20.00 Uhr | G105: =IF($AG$32=0,0,$AG$32) -> 0 | I105: =IF($AG$95=0,0,$AG$95) -> 0 | K105: =IF($AG$158=0,0,$AG$158) -> 0 | M105: =IF($AG$221=0,0,$AG$221) -> 0 | O105: =IF($AG$284=0,0,$AG$284) -> 0 | Q105: =IF($AG$347=0,0,$AG$347) -> 0 | S105: =IF($AG$410=0,0,$AG$410) -> 0 | U105: =IF($AG$473=0,0,$AG$473) -> 0 | W105: =IF($AG$536=0,0,$AG$536) -> 0 | Y105: =IF($AG$599=0,0,$AG$599) -> 0 | AA105: =IF($AG$662=0,0,$AG$662) -> 0 | AC105: =IF($AG$725=0,0,$AG$725) -> 0 | AE105: =SUM(G105:AD105) -> 0
B106: =$B$43 -> Nacht-, Sonn-, Feiertagsarbeit | G106: =IF($AG$33=0,0,$AG$33) -> 0 | I106: =IF($AG$96=0,0,$AG$96) -> 0 | K106: =IF($AG$159=0,0,$AG$159) -> 0 | M106: =IF($AG$222=0,0,$AG$222) -> 0 | O106: =IF($AG$285=0,0,$AG$285) -> 0 | Q106: =IF($AG$348=0,0,$AG$348) -> 0 | S106: =IF($AG$411=0,0,$AG$411) -> 0 | U106: =IF($AG$474=0,0,$AG$474) -> 0 | W106: =IF($AG$537=0,0,$AG$537) -> 0 | Y106: =IF($AG$600=0,0,$AG$600) -> 0 | AA106: =IF($AG$663=0,0,$AG$663) -> 0 | AC106: =IF($AG$726=0,0,$AG$726) -> 0 | AE106: =SUM(G106:AD106) -> 0
A107: =$A$44 -> Zeitzuschläge | B107: =$B$44 -> aus Wochentotal | G107: =IF($AG$25=0,0,$AG$25) -> 0 | I107: =IF($AG$88=0,0,$AG$88) -> 0 | K107: =IF($AG$151=0,0,$AG$151) -> 0 | M107: =IF($AG$214=0,0,$AG$214) -> 0 | O107: =IF($AG$277=0,0,$AG$277) -> 0 | Q107: =IF($AG$340=0,0,$AG$340) -> 0 | S107: =IF($AG$403=0,0,$AG$403) -> 0 | U107: =IF($AG$466=0,0,$AG$466) -> 0 | W107: =IF($AG$529=0,0,$AG$529) -> 0 | Y107: =IF($AG$592=0,0,$AG$592) -> 0 | AA107: =IF($AG$655=0,0,$AG$655) -> 0 | AC107: =IF($AG$718=0,0,$AG$718) -> 0 | AE107: =SUM(G107:AD107) -> 0
B108: =$B$45 -> aus Nacht-, Sonn-, Feiertagsarbeiten | G108: =IF($AJ$20=0,0,$AJ$20) -> 0 | I108: =IF($AK$20=0,0,$AK$20) -> 0 | K108: =IF($AL$20=0,0,$AL$20) -> 0 | M108: =IF($AM$20=0,0,$AM$20) -> 0 | O108: =IF($AN$20=0,0,$AN$20) -> 0 | Q108: =IF($AO$20=0,0,$AO$20) -> 0 | S108: =IF($AP$20=0,0,$AP$20) -> 0 | U108: =IF($AQ$20=0,0,$AQ$20) -> 0 | W108: =IF($AR$20=0,0,$AR$20) -> 0 | Y108: =IF($AS$20=0,0,$AS$20) -> 0 | AA108: =IF($AT$20=0,0,$AT$20) -> 0 | AC108: =IF($AU$20=0,0,$AU$20) -> 0 | AE108: =SUM(G108:AD108) -> 0
A109: =$A$46 -> Unproduktive Stunden
A110: =$A$47 -> Absenzen, Kurzabsenzen Art. 11 GAV | F110: =$F$47 -> a | G110: =IF($AJ$3=0,0,$AJ$3) -> 0 | I110: =IF($AK$3=0,0,$AK$3) -> 0 | K110: =IF($AL$3=0,0,$AL$3) -> 0 | M110: =IF($AM$3=0,0,$AM$3) -> 0 | O110: =IF($AN$3=0,0,$AN$3) -> 0 | Q110: =IF($AO$3=0,0,$AO$3) -> 0 | S110: =IF($AP$3=0,0,$AP$3) -> 0 | U110: =IF($AQ$3=0,0,$AQ$3) -> 0 | W110: =IF($AR$3=0,0,$AR$3) -> 0 | Y110: =IF($AS$3=0,0,$AS$3) -> 0 | AA110: =IF(AT$3=0,0,$AT$3) -> 0 | AC110: =IF($AU$3=0,0,$AU$3) -> 0 | AE110: =IF($AV$3=0,0,$AV$3) -> 0
A111: =$A$48 -> Ferien Art. 12.1 GAV | F111: =$F$48 -> f | G111: =IF($AJ$4=0,0,$AJ$4) -> 0 | I111: =IF($AK$4=0,0,$AK$4) -> 0 | K111: =IF($AL$4=0,0,$AL$4) -> 0 | M111: =IF($AM$4=0,0,$AM$4) -> 0 | O111: =IF($AN$4=0,0,$AN$4) -> 0 | Q111: =IF($AO$4=0,0,$AO$4) -> 0 | S111: =IF($AP$4=0,0,$AP$4) -> 0 | U111: =IF($AQ$4=0,0,$AQ$4) -> 0 | W111: =IF($AR$4=0,0,$AR$4) -> 0 | Y111: =IF($AS$4=0,0,$AS$4) -> 0 | AA111: =IF($AT$4=0,0,$AT$4) -> 0 | AC111: =IF($AU$4=0,0,$AU$4) -> 0 | AE111: =IF($AV$4=0,0,$AV$4) -> 0
A112: =$A$49 -> Feiertage Art. 12.2 GAV | C112: =IF($AJ$17="","",$AJ$17) ->  | F112: =$F$49 -> ft | G112: =IF($AJ$15=0,0,$AJ$15) -> 0 | I112: =IF($AK$15=0,0,$AK$15) -> 0 | K112: =IF($AL$15=0,0,$AL$15) -> 0 | M112: =IF($AM$15=0,0,$AM$15) -> 0 | O112: =IF($AN$15=0,0,$AN$15) -> 0 | Q112: =IF($AO$15=0,0,$AO$15) -> 0 | S112: =IF($AP$15=0,0,$AP$15) -> 0 | U112: =IF($AQ$15=0,0,$AQ$15) -> 0 | W112: =IF($AR$15=0,0,$AR$15) -> 0 | Y112: =IF($AS$15=0,0,$AS$15) -> 0 | AA112: =IF($AT$15=0,0,$AT$15) -> 0 | AC112: =IF($AU$15=0,0,$AU$15) -> 0 | AE112: =IF($AV$15=0,0,$AV$15) -> 0
A113: =$A$50 -> Krankheit Art. 13 GAV | F113: =$F$50 -> k | G113: =IF($AJ$5=0,0,$AJ$5) -> 0 | I113: =IF($AK$5=0,0,$AK$5) -> 0 | K113: =IF($AL$5=0,0,$AL$5) -> 0 | M113: =IF($AM$5=0,0,$AM$5) -> 0 | O113: =IF($AN$5=0,0,$AN$5) -> 0 | Q113: =IF($AO$5=0,0,$AO$5) -> 0 | S113: =IF($AP$5=0,0,$AP$5) -> 0 | U113: =IF($AQ$5=0,0,$AQ$5) -> 0 | W113: =IF($AR$5=0,0,$AR$5) -> 0 | Y113: =IF($AS$5=0,0,$AS$5) -> 0 | AA113: =IF($AT$5=0,0,$AT$5) -> 0 | AC113: =IF($AU$5=0,0,$AU$5) -> 0 | AE113: =IF($AV$5=0,0,$AV$5) -> 0
A114: =$A$51 -> Unfall Art. 14 GAV | F114: =$F$51 -> u | G114: =IF($AJ$6=0,0,$AJ$6) -> 0 | I114: =IF($AK$6=0,0,$AK$6) -> 0 | K114: =IF($AL$6=0,0,$AL$6) -> 0 | M114: =IF($AM$6=0,0,$AM$6) -> 0 | O114: =IF($AN$6=0,0,$AN$6) -> 0 | Q114: =IF($AO$6=0,0,$AO$6) -> 0 | S114: =IF($AP$6=0,0,$AP$6) -> 0 | U114: =IF($AQ$6=0,0,$AQ$6) -> 0 | W114: =IF($AR$6=0,0,$AR$6) -> 0 | Y114: =IF($AS$6=0,0,$AS$6) -> 0 | AA114: =IF($AT$6=0,0,$AT$6) -> 0 | AC114: =IF($AU$6=0,0,$AU$6) -> 0 | AE114: =IF($AV$6=0,0,$AV$6) -> 0
A115: =$A$52 -> Schwangerschaft/Mutterschaft Art. 15 GAV | F115: =$F$52 -> s | G115: =IF($AJ$7=0,0,$AJ$7) -> 0 | I115: =IF($AK$7=0,0,$AK$7) -> 0 | K115: =IF($AL$7=0,0,$AL$7) -> 0 | M115: =IF($AM$7=0,0,$AM$7) -> 0 | O115: =IF($AN$7=0,0,$AN$7) -> 0 | Q115: =IF($AO$7=0,0,$AO$7) -> 0 | S115: =IF($AP$7=0,0,$AP$7) -> 0 | U115: =IF($AQ$7=0,0,$AQ$7) -> 0 | W115: =IF($AR$7=0,0,$AR$7) -> 0 | Y115: =IF($AS$7=0,0,$AS$7) -> 0 | AA115: =IF($AT$7=0,0,$AT$7) -> 0 | AC115: =IF($AU$7=0,0,$AU$7) -> 0 | AE115: =IF($AV$7=0,0,$AV$7) -> 0
A116: =$A$53 -> Militär/Beförderung/Zivilschutz Art. 16 GAV | F116: =$F$53 -> m | G116: =IF($AJ$8=0,0,$AJ$8) -> 0 | I116: =IF($AK$8=0,0,$AK$8) -> 0 | K116: =IF($AL$8=0,0,$AL$8) -> 0 | M116: =IF($AM$8=0,0,$AM$8) -> 0 | O116: =IF($AN$8=0,0,$AN$8) -> 0 | Q116: =IF($AO$8=0,0,$AO$8) -> 0 | S116: =IF($AP$8=0,0,$AP$8) -> 0 | U116: =IF($AQ$8=0,0,$AQ$8) -> 0 | W116: =IF($AR$8=0,0,$AR$8) -> 0 | Y116: =IF($AS$8=0,0,$AS$8) -> 0 | AA116: =IF($AT$8=0,0,$AT$8) -> 0 | AC116: =IF($AU$8=0,0,$AU$8) -> 0 | AE116: =IF($AV$8=0,0,$AV$8) -> 0
A117: =$A$54 -> Kurzarbeit und Schlechtwetterausfälle | F117: =$F$54 -> ka | G117: =IF($AJ$11=0,0,$AJ$11) -> 0 | I117: =IF($AK$11=0,0,$AK$11) -> 0 | K117: =IF($AL$11=0,0,$AL$11) -> 0 | M117: =IF($AM$11=0,0,$AM$11) -> 0 | O117: =IF($AN$11=0,0,$AN$11) -> 0 | Q117: =IF($AO$11=0,0,$AO$11) -> 0 | S117: =IF($AP$11=0,0,$AP$11) -> 0 | U117: =IF($AQ$11=0,0,$AQ$11) -> 0 | W117: =IF($AR$11=0,0,$AR$11) -> 0 | Y117: =IF($AS$11=0,0,$AS$11) -> 0 | AA117: =IF($AT$11=0,0,$AT$11) -> 0 | AC117: =IF($AU$11=0,0,$AU$11) -> 0 | AE117: =IF($AV$11=0,0,$AV$11) -> 0
A118: =$A$55 -> Berufsschule | F118: =$F$55 -> bs | G118: =IF($AJ$9=0,0,$AJ$9) -> 0 | I118: =IF($AK$9=0,0,$AK$9) -> 0 | K118: =IF($AL$9=0,0,$AL$9) -> 0 | M118: =IF($AM$9=0,0,$AM$9) -> 0 | O118: =IF($AN$9=0,0,$AN$9) -> 0 | Q118: =IF($AO$9=0,0,$AO$9) -> 0 | S118: =IF($AP$9=0,0,$AP$9) -> 0 | U118: =IF($AQ$9=0,0,$AQ$9) -> 0 | W118: =IF($AR$9=0,0,$AR$9) -> 0 | Y118: =IF($AS$9=0,0,$AS$9) -> 0 | AA118: =IF($AT$9=0,0,$AT$9) -> 0 | AC118: =IF($AU$9=0,0,$AU$9) -> 0 | AE118: =IF($AV$9=0,0,$AV$9) -> 0
A119: =$A$56 -> Kurse | F119: =$F$56 -> ku | G119: =IF($AJ$10=0,0,$AJ$10) -> 0 | I119: =IF($AK$10=0,0,$AK$10) -> 0 | K119: =IF($AL$10=0,0,$AL$10) -> 0 | M119: =IF($AM$10=0,0,$AM$10) -> 0 | O119: =IF($AN$10=0,0,$AN$10) -> 0 | Q119: =IF($AO$10=0,0,$AO$10) -> 0 | S119: =IF($AP$10=0,0,$AP$10) -> 0 | U119: =IF($AQ$10=0,0,$AQ$10) -> 0 | W119: =IF($AR$10=0,0,$AR$10) -> 0 | Y119: =IF($AS$10=0,0,$AS$10) -> 0 | AA119: =IF($AT$10=0,0,$AT$10) -> 0 | AC119: =IF($AU$10=0,0,$AU$10) -> 0 | AE119: =IF($AV$10=0,0,$AV$10) -> 0
A120: =$A$57 -> Kompensations-Std | B120: =$B$57 -> aus Vorjahr | F120: =$F$57 -> kv | G120: =IF($AJ$12=0,0,$AJ$12) -> 0 | I120: =IF($AK$12=0,0,$AK$12) -> 0 | K120: =IF($AL$12=0,0,$AL$12) -> 0 | M120: =IF($AM$12=0,0,$AM$12) -> 0 | O120: =IF($AN$12=0,0,$AN$12) -> 0 | Q120: =IF($AO$12=0,0,$AO$12) -> 0 | S120: =IF($AP$12=0,0,$AP$12) -> 0 | U120: =IF($AQ$12=0,0,$AQ$12) -> 0 | W120: =IF($AR$12=0,0,$AR$12) -> 0 | AE120: =IF($AV$12=0,0,$AV$12) -> 0
B121: =$B$58 -> aus laufendem Jahr (Kontrolle) | F121: =$F$58 -> kj | G121: =IF($AJ$14=0,0,$AJ$14) -> 0 | I121: =IF($AK$14=0,0,$AK$14) -> 0 | K121: =IF($AL$14=0,0,$AL$14) -> 0 | M121: =IF($AM$14=0,0,$AM$14) -> 0 | O121: =IF($AN$14=0,0,$AN$14) -> 0 | Q121: =IF($AO$14=0,0,$AO$14) -> 0 | S121: =IF($AP$14=0,0,$AP$14) -> 0 | U121: =IF($AQ$14=0,0,$AQ$14) -> 0 | W121: =IF($AR$14=0,0,$AR$14) -> 0 | Y121: =IF($AS$14=0,0,$AS$14) -> 0 | AA121: =IF($AT$14=0,0,$AT$14) -> 0 | AC121: =IF($AU$14=0,0,$AU$14) -> 0 | AE121: =IF($AV$14=0,0,$AV$14) -> 0
A122: =$A$59 -> Auszahlung | B122: =$B$59 -> Stunden Vorjahressaldo | G122: =IF($AJ$18=0,0,$AJ$18) -> 0 | I122: =IF($AK$18=0,0,$AK$18) -> 0 | K122: =IF($AL$18=0,0,$AL$18) -> 0 | M122: =IF($AM$18=0,0,$AM$18) -> 0 | O122: =IF($AN$18=0,0,$AN$18) -> 0 | Q122: =IF($AO$18=0,0,$AO$18) -> 0 | S122: =IF($AP$18=0,0,$AP$18) -> 0 | U122: =IF($AQ$18=0,0,$AQ$18) -> 0 | W122: =IF($AR$18=0,0,$AR$18) -> 0 | AE122: =IF($AV$18=0,0,$AV$18) -> 0
A123: =$A$60 -> Differenz | B123: =$B$60 -> nach Kompensation und Auszahlung | G123: =IF(ROUND($P$4,3)=0,0,$P$4-SUM(G120+G122)) -> 0 | I123: =IF(ROUND(G123,3)=0,0,G123-(SUM(I122+I120))) -> 0 | K123: =IF(ROUND(I123,3)=0,0,I123-(SUM(K122+K120))) -> 0 | M123: =IF(ROUND(K123,3)=0,0,K123-(SUM(M122+M120))) -> 0 | O123: =IF(ROUND(M123,3)=0,0,M123-(SUM(O122+O120))) -> 0 | Q123: =IF(ROUND(O123,3)=0,0,O123-(SUM(Q122+Q120))) -> 0 | S123: =IF(ROUND(Q123,3)=0,0,Q123-(SUM(S122+S120))) -> 0 | U123: =IF(ROUND(S123,3)=0,0,S123-(SUM(U122+U120))) -> 0 | W123: =IF(ROUND(U123,3)=0,0,U123-(SUM(W122+W120))) -> 0 | Y123: =$Y$60 -> 
A124: =$A$61 -> Auszahlung | B124: =$B$61 -> Stunden laufendes Jahr | G124: =IF($AJ$19=0,0,$AJ$19) -> 0 | I124: =IF($AK$19=0,0,$AK$19) -> 0 | K124: =IF($AL$19=0,0,$AL$19) -> 0 | M124: =IF($AM$19=0,0,$AM$19) -> 0 | O124: =IF($AN$19=0,0,$AN$19) -> 0 | Q124: =IF($AO$19=0,0,$AO$19) -> 0 | S124: =IF($AP$19=0,0,$AP$19) -> 0 | U124: =IF($AQ$19=0,0,$AQ$19) -> 0 | W124: =IF($AR$19=0,0,$AR$19) -> 0 | Y124: =IF($AS$19=0,0,$AS$19) -> 0 | AA124: =IF($AT$19=0,0,$AT$19) -> 0 | AC124: =IF($AU$19=0,0,$AU$19) -> 0 | AE124: =IF($AV$19=0,0,$AV$19) -> 0
A125: =$A$62 -> Fehlstunden | B125: =$B$62 -> laufendes Jahr (Kontrolle) | F125: =$F$62 -> fe | G125: =IF($AJ$13=0,0,$AJ$13) -> 0 | I125: =IF($AK$13=0,0,$AK$13) -> 0 | K125: =IF($AL$13=0,0,$AL$13) -> 0 | M125: =IF($AM$13=0,0,$AM$13) -> 0 | O125: =IF($AN$13=0,0,$AN$13) -> 0 | Q125: =IF($AO$13=0,0,$AO$13) -> 0 | S125: =IF($AP$13=0,0,$AP$13) -> 0 | U125: =IF($AQ$13=0,0,$AQ$13) -> 0 | W125: =IF($AR$13=0,0,$AR$13) -> 0 | Y125: =IF($AS$13=0,0,$AS$13) -> 0 | AA125: =IF($AT$13=0,0,$AT$13) -> 0 | AC125: =IF($AU$13=0,0,$AU$13) -> 0 | AE125: =IF($AV$13=0,0,$AV$13) -> 0
A126: =$A$63 -> Total inkl. Zeitzuschläge | B126: =$B$63 -> Stunden produktiv und unproduktiv | G126: =IF($AG$36=0,0,$AG$36) -> 0 | I126: =IF($AG$99=0,0,$AG$99) -> 0 | K126: =IF($AG$162=0,0,$AG$162) -> 0 | M126: =IF($AG$225=0,0,$AG$225) -> 0 | O126: =IF($AG$288=0,0,$AG$288) -> 0 | Q126: =IF($AG$351=0,0,$AG$351) -> 0 | S126: =IF($AG$414=0,0,$AG$414) -> 0 | U126: =IF($AG$477=0,0,$AG$477) -> 0 | W126: =IF($AG$540=0,0,$AG$540) -> 0 | Y126: =IF($AG$603=0,0,$AG$603) -> 0 | AA126: =IF($AG$666=0,0,$AG$666) -> 0 | AC126: =IF($AG$729=0,0,$AG$729) -> 0 | AE126: =SUM($G$63:$AD$63) -> 0
A127: =$A$64 -> Vergleich | B127: =$B$64 -> Stunden zu Soll-Stunden (inkl. allfälli- ge Minusstunden Vorjahr) | G127: =$G$64 -> -184 | I127: =$I$64 -> -160 | K127: =$K$64 -> -176 | M127: =$M$64 -> -176 | O127: =$O$64 -> -168 | Q127: =$Q$64 -> -176 | S127: =$S$64 -> -184 | U127: =$U$64 -> -168 | W127: =$W$64 -> -176 | Y127: =$Y$64 -> -176 | AA127: =$AA$64 -> -168 | AC127: =$AC$64 -> -184 | AE127: =$AE$64 -> -2096
B128: =$B$65 -> Stunden zu Soll-Stunden (kumuliert) | G128: =$G$65 -> -184 | I128: =$I$65 -> -344 | K128: =$K$65 -> -520 | M128: =$M$65 -> -696 | O128: =$O$65 -> -864 | Q128: =$Q$65 -> -1040 | S128: =$S$65 -> -1224 | U128: =$U$65 -> -1392 | W128: =$W$65 -> -1568 | Y128: =$Y$65 -> -1744 | AA128: =$AA$65 -> -1912 | AC128: =$AC$65 -> -2096 | AE128: =$AE$65 -> 0
A129: =$A$66 -> Ferienkontrolle | B129: =$B$66 -> Ferienguthaben Vorjahr | G129: =IF($AA$4=0,0,$AA$4) -> 0 | I129: =$I$66 -> Ferienguthaben nach Art. 12.1 GAV | M129: =IF($AA$5=0,0,$AA$5) -> 0 | O129: =$O$66 -> Ferienguthaben total | S129: =SUM(G129+M129) -> 0 | U129: =$U$66 -> Ferien bezogen | Y129: =IF($AV$4=0,0,$AV$4) -> 0 | AA129: =$AA$66 -> Aktuelles Ferienguthaben | AE129: =IF(S129=0,0,S129-Y129) -> 0
A132: =$A$3 -> Mitarbeiter/In | B132: =IF($B$3="","",$B$3) -> Muster Peter | AF132: =AF3 -> 0
A133: =$A$4 -> Anstellung % | B133: 100 | D133: =Labels!B91 -> im März
A134: =$A$5 -> Saldo für das Jahr | D134: =IF($AE$64=0,0,$AE$64) -> -2096
A135: =TEXT(DATE(YEAR(AP28),MONTH(AP28)+2,1),"MMMM"&Labels!B13) -> März | B135: =$B$9 -> Saldo Monat + / - | F135: =(AG138-(SUM(AG139:AG153)-AE160))*-1 -> -176 | K135: =$K$9 -> = | L135: =$L$9 -> Gelbe Felder müssen ausgefüllt werden (die übrigen werden automatisch berechnet)
A136: =$A$10 -> Tag | B136: =IF(MOD($AE$95,4)>=1,$AC$73+1,$AC$73+2) -> 2020-03-01 | C136: =B136+1 -> 2020-03-02 | D136: 2020-03-03 | E136: 2020-03-04 | F136: 2020-03-05 | G136: 2020-03-06 | H136: 2020-03-07 | I136: 2020-03-08 | J136: 2020-03-09 | K136: 2020-03-10 | L136: 2020-03-11 | M136: 2020-03-12 | N136: 2020-03-13 | O136: 2020-03-14 | P136: 2020-03-15 | Q136: 2020-03-16 | R136: 2020-03-17 | S136: 2020-03-18 | T136: 2020-03-19 | U136: 2020-03-20 | V136: 2020-03-21 | W136: 2020-03-22 | X136: 2020-03-23 | Y136: 2020-03-24 | Z136: 2020-03-25 | AA136: 2020-03-26 | AB136: 2020-03-27 | AC136: 2020-03-28 | AD136: 2020-03-29 | AE136: 2020-03-30 | AF136: 2020-03-31 | AG136: =COUNT(B138:AF138)&" "&Labels!$B$63 -> 22 Tage
A137: =$A$11 -> Kalenderwoche | B137: =IF(B136="","",TRUNC((B136-DATE(YEAR(B136+3-MOD(B136-2,7)),1,MOD(B136-2,7)-9))/7)) -> 9 | C137: 10 | D137: 10 | E137: 10 | F137: 10 | G137: 10 | H137: 10 | I137: 10 | J137: 11 | K137: 11 | L137: 11 | M137: 11 | N137: 11 | O137: 11 | P137: 11 | Q137: 12 | R137: 12 | S137: 12 | T137: 12 | U137: 12 | V137: 12 | W137: 12 | X137: 13 | Y137: 13 | Z137: 13 | AA137: 13 | AB137: 13 | AC137: 13 | AD137: 13 | AE137: 14 | AF137: 14
A138: =$A$12 -> Sollstunden | B138: =IF(MOD(B136,7)>=2,$J$7*$B$133%,"") ->  | C138: 8 | D138: 8 | E138: 8 | F138: 8 | G138: 8 | J138: 8 | K138: 8 | L138: 8 | M138: 8 | N138: 8 | Q138: 8 | R138: 8 | S138: 8 | T138: 8 | U138: 8 | X138: 8 | Y138: 8 | Z138: 8 | AA138: 8 | AB138: 8 | AE138: 8 | AF138: 8 | AG138: =SUM(B138:AF138) -> 176
A139: =$A$13 -> Absenz in Std | B139: =B865 -> 0 | C139: =C865 -> 0 | D139: 0 | E139: 0 | F139: 0 | G139: 0 | H139: 0 | I139: 0 | J139: 0 | K139: 0 | L139: 0 | M139: 0 | N139: 0 | O139: 0 | P139: 0 | Q139: 0 | R139: 0 | S139: 0 | T139: 0 | U139: 0 | V139: 0 | W139: 0 | X139: 0 | Y139: 0 | Z139: 0 | AA139: 0 | AB139: 0 | AC139: 0 | AD139: 0 | AE139: 0 | AF139: 0 | AG139: =SUM(AL3:AL12) -> 0
A140: =$A$14 -> Code | B140: =IF(B865<>0,IF(MAX(B852:B864)<B865,Labels!$B$163,INDEX($AH$852:$AH$864,MATCH(MAX(B852:B864),B852:B864,0))),"") ->  | C140: =IF(C865<>0,IF(MAX(C852:C864)<C865,Labels!$B$163,INDEX($AH$852:$AH$864,MATCH(MAX(C852:C864),C852:C864,0))),"") ->  | D140: =IF(D865<>0,IF(MAX(D852:D864)<D865,Labels!$B$163,INDEX($AH$852:$AH$864,MATCH(MAX(D852:D864),D852:D864,0))),"") ->  | E140: =IF(E865<>0,IF(MAX(E852:E864)<E865,Labels!$B$163,INDEX($AH$852:$AH$864,MATCH(MAX(E852:E864),E852:E864,0))),"") ->  | F140: =IF(F865<>0,IF(MAX(F852:F864)<F865,Labels!$B$163,INDEX($AH$852:$AH$864,MATCH(MAX(F852:F864),F852:F864,0))),"") ->  | G140: =IF(G865<>0,IF(MAX(G852:G864)<G865,Labels!$B$163,INDEX($AH$852:$AH$864,MATCH(MAX(G852:G864),G852:G864,0))),"") ->  | H140: =IF(H865<>0,IF(MAX(H852:H864)<H865,Labels!$B$163,INDEX($AH$852:$AH$864,MATCH(MAX(H852:H864),H852:H864,0))),"") ->  | I140: =IF(I865<>0,IF(MAX(I852:I864)<I865,Labels!$B$163,INDEX($AH$852:$AH$864,MATCH(MAX(I852:I864),I852:I864,0))),"") ->  | J140: =IF(J865<>0,IF(MAX(J852:J864)<J865,Labels!$B$163,INDEX($AH$852:$AH$864,MATCH(MAX(J852:J864),J852:J864,0))),"") ->  | K140: =IF(K865<>0,IF(MAX(K852:K864)<K865,Labels!$B$163,INDEX($AH$852:$AH$864,MATCH(MAX(K852:K864),K852:K864,0))),"") ->  | L140: =IF(L865<>0,IF(MAX(L852:L864)<L865,Labels!$B$163,INDEX($AH$852:$AH$864,MATCH(MAX(L852:L864),L852:L864,0))),"") ->  | M140: =IF(M865<>0,IF(MAX(M852:M864)<M865,Labels!$B$163,INDEX($AH$852:$AH$864,MATCH(MAX(M852:M864),M852:M864,0))),"") ->  | N140: =IF(N865<>0,IF(MAX(N852:N864)<N865,Labels!$B$163,INDEX($AH$852:$AH$864,MATCH(MAX(N852:N864),N852:N864,0))),"") ->  | O140: =IF(O865<>0,IF(MAX(O852:O864)<O865,Labels!$B$163,INDEX($AH$852:$AH$864,MATCH(MAX(O852:O864),O852:O864,0))),"") ->  | P140: =IF(P865<>0,IF(MAX(P852:P864)<P865,Labels!$B$163,INDEX($AH$852:$AH$864,MATCH(MAX(P852:P864),P852:P864,0))),"") ->  | Q140: =IF(Q865<>0,IF(MAX(Q852:Q864)<Q865,Labels!$B$163,INDEX($AH$852:$AH$864,MATCH(MAX(Q852:Q864),Q852:Q864,0))),"") ->  | R140: =IF(R865<>0,IF(MAX(R852:R864)<R865,Labels!$B$163,INDEX($AH$852:$AH$864,MATCH(MAX(R852:R864),R852:R864,0))),"") ->  | S140: =IF(S865<>0,IF(MAX(S852:S864)<S865,Labels!$B$163,INDEX($AH$852:$AH$864,MATCH(MAX(S852:S864),S852:S864,0))),"") ->  | T140: =IF(T865<>0,IF(MAX(T852:T864)<T865,Labels!$B$163,INDEX($AH$852:$AH$864,MATCH(MAX(T852:T864),T852:T864,0))),"") ->  | U140: =IF(U865<>0,IF(MAX(U852:U864)<U865,Labels!$B$163,INDEX($AH$852:$AH$864,MATCH(MAX(U852:U864),U852:U864,0))),"") ->  | V140: =IF(V865<>0,IF(MAX(V852:V864)<V865,Labels!$B$163,INDEX($AH$852:$AH$864,MATCH(MAX(V852:V864),V852:V864,0))),"") ->  | W140: =IF(W865<>0,IF(MAX(W852:W864)<W865,Labels!$B$163,INDEX($AH$852:$AH$864,MATCH(MAX(W852:W864),W852:W864,0))),"") ->  | X140: =IF(X865<>0,IF(MAX(X852:X864)<X865,Labels!$B$163,INDEX($AH$852:$AH$864,MATCH(MAX(X852:X864),X852:X864,0))),"") ->  | Y140: =IF(Y865<>0,IF(MAX(Y852:Y864)<Y865,Labels!$B$163,INDEX($AH$852:$AH$864,MATCH(MAX(Y852:Y864),Y852:Y864,0))),"") ->  | Z140: =IF(Z865<>0,IF(MAX(Z852:Z864)<Z865,Labels!$B$163,INDEX($AH$852:$AH$864,MATCH(MAX(Z852:Z864),Z852:Z864,0))),"") ->  | AA140: =IF(AA865<>0,IF(MAX(AA852:AA864)<AA865,Labels!$B$163,INDEX($AH$852:$AH$864,MATCH(MAX(AA852:AA864),AA852:AA864,0))),"") ->  | AB140: =IF(AB865<>0,IF(MAX(AB852:AB864)<AB865,Labels!$B$163,INDEX($AH$852:$AH$864,MATCH(MAX(AB852:AB864),AB852:AB864,0))),"") ->  | AC140: =IF(AC865<>0,IF(MAX(AC852:AC864)<AC865,Labels!$B$163,INDEX($AH$852:$AH$864,MATCH(MAX(AC852:AC864),AC852:AC864,0))),"") ->  | AD140: =IF(AD865<>0,IF(MAX(AD852:AD864)<AD865,Labels!$B$163,INDEX($AH$852:$AH$864,MATCH(MAX(AD852:AD864),AD852:AD864,0))),"") ->  | AE140: =IF(AE865<>0,IF(MAX(AE852:AE864)<AE865,Labels!$B$163,INDEX($AH$852:$AH$864,MATCH(MAX(AE852:AE864),AE852:AE864,0))),"") ->  | AF140: =IF(AF865<>0,IF(MAX(AF852:AF864)<AF865,Labels!$B$163,INDEX($AH$852:$AH$864,MATCH(MAX(AF852:AF864),AF852:AF864,0))),"") -> 
A141: =$A$15 -> 00.00-06.00h | AG141: =SUM(B141:AF141) -> 0
A142: =$A$16 -> 06.00-20.00h | AG142: =SUM(B142:AF142) -> 0
A143: =$A$17 -> 20.00-24.00h | AG143: =SUM(B143:AF143) -> 0 | AH143: [0]
A144: =$A$18 -> Feiertag "ft" | B144: =IF(WEEKDAY(B136,2)<=6,IF(KALENDER!E7="x",Labels!$B$118,""),"") ->  | C144: =IF(WEEKDAY(C136,2)<=6,IF(KALENDER!F7="x",Labels!$B$118,""),"") ->  | D144: =IF(WEEKDAY(D136,2)<=6,IF(KALENDER!G7="x",Labels!$B$118,""),"") ->  | E144: =IF(WEEKDAY(E136,2)<=6,IF(KALENDER!H7="x",Labels!$B$118,""),"") ->  | F144: =IF(WEEKDAY(F136,2)<=6,IF(KALENDER!I7="x",Labels!$B$118,""),"") ->  | G144: =IF(WEEKDAY(G136,2)<=6,IF(KALENDER!J7="x",Labels!$B$118,""),"") ->  | H144: =IF(WEEKDAY(H136,2)<=6,IF(KALENDER!K7="x",Labels!$B$118,""),"") ->  | I144: =IF(WEEKDAY(I136,2)<=6,IF(KALENDER!L7="x",Labels!$B$118,""),"") ->  | J144: =IF(WEEKDAY(J136,2)<=6,IF(KALENDER!M7="x",Labels!$B$118,""),"") ->  | K144: =IF(WEEKDAY(K136,2)<=6,IF(KALENDER!N7="x",Labels!$B$118,""),"") ->  | L144: =IF(WEEKDAY(L136,2)<=6,IF(KALENDER!O7="x",Labels!$B$118,""),"") ->  | M144: =IF(WEEKDAY(M136,2)<=6,IF(KALENDER!P7="x",Labels!$B$118,""),"") ->  | N144: =IF(WEEKDAY(N136,2)<=6,IF(KALENDER!Q7="x",Labels!$B$118,""),"") ->  | O144: =IF(WEEKDAY(O136,2)<=6,IF(KALENDER!R7="x",Labels!$B$118,""),"") ->  | P144: =IF(WEEKDAY(P136,2)<=6,IF(KALENDER!S7="x",Labels!$B$118,""),"") ->  | Q144: =IF(WEEKDAY(Q136,2)<=6,IF(KALENDER!T7="x",Labels!$B$118,""),"") ->  | R144: =IF(WEEKDAY(R136,2)<=6,IF(KALENDER!U7="x",Labels!$B$118,""),"") ->  | S144: =IF(WEEKDAY(S136,2)<=6,IF(KALENDER!V7="x",Labels!$B$118,""),"") ->  | T144: =IF(WEEKDAY(T136,2)<=6,IF(KALENDER!W7="x",Labels!$B$118,""),"") ->  | U144: =IF(WEEKDAY(U136,2)<=6,IF(KALENDER!X7="x",Labels!$B$118,""),"") ->  | V144: =IF(WEEKDAY(V136,2)<=6,IF(KALENDER!Y7="x",Labels!$B$118,""),"") ->  | W144: =IF(WEEKDAY(W136,2)<=6,IF(KALENDER!Z7="x",Labels!$B$118,""),"") ->  | X144: =IF(WEEKDAY(X136,2)<=6,IF(KALENDER!AA7="x",Labels!$B$118,""),"") ->  | Y144: =IF(WEEKDAY(Y136,2)<=6,IF(KALENDER!AB7="x",Labels!$B$118,""),"") ->  | Z144: =IF(WEEKDAY(Z136,2)<=6,IF(KALENDER!AC7="x",Labels!$B$118,""),"") ->  | AA144: =IF(WEEKDAY(AA136,2)<=6,IF(KALENDER!AD7="x",Labels!$B$118,""),"") ->  | AB144: =IF(WEEKDAY(AB136,2)<=6,IF(KALENDER!AE7="x",Labels!$B$118,""),"") ->  | AC144: =IF(WEEKDAY(AC136,2)<=6,IF(KALENDER!AF7="x",Labels!$B$118,""),"") ->  | AD144: =IF(WEEKDAY(AD136,2)<=6,IF(KALENDER!AG7="x",Labels!$B$118,""),"") ->  | AE144: =IF(WEEKDAY(AE136,2)<=6,IF(KALENDER!AH7="x",Labels!$B$118,""),"") ->  | AF144: =IF(WEEKDAY(AF136,2)<=6,IF(KALENDER!AI7="x",Labels!$B$118,""),"") -> 
A145: =$A$19 -> Gutschrift "ft" | B145: =IF(AND(B144=Labels!$B$118,WEEKDAY(B136,2)<6),$J$7*$B$133%,"") ->  | C145: =IF(AND(C144=Labels!$B$118,WEEKDAY(C136,2)<6),$J$7*$B$133%,"") ->  | D145: =IF(AND(D144=Labels!$B$118,WEEKDAY(D136,2)<6),$J$7*$B$133%,"") ->  | E145: =IF(AND(E144=Labels!$B$118,WEEKDAY(E136,2)<6),$J$7*$B$133%,"") ->  | F145: =IF(AND(F144=Labels!$B$118,WEEKDAY(F136,2)<6),$J$7*$B$133%,"") ->  | G145: =IF(AND(G144=Labels!$B$118,WEEKDAY(G136,2)<6),$J$7*$B$133%,"") ->  | H145: =IF(AND(H144=Labels!$B$118,WEEKDAY(H136,2)<6),$J$7*$B$133%,"") ->  | I145: =IF(AND(I144=Labels!$B$118,WEEKDAY(I136,2)<6),$J$7*$B$133%,"") ->  | J145: =IF(AND(J144=Labels!$B$118,WEEKDAY(J136,2)<6),$J$7*$B$133%,"") ->  | K145: =IF(AND(K144=Labels!$B$118,WEEKDAY(K136,2)<6),$J$7*$B$133%,"") ->  | L145: =IF(AND(L144=Labels!$B$118,WEEKDAY(L136,2)<6),$J$7*$B$133%,"") ->  | M145: =IF(AND(M144=Labels!$B$118,WEEKDAY(M136,2)<6),$J$7*$B$133%,"") ->  | N145: =IF(AND(N144=Labels!$B$118,WEEKDAY(N136,2)<6),$J$7*$B$133%,"") ->  | O145: =IF(AND(O144=Labels!$B$118,WEEKDAY(O136,2)<6),$J$7*$B$133%,"") ->  | P145: =IF(AND(P144=Labels!$B$118,WEEKDAY(P136,2)<6),$J$7*$B$133%,"") ->  | Q145: =IF(AND(Q144=Labels!$B$118,WEEKDAY(Q136,2)<6),$J$7*$B$133%,"") ->  | R145: =IF(AND(R144=Labels!$B$118,WEEKDAY(R136,2)<6),$J$7*$B$133%,"") ->  | S145: =IF(AND(S144=Labels!$B$118,WEEKDAY(S136,2)<6),$J$7*$B$133%,"") ->  | T145: =IF(AND(T144=Labels!$B$118,WEEKDAY(T136,2)<6),$J$7*$B$133%,"") ->  | U145: =IF(AND(U144=Labels!$B$118,WEEKDAY(U136,2)<6),$J$7*$B$133%,"") ->  | V145: =IF(AND(V144=Labels!$B$118,WEEKDAY(V136,2)<6),$J$7*$B$133%,"") ->  | W145: =IF(AND(W144=Labels!$B$118,WEEKDAY(W136,2)<6),$J$7*$B$133%,"") ->  | X145: =IF(AND(X144=Labels!$B$118,WEEKDAY(X136,2)<6),$J$7*$B$133%,"") ->  | Y145: =IF(AND(Y144=Labels!$B$118,WEEKDAY(Y136,2)<6),$J$7*$B$133%,"") ->  | Z145: =IF(AND(Z144=Labels!$B$118,WEEKDAY(Z136,2)<6),$J$7*$B$133%,"") ->  | AA145: =IF(AND(AA144=Labels!$B$118,WEEKDAY(AA136,2)<6),$J$7*$B$133%,"") ->  | AB145: =IF(AND(AB144=Labels!$B$118,WEEKDAY(AB136,2)<6),$J$7*$B$133%,"") ->  | AC145: =IF(AND(AC144=Labels!$B$118,WEEKDAY(AC136,2)<6),$J$7*$B$133%,"") ->  | AD145: =IF(AND(AD144=Labels!$B$118,WEEKDAY(AD136,2)<6),$J$7*$B$133%,"") ->  | AE145: =IF(AND(AE144=Labels!$B$118,WEEKDAY(AE136,2)<6),$J$7*$B$133%,"") ->  | AF145: =IF(AND(AF144=Labels!$B$118,WEEKDAY(AF136,2)<6),$J$7*$B$133%,"") ->  | AG145: =SUM(B145:AF145) -> 0
A146: =$A$20 -> Tagestotal | B146: =SUM(B141:B143) -> 0 | C146: =SUM(C141:C143) -> 0 | D146: 0 | E146: 0 | F146: 0 | G146: 0 | H146: 0 | I146: 0 | J146: 0 | K146: 0 | L146: 0 | M146: 0 | N146: 0 | O146: 0 | P146: 0 | Q146: 0 | R146: 0 | S146: 0 | T146: 0 | U146: 0 | V146: 0 | W146: 0 | X146: 0 | Y146: 0 | Z146: 0 | AA146: 0 | AB146: 0 | AC146: 0 | AD146: 0 | AE146: 0 | AF146: 0
A147: =$A$21 -> .
A148: =$A$22 -> .
A149: =$A$23 -> Monatsübergang | B149: =IF(WEEKDAY(B136)=1,TEXT(B136-1,"MMM"&Labels!B13),"") -> Feb | AF149: =IF(AND(WEEKDAY(AF136)>1,WEEKDAY(AF136)<7),TEXT(DATE($B$5,MONTH(AF136)+1,1),"MMM"&Labels!B13),"") -> Apr
A150: =$A$24 -> Wochentotal | B150: =IF(WEEKDAY(B136)=7,SUMIF($B74:$AF74,B137,$B83:$AF83)+SUMIF($B137:$AF137,B137,$B146:$AF146)+SUMIF($B200:$AF200,B137,$B209:$AF209),B149) -> Feb | C150: =IF(WEEKDAY(C136)=7,SUMIF($B74:$AF74,C137,$B83:$AF83)+SUMIF($B137:$AF137,C137,$B146:$AF146)+SUMIF($B200:$AF200,C137,$B209:$AF209),"") ->  | H150: 0 | O150: 0 | V150: 0 | AC150: 0 | AF150: =IF(WEEKDAY(AF136)=7,SUMIF($B74:$AF74,AF137,$B83:$AF83)+SUMIF($B137:$AF137,AF137,$B146:$AF146)+SUMIF($B200:$AF200,AF137,$B209:$AF209),AF149) -> Apr
A151: =$A$25 -> Zeitzuschlag 1) | B151: =IF(B158="FALSCH","",B158) ->  | C151: =IF(C158="FALSCH","",C158) ->  | AG151: =SUM(B151:AF151) -> 0
A152: =$A$26 -> Zeitzuschlag 2) | B152: =IF((B141+B143)=0,"",SUM(B141,B143)) ->  | C152: =IF((C141+C143)=0,"",SUM(C141,C143)) ->  | AG152: 0 | AH152: [1]
A153: =$A$27 -> Zeitzuschlag 3) | B153: =SUM(B154:B157) -> 0 | C153: =SUM(C154:C157) -> 0 | D153: 0 | E153: 0 | F153: 0 | G153: 0 | H153: 0 | I153: 0 | J153: 0 | K153: 0 | L153: 0 | M153: 0 | N153: 0 | O153: 0 | P153: 0 | Q153: 0 | R153: 0 | S153: 0 | T153: 0 | U153: 0 | V153: 0 | W153: 0 | X153: 0 | Y153: 0 | Z153: 0 | AA153: 0 | AB153: 0 | AC153: 0 | AD153: 0 | AE153: 0 | AF153: 0 | AG153: =SUM(B153:AF153) -> 0 | AH153: [2]
A154: =$A$28 -> Sonntag Tag | B154: =IF(WEEKDAY(B136)=1,B142,"") -> 0 | C154: =IF(WEEKDAY(C136)=1,C142,"") ->  | I154: 0 | P154: 0 | W154: 0 | AD154: 0 | AG154: 0 | AH154: [3]
A155: =$A$29 -> Sonntag Nacht | B155: =IF(WEEKDAY(B136)=1,SUM(B141+B143),"") -> 0 | C155: =IF(WEEKDAY(C136)=1,SUM(C141+C143),"") ->  | I155: 0 | P155: 0 | W155: 0 | AD155: 0 | AG155: 0 | AH155: [4]
A156: =$A$30 -> ft-Tazuschlag | B156: =IF(B144=Labels!$B$118,B142,"") ->  | C156: =IF(C144=Labels!$B$118,C142,"") ->  | D156: =IF(D144=Labels!$B$118,D142,"") ->  | E156: =IF(E144=Labels!$B$118,E142,"") ->  | F156: =IF(F144=Labels!$B$118,F142,"") ->  | G156: =IF(G144=Labels!$B$118,G142,"") ->  | H156: =IF(H144=Labels!$B$118,H142,"") ->  | I156: =IF(I144=Labels!$B$118,I142,"") ->  | J156: =IF(J144=Labels!$B$118,J142,"") ->  | K156: =IF(K144=Labels!$B$118,K142,"") ->  | L156: =IF(L144=Labels!$B$118,L142,"") ->  | M156: =IF(M144=Labels!$B$118,M142,"") ->  | N156: =IF(N144=Labels!$B$118,N142,"") ->  | O156: =IF(O144=Labels!$B$118,O142,"") ->  | P156: =IF(P144=Labels!$B$118,P142,"") ->  | Q156: =IF(Q144=Labels!$B$118,Q142,"") ->  | R156: =IF(R144=Labels!$B$118,R142,"") ->  | S156: =IF(S144=Labels!$B$118,S142,"") ->  | T156: =IF(T144=Labels!$B$118,T142,"") ->  | U156: =IF(U144=Labels!$B$118,U142,"") ->  | V156: =IF(V144=Labels!$B$118,V142,"") ->  | W156: =IF(W144=Labels!$B$118,W142,"") ->  | X156: =IF(X144=Labels!$B$118,X142,"") ->  | Y156: =IF(Y144=Labels!$B$118,Y142,"") ->  | Z156: =IF(Z144=Labels!$B$118,Z142,"") ->  | AA156: =IF(AA144=Labels!$B$118,AA142,"") ->  | AB156: =IF(AB144=Labels!$B$118,AB142,"") ->  | AC156: =IF(AC144=Labels!$B$118,AC142,"") ->  | AD156: =IF(AD144=Labels!$B$118,AD142,"") ->  | AE156: =IF(AE144=Labels!$B$118,AE142,"") ->  | AF156: =IF(AF144=Labels!$B$118,AF142,"") ->  | AG156: 0 | AH156: [5]
A157: =$A$31 -> ft-Nazuschlag | B157: =IF(B144=Labels!$B$118,SUM(B141,B143),"") ->  | C157: =IF(C144=Labels!$B$118,SUM(C141,C143),"") ->  | D157: =IF(D144=Labels!$B$118,SUM(D141,D143),"") ->  | E157: =IF(E144=Labels!$B$118,SUM(E141,E143),"") ->  | F157: =IF(F144=Labels!$B$118,SUM(F141,F143),"") ->  | G157: =IF(G144=Labels!$B$118,SUM(G141,G143),"") ->  | H157: =IF(H144=Labels!$B$118,SUM(H141,H143),"") ->  | I157: =IF(I144=Labels!$B$118,SUM(I141,I143),"") ->  | J157: =IF(J144=Labels!$B$118,SUM(J141,J143),"") ->  | K157: =IF(K144=Labels!$B$118,SUM(K141,K143),"") ->  | L157: =IF(L144=Labels!$B$118,SUM(L141,L143),"") ->  | M157: =IF(M144=Labels!$B$118,SUM(M141,M143),"") ->  | N157: =IF(N144=Labels!$B$118,SUM(N141,N143),"") ->  | O157: =IF(O144=Labels!$B$118,SUM(O141,O143),"") ->  | P157: =IF(P144=Labels!$B$118,SUM(P141,P143),"") ->  | Q157: =IF(Q144=Labels!$B$118,SUM(Q141,Q143),"") ->  | R157: =IF(R144=Labels!$B$118,SUM(R141,R143),"") ->  | S157: =IF(S144=Labels!$B$118,SUM(S141,S143),"") ->  | T157: =IF(T144=Labels!$B$118,SUM(T141,T143),"") ->  | U157: =IF(U144=Labels!$B$118,SUM(U141,U143),"") ->  | V157: =IF(V144=Labels!$B$118,SUM(V141,V143),"") ->  | W157: =IF(W144=Labels!$B$118,SUM(W141,W143),"") ->  | X157: =IF(X144=Labels!$B$118,SUM(X141,X143),"") ->  | Y157: =IF(Y144=Labels!$B$118,SUM(Y141,Y143),"") ->  | Z157: =IF(Z144=Labels!$B$118,SUM(Z141,Z143),"") ->  | AA157: =IF(AA144=Labels!$B$118,SUM(AA141,AA143),"") ->  | AB157: =IF(AB144=Labels!$B$118,SUM(AB141,AB143),"") ->  | AC157: =IF(AC144=Labels!$B$118,SUM(AC141,AC143),"") ->  | AD157: =IF(AD144=Labels!$B$118,SUM(AD141,AD143),"") ->  | AE157: =IF(AE144=Labels!$B$118,SUM(AE141,AE143),"") ->  | AF157: =IF(AF144=Labels!$B$118,SUM(AF141,AF143),"") ->  | AG157: 0 | AH157: [6]
A158: =$A$32 -> Zuschlag blind (Wochentotal) | B158: =IF(OR(ISTEXT(B150),B150="",B150<$B$7),"",ROUND(((B150-$B$7)*25%)/25,4)*25) ->  | C158: =IF(OR(ISTEXT(C150),C150="",C150<$B$7),"",ROUND(((C150-$B$7)*25%)/25,4)*25) ->  | AG158: =AG142 -> 0 | AH158: [7]
B159: =$B$33 -> 1) 25% Zeitzuschlag für Überschreitung Wochentotal | L159: =$L$33 -> 2) 100% Zeitzuschlag für Nachtarbeit | T159: =$T$33 -> Eingabe der ausbezahlten Stunden Vorjahressaldo | AG159: =SUM(AG141+AG143) -> 0 | AH159: [8]
B160: =$B$34 -> 3) 100% Zeitzuschlag für Sonn- und Feiertagsarbeit | T160: =$T$34 -> Eingabe der ausbezahlten Stunden laufendes Jahr (Überstunden) | AG160: =SUM(AG141:AG143) -> 0 | AH160: [9]
A161: =$A$35 -> Bemerkungen | AG161: =SUM(AG139+AG145) -> 0 | AH161: [10]
AG162: =SUM(AG139:AG153) -> 0 | AH162: [11]
AG163: =AG138 -> 176
AG164: =SUM(AG162-AG138) -> -176
A165: =$A$39 -> Zusammenstellung | G165: =$G$39 -> Jan | I165: =$I$39 -> Feb | K165: =$K$39 -> Mrz | M165: =$M$39 -> Apr | O165: =$O$39 -> Mai | Q165: =$Q$39 -> Jun | S165: =$S$39 -> Jul | U165: =$U$39 -> Aug | W165: =$W$39 -> Sep | Y165: =$Y$39 -> Okt | AA165: =$AA$39 -> Nov | AC165: =$AC$39 -> Dez | AE165: =$AE$39 -> Jahr
A166: =$A$40 -> Anstellung % | G166: =IF($B$4=0,0,$B$4) -> 100 | I166: =IF($B$70=0,0,$B$70) -> 100 | K166: =IF($B$133=0,0,$B$133) -> 100 | M166: =IF($B$196=0,0,$B$196) -> 100 | O166: =IF($B$259=0,0,$B$259) -> 100 | Q166: =IF($B$322=0,0,$B$322) -> 100 | S166: =IF($B$385=0,0,$B$385) -> 100 | U166: =IF($B$448=0,0,$B$448) -> 100 | W166: =IF($B$511=0,0,$B$511) -> 100 | Y166: =IF($B$574=0,0,$B$574) -> 100 | AA166: =IF($B$637=0,0,$B$637) -> 100 | AC166: =IF($B$700=0,0,$B$700) -> 100
A167: =$A$41 -> Sollstunden gemäss GAV | G167: =IF($AG$37=0,0,$AG$37) -> 184 | I167: =IF($AG$100=0,0,$AG$100) -> 160 | K167: =IF($AG$138=0,0,$AG$138) -> 176 | M167: =IF($AG$226=0,0,$AG$226) -> 176 | O167: =IF($AG$289=0,0,$AG$289) -> 168 | Q167: =IF($AG$352=0,0,$AG$352) -> 176 | S167: =IF($AG$415=0,0,$AG$415) -> 184 | U167: =IF($AG$478=0,0,$AG$478) -> 168 | W167: =IF($AG$541=0,0,$AG$541) -> 176 | Y167: =IF($AG$604=0,0,$AG$604) -> 176 | AA167: =IF($AG$667=0,0,$AG$667) -> 168 | AC167: =IF($AG$730=0,0,$AG$730) -> 184 | AE167: =SUM(G167:AD167) -> 2096
A168: =$A$42 -> Produktive Stunden | B168: =$B$42 -> 06.00 - 20.00 Uhr | G168: =IF($AG$32=0,0,$AG$32) -> 0 | I168: =IF($AG$95=0,0,$AG$95) -> 0 | K168: =IF($AG$158=0,0,$AG$158) -> 0 | M168: =IF($AG$221=0,0,$AG$221) -> 0 | O168: =IF($AG$284=0,0,$AG$284) -> 0 | Q168: =IF($AG$347=0,0,$AG$347) -> 0 | S168: =IF($AG$410=0,0,$AG$410) -> 0 | U168: =IF($AG$473=0,0,$AG$473) -> 0 | W168: =IF($AG$536=0,0,$AG$536) -> 0 | Y168: =IF($AG$599=0,0,$AG$599) -> 0 | AA168: =IF($AG$662=0,0,$AG$662) -> 0 | AC168: =IF($AG$725=0,0,$AG$725) -> 0 | AE168: =SUM(G168:AD168) -> 0
B169: =$B$43 -> Nacht-, Sonn-, Feiertagsarbeit | G169: =IF($AG$33=0,0,$AG$33) -> 0 | I169: =IF($AG$96=0,0,$AG$96) -> 0 | K169: =IF($AG$159=0,0,$AG$159) -> 0 | M169: =IF($AG$222=0,0,$AG$222) -> 0 | O169: =IF($AG$285=0,0,$AG$285) -> 0 | Q169: =IF($AG$348=0,0,$AG$348) -> 0 | S169: =IF($AG$411=0,0,$AG$411) -> 0 | U169: =IF($AG$474=0,0,$AG$474) -> 0 | W169: =IF($AG$537=0,0,$AG$537) -> 0 | Y169: =IF($AG$600=0,0,$AG$600) -> 0 | AA169: =IF($AG$663=0,0,$AG$663) -> 0 | AC169: =IF($AG$726=0,0,$AG$726) -> 0 | AE169: =SUM(G169:AD169) -> 0
A170: =$A$44 -> Zeitzuschläge | B170: =$B$44 -> aus Wochentotal | G170: =IF($AG$25=0,0,$AG$25) -> 0 | I170: =IF($AG$88=0,0,$AG$88) -> 0 | K170: =IF($AG$151=0,0,$AG$151) -> 0 | M170: =IF($AG$214=0,0,$AG$214) -> 0 | O170: =IF($AG$277=0,0,$AG$277) -> 0 | Q170: =IF($AG$340=0,0,$AG$340) -> 0 | S170: =IF($AG$403=0,0,$AG$403) -> 0 | U170: =IF($AG$466=0,0,$AG$466) -> 0 | W170: =IF($AG$529=0,0,$AG$529) -> 0 | Y170: =IF($AG$592=0,0,$AG$592) -> 0 | AA170: =IF($AG$655=0,0,$AG$655) -> 0 | AC170: =IF($AG$718=0,0,$AG$718) -> 0 | AE170: =SUM(G170:AD170) -> 0
B171: =$B$45 -> aus Nacht-, Sonn-, Feiertagsarbeiten | G171: =IF($AJ$20=0,0,$AJ$20) -> 0 | I171: =IF($AK$20=0,0,$AK$20) -> 0 | K171: =IF($AL$20=0,0,$AL$20) -> 0 | M171: =IF($AM$20=0,0,$AM$20) -> 0 | O171: =IF($AN$20=0,0,$AN$20) -> 0 | Q171: =IF($AO$20=0,0,$AO$20) -> 0 | S171: =IF($AP$20=0,0,$AP$20) -> 0 | U171: =IF($AQ$20=0,0,$AQ$20) -> 0 | W171: =IF($AR$20=0,0,$AR$20) -> 0 | Y171: =IF($AS$20=0,0,$AS$20) -> 0 | AA171: =IF($AT$20=0,0,$AT$20) -> 0 | AC171: =IF($AU$20=0,0,$AU$20) -> 0 | AE171: =SUM(G171:AD171) -> 0
A172: =$A$46 -> Unproduktive Stunden
A173: =$A$47 -> Absenzen, Kurzabsenzen Art. 11 GAV | F173: =$F$47 -> a | G173: =IF($AJ$3=0,0,$AJ$3) -> 0 | I173: =IF($AK$3=0,0,$AK$3) -> 0 | K173: =IF($AL$3=0,0,$AL$3) -> 0 | M173: =IF($AM$3=0,0,$AM$3) -> 0 | O173: =IF($AN$3=0,0,$AN$3) -> 0 | Q173: =IF($AO$3=0,0,$AO$3) -> 0 | S173: =IF($AP$3=0,0,$AP$3) -> 0 | U173: =IF($AQ$3=0,0,$AQ$3) -> 0 | W173: =IF($AR$3=0,0,$AR$3) -> 0 | Y173: =IF($AS$3=0,0,$AS$3) -> 0 | AA173: =IF(AT$3=0,0,$AT$3) -> 0 | AC173: =IF($AU$3=0,0,$AU$3) -> 0 | AE173: =IF($AV$3=0,0,$AV$3) -> 0
A174: =$A$48 -> Ferien Art. 12.1 GAV | F174: =$F$48 -> f | G174: =IF($AJ$4=0,0,$AJ$4) -> 0 | I174: =IF($AK$4=0,0,$AK$4) -> 0 | K174: =IF($AL$4=0,0,$AL$4) -> 0 | M174: =IF($AM$4=0,0,$AM$4) -> 0 | O174: =IF($AN$4=0,0,$AN$4) -> 0 | Q174: =IF($AO$4=0,0,$AO$4) -> 0 | S174: =IF($AP$4=0,0,$AP$4) -> 0 | U174: =IF($AQ$4=0,0,$AQ$4) -> 0 | W174: =IF($AR$4=0,0,$AR$4) -> 0 | Y174: =IF($AS$4=0,0,$AS$4) -> 0 | AA174: =IF($AT$4=0,0,$AT$4) -> 0 | AC174: =IF($AU$4=0,0,$AU$4) -> 0 | AE174: =IF($AV$4=0,0,$AV$4) -> 0
A175: =$A$49 -> Feiertage Art. 12.2 GAV | C175: =IF($AJ$17="","",$AJ$17) ->  | F175: =$F$49 -> ft | G175: =IF($AJ$15=0,0,$AJ$15) -> 0 | I175: =IF($AK$15=0,0,$AK$15) -> 0 | K175: =IF($AL$15=0,0,$AL$15) -> 0 | M175: =IF($AM$15=0,0,$AM$15) -> 0 | O175: =IF($AN$15=0,0,$AN$15) -> 0 | Q175: =IF($AO$15=0,0,$AO$15) -> 0 | S175: =IF($AP$15=0,0,$AP$15) -> 0 | U175: =IF($AQ$15=0,0,$AQ$15) -> 0 | W175: =IF($AR$15=0,0,$AR$15) -> 0 | Y175: =IF($AS$15=0,0,$AS$15) -> 0 | AA175: =IF($AT$15=0,0,$AT$15) -> 0 | AC175: =IF($AU$15=0,0,$AU$15) -> 0 | AE175: =IF($AV$15=0,0,$AV$15) -> 0
A176: =$A$50 -> Krankheit Art. 13 GAV | F176: =$F$50 -> k | G176: =IF($AJ$5=0,0,$AJ$5) -> 0 | I176: =IF($AK$5=0,0,$AK$5) -> 0 | K176: =IF($AL$5=0,0,$AL$5) -> 0 | M176: =IF($AM$5=0,0,$AM$5) -> 0 | O176: =IF($AN$5=0,0,$AN$5) -> 0 | Q176: =IF($AO$5=0,0,$AO$5) -> 0 | S176: =IF($AP$5=0,0,$AP$5) -> 0 | U176: =IF($AQ$5=0,0,$AQ$5) -> 0 | W176: =IF($AR$5=0,0,$AR$5) -> 0 | Y176: =IF($AS$5=0,0,$AS$5) -> 0 | AA176: =IF($AT$5=0,0,$AT$5) -> 0 | AC176: =IF($AU$5=0,0,$AU$5) -> 0 | AE176: =IF($AV$5=0,0,$AV$5) -> 0
A177: =$A$51 -> Unfall Art. 14 GAV | F177: =$F$51 -> u | G177: =IF($AJ$6=0,0,$AJ$6) -> 0 | I177: =IF($AK$6=0,0,$AK$6) -> 0 | K177: =IF($AL$6=0,0,$AL$6) -> 0 | M177: =IF($AM$6=0,0,$AM$6) -> 0 | O177: =IF($AN$6=0,0,$AN$6) -> 0 | Q177: =IF($AO$6=0,0,$AO$6) -> 0 | S177: =IF($AP$6=0,0,$AP$6) -> 0 | U177: =IF($AQ$6=0,0,$AQ$6) -> 0 | W177: =IF($AR$6=0,0,$AR$6) -> 0 | Y177: =IF($AS$6=0,0,$AS$6) -> 0 | AA177: =IF($AT$6=0,0,$AT$6) -> 0 | AC177: =IF($AU$6=0,0,$AU$6) -> 0 | AE177: =IF($AV$6=0,0,$AV$6) -> 0
A178: =$A$52 -> Schwangerschaft/Mutterschaft Art. 15 GAV | F178: =$F$52 -> s | G178: =IF($AJ$7=0,0,$AJ$7) -> 0 | I178: =IF($AK$7=0,0,$AK$7) -> 0 | K178: =IF($AL$7=0,0,$AL$7) -> 0 | M178: =IF($AM$7=0,0,$AM$7) -> 0 | O178: =IF($AN$7=0,0,$AN$7) -> 0 | Q178: =IF($AO$7=0,0,$AO$7) -> 0 | S178: =IF($AP$7=0,0,$AP$7) -> 0 | U178: =IF($AQ$7=0,0,$AQ$7) -> 0 | W178: =IF($AR$7=0,0,$AR$7) -> 0 | Y178: =IF($AS$7=0,0,$AS$7) -> 0 | AA178: =IF($AT$7=0,0,$AT$7) -> 0 | AC178: =IF($AU$7=0,0,$AU$7) -> 0 | AE178: =IF($AV$7=0,0,$AV$7) -> 0
A179: =$A$53 -> Militär/Beförderung/Zivilschutz Art. 16 GAV | F179: =$F$53 -> m | G179: =IF($AJ$8=0,0,$AJ$8) -> 0 | I179: =IF($AK$8=0,0,$AK$8) -> 0 | K179: =IF($AL$8=0,0,$AL$8) -> 0 | M179: =IF($AM$8=0,0,$AM$8) -> 0 | O179: =IF($AN$8=0,0,$AN$8) -> 0 | Q179: =IF($AO$8=0,0,$AO$8) -> 0 | S179: =IF($AP$8=0,0,$AP$8) -> 0 | U179: =IF($AQ$8=0,0,$AQ$8) -> 0 | W179: =IF($AR$8=0,0,$AR$8) -> 0 | Y179: =IF($AS$8=0,0,$AS$8) -> 0 | AA179: =IF($AT$8=0,0,$AT$8) -> 0 | AC179: =IF($AU$8=0,0,$AU$8) -> 0 | AE179: =IF($AV$8=0,0,$AV$8) -> 0
A180: =$A$54 -> Kurzarbeit und Schlechtwetterausfälle | F180: =$F$54 -> ka | G180: =IF($AJ$11=0,0,$AJ$11) -> 0 | I180: =IF($AK$11=0,0,$AK$11) -> 0 | K180: =IF($AL$11=0,0,$AL$11) -> 0 | M180: =IF($AM$11=0,0,$AM$11) -> 0 | O180: =IF($AN$11=0,0,$AN$11) -> 0 | Q180: =IF($AO$11=0,0,$AO$11) -> 0 | S180: =IF($AP$11=0,0,$AP$11) -> 0 | U180: =IF($AQ$11=0,0,$AQ$11) -> 0 | W180: =IF($AR$11=0,0,$AR$11) -> 0 | Y180: =IF($AS$11=0,0,$AS$11) -> 0 | AA180: =IF($AT$11=0,0,$AT$11) -> 0 | AC180: =IF($AU$11=0,0,$AU$11) -> 0 | AE180: =IF($AV$11=0,0,$AV$11) -> 0
A181: =$A$55 -> Berufsschule | F181: =$F$55 -> bs | G181: =IF($AJ$9=0,0,$AJ$9) -> 0 | I181: =IF($AK$9=0,0,$AK$9) -> 0 | K181: =IF($AL$9=0,0,$AL$9) -> 0 | M181: =IF($AM$9=0,0,$AM$9) -> 0 | O181: =IF($AN$9=0,0,$AN$9) -> 0 | Q181: =IF($AO$9=0,0,$AO$9) -> 0 | S181: =IF($AP$9=0,0,$AP$9) -> 0 | U181: =IF($AQ$9=0,0,$AQ$9) -> 0 | W181: =IF($AR$9=0,0,$AR$9) -> 0 | Y181: =IF($AS$9=0,0,$AS$9) -> 0 | AA181: =IF($AT$9=0,0,$AT$9) -> 0 | AC181: =IF($AU$9=0,0,$AU$9) -> 0 | AE181: =IF($AV$9=0,0,$AV$9) -> 0
A182: =$A$56 -> Kurse | F182: =$F$56 -> ku | G182: =IF($AJ$10=0,0,$AJ$10) -> 0 | I182: =IF($AK$10=0,0,$AK$10) -> 0 | K182: =IF($AL$10=0,0,$AL$10) -> 0 | M182: =IF($AM$10=0,0,$AM$10) -> 0 | O182: =IF($AN$10=0,0,$AN$10) -> 0 | Q182: =IF($AO$10=0,0,$AO$10) -> 0 | S182: =IF($AP$10=0,0,$AP$10) -> 0 | U182: =IF($AQ$10=0,0,$AQ$10) -> 0 | W182: =IF($AR$10=0,0,$AR$10) -> 0 | Y182: =IF($AS$10=0,0,$AS$10) -> 0 | AA182: =IF($AT$10=0,0,$AT$10) -> 0 | AC182: =IF($AU$10=0,0,$AU$10) -> 0 | AE182: =IF($AV$10=0,0,$AV$10) -> 0
A183: =$A$57 -> Kompensations-Std | B183: =$B$57 -> aus Vorjahr | F183: =$F$57 -> kv | G183: =IF($AJ$12=0,0,$AJ$12) -> 0 | I183: =IF($AK$12=0,0,$AK$12) -> 0 | K183: =IF($AL$12=0,0,$AL$12) -> 0 | M183: =IF($AM$12=0,0,$AM$12) -> 0 | O183: =IF($AN$12=0,0,$AN$12) -> 0 | Q183: =IF($AO$12=0,0,$AO$12) -> 0 | S183: =IF($AP$12=0,0,$AP$12) -> 0 | U183: =IF($AQ$12=0,0,$AQ$12) -> 0 | W183: =IF($AR$12=0,0,$AR$12) -> 0 | AE183: =IF($AV$12=0,0,$AV$12) -> 0
B184: =$B$58 -> aus laufendem Jahr (Kontrolle) | F184: =$F$58 -> kj | G184: =IF($AJ$14=0,0,$AJ$14) -> 0 | I184: =IF($AK$14=0,0,$AK$14) -> 0 | K184: =IF($AL$14=0,0,$AL$14) -> 0 | M184: =IF($AM$14=0,0,$AM$14) -> 0 | O184: =IF($AN$14=0,0,$AN$14) -> 0 | Q184: =IF($AO$14=0,0,$AO$14) -> 0 | S184: =IF($AP$14=0,0,$AP$14) -> 0 | U184: =IF($AQ$14=0,0,$AQ$14) -> 0 | W184: =IF($AR$14=0,0,$AR$14) -> 0 | Y184: =IF($AS$14=0,0,$AS$14) -> 0 | AA184: =IF($AT$14=0,0,$AT$14) -> 0 | AC184: =IF($AU$14=0,0,$AU$14) -> 0 | AE184: =IF($AV$14=0,0,$AV$14) -> 0
A185: =$A$59 -> Auszahlung | B185: =$B$59 -> Stunden Vorjahressaldo | G185: =IF($AJ$18=0,0,$AJ$18) -> 0 | I185: =IF($AK$18=0,0,$AK$18) -> 0 | K185: =IF($AL$18=0,0,$AL$18) -> 0 | M185: =IF($AM$18=0,0,$AM$18) -> 0 | O185: =IF($AN$18=0,0,$AN$18) -> 0 | Q185: =IF($AO$18=0,0,$AO$18) -> 0 | S185: =IF($AP$18=0,0,$AP$18) -> 0 | U185: =IF($AQ$18=0,0,$AQ$18) -> 0 | W185: =IF($AR$18=0,0,$AR$18) -> 0 | AE185: =IF($AV$18=0,0,$AV$18) -> 0
A186: =$A$60 -> Differenz | B186: =$B$60 -> nach Kompensation und Auszahlung | G186: =IF(ROUND($P$4,3)=0,0,$P$4-SUM(G183+G185)) -> 0 | I186: =IF(ROUND(G186,3)=0,0,G186-(SUM(I185+I183))) -> 0 | K186: =IF(ROUND(I186,3)=0,0,I186-(SUM(K185+K183))) -> 0 | M186: =IF(ROUND(K186,3)=0,0,K186-(SUM(M185+M183))) -> 0 | O186: =IF(ROUND(M186,3)=0,0,M186-(SUM(O185+O183))) -> 0 | Q186: =IF(ROUND(O186,3)=0,0,O186-(SUM(Q185+Q183))) -> 0 | S186: =IF(ROUND(Q186,3)=0,0,Q186-(SUM(S185+S183))) -> 0 | U186: =IF(ROUND(S186,3)=0,0,S186-(SUM(U185+U183))) -> 0 | W186: =IF(ROUND(U186,3)=0,0,U186-(SUM(W185+W183))) -> 0 | Y186: =$Y$60 -> 
A187: =$A$61 -> Auszahlung | B187: =$B$61 -> Stunden laufendes Jahr | G187: =IF($AJ$19=0,0,$AJ$19) -> 0 | I187: =IF($AK$19=0,0,$AK$19) -> 0 | K187: =IF($AL$19=0,0,$AL$19) -> 0 | M187: =IF($AM$19=0,0,$AM$19) -> 0 | O187: =IF($AN$19=0,0,$AN$19) -> 0 | Q187: =IF($AO$19=0,0,$AO$19) -> 0 | S187: =IF($AP$19=0,0,$AP$19) -> 0 | U187: =IF($AQ$19=0,0,$AQ$19) -> 0 | W187: =IF($AR$19=0,0,$AR$19) -> 0 | Y187: =IF($AS$19=0,0,$AS$19) -> 0 | AA187: =IF($AT$19=0,0,$AT$19) -> 0 | AC187: =IF($AU$19=0,0,$AU$19) -> 0 | AE187: =IF($AV$19=0,0,$AV$19) -> 0
A188: =$A$62 -> Fehlstunden | B188: =$B$62 -> laufendes Jahr (Kontrolle) | F188: =$F$62 -> fe | G188: =IF($AJ$13=0,0,$AJ$13) -> 0 | I188: =IF($AK$13=0,0,$AK$13) -> 0 | K188: =IF($AL$13=0,0,$AL$13) -> 0 | M188: =IF($AM$13=0,0,$AM$13) -> 0 | O188: =IF($AN$13=0,0,$AN$13) -> 0 | Q188: =IF($AO$13=0,0,$AO$13) -> 0 | S188: =IF($AP$13=0,0,$AP$13) -> 0 | U188: =IF($AQ$13=0,0,$AQ$13) -> 0 | W188: =IF($AR$13=0,0,$AR$13) -> 0 | Y188: =IF($AS$13=0,0,$AS$13) -> 0 | AA188: =IF($AT$13=0,0,$AT$13) -> 0 | AC188: =IF($AU$13=0,0,$AU$13) -> 0 | AE188: =IF($AV$13=0,0,$AV$13) -> 0
A189: =$A$63 -> Total inkl. Zeitzuschläge | B189: =$B$63 -> Stunden produktiv und unproduktiv | G189: =IF($AG$36=0,0,$AG$36) -> 0 | I189: =IF($AG$99=0,0,$AG$99) -> 0 | K189: =IF($AG$162=0,0,$AG$162) -> 0 | M189: =IF($AG$225=0,0,$AG$225) -> 0 | O189: =IF($AG$288=0,0,$AG$288) -> 0 | Q189: =IF($AG$351=0,0,$AG$351) -> 0 | S189: =IF($AG$414=0,0,$AG$414) -> 0 | U189: =IF($AG$477=0,0,$AG$477) -> 0 | W189: =IF($AG$540=0,0,$AG$540) -> 0 | Y189: =IF($AG$603=0,0,$AG$603) -> 0 | AA189: =IF($AG$666=0,0,$AG$666) -> 0 | AC189: =IF($AG$729=0,0,$AG$729) -> 0 | AE189: =SUM($G$63:$AD$63) -> 0
A190: =$A$64 -> Vergleich | B190: =$B$64 -> Stunden zu Soll-Stunden (inkl. allfälli- ge Minusstunden Vorjahr) | G190: =IF($AG$38=0,0,$AG$38)-$AE$34+$P$5 -> -184 | I190: =IF($AG$101=0,0,$AG$101)-$AE$97 -> -160 | K190: =IF($AG$164=0,0,$AG$164)-$AE$160 -> -176 | M190: =IF($AG$227=0,0,$AG$227)-$AE$223 -> -176 | O190: =IF($AG$290=0,0,$AG$290)-$AE$286 -> -168 | Q190: =IF($AG$353=0,0,$AG$353)-$AE$349 -> -176 | S190: =IF($AG$416=0,0,$AG$416)-$AE$412 -> -184 | U190: =IF($AG$479=0,0,$AG$479)-$AE$475 -> -168 | W190: =IF($AG$542=0,0,$AG$542)-$AE$538 -> -176 | Y190: =IF($AG$605=0,0,$AG$605)-$AE$601 -> -176 | AA190: =IF($AG$668=0,0,$AG$668)-$AE$664 -> -168 | AC190: =IF($AG$731=0,0,$AG$731)-$AE$727 -> -184 | AE190: =SUM($G$64:$AD$64) -> -2096
B191: =$B$65 -> Stunden zu Soll-Stunden (kumuliert) | G191: =$G$65 -> -184 | I191: =$I$65 -> -344 | K191: =$K$65 -> -520 | M191: =$M$65 -> -696 | O191: =$O$65 -> -864 | Q191: =$Q$65 -> -1040 | S191: =$S$65 -> -1224 | U191: =$U$65 -> -1392 | W191: =$W$65 -> -1568 | Y191: =$Y$65 -> -1744 | AA191: =$AA$65 -> -1912 | AC191: =$AC$65 -> -2096
A192: =$A$66 -> Ferienkontrolle | B192: =$B$66 -> Ferienguthaben Vorjahr | G192: =IF($AA$4=0,0,$AA$4) -> 0 | I192: =$I$66 -> Ferienguthaben nach Art. 12.1 GAV | M192: =IF($AA$5=0,0,$AA$5) -> 0 | O192: =$O$66 -> Ferienguthaben total | S192: =SUM(G192+M192) -> 0 | U192: =$U$66 -> Ferien bezogen | Y192: =IF($AV$4=0,0,$AV$4) -> 0 | AA192: =$AA$66 -> Aktuelles Ferienguthaben | AE192: =IF(S192=0,0,S192-Y192) -> 0
A195: =$A$3 -> Mitarbeiter/In | B195: =IF($B$3="","",$B$3) -> Muster Peter | AF195: =AF3 -> 0
A196: =$A$4 -> Anstellung % | B196: 100 | D196: =Labels!B92 -> im April
A197: =$A$5 -> Saldo für das Jahr | D197: =IF($AE$64=0,0,$AE$64) -> -2096
A198: =TEXT(DATE(YEAR(AP28),MONTH(AP28)+3,1),"MMMM"&Labels!B13) -> April | B198: =$B$9 -> Saldo Monat + / - | F198: =(AG201-(SUM(AG202:AG216)-AE223))*-1 -> -176 | K198: =$K$9 -> = | L198: =$L$9 -> Gelbe Felder müssen ausgefüllt werden (die übrigen werden automatisch berechnet)
A199: =$A$10 -> Tag | B199: =AF136+1 -> 2020-04-01 | C199: =B199+1 -> 2020-04-02 | D199: =C199+1 -> 2020-04-03 | E199: 2020-04-04 | F199: 2020-04-05 | G199: 2020-04-06 | H199: 2020-04-07 | I199: 2020-04-08 | J199: 2020-04-09 | K199: 2020-04-10 | L199: 2020-04-11 | M199: 2020-04-12 | N199: 2020-04-13 | O199: 2020-04-14 | P199: 2020-04-15 | Q199: 2020-04-16 | R199: 2020-04-17 | S199: 2020-04-18 | T199: 2020-04-19 | U199: 2020-04-20 | V199: 2020-04-21 | W199: 2020-04-22 | X199: 2020-04-23 | Y199: 2020-04-24 | Z199: 2020-04-25 | AA199: 2020-04-26 | AB199: 2020-04-27 | AC199: 2020-04-28 | AD199: 2020-04-29 | AE199: 2020-04-30 | AG199: =COUNT(B201:AF201)&" "&Labels!$B$63 -> 22 Tage
A200: =$A$11 -> Kalenderwoche | B200: =IF(B199="","",TRUNC((B199-DATE(YEAR(B199+3-MOD(B199-2,7)),1,MOD(B199-2,7)-9))/7)) -> 14 | C200: 14 | D200: 14 | E200: 14 | F200: 14 | G200: 15 | H200: 15 | I200: 15 | J200: 15 | K200: 15 | L200: 15 | M200: 15 | N200: 16 | O200: 16 | P200: 16 | Q200: 16 | R200: 16 | S200: 16 | T200: 16 | U200: 17 | V200: 17 | W200: 17 | X200: 17 | Y200: 17 | Z200: 17 | AA200: 17 | AB200: 18 | AC200: 18 | AD200: 18 | AE200: 18
A201: =$A$12 -> Sollstunden | B201: =IF(MOD(B199,7)>=2,$J$7*$B$196%,"") -> 8 | C201: 8 | D201: 8 | G201: 8 | H201: 8 | I201: 8 | J201: 8 | K201: 8 | N201: 8 | O201: 8 | P201: 8 | Q201: 8 | R201: 8 | U201: 8 | V201: 8 | W201: 8 | X201: 8 | Y201: 8 | AB201: 8 | AC201: 8 | AD201: 8 | AE201: 8 | AG201: =SUM(B201:AF201) -> 176
A202: =$A$13 -> Absenz in Std | B202: =B888 -> 0 | C202: =C888 -> 0 | D202: 0 | E202: 0 | F202: 0 | G202: 0 | H202: 0 | I202: 0 | J202: 0 | K202: 0 | L202: 0 | M202: 0 | N202: 0 | O202: 0 | P202: 0 | Q202: 0 | R202: 0 | S202: 0 | T202: 0 | U202: 0 | V202: 0 | W202: 0 | X202: 0 | Y202: 0 | Z202: 0 | AA202: 0 | AB202: 0 | AC202: 0 | AD202: 0 | AE202: 0 | AG202: =SUM(AM3:AM12) -> 0
A203: =$A$14 -> Code | B203: =IF(B888<>0,IF(MAX(B875:B887)<B888,Labels!$B$163,INDEX($AH$875:$AH$887,MATCH(MAX(B875:B887),B875:B887,0))),"") ->  | C203: =IF(C888<>0,IF(MAX(C875:C887)<C888,Labels!$B$163,INDEX($AH$875:$AH$887,MATCH(MAX(C875:C887),C875:C887,0))),"") ->  | D203: =IF(D888<>0,IF(MAX(D875:D887)<D888,Labels!$B$163,INDEX($AH$875:$AH$887,MATCH(MAX(D875:D887),D875:D887,0))),"") ->  | E203: =IF(E888<>0,IF(MAX(E875:E887)<E888,Labels!$B$163,INDEX($AH$875:$AH$887,MATCH(MAX(E875:E887),E875:E887,0))),"") ->  | F203: =IF(F888<>0,IF(MAX(F875:F887)<F888,Labels!$B$163,INDEX($AH$875:$AH$887,MATCH(MAX(F875:F887),F875:F887,0))),"") ->  | G203: =IF(G888<>0,IF(MAX(G875:G887)<G888,Labels!$B$163,INDEX($AH$875:$AH$887,MATCH(MAX(G875:G887),G875:G887,0))),"") ->  | H203: =IF(H888<>0,IF(MAX(H875:H887)<H888,Labels!$B$163,INDEX($AH$875:$AH$887,MATCH(MAX(H875:H887),H875:H887,0))),"") ->  | I203: =IF(I888<>0,IF(MAX(I875:I887)<I888,Labels!$B$163,INDEX($AH$875:$AH$887,MATCH(MAX(I875:I887),I875:I887,0))),"") ->  | J203: =IF(J888<>0,IF(MAX(J875:J887)<J888,Labels!$B$163,INDEX($AH$875:$AH$887,MATCH(MAX(J875:J887),J875:J887,0))),"") ->  | K203: =IF(K888<>0,IF(MAX(K875:K887)<K888,Labels!$B$163,INDEX($AH$875:$AH$887,MATCH(MAX(K875:K887),K875:K887,0))),"") ->  | L203: =IF(L888<>0,IF(MAX(L875:L887)<L888,Labels!$B$163,INDEX($AH$875:$AH$887,MATCH(MAX(L875:L887),L875:L887,0))),"") ->  | M203: =IF(M888<>0,IF(MAX(M875:M887)<M888,Labels!$B$163,INDEX($AH$875:$AH$887,MATCH(MAX(M875:M887),M875:M887,0))),"") ->  | N203: =IF(N888<>0,IF(MAX(N875:N887)<N888,Labels!$B$163,INDEX($AH$875:$AH$887,MATCH(MAX(N875:N887),N875:N887,0))),"") ->  | O203: =IF(O888<>0,IF(MAX(O875:O887)<O888,Labels!$B$163,INDEX($AH$875:$AH$887,MATCH(MAX(O875:O887),O875:O887,0))),"") ->  | P203: =IF(P888<>0,IF(MAX(P875:P887)<P888,Labels!$B$163,INDEX($AH$875:$AH$887,MATCH(MAX(P875:P887),P875:P887,0))),"") ->  | Q203: =IF(Q888<>0,IF(MAX(Q875:Q887)<Q888,Labels!$B$163,INDEX($AH$875:$AH$887,MATCH(MAX(Q875:Q887),Q875:Q887,0))),"") ->  | R203: =IF(R888<>0,IF(MAX(R875:R887)<R888,Labels!$B$163,INDEX($AH$875:$AH$887,MATCH(MAX(R875:R887),R875:R887,0))),"") ->  | S203: =IF(S888<>0,IF(MAX(S875:S887)<S888,Labels!$B$163,INDEX($AH$875:$AH$887,MATCH(MAX(S875:S887),S875:S887,0))),"") ->  | T203: =IF(T888<>0,IF(MAX(T875:T887)<T888,Labels!$B$163,INDEX($AH$875:$AH$887,MATCH(MAX(T875:T887),T875:T887,0))),"") ->  | U203: =IF(U888<>0,IF(MAX(U875:U887)<U888,Labels!$B$163,INDEX($AH$875:$AH$887,MATCH(MAX(U875:U887),U875:U887,0))),"") ->  | V203: =IF(V888<>0,IF(MAX(V875:V887)<V888,Labels!$B$163,INDEX($AH$875:$AH$887,MATCH(MAX(V875:V887),V875:V887,0))),"") ->  | W203: =IF(W888<>0,IF(MAX(W875:W887)<W888,Labels!$B$163,INDEX($AH$875:$AH$887,MATCH(MAX(W875:W887),W875:W887,0))),"") ->  | X203: =IF(X888<>0,IF(MAX(X875:X887)<X888,Labels!$B$163,INDEX($AH$875:$AH$887,MATCH(MAX(X875:X887),X875:X887,0))),"") ->  | Y203: =IF(Y888<>0,IF(MAX(Y875:Y887)<Y888,Labels!$B$163,INDEX($AH$875:$AH$887,MATCH(MAX(Y875:Y887),Y875:Y887,0))),"") ->  | Z203: =IF(Z888<>0,IF(MAX(Z875:Z887)<Z888,Labels!$B$163,INDEX($AH$875:$AH$887,MATCH(MAX(Z875:Z887),Z875:Z887,0))),"") ->  | AA203: =IF(AA888<>0,IF(MAX(AA875:AA887)<AA888,Labels!$B$163,INDEX($AH$875:$AH$887,MATCH(MAX(AA875:AA887),AA875:AA887,0))),"") ->  | AB203: =IF(AB888<>0,IF(MAX(AB875:AB887)<AB888,Labels!$B$163,INDEX($AH$875:$AH$887,MATCH(MAX(AB875:AB887),AB875:AB887,0))),"") ->  | AC203: =IF(AC888<>0,IF(MAX(AC875:AC887)<AC888,Labels!$B$163,INDEX($AH$875:$AH$887,MATCH(MAX(AC875:AC887),AC875:AC887,0))),"") ->  | AD203: =IF(AD888<>0,IF(MAX(AD875:AD887)<AD888,Labels!$B$163,INDEX($AH$875:$AH$887,MATCH(MAX(AD875:AD887),AD875:AD887,0))),"") ->  | AE203: =IF(AE888<>0,IF(MAX(AE875:AE887)<AE888,Labels!$B$163,INDEX($AH$875:$AH$887,MATCH(MAX(AE875:AE887),AE875:AE887,0))),"") -> 
A204: =$A$15 -> 00.00-06.00h | AG204: =SUM(B204:AF204) -> 0
A205: =$A$16 -> 06.00-20.00h | AG205: =SUM(B205:AF205) -> 0
A206: =$A$17 -> 20.00-24.00h | AG206: =SUM(B206:AF206) -> 0 | AH206: [0]
... 781 more rows

Sheet MITARBEITER
A1: Nummer | B1: Name | C1: Vorname | D1: Adresse | E1: PLZ | F1: Ort | G1: Telefon
A2: 1 | B2: Muster | C2: Peter | D2: Mustergasse 550 | E2: 5000 | F2: Aarau | G2: +41 00 000 00 00
A3: 2
A4: 3
A5: 4
A6: 5
A7: 6
A8: 7
A9: 8
A10: 9
A11: 10
A12: 11
A13: 12
A14: 13
A15: 14
A16: 15
A17: 16
A18: 17
A19: 18
A20: 19
A21: 20
A22: 21
A23: 22
A24: 23
A25: 24
A26: 25
A27: 26
A28: 27
A29: 28
A30: 29
A31: 30
A32: 31
A33: 32
A34: 33
A35: 34
A36: 35
A37: 36
A38: 37
A39: 38
A40: 39
A41: 40
A42: 41
A43: 42
A44: 43
A45: 44
A46: 45
A47: 46
A48: 47
A49: 48
A50: 49
A51: 50
A52: 51
A53: 52
A54: 53
A55: 54
A56: 55
A57: 56
A58: 57
A59: 58
A60: 59
A61: 60
A62: 61
A63: 62
A64: 63
A65: 64
A66: 65
A67: 66
A68: 67
A69: 68
A70: 69
A71: 70
A72: 71
A73: 72
A74: 73
A75: 74
A76: 75
A77: 76
A78: 77
A79: 78
A80: 79
A81: 80
A82: 81
A83: 82
A84: 83
A85: 84
A86: 85
A87: 86
A88: 87
A89: 88
A90: 89
A91: 90
A92: 91
A93: 92
A94: 93
A95: 94
A96: 95
A97: 96
A98: 97
A99: 98
A100: 99
A101: 100

Sheet KONTROLLE
A1: =Labels!B164 -> Den gewünschten Monat mit einem Klick wählen (gehe zu) Den gewünschten Monat mit einem Klick in die Druckvorschau versetzen (für Druck)
A2: =Labels!B17 &B5 -> A r b e i t s z e i t k o n t r o l l e 2021 | AG2: 2021 | AI2: Hilfstabelle | AJ2: =Labels!B77 -> Jan | AK2: =Labels!B78 -> Feb | AL2: =Labels!B79 -> Mrz | AM2: =Labels!B80 -> Apr | AN2: =Labels!B81 -> Mai | AO2: =Labels!B82 -> Jun | AP2: =Labels!B83 -> Jul | AQ2: =Labels!B84 -> Aug | AR2: =Labels!B85 -> Sep | AS2: =Labels!B86 -> Okt | AT2: =Labels!B87 -> Nov | AU2: =Labels!B88 -> Dez | AV2: =Labels!B102 -> Total | AX2: Legenden, Erklärungen & Meldungen
A3: =Labels!B18 -> Mitarbeiter/In | B3: =Labels!B19 -> Muster Peter | AI3: =Labels!B113 -> a | AJ3: =AG809 -> 0 | AK3: =AG832 -> 0 | AL3: =AG855 -> 0 | AM3: =AG878 -> 0 | AN3: =AG901 -> 0 | AO3: =AG924 -> 0 | AP3: =AG947 -> 0 | AQ3: =AG970 -> 0 | AR3: =AG993 -> 0 | AS3: =AG1016 -> 0 | AT3: =AG1039 -> 0 | AU3: =AG1062 -> 0 | AV3: =SUM(AJ3:AU3) -> 0
A4: =Labels!B20 -> Anstellung % | B4: 100 | D4: =Labels!B89 -> im Januar | K4: =Labels!B22 -> Saldo Vorjahresstunden (+) | U4: =Labels!B24 -> Ferienguthaben Vorjahr | AC4: =Labels!B26 -> Stunden | AI4: =Labels!B115 -> f | AJ4: =AG806 -> 0 | AK4: =AG829 -> 0 | AL4: =AG852 -> 0 | AM4: =AG875 -> 0 | AN4: =AG898 -> 0 | AO4: =AG921 -> 0 | AP4: =AG944 -> 0 | AQ4: =AG967 -> 0 | AR4: =AG990 -> 0 | AS4: =AG1013 -> 0 | AT4: =AG1036 -> 0 | AU4: =AG1059 -> 0 | AV4: 0 | AX4: Legende Stunden zu Zuschläge (DE)
A5: =Labels!B21 -> Saldo für das Jahr | B5: =AG2 -> 2021 | D5: =IF($AE$64=0,0,$AE$64) -> -2148.03 | K5: =Labels!B23 -> Saldo Vorjahresstunden (-) | U5: =Labels!B25 -> Ferienguthaben laufendes Jahr | AA5: 0 | AC5: =Labels!B26 -> Stunden | AI5: =Labels!B120 -> k | AJ5: =AG810 -> 0 | AK5: =AG833 -> 0 | AL5: =AG856 -> 0 | AM5: =AG879 -> 0 | AN5: =AG902 -> 0 | AO5: =AG925 -> 0 | AP5: =AG948 -> 0 | AQ5: =AG971 -> 0 | AR5: =AG994 -> 0 | AS5: =AG1017 -> 0 | AT5: =AG1040 -> 0 | AU5: =AG1063 -> 0 | AV5: 0
AI6: =Labels!B122 -> u | AJ6: 0 | AK6: 0 | AL6: 0 | AM6: 0 | AN6: 0 | AO6: 0 | AP6: 0 | AQ6: 0 | AR6: 0 | AS6: 0 | AT6: 0 | AU6: 0 | AV6: 0 | AX6: [0] | AY6: Feiertagzuschläge gemäss Anstellungsprozent
A7: ="01.01."&B5 -> 01.01.2021 | B7: 48 | C7: =Labels!B27 -> Max. Std / Woche gemäss GAV | J7: 8.23 | K7: =Labels!B28 -> Std/Tag gemäss GAV | P7: =IF(MOD(YEAR($A$7),400)=0,"n",IF(MOD(YEAR($A$7),100)=0,"n",IF(MOD(YEAR($A$7),4)=0,"j","n"))) -> n | Q7: =Labels!B29 -> Schaltjahr (j/n) | U7: =NETWORKDAYS(DATE(B5,1,1),DATE(B5,12,31)) -> 261 | V7: =Labels!B30 -> Arbeitstage (Jahr) | Z7: =J7*U7 -> 2148.03 | AA7: =Labels!B31 -> Jahresbruttosollstunden | AI7: =Labels!B124 -> s | AJ7: 0 | AK7: 0 | AL7: 0 | AM7: 0 | AN7: 0 | AO7: 0 | AP7: 0 | AQ7: 0 | AR7: 0 | AS7: 0 | AT7: 0 | AU7: 0 | AV7: 0 | AX7: [1] | AY7: Sonntag Tag Zuschlag
AI8: =Labels!B126 -> m | AJ8: 0 | AK8: 0 | AL8: 0 | AM8: 0 | AN8: 0 | AO8: 0 | AP8: 0 | AQ8: 0 | AR8: 0 | AS8: 0 | AT8: 0 | AU8: 0 | AV8: 0 | AX8: [2] | AY8: Sonntag Nacht Zuschlag
A9: =TEXT(AP28,"MMMM"&Labels!B13) -> Januar | B9: =Labels!B32 -> Saldo Monat + / - | F9: =(AG12-(SUM(AG13:AG27)-AE34))*-1 -> -172.83 | K9: =Labels!B33 -> = | L9: =Labels!B34 -> Gelbe Felder müssen ausgefüllt werden (die übrigen werden automatisch berechnet) | AI9: =Labels!B130 -> bs | AJ9: 0 | AK9: 0 | AL9: 0 | AM9: 0 | AN9: 0 | AO9: 0 | AP9: 0 | AQ9: 0 | AR9: 0 | AS9: 0 | AT9: 0 | AU9: 0 | AV9: 0 | AX9: [3] | AY9: Zuschläge für ft-Tagarbeit
A10: =Labels!B35 -> Tag | B10: =AP28 -> 2021-01-01 | C10: =B10+1 -> 2021-01-02 | D10: 2021-01-03 | E10: 2021-01-04 | F10: 2021-01-05 | G10: 2021-01-06 | H10: 2021-01-07 | I10: 2021-01-08 | J10: 2021-01-09 | K10: 2021-01-10 | L10: 2021-01-11 | M10: 2021-01-12 | N10: 2021-01-13 | O10: 2021-01-14 | P10: 2021-01-15 | Q10: 2021-01-16 | R10: 2021-01-17 | S10: 2021-01-18 | T10: 2021-01-19 | U10: 2021-01-20 | V10: 2021-01-21 | W10: 2021-01-22 | X10: 2021-01-23 | Y10: 2021-01-24 | Z10: 2021-01-25 | AA10: 2021-01-26 | AB10: 2021-01-27 | AC10: 2021-01-28 | AD10: 2021-01-29 | AE10: 2021-01-30 | AF10: 2021-01-31 | AG10: =COUNT(B12:AF12)&" "&Labels!$B$63 -> 21 Tage | AI10: =Labels!B132 -> ku | AJ10: 0 | AK10: 0 | AL10: 0 | AM10: 0 | AN10: 0 | AO10: 0 | AP10: 0 | AQ10: 0 | AR10: 0 | AS10: 0 | AT10: 0 | AU10: 0 | AV10: 0 | AX10: [4] | AY10: Zuschläge für ft-Nachtarbeit
A11: =Labels!B36 -> Kalenderwoche | B11: =IF(B10="","",TRUNC((B10-DATE(YEAR(B10+3-MOD(B10-2,7)),1,MOD(B10-2,7)-9))/7)) -> 53 | C11: =IF(C10="","",TRUNC((C10-DATE(YEAR(C10+3-MOD(C10-2,7)),1,MOD(C10-2,7)-9))/7)) -> 53 | D11: 53 | E11: 1 | F11: 1 | G11: 1 | H11: 1 | I11: 1 | J11: 1 | K11: 1 | L11: 2 | M11: 2 | N11: 2 | O11: 2 | P11: 2 | Q11: 2 | R11: 2 | S11: 3 | T11: 3 | U11: 3 | V11: 3 | W11: 3 | X11: 3 | Y11: 3 | Z11: 4 | AA11: 4 | AB11: 4 | AC11: 4 | AD11: 4 | AE11: 4 | AF11: 4 | AI11: =Labels!B128 -> ka | AJ11: 0 | AK11: 0 | AL11: 0 | AM11: 0 | AN11: 0 | AO11: 0 | AP11: 0 | AQ11: 0 | AR11: 0 | AS11: 0 | AT11: 0 | AU11: 0 | AV11: 0 | AX11: [5] | AY11: Produktive Stunden Tag 06.00-20.00 Uhr
A12: =Labels!B37 -> Sollstunden | B12: =IF(MOD(B10,7)>=2,$J$7*$B$4%,"") -> 8.23 | E12: 8.23 | F12: 8.23 | G12: 8.23 | H12: 8.23 | I12: 8.23 | L12: 8.23 | M12: 8.23 | N12: 8.23 | O12: 8.23 | P12: 8.23 | S12: 8.23 | T12: 8.23 | U12: 8.23 | V12: 8.23 | W12: 8.23 | Z12: 8.23 | AA12: 8.23 | AB12: 8.23 | AC12: 8.23 | AD12: 8.23 | AG12: =SUM(B12:AF12) -> 172.83 | AI12: =Labels!B135 -> kv | AJ12: =AG807 -> 0 | AK12: =AG830 -> 0 | AL12: =AG853 -> 0 | AM12: =AG876 -> 0 | AN12: =AG899 -> 0 | AO12: =AG922 -> 0 | AP12: =AG945 -> 0 | AQ12: =AG968 -> 0 | AR12: =AG991 -> 0 | AS12: =AG1014 -> 0 | AT12: =AG1037 -> 0 | AU12: =AG1060 -> 0 | AV12: =SUM(AJ12:AU12) -> 0 | AX12: [6] | AY12: Produktive Stunden Nacht 20.00-06.00 Uhr
A13: =Labels!B38 -> Absenz in Std | B13: =B819 -> 0 | C13: =C819 -> 0 | D13: 0 | E13: 0 | F13: 0 | G13: 0 | H13: 0 | I13: 0 | J13: 0 | K13: 0 | L13: 0 | M13: 0 | N13: 0 | O13: 0 | P13: 0 | Q13: 0 | R13: 0 | S13: 0 | T13: 0 | U13: 0 | V13: 0 | W13: 0 | X13: 0 | Y13: 0 | Z13: 0 | AA13: 0 | AB13: 0 | AC13: 0 | AD13: 0 | AE13: 0 | AF13: 0 | AG13: =SUM(AJ3:AJ12) -> 0 | AI13: =Labels!B145 -> fe | AJ13: =AG818 -> 0 | AK13: =AG841 -> 0 | AL13: =AG864 -> 0 | AM13: =AG887 -> 0 | AN13: =AG910 -> 0 | AO13: =AG933 -> 0 | AP13: =AG956 -> 0 | AQ13: =AG979 -> 0 | AR13: =AG1002 -> 0 | AS13: =AG1025 -> 0 | AT13: =AG1048 -> 0 | AU13: =AG1071 -> 0 | AV13: =SUM(AJ13:AU13) -> 0 | AX13: [7] | AY13: Produktive Stunden im Monat ohne Zeitzuschläge und Absenzen
A14: =Labels!B39 -> Code | B14: =IF(B819<>0,IF(MAX(B806:B818)<B819,Labels!$B$163,INDEX($AH$806:$AH$818,MATCH(MAX(B806:B818),B806:B818,0))),"") ->  | C14: =IF(C819<>0,IF(MAX(C806:C818)<C819,Labels!$B$163,INDEX($AH$806:$AH$818,MATCH(MAX(C806:C818),C806:C818,0))),"") ->  | D14: =IF(D819<>0,IF(MAX(D806:D818)<D819,Labels!$B$163,INDEX($AH$806:$AH$818,MATCH(MAX(D806:D818),D806:D818,0))),"") ->  | E14: =IF(E819<>0,IF(MAX(E806:E818)<E819,Labels!$B$163,INDEX($AH$806:$AH$818,MATCH(MAX(E806:E818),E806:E818,0))),"") ->  | F14: =IF(F819<>0,IF(MAX(F806:F818)<F819,Labels!$B$163,INDEX($AH$806:$AH$818,MATCH(MAX(F806:F818),F806:F818,0))),"") ->  | G14: =IF(G819<>0,IF(MAX(G806:G818)<G819,Labels!$B$163,INDEX($AH$806:$AH$818,MATCH(MAX(G806:G818),G806:G818,0))),"") ->  | H14: =IF(H819<>0,IF(MAX(H806:H818)<H819,Labels!$B$163,INDEX($AH$806:$AH$818,MATCH(MAX(H806:H818),H806:H818,0))),"") ->  | I14: =IF(I819<>0,IF(MAX(I806:I818)<I819,Labels!$B$163,INDEX($AH$806:$AH$818,MATCH(MAX(I806:I818),I806:I818,0))),"") ->  | J14: =IF(J819<>0,IF(MAX(J806:J818)<J819,Labels!$B$163,INDEX($AH$806:$AH$818,MATCH(MAX(J806:J818),J806:J818,0))),"") ->  | K14: =IF(K819<>0,IF(MAX(K806:K818)<K819,Labels!$B$163,INDEX($AH$806:$AH$818,MATCH(MAX(K806:K818),K806:K818,0))),"") ->  | L14: =IF(L819<>0,IF(MAX(L806:L818)<L819,Labels!$B$163,INDEX($AH$806:$AH$818,MATCH(MAX(L806:L818),L806:L818,0))),"") ->  | M14: =IF(M819<>0,IF(MAX(M806:M818)<M819,Labels!$B$163,INDEX($AH$806:$AH$818,MATCH(MAX(M806:M818),M806:M818,0))),"") ->  | N14: =IF(N819<>0,IF(MAX(N806:N818)<N819,Labels!$B$163,INDEX($AH$806:$AH$818,MATCH(MAX(N806:N818),N806:N818,0))),"") ->  | O14: =IF(O819<>0,IF(MAX(O806:O818)<O819,Labels!$B$163,INDEX($AH$806:$AH$818,MATCH(MAX(O806:O818),O806:O818,0))),"") ->  | P14: =IF(P819<>0,IF(MAX(P806:P818)<P819,Labels!$B$163,INDEX($AH$806:$AH$818,MATCH(MAX(P806:P818),P806:P818,0))),"") ->  | Q14: =IF(Q819<>0,IF(MAX(Q806:Q818)<Q819,Labels!$B$163,INDEX($AH$806:$AH$818,MATCH(MAX(Q806:Q818),Q806:Q818,0))),"") ->  | R14: =IF(R819<>0,IF(MAX(R806:R818)<R819,Labels!$B$163,INDEX($AH$806:$AH$818,MATCH(MAX(R806:R818),R806:R818,0))),"") ->  | S14: =IF(S819<>0,IF(MAX(S806:S818)<S819,Labels!$B$163,INDEX($AH$806:$AH$818,MATCH(MAX(S806:S818),S806:S818,0))),"") ->  | T14: =IF(T819<>0,IF(MAX(T806:T818)<T819,Labels!$B$163,INDEX($AH$806:$AH$818,MATCH(MAX(T806:T818),T806:T818,0))),"") ->  | U14: =IF(U819<>0,IF(MAX(U806:U818)<U819,Labels!$B$163,INDEX($AH$806:$AH$818,MATCH(MAX(U806:U818),U806:U818,0))),"") ->  | V14: =IF(V819<>0,IF(MAX(V806:V818)<V819,Labels!$B$163,INDEX($AH$806:$AH$818,MATCH(MAX(V806:V818),V806:V818,0))),"") ->  | W14: =IF(W819<>0,IF(MAX(W806:W818)<W819,Labels!$B$163,INDEX($AH$806:$AH$818,MATCH(MAX(W806:W818),W806:W818,0))),"") ->  | X14: =IF(X819<>0,IF(MAX(X806:X818)<X819,Labels!$B$163,INDEX($AH$806:$AH$818,MATCH(MAX(X806:X818),X806:X818,0))),"") ->  | Y14: =IF(Y819<>0,IF(MAX(Y806:Y818)<Y819,Labels!$B$163,INDEX($AH$806:$AH$818,MATCH(MAX(Y806:Y818),Y806:Y818,0))),"") ->  | Z14: =IF(Z819<>0,IF(MAX(Z806:Z818)<Z819,Labels!$B$163,INDEX($AH$806:$AH$818,MATCH(MAX(Z806:Z818),Z806:Z818,0))),"") ->  | AA14: =IF(AA819<>0,IF(MAX(AA806:AA818)<AA819,Labels!$B$163,INDEX($AH$806:$AH$818,MATCH(MAX(AA806:AA818),AA806:AA818,0))),"") ->  | AB14: =IF(AB819<>0,IF(MAX(AB806:AB818)<AB819,Labels!$B$163,INDEX($AH$806:$AH$818,MATCH(MAX(AB806:AB818),AB806:AB818,0))),"") ->  | AC14: =IF(AC819<>0,IF(MAX(AC806:AC818)<AC819,Labels!$B$163,INDEX($AH$806:$AH$818,MATCH(MAX(AC806:AC818),AC806:AC818,0))),"") ->  | AD14: =IF(AD819<>0,IF(MAX(AD806:AD818)<AD819,Labels!$B$163,INDEX($AH$806:$AH$818,MATCH(MAX(AD806:AD818),AD806:AD818,0))),"") ->  | AE14: =IF(AE819<>0,IF(MAX(AE806:AE818)<AE819,Labels!$B$163,INDEX($AH$806:$AH$818,MATCH(MAX(AE806:AE818),AE806:AE818,0))),"") ->  | AF14: =IF(AF819<>0,IF(MAX(AF806:AF818)<AF819,Labels!$B$163,INDEX($AH$806:$AH$818,MATCH(MAX(AF806:AF818),AF806:AF818,0))),"") ->  | AI14: =Labels!B137 -> kj | AJ14: =AG808 -> 0 | AK14: =AG831 -> 0 | AL14: =AG854 -> 0 | AM14: =AG877 -> 0 | AN14: =AG900 -> 0 | AO14: =AG923 -> 0 | AP14: =AG946 -> 0 | AQ14: =AG969 -> 0 | AR14: =AG992 -> 0 | AS14: =AG1015 -> 0 | AT14: =AG1038 -> 0 | AU14: =AG1061 -> 0 | AV14: =SUM(AJ14:AU14) -> 0 | AX14: [8] | AY14: Unproduktive Stunden (Feiertag, Absenzen)
A15: =Labels!B40 -> 00.00-06.00h | AG15: =SUM(B15:AF15) -> 0 | AI15: =Labels!B118 -> ft | AJ15: =SUMIF($B$18:$AF$18,$AI$15,$B$19:$AF$19) -> 0 | AK15: =SUMIF($B$81:$AD$81,$AI$15,$B$82:$AD$82) -> 0 | AL15: =SUMIF($B$144:$AF$144,$AI$15,$B$145:$AF$145) -> 0 | AM15: =SUMIF($B$207:$AE$207,$AI$15,$B$208:$AE$208) -> 0 | AN15: =SUMIF($B$270:$AF$270,$AI$15,$B$271:$AF$271) -> 0 | AO15: =SUMIF($B$333:$AE$333,$AI$15,$B$334:$AE$334) -> 0 | AP15: =SUMIF($B$396:$AF$396,$AI$15,$B$397:$AF$397) -> 0 | AQ15: =SUMIF($B$459:$AF$459,$AI$15,$B$460:$AF$460) -> 0 | AR15: =SUMIF($B$522:$AE$522,$AI$15,$B$523:$AE$523) -> 0 | AS15: =SUMIF($B$585:$AF$585,$AI$15,$B$586:$AF$586) -> 0 | AT15: =SUMIF($B$648:$AE$648,$AI$15,$B$649:$AE$649) -> 0 | AU15: =SUMIF($B$711:$AF$711,$AI$15,$B$712:$AF$712) -> 0 | AV15: 0 | AX15: [9] | AY15: Total gearbeitete Std. im Monat mit Zeitzuschlägen und Absenzen abz. ausbezahlte Stunden
A16: =Labels!B41 -> 06.00-20.00h | AG16: =SUM(B16:AF16) -> 0 | AI16: =Labels!B160 -> Anzahl ft | AJ16: =COUNTIF($B$18:$AF$18,$AI$15) -> 0 | AK16: =COUNTIF($B$81:$AD$81,$AI$15) -> 0 | AL16: =COUNTIF($B$144:$AF$144,$AI$15) -> 0 | AM16: =COUNTIF($B$207:$AE$207,$AI$15) -> 0 | AN16: =COUNTIF($B$270:$AF$270,$AI$15) -> 0 | AO16: =COUNTIF($B$333:$AE$333,$AI$15) -> 0 | AP16: =COUNTIF($B$396:$AF$396,$AI$15) -> 0 | AQ16: =COUNTIF($B$459:$AF$459,$AI$15) -> 0 | AR16: =COUNTIF($B$522:$AE$522,$AI$15) -> 0 | AS16: =COUNTIF($B$585:$AF$585,$AI$15) -> 0 | AT16: =COUNTIF($B$648:$AE$648,$AI$15) -> 0 | AU16: =COUNTIF($B$711:$AF$711,$AI$15) -> 0 | AV16: 0 | AX16: [10] | AY16: Soll-Stunden
A17: =Labels!B42 -> 20.00-24.00h | AG17: =SUM(B17:AF17) -> 0 | AI17: =Labels!B161 -> Meldung | AJ17: =IF($AV$16>9,"(" & $AV$16 & " = " & Labels!B117,"") ->  | AX17: [11] | AY17: Vergleich im Monat gearbeitete Std. inkl. Zeitzuschläge minus Zahlung Vorjahr zu Soll-Stunden + / -
A18: =Labels!B43 -> Feiertag "ft" | B18: =IF(WEEKDAY(B10,2)<=6,IF(KALENDER!E3="x",Labels!$B$118,""),"") ->  | C18: =IF(WEEKDAY(C10,2)<=6,IF(KALENDER!F3="x",Labels!$B$118,""),"") ->  | D18: =IF(WEEKDAY(D10,2)<=6,IF(KALENDER!G3="x",Labels!$B$118,""),"") ->  | E18: =IF(WEEKDAY(E10,2)<=6,IF(KALENDER!H3="x",Labels!$B$118,""),"") ->  | F18: =IF(WEEKDAY(F10,2)<=6,IF(KALENDER!I3="x",Labels!$B$118,""),"") ->  | G18: =IF(WEEKDAY(G10,2)<=6,IF(KALENDER!J3="x",Labels!$B$118,""),"") ->  | H18: =IF(WEEKDAY(H10,2)<=6,IF(KALENDER!K3="x",Labels!$B$118,""),"") ->  | I18: =IF(WEEKDAY(I10,2)<=6,IF(KALENDER!L3="x",Labels!$B$118,""),"") ->  | J18: =IF(WEEKDAY(J10,2)<=6,IF(KALENDER!M3="x",Labels!$B$118,""),"") ->  | K18: =IF(WEEKDAY(K10,2)<=6,IF(KALENDER!N3="x",Labels!$B$118,""),"") ->  | L18: =IF(WEEKDAY(L10,2)<=6,IF(KALENDER!O3="x",Labels!$B$118,""),"") ->  | M18: =IF(WEEKDAY(M10,2)<=6,IF(KALENDER!P3="x",Labels!$B$118,""),"") ->  | N18: =IF(WEEKDAY(N10,2)<=6,IF(KALENDER!Q3="x",Labels!$B$118,""),"") ->  | O18: =IF(WEEKDAY(O10,2)<=6,IF(KALENDER!R3="x",Labels!$B$118,""),"") ->  | P18: =IF(WEEKDAY(P10,2)<=6,IF(KALENDER!S3="x",Labels!$B$118,""),"") ->  | Q18: =IF(WEEKDAY(Q10,2)<=6,IF(KALENDER!T3="x",Labels!$B$118,""),"") ->  | R18: =IF(WEEKDAY(R10,2)<=6,IF(KALENDER!U3="x",Labels!$B$118,""),"") ->  | S18: =IF(WEEKDAY(S10,2)<=6,IF(KALENDER!V3="x",Labels!$B$118,""),"") ->  | T18: =IF(WEEKDAY(T10,2)<=6,IF(KALENDER!W3="x",Labels!$B$118,""),"") ->  | U18: =IF(WEEKDAY(U10,2)<=6,IF(KALENDER!X3="x",Labels!$B$118,""),"") ->  | V18: =IF(WEEKDAY(V10,2)<=6,IF(KALENDER!Y3="x",Labels!$B$118,""),"") ->  | W18: =IF(WEEKDAY(W10,2)<=6,IF(KALENDER!Z3="x",Labels!$B$118,""),"") ->  | X18: =IF(WEEKDAY(X10,2)<=6,IF(KALENDER!AA3="x",Labels!$B$118,""),"") ->  | Y18: =IF(WEEKDAY(Y10,2)<=6,IF(KALENDER!AB3="x",Labels!$B$118,""),"") ->  | Z18: =IF(WEEKDAY(Z10,2)<=6,IF(KALENDER!AC3="x",Labels!$B$118,""),"") ->  | AA18: =IF(WEEKDAY(AA10,2)<=6,IF(KALENDER!AD3="x",Labels!$B$118,""),"") ->  | AB18: =IF(WEEKDAY(AB10,2)<=6,IF(KALENDER!AE3="x",Labels!$B$118,""),"") ->  | AC18: =IF(WEEKDAY(AC10,2)<=6,IF(KALENDER!AF3="x",Labels!$B$118,""),"") ->  | AD18: =IF(WEEKDAY(AD10,2)<=6,IF(KALENDER!AG3="x",Labels!$B$118,""),"") ->  | AE18: =IF(WEEKDAY(AE10,2)<=6,IF(KALENDER!AH3="x",Labels!$B$118,""),"") ->  | AF18: =IF(WEEKDAY(AF10,2)<=6,IF(KALENDER!AI3="x",Labels!$B$118,""),"") ->  | AH18: [0] | AI18: Bez VoJa | AJ18: =$AE$33 -> 0 | AK18: =$AE$96 -> 0 | AL18: =$AE$159 -> 0 | AM18: =$AE$222 -> 0 | AN18: =$AE$285 -> 0 | AO18: =$AE$348 -> 0 | AP18: =$AE$411 -> 0 | AQ18: =$AE$474 -> 0 | AR18: =$AE$537 -> 0 | AV18: =SUM(AJ18:AU18) -> 0
A19: =Labels!B44 -> Gutschrift "ft" | B19: =IF(AND(B18=Labels!$B$118,WEEKDAY(B10,2)<6),$J$7*$B$4%,"") ->  | C19: =IF(AND(C18=Labels!$B$118,WEEKDAY(C10,2)<6),$J$7*$B$4%,"") ->  | D19: =IF(AND(D18=Labels!$B$118,WEEKDAY(D10,2)<6),$J$7*$B$4%,"") ->  | E19: =IF(AND(E18=Labels!$B$118,WEEKDAY(E10,2)<6),$J$7*$B$4%,"") ->  | F19: =IF(AND(F18=Labels!$B$118,WEEKDAY(F10,2)<6),$J$7*$B$4%,"") ->  | G19: =IF(AND(G18=Labels!$B$118,WEEKDAY(G10,2)<6),$J$7*$B$4%,"") ->  | H19: =IF(AND(H18=Labels!$B$118,WEEKDAY(H10,2)<6),$J$7*$B$4%,"") ->  | I19: =IF(AND(I18=Labels!$B$118,WEEKDAY(I10,2)<6),$J$7*$B$4%,"") ->  | J19: =IF(AND(J18=Labels!$B$118,WEEKDAY(J10,2)<6),$J$7*$B$4%,"") ->  | K19: =IF(AND(K18=Labels!$B$118,WEEKDAY(K10,2)<6),$J$7*$B$4%,"") ->  | L19: =IF(AND(L18=Labels!$B$118,WEEKDAY(L10,2)<6),$J$7*$B$4%,"") ->  | M19: =IF(AND(M18=Labels!$B$118,WEEKDAY(M10,2)<6),$J$7*$B$4%,"") ->  | N19: =IF(AND(N18=Labels!$B$118,WEEKDAY(N10,2)<6),$J$7*$B$4%,"") ->  | O19: =IF(AND(O18=Labels!$B$118,WEEKDAY(O10,2)<6),$J$7*$B$4%,"") ->  | P19: =IF(AND(P18=Labels!$B$118,WEEKDAY(P10,2)<6),$J$7*$B$4%,"") ->  | Q19: =IF(AND(Q18=Labels!$B$118,WEEKDAY(Q10,2)<6),$J$7*$B$4%,"") ->  | R19: =IF(AND(R18=Labels!$B$118,WEEKDAY(R10,2)<6),$J$7*$B$4%,"") ->  | S19: =IF(AND(S18=Labels!$B$118,WEEKDAY(S10,2)<6),$J$7*$B$4%,"") ->  | T19: =IF(AND(T18=Labels!$B$118,WEEKDAY(T10,2)<6),$J$7*$B$4%,"") ->  | U19: =IF(AND(U18=Labels!$B$118,WEEKDAY(U10,2)<6),$J$7*$B$4%,"") ->  | V19: =IF(AND(V18=Labels!$B$118,WEEKDAY(V10,2)<6),$J$7*$B$4%,"") ->  | W19: =IF(AND(W18=Labels!$B$118,WEEKDAY(W10,2)<6),$J$7*$B$4%,"") ->  | X19: =IF(AND(X18=Labels!$B$118,WEEKDAY(X10,2)<6),$J$7*$B$4%,"") ->  | Y19: =IF(AND(Y18=Labels!$B$118,WEEKDAY(Y10,2)<6),$J$7*$B$4%,"") ->  | Z19: =IF(AND(Z18=Labels!$B$118,WEEKDAY(Z10,2)<6),$J$7*$B$4%,"") ->  | AA19: =IF(AND(AA18=Labels!$B$118,WEEKDAY(AA10,2)<6),$J$7*$B$4%,"") ->  | AB19: =IF(AND(AB18=Labels!$B$118,WEEKDAY(AB10,2)<6),$J$7*$B$4%,"") ->  | AC19: =IF(AND(AC18=Labels!$B$118,WEEKDAY(AC10,2)<6),$J$7*$B$4%,"") ->  | AD19: =IF(AND(AD18=Labels!$B$118,WEEKDAY(AD10,2)<6),$J$7*$B$4%,"") ->  | AE19: =IF(AND(AE18=Labels!$B$118,WEEKDAY(AE10,2)<6),$J$7*$B$4%,"") ->  | AF19: =IF(AND(AF18=Labels!$B$118,WEEKDAY(AF10,2)<6),$J$7*$B$4%,"") ->  | AG19: =SUM(B19:AF19) -> 0 | AI19: Bez LaJa | AJ19: =$AE$34 -> 0 | AK19: =$AE$97 -> 0 | AL19: =$AE$160 -> 0 | AM19: =$AE$223 -> 0 | AN19: =$AE$286 -> 0 | AO19: =$AE$349 -> 0 | AP19: =$AE$412 -> 0 | AQ19: =$AE$475 -> 0 | AR19: =$AE$538 -> 0 | AS19: =$AE$601 -> 0 | AT19: =$AE$664 -> 0 | AU19: =$AE$727 -> 0 | AV19: =SUM(AJ19:AU19) -> 0
A20: =Labels!B45 -> Tagestotal | B20: =SUM(B15:B17) -> 0 | C20: =SUM(C15:C17) -> 0 | D20: 0 | E20: 0 | F20: 0 | G20: 0 | H20: 0 | I20: 0 | J20: 0 | K20: 0 | L20: 0 | M20: 0 | N20: 0 | O20: 0 | P20: 0 | Q20: 0 | R20: 0 | S20: 0 | T20: 0 | U20: 0 | V20: 0 | W20: 0 | X20: 0 | Y20: 0 | Z20: 0 | AA20: 0 | AB20: 0 | AC20: 0 | AD20: 0 | AE20: 0 | AF20: 0 | AI20: Zuschläge Nacht/Sonn-/Feiertag | AJ20: =SUM(AG26+AG27) -> 0 | AK20: =SUM(AG89+AG90) -> 0 | AL20: =SUM(AG152+AG153) -> 0 | AM20: =SUM(AG215+AG216) -> 0 | AN20: =SUM(AG278+AG279) -> 0 | AO20: =SUM(AG341+AG342) -> 0 | AP20: =SUM(AG404+AG405) -> 0 | AQ20: =SUM(AG467+AG468) -> 0 | AR20: =SUM(AG530+AG531) -> 0 | AS20: =SUM(AG593+AG594) -> 0 | AT20: =SUM(AG656+AG657) -> 0 | AU20: =SUM(AG719+AG720) -> 0 | AV20: =SUM(AJ20:AU20) -> 0 | AX20: Legende Absenztypen (DE)
A21: =Labels!B46 -> .
A22: =Labels!B47 -> . | AX22: a | AY22: Absenzen, Kurzabsenzen Art. 11 GAV
A23: =Labels!B48 -> Monatsübergang | B23: =IF(WEEKDAY(B10)=1,TEXT(B10-1,"MMM"&Labels!B13),"") ->  | AF23: =IF(AND(WEEKDAY(AF10)>1,WEEKDAY(AF10)<7),TEXT(DATE($B$5,MONTH(AF10)+1,1),"MMM"&Labels!B13),"") ->  | AX23: f | AY23: Ferien Art. 12.1. GAV
A24: =Labels!B49 -> Wochentotal | B24: =IF(WEEKDAY(B10)=7,SUMIF($B11:$AF11,B11,$B20:$AF20)+SUMIF($B74:$AD74,B11,$B83:$AD83),IF(WEEKDAY(B10)=1,SUMIF($B11:$AF11,B11,$B20:$AF20)+SUMIF($B74:$AD74,B11,$B83:$AD83),"")) ->  | C24: =IF(WEEKDAY(C10)=7,SUMIF($B11:$AF11,C11,$B20:$AF20)+SUMIF($B74:$AD74,C11,$B83:$AD83),"") -> 0 | J24: 0 | Q24: 0 | X24: 0 | AE24: 0 | AF24: =IF(WEEKDAY(AF10)=7,SUMIF($B11:$AF11,AF11,$B20:$AF20)+SUMIF($B74:$AD74,AF11,$B83:$AD83),AF23) ->  | AX24: k | AY24: Krankheit Art. 13 GAV
A25: =Labels!B50 -> Zeitzuschlag 1) | B25: =IF(B32="FALSCH","",B32) ->  | C25: =IF(C32="FALSCH","",C32) ->  | AG25: =SUM(B25:AF25) -> 0 | AX25: m | AY25: Militär, Zivilschutz Art. 16 GAV
A26: =Labels!B51 -> Zeitzuschlag 2) | B26: =IF((B15+B17)=0,"",SUM(B15,B17)) ->  | C26: =IF((C15+C17)=0,"",SUM(C15,C17)) ->  | D26: =IF((D15+D17)=0,"",SUM(D15,D17)) ->  | E26: =IF((E15+E17)=0,"",SUM(E15,E17)) ->  | AG26: 0 | AH26: [1] | AI26: Konfiguration (lokal) | AX26: s | AY26: Schwanger-/Mutterschaft Art. 15 GAV
A27: =Labels!B52 -> Zeitzuschlag 3) | B27: =SUM(B28:B31) -> 0 | C27: 0 | D27: 0 | E27: 0 | F27: 0 | G27: 0 | H27: 0 | I27: 0 | J27: 0 | K27: 0 | L27: 0 | M27: 0 | N27: 0 | O27: 0 | P27: 0 | Q27: 0 | R27: 0 | S27: 0 | T27: 0 | U27: 0 | V27: 0 | W27: 0 | X27: 0 | Y27: 0 | Z27: 0 | AA27: 0 | AB27: 0 | AC27: 0 | AD27: 0 | AE27: 0 | AF27: 0 | AG27: =SUM(B27:AF27) -> 0 | AH27: [2] | AX27: u | AY27: Unfall Art. 14 GAV
A28: =Labels!B53 -> Sonntag Tag | B28: =IF(WEEKDAY(B10)=1,B16,"") ->  | C28: =IF(WEEKDAY(C10)=1,C16,"") ->  | D28: 0 | K28: 0 | R28: 0 | Y28: 0 | AF28: 0 | AG28: 0 | AH28: [3] | AI28: Erster Januar aktuelles Jahr | AP28: =DATE(YEAR($A$7),MONTH($A$7),DAY($A$7)) -> 2021-01-01 | AX28: bs | AY28: Berufsschule
A29: =Labels!B54 -> Sonntag Nacht | B29: =IF(WEEKDAY(B10)=1,SUM(B15+B17),"") ->  | C29: =IF(WEEKDAY(C10)=1,SUM(C15+C17),"") ->  | D29: 0 | K29: 0 | R29: 0 | Y29: 0 | AF29: 0 | AG29: 0 | AH29: [4] | AI29: (Berechnungsgrundlage Kalender) | AX29: fe | AY29: Fehlstunden zur Information ohne Berechnung in der Zusammenfassung
A30: =Labels!B55 -> ft-Tazuschlag | B30: =IF(B18=Labels!$B$118,B16,"") ->  | C30: =IF(C18=Labels!$B$118,C16,"") ->  | D30: =IF(D18=Labels!$B$118,D16,"") ->  | E30: =IF(E18=Labels!$B$118,E16,"") ->  | F30: =IF(F18=Labels!$B$118,F16,"") ->  | G30: =IF(G18=Labels!$B$118,G16,"") ->  | H30: =IF(H18=Labels!$B$118,H16,"") ->  | I30: =IF(I18=Labels!$B$118,I16,"") ->  | J30: =IF(J18=Labels!$B$118,J16,"") ->  | K30: =IF(K18=Labels!$B$118,K16,"") ->  | L30: =IF(L18=Labels!$B$118,L16,"") ->  | M30: =IF(M18=Labels!$B$118,M16,"") ->  | N30: =IF(N18=Labels!$B$118,N16,"") ->  | O30: =IF(O18=Labels!$B$118,O16,"") ->  | P30: =IF(P18=Labels!$B$118,P16,"") ->  | Q30: =IF(Q18=Labels!$B$118,Q16,"") ->  | R30: =IF(R18=Labels!$B$118,R16,"") ->  | S30: =IF(S18=Labels!$B$118,S16,"") ->  | T30: =IF(T18=Labels!$B$118,T16,"") ->  | U30: =IF(U18=Labels!$B$118,U16,"") ->  | V30: =IF(V18=Labels!$B$118,V16,"") ->  | W30: =IF(W18=Labels!$B$118,W16,"") ->  | X30: =IF(X18=Labels!$B$118,X16,"") ->  | Y30: =IF(Y18=Labels!$B$118,Y16,"") ->  | Z30: =IF(Z18=Labels!$B$118,Z16,"") ->  | AA30: =IF(AA18=Labels!$B$118,AA16,"") ->  | AB30: =IF(AB18=Labels!$B$118,AB16,"") ->  | AC30: =IF(AC18=Labels!$B$118,AC16,"") ->  | AD30: =IF(AD18=Labels!$B$118,AD16,"") ->  | AE30: =IF(AE18=Labels!$B$118,AE16,"") ->  | AF30: =IF(AF18=Labels!$B$118,AF16,"") ->  | AG30: 0 | AH30: [5] | AX30: ka | AY30: Kurzabeit, Schlechtwetterausfälle
A31: =Labels!B56 -> ft-Nazuschlag | B31: =IF(B18=Labels!$B$118,SUM(B15,B17),"") ->  | C31: =IF(C18=Labels!$B$118,SUM(C15,C17),"") ->  | D31: =IF(D18=Labels!$B$118,SUM(D15,D17),"") ->  | E31: =IF(E18=Labels!$B$118,SUM(E15,E17),"") ->  | F31: =IF(F18=Labels!$B$118,SUM(F15,F17),"") ->  | G31: =IF(G18=Labels!$B$118,SUM(G15,G17),"") ->  | H31: =IF(H18=Labels!$B$118,SUM(H15,H17),"") ->  | I31: =IF(I18=Labels!$B$118,SUM(I15,I17),"") ->  | J31: =IF(J18=Labels!$B$118,SUM(J15,J17),"") ->  | K31: =IF(K18=Labels!$B$118,SUM(K15,K17),"") ->  | L31: =IF(L18=Labels!$B$118,SUM(L15,L17),"") ->  | M31: =IF(M18=Labels!$B$118,SUM(M15,M17),"") ->  | N31: =IF(N18=Labels!$B$118,SUM(N15,N17),"") ->  | O31: =IF(O18=Labels!$B$118,SUM(O15,O17),"") ->  | P31: =IF(P18=Labels!$B$118,SUM(P15,P17),"") ->  | Q31: =IF(Q18=Labels!$B$118,SUM(Q15,Q17),"") ->  | R31: =IF(R18=Labels!$B$118,SUM(R15,R17),"") ->  | S31: =IF(S18=Labels!$B$118,SUM(S15,S17),"") ->  | T31: =IF(T18=Labels!$B$118,SUM(T15,T17),"") ->  | U31: =IF(U18=Labels!$B$118,SUM(U15,U17),"") ->  | V31: =IF(V18=Labels!$B$118,SUM(V15,V17),"") ->  | W31: =IF(W18=Labels!$B$118,SUM(W15,W17),"") ->  | X31: =IF(X18=Labels!$B$118,SUM(X15,X17),"") ->  | Y31: =IF(Y18=Labels!$B$118,SUM(Y15,Y17),"") ->  | Z31: =IF(Z18=Labels!$B$118,SUM(Z15,Z17),"") ->  | AA31: =IF(AA18=Labels!$B$118,SUM(AA15,AA17),"") ->  | AB31: =IF(AB18=Labels!$B$118,SUM(AB15,AB17),"") ->  | AC31: =IF(AC18=Labels!$B$118,SUM(AC15,AC17),"") ->  | AD31: =IF(AD18=Labels!$B$118,SUM(AD15,AD17),"") ->  | AE31: =IF(AE18=Labels!$B$118,SUM(AE15,AE17),"") ->  | AF31: =IF(AF18=Labels!$B$118,SUM(AF15,AF17),"") ->  | AG31: 0 | AH31: [6] | AI31: Hilfszelle Feiertage | AQ31: =Labels!$B$118 -> ft | AX31: kj | AY31: Kompensation laufendes Jahr siehe Zusammenfassung
A32: =Labels!B57 -> Zuschlag blind (Wochentotal) | B32: =IF(OR(ISTEXT(B24),B24="",B24<$B$7),"",ROUND(((B24-$B$7)*25%)/25,4)*25) ->  | C32: =IF(OR(ISTEXT(C24),C24="",C24<$B$7),"",ROUND(((C24-$B$7)*25%)/25,4)*25) ->  | AG32: =AG16 -> 0 | AH32: [7] | AX32: ku | AY32: Kurse
B33: =Labels!B58 -> 1) 25% Zeitzuschlag für Überschreitung Wochentotal | L33: =Labels!B59 -> 2) 100% Zeitzuschlag für Nachtarbeit | T33: =Labels!B61 -> Eingabe der ausbezahlten Stunden Vorjahressaldo | AG33: =SUM(AG15+AG17) -> 0 | AH33: [8] | AI33: aktueller Kalender | AK33: calendar | AQ33: KALENDER | AX33: kv | AY33: Kompensation Vorjahressaldo für Abrechnung in der Zusammenfassung
B34: =Labels!B60 -> 3) 100% Zeitzuschlag für Sonn- und Feiertagsarbeit | T34: =Labels!B62 -> Eingabe der ausbezahlten Stunden laufendes Jahr (Überstunden) | AG34: =SUM(AG15:AG17) -> 0 | AH34: [9]
A35: =Labels!B159 -> Bemerkungen | AG35: =SUM(AG13+AG19) -> 0 | AH35: [10]
AG36: =SUM(AG13:AG27) -> 0 | AH36: [11] | AI36: alter Kalender | AK36: calendar1 | AQ36: Kalender Müller
AG37: =AG12 -> 172.83 | AI37: neuer Kalender | AK37: calendar | AQ37: KALENDER | AX37: Meldungen & Beschriftungen
AG38: =SUM(AG36-AG12) -> -172.83
A39: =Labels!B103 -> Zusammenstellung | G39: =Labels!B77 -> Jan | I39: =Labels!B78 -> Feb | K39: =Labels!B79 -> Mrz | M39: =Labels!B80 -> Apr | O39: =Labels!B81 -> Mai | Q39: =Labels!B82 -> Jun | S39: =Labels!B83 -> Jul | U39: =Labels!B84 -> Aug | W39: =Labels!B85 -> Sep | Y39: =Labels!B86 -> Okt | AA39: =Labels!B87 -> Nov | AC39: =Labels!B88 -> Dez | AE39: =Labels!B101 -> Jahr | AY39: ="Das Vorjahresguthaben beträgt noch "&TEXT(W60,"0.0000")&" Std." -> Das Vorjahresguthaben beträgt noch 0.0000 Std.
A40: =Labels!B20 -> Anstellung % | G40: =IF($B$4=0,0,$B$4) -> 100 | I40: =IF($B$70=0,0,$B$70) -> 100 | K40: =IF($B$133=0,0,$B$133) -> 100 | M40: =IF($B$196=0,0,$B$196) -> 100 | O40: =IF($B$259=0,0,$B$259) -> 100 | Q40: =IF($B$322=0,0,$B$322) -> 100 | S40: =IF($B$385=0,0,$B$385) -> 100 | U40: =IF($B$448=0,0,$B$448) -> 100 | W40: =IF($B$511=0,0,$B$511) -> 100 | Y40: =IF($B$574=0,0,$B$574) -> 100 | AA40: =IF($B$637=0,0,$B$637) -> 100 | AC40: =IF($B$700=0,0,$B$700) -> 100 | AY40: Total
A41: =Labels!B104 -> Sollstunden gemäss GAV | G41: =IF($AG$37=0,0,$AG$37) -> 172.83 | I41: =IF($AG$100=0,0,$AG$100) -> 164.6 | K41: =IF($AG$138=0,0,$AG$138) -> 189.29 | M41: =IF($AG$226=0,0,$AG$226) -> 181.06 | O41: =IF($AG$289=0,0,$AG$289) -> 172.83 | Q41: =IF($AG$352=0,0,$AG$352) -> 181.06 | S41: =IF($AG$415=0,0,$AG$415) -> 181.06 | U41: =IF($AG$478=0,0,$AG$478) -> 181.06 | W41: =IF($AG$541=0,0,$AG$541) -> 181.06 | Y41: =IF($AG$604=0,0,$AG$604) -> 172.83 | AA41: =IF($AG$667=0,0,$AG$667) -> 181.06 | AC41: =IF($AG$730=0,0,$AG$730) -> 189.29 | AE41: =SUM(G41:AD41) -> 2148.03
A42: =Labels!B105 -> Produktive Stunden | B42: =Labels!B106 -> 06.00 - 20.00 Uhr | G42: =IF($AG$32=0,0,$AG$32) -> 0 | I42: =IF($AG$95=0,0,$AG$95) -> 0 | K42: =IF($AG$158=0,0,$AG$158) -> 0 | M42: =IF($AG$221=0,0,$AG$221) -> 0 | O42: =IF($AG$284=0,0,$AG$284) -> 0 | Q42: =IF($AG$347=0,0,$AG$347) -> 0 | S42: =IF($AG$410=0,0,$AG$410) -> 0 | U42: =IF($AG$473=0,0,$AG$473) -> 0 | W42: =IF($AG$536=0,0,$AG$536) -> 0 | Y42: =IF($AG$599=0,0,$AG$599) -> 0 | AA42: =IF($AG$662=0,0,$AG$662) -> 0 | AC42: =IF($AG$725=0,0,$AG$725) -> 0 | AE42: =SUM(G42:AD42) -> 0
B43: =Labels!B107 -> Nacht-, Sonn-, Feiertagsarbeit | G43: =IF($AG$33=0,0,$AG$33) -> 0 | I43: =IF($AG$96=0,0,$AG$96) -> 0 | K43: =IF($AG$159=0,0,$AG$159) -> 0 | M43: =IF($AG$222=0,0,$AG$222) -> 0 | O43: =IF($AG$285=0,0,$AG$285) -> 0 | Q43: =IF($AG$348=0,0,$AG$348) -> 0 | S43: =IF($AG$411=0,0,$AG$411) -> 0 | U43: =IF($AG$474=0,0,$AG$474) -> 0 | W43: =IF($AG$537=0,0,$AG$537) -> 0 | Y43: =IF($AG$600=0,0,$AG$600) -> 0 | AA43: =IF($AG$663=0,0,$AG$663) -> 0 | AC43: =IF($AG$726=0,0,$AG$726) -> 0 | AE43: =SUM(G43:AD43) -> 0
A44: =Labels!B108 -> Zeitzuschläge | B44: =Labels!B109 -> aus Wochentotal | G44: =IF($AG$25=0,0,$AG$25) -> 0 | I44: =IF($AG$88=0,0,$AG$88) -> 0 | K44: =IF($AG$151=0,0,$AG$151) -> 0 | M44: =IF($AG$214=0,0,$AG$214) -> 0 | O44: =IF($AG$277=0,0,$AG$277) -> 0 | Q44: =IF($AG$340=0,0,$AG$340) -> 0 | S44: =IF($AG$403=0,0,$AG$403) -> 0 | U44: =IF($AG$466=0,0,$AG$466) -> 0 | W44: =IF($AG$529=0,0,$AG$529) -> 0 | Y44: =IF($AG$592=0,0,$AG$592) -> 0 | AA44: =IF($AG$655=0,0,$AG$655) -> 0 | AC44: =IF($AG$718=0,0,$AG$718) -> 0 | AE44: =SUM(G44:AD44) -> 0
B45: =Labels!B110 -> aus Nacht-, Sonn-, Feiertagsarbeiten | G45: =IF($AJ$20=0,0,$AJ$20) -> 0 | I45: =IF($AK$20=0,0,$AK$20) -> 0 | K45: =IF($AL$20=0,0,$AL$20) -> 0 | M45: =IF($AM$20=0,0,$AM$20) -> 0 | O45: =IF($AN$20=0,0,$AN$20) -> 0 | Q45: =IF($AO$20=0,0,$AO$20) -> 0 | S45: =IF($AP$20=0,0,$AP$20) -> 0 | U45: =IF($AQ$20=0,0,$AQ$20) -> 0 | W45: =IF($AR$20=0,0,$AR$20) -> 0 | Y45: =IF($AS$20=0,0,$AS$20) -> 0 | AA45: =IF($AT$20=0,0,$AT$20) -> 0 | AC45: =IF($AU$20=0,0,$AU$20) -> 0 | AE45: =SUM(G45:AD45) -> 0
A46: =Labels!B111 -> Unproduktive Stunden
A47: =Labels!B112 -> Absenzen, Kurzabsenzen Art. 11 GAV | F47: =Labels!B113 -> a | G47: =IF($AJ$3=0,0,$AJ$3) -> 0 | I47: =IF($AK$3=0,0,$AK$3) -> 0 | K47: =IF($AL$3=0,0,$AL$3) -> 0 | M47: =IF($AM$3=0,0,$AM$3) -> 0 | O47: =IF($AN$3=0,0,$AN$3) -> 0 | Q47: =IF($AO$3=0,0,$AO$3) -> 0 | S47: =IF($AP$3=0,0,$AP$3) -> 0 | U47: =IF($AQ$3=0,0,$AQ$3) -> 0 | W47: =IF($AR$3=0,0,$AR$3) -> 0 | Y47: =IF($AS$3=0,0,$AS$3) -> 0 | AA47: =IF(AT$3=0,0,$AT$3) -> 0 | AC47: =IF($AU$3=0,0,$AU$3) -> 0 | AE47: =IF($AV$3=0,0,$AV$3) -> 0
A48: =Labels!B114 -> Ferien Art. 12.1 GAV | F48: =Labels!B115 -> f | G48: =IF($AJ$4=0,0,$AJ$4) -> 0 | I48: =IF($AK$4=0,0,$AK$4) -> 0 | K48: =IF($AL$4=0,0,$AL$4) -> 0 | M48: =IF($AM$4=0,0,$AM$4) -> 0 | O48: =IF($AN$4=0,0,$AN$4) -> 0 | Q48: =IF($AO$4=0,0,$AO$4) -> 0 | S48: =IF($AP$4=0,0,$AP$4) -> 0 | U48: =IF($AQ$4=0,0,$AQ$4) -> 0 | W48: =IF($AR$4=0,0,$AR$4) -> 0 | Y48: =IF($AS$4=0,0,$AS$4) -> 0 | AA48: =IF($AT$4=0,0,$AT$4) -> 0 | AC48: =IF($AU$4=0,0,$AU$4) -> 0 | AE48: =IF($AV$4=0,0,$AV$4) -> 0
A49: =Labels!B116 -> Feiertage Art. 12.2 GAV | C49: =IF($AJ$17="","",$AJ$17) ->  | F49: =Labels!B118 -> ft | G49: =IF($AJ$15=0,0,$AJ$15) -> 0 | I49: =IF($AK$15=0,0,$AK$15) -> 0 | K49: =IF($AL$15=0,0,$AL$15) -> 0 | M49: =IF($AM$15=0,0,$AM$15) -> 0 | O49: =IF($AN$15=0,0,$AN$15) -> 0 | Q49: =IF($AO$15=0,0,$AO$15) -> 0 | S49: =IF($AP$15=0,0,$AP$15) -> 0 | U49: =IF($AQ$15=0,0,$AQ$15) -> 0 | W49: =IF($AR$15=0,0,$AR$15) -> 0 | Y49: =IF($AS$15=0,0,$AS$15) -> 0 | AA49: =IF($AT$15=0,0,$AT$15) -> 0 | AC49: =IF($AU$15=0,0,$AU$15) -> 0 | AE49: =IF($AV$15=0,0,$AV$15) -> 0
A50: =Labels!B119 -> Krankheit Art. 13 GAV | F50: =Labels!B120 -> k | G50: =IF($AJ$5=0,0,$AJ$5) -> 0 | I50: =IF($AK$5=0,0,$AK$5) -> 0 | K50: =IF($AL$5=0,0,$AL$5) -> 0 | M50: =IF($AM$5=0,0,$AM$5) -> 0 | O50: =IF($AN$5=0,0,$AN$5) -> 0 | Q50: =IF($AO$5=0,0,$AO$5) -> 0 | S50: =IF($AP$5=0,0,$AP$5) -> 0 | U50: =IF($AQ$5=0,0,$AQ$5) -> 0 | W50: =IF($AR$5=0,0,$AR$5) -> 0 | Y50: =IF($AS$5=0,0,$AS$5) -> 0 | AA50: =IF($AT$5=0,0,$AT$5) -> 0 | AC50: =IF($AU$5=0,0,$AU$5) -> 0 | AE50: =IF($AV$5=0,0,$AV$5) -> 0
A51: =Labels!B121 -> Unfall Art. 14 GAV | F51: =Labels!B122 -> u | G51: =IF($AJ$6=0,0,$AJ$6) -> 0 | I51: =IF($AK$6=0,0,$AK$6) -> 0 | K51: =IF($AL$6=0,0,$AL$6) -> 0 | M51: =IF($AM$6=0,0,$AM$6) -> 0 | O51: =IF($AN$6=0,0,$AN$6) -> 0 | Q51: =IF($AO$6=0,0,$AO$6) -> 0 | S51: =IF($AP$6=0,0,$AP$6) -> 0 | U51: =IF($AQ$6=0,0,$AQ$6) -> 0 | W51: =IF($AR$6=0,0,$AR$6) -> 0 | Y51: =IF($AS$6=0,0,$AS$6) -> 0 | AA51: =IF($AT$6=0,0,$AT$6) -> 0 | AC51: =IF($AU$6=0,0,$AU$6) -> 0 | AE51: =IF($AV$6=0,0,$AV$6) -> 0
A52: =Labels!B123 -> Schwangerschaft/Mutterschaft Art. 15 GAV | F52: =Labels!B124 -> s | G52: =IF($AJ$7=0,0,$AJ$7) -> 0 | I52: =IF($AK$7=0,0,$AK$7) -> 0 | K52: =IF($AL$7=0,0,$AL$7) -> 0 | M52: =IF($AM$7=0,0,$AM$7) -> 0 | O52: =IF($AN$7=0,0,$AN$7) -> 0 | Q52: =IF($AO$7=0,0,$AO$7) -> 0 | S52: =IF($AP$7=0,0,$AP$7) -> 0 | U52: =IF($AQ$7=0,0,$AQ$7) -> 0 | W52: =IF($AR$7=0,0,$AR$7) -> 0 | Y52: =IF($AS$7=0,0,$AS$7) -> 0 | AA52: =IF($AT$7=0,0,$AT$7) -> 0 | AC52: =IF($AU$7=0,0,$AU$7) -> 0 | AE52: =IF($AV$7=0,0,$AV$7) -> 0
A53: =Labels!B125 -> Militär/Beförderung/Zivilschutz Art. 16 GAV | F53: =Labels!B126 -> m | G53: =IF($AJ$8=0,0,$AJ$8) -> 0 | I53: =IF($AK$8=0,0,$AK$8) -> 0 | K53: =IF($AL$8=0,0,$AL$8) -> 0 | M53: =IF($AM$8=0,0,$AM$8) -> 0 | O53: =IF($AN$8=0,0,$AN$8) -> 0 | Q53: =IF($AO$8=0,0,$AO$8) -> 0 | S53: =IF($AP$8=0,0,$AP$8) -> 0 | U53: =IF($AQ$8=0,0,$AQ$8) -> 0 | W53: =IF($AR$8=0,0,$AR$8) -> 0 | Y53: =IF($AS$8=0,0,$AS$8) -> 0 | AA53: =IF($AT$8=0,0,$AT$8) -> 0 | AC53: =IF($AU$8=0,0,$AU$8) -> 0 | AE53: =IF($AV$8=0,0,$AV$8) -> 0
A54: =Labels!B127 -> Kurzarbeit und Schlechtwetterausfälle | F54: =Labels!B128 -> ka | G54: =IF($AJ$11=0,0,$AJ$11) -> 0 | I54: =IF($AK$11=0,0,$AK$11) -> 0 | K54: =IF($AL$11=0,0,$AL$11) -> 0 | M54: =IF($AM$11=0,0,$AM$11) -> 0 | O54: =IF($AN$11=0,0,$AN$11) -> 0 | Q54: =IF($AO$11=0,0,$AO$11) -> 0 | S54: =IF($AP$11=0,0,$AP$11) -> 0 | U54: =IF($AQ$11=0,0,$AQ$11) -> 0 | W54: =IF($AR$11=0,0,$AR$11) -> 0 | Y54: =IF($AS$11=0,0,$AS$11) -> 0 | AA54: =IF($AT$11=0,0,$AT$11) -> 0 | AC54: =IF($AU$11=0,0,$AU$11) -> 0 | AE54: =IF($AV$11=0,0,$AV$11) -> 0
A55: =Labels!B129 -> Berufsschule | F55: =Labels!B130 -> bs | G55: =IF($AJ$9=0,0,$AJ$9) -> 0 | I55: =IF($AK$9=0,0,$AK$9) -> 0 | K55: =IF($AL$9=0,0,$AL$9) -> 0 | M55: =IF($AM$9=0,0,$AM$9) -> 0 | O55: =IF($AN$9=0,0,$AN$9) -> 0 | Q55: =IF($AO$9=0,0,$AO$9) -> 0 | S55: =IF($AP$9=0,0,$AP$9) -> 0 | U55: =IF($AQ$9=0,0,$AQ$9) -> 0 | W55: =IF($AR$9=0,0,$AR$9) -> 0 | Y55: =IF($AS$9=0,0,$AS$9) -> 0 | AA55: =IF($AT$9=0,0,$AT$9) -> 0 | AC55: =IF($AU$9=0,0,$AU$9) -> 0 | AE55: =IF($AV$9=0,0,$AV$9) -> 0
A56: =Labels!B131 -> Kurse | F56: =Labels!B132 -> ku | G56: =IF($AJ$10=0,0,$AJ$10) -> 0 | I56: =IF($AK$10=0,0,$AK$10) -> 0 | K56: =IF($AL$10=0,0,$AL$10) -> 0 | M56: =IF($AM$10=0,0,$AM$10) -> 0 | O56: =IF($AN$10=0,0,$AN$10) -> 0 | Q56: =IF($AO$10=0,0,$AO$10) -> 0 | S56: =IF($AP$10=0,0,$AP$10) -> 0 | U56: =IF($AQ$10=0,0,$AQ$10) -> 0 | W56: =IF($AR$10=0,0,$AR$10) -> 0 | Y56: =IF($AS$10=0,0,$AS$10) -> 0 | AA56: =IF($AT$10=0,0,$AT$10) -> 0 | AC56: =IF($AU$10=0,0,$AU$10) -> 0 | AE56: =IF($AV$10=0,0,$AV$10) -> 0
A57: =Labels!B133 -> Kompensations-Std | B57: =Labels!B134 -> aus Vorjahr | F57: =Labels!B135 -> kv | G57: =IF($AJ$12=0,0,$AJ$12) -> 0 | I57: =IF($AK$12=0,0,$AK$12) -> 0 | K57: =IF($AL$12=0,0,$AL$12) -> 0 | M57: =IF($AM$12=0,0,$AM$12) -> 0 | O57: =IF($AN$12=0,0,$AN$12) -> 0 | Q57: =IF($AO$12=0,0,$AO$12) -> 0 | S57: =IF($AP$12=0,0,$AP$12) -> 0 | U57: =IF($AQ$12=0,0,$AQ$12) -> 0 | W57: =IF($AR$12=0,0,$AR$12) -> 0 | AE57: =IF($AV$12=0,0,$AV$12) -> 0
B58: =Labels!B136 -> aus laufendem Jahr (Kontrolle) | F58: =Labels!B137 -> kj | G58: =IF($AJ$14=0,0,$AJ$14) -> 0 | I58: =IF($AK$14=0,0,$AK$14) -> 0 | K58: =IF($AL$14=0,0,$AL$14) -> 0 | M58: =IF($AM$14=0,0,$AM$14) -> 0 | O58: =IF($AN$14=0,0,$AN$14) -> 0 | Q58: =IF($AO$14=0,0,$AO$14) -> 0 | S58: =IF($AP$14=0,0,$AP$14) -> 0 | U58: =IF($AQ$14=0,0,$AQ$14) -> 0 | W58: =IF($AR$14=0,0,$AR$14) -> 0 | Y58: =IF($AS$14=0,0,$AS$14) -> 0 | AA58: =IF($AT$14=0,0,$AT$14) -> 0 | AC58: =IF($AU$14=0,0,$AU$14) -> 0 | AE58: =IF($AV$14=0,0,$AV$14) -> 0
A59: =Labels!B138 -> Auszahlung | B59: =Labels!B139 -> Stunden Vorjahressaldo | G59: =IF($AJ$18=0,0,$AJ$18) -> 0 | I59: =IF($AK$18=0,0,$AK$18) -> 0 | K59: =IF($AL$18=0,0,$AL$18) -> 0 | M59: =IF($AM$18=0,0,$AM$18) -> 0 | O59: =IF($AN$18=0,0,$AN$18) -> 0 | Q59: =IF($AO$18=0,0,$AO$18) -> 0 | S59: =IF($AP$18=0,0,$AP$18) -> 0 | U59: =IF($AQ$18=0,0,$AQ$18) -> 0 | W59: =IF($AR$18=0,0,$AR$18) -> 0 | AE59: =IF($AV$18=0,0,$AV$18) -> 0
A60: =Labels!B140 -> Differenz | B60: =Labels!B141 -> nach Kompensation und Auszahlung | G60: =IF(ROUND($P$4,3)=0,0,$P$4-G57-G59) -> 0 | I60: =IF(ROUND(G60,3)=0,0,G60-(SUM(I57+I59))) -> 0 | K60: =IF(ROUND(I60,3)=0,0,I60-K59-K57) -> 0 | M60: =IF(ROUND(K60,3)=0,0,K60-(SUM(M59+M57))) -> 0 | O60: =IF(ROUND(M60,3)=0,0,M60-(SUM(O59+O57))) -> 0 | Q60: =IF(ROUND(O60,3)=0,0,O60-(SUM(Q59+Q57))) -> 0 | S60: =IF(ROUND(Q60,3)=0,0,Q60-(SUM(S59+S57))) -> 0 | U60: =IF(ROUND(S60,3)=0,0,S60-(SUM(U59+U57))) -> 0 | W60: =IF(ROUND(U60,3)=0,0,U60-(SUM(W59+W57))) -> 0 | Y60: =IF($W$60<0.1,"",AY39) -> 
A61: =Labels!B138 -> Auszahlung | B61: =Labels!B142 -> Stunden laufendes Jahr | G61: =IF($AJ$19=0,0,$AJ$19) -> 0 | I61: =IF($AK$19=0,0,$AK$19) -> 0 | K61: =IF($AL$19=0,0,$AL$19) -> 0 | M61: =IF($AM$19=0,0,$AM$19) -> 0 | O61: =IF($AN$19=0,0,$AN$19) -> 0 | Q61: =IF($AO$19=0,0,$AO$19) -> 0 | S61: =IF($AP$19=0,0,$AP$19) -> 0 | U61: =IF($AQ$19=0,0,$AQ$19) -> 0 | W61: =IF($AR$19=0,0,$AR$19) -> 0 | Y61: =IF($AS$19=0,0,$AS$19) -> 0 | AA61: =IF($AT$19=0,0,$AT$19) -> 0 | AC61: =IF($AU$19=0,0,$AU$19) -> 0 | AE61: =IF($AV$19=0,0,$AV$19) -> 0
A62: =Labels!B143 -> Fehlstunden | B62: =Labels!B144 -> laufendes Jahr (Kontrolle) | F62: =Labels!B145 -> fe | G62: =IF($AJ$13=0,0,$AJ$13) -> 0 | I62: =IF($AK$13=0,0,$AK$13) -> 0 | K62: =IF($AL$13=0,0,$AL$13) -> 0 | M62: =IF($AM$13=0,0,$AM$13) -> 0 | O62: =IF($AN$13=0,0,$AN$13) -> 0 | Q62: =IF($AO$13=0,0,$AO$13) -> 0 | S62: =IF($AP$13=0,0,$AP$13) -> 0 | U62: =IF($AQ$13=0,0,$AQ$13) -> 0 | W62: =IF($AR$13=0,0,$AR$13) -> 0 | Y62: =IF($AS$13=0,0,$AS$13) -> 0 | AA62: =IF($AT$13=0,0,$AT$13) -> 0 | AC62: =IF($AU$13=0,0,$AU$13) -> 0 | AE62: =IF($AV$13=0,0,$AV$13) -> 0
A63: =Labels!B146 -> Total inkl. Zeitzuschläge | B63: =Labels!B147 -> Stunden produktiv und unproduktiv | G63: =IF($AG$36=0,0,$AG$36) -> 0 | I63: =IF($AG$99=0,0,$AG$99) -> 0 | K63: =IF($AG$162=0,0,$AG$162) -> 0 | M63: =IF($AG$225=0,0,$AG$225) -> 0 | O63: =IF($AG$288=0,0,$AG$288) -> 0 | Q63: =IF($AG$351=0,0,$AG$351) -> 0 | S63: =IF($AG$414=0,0,$AG$414) -> 0 | U63: =IF($AG$477=0,0,$AG$477) -> 0 | W63: =IF($AG$540=0,0,$AG$540) -> 0 | Y63: =IF($AG$603=0,0,$AG$603) -> 0 | AA63: =IF($AG$666=0,0,$AG$666) -> 0 | AC63: =IF($AG$729=0,0,$AG$729) -> 0 | AE63: =SUM($G$63:$AD$63) -> 0
A64: =Labels!B148 -> Vergleich | B64: =Labels!B149 -> Stunden zu Soll-Stunden (inkl. allfälli- ge Minusstunden Vorjahr) | G64: =IF($AG$38=0,0,$AG$38)-$AE$34+$P$5 -> -172.83 | I64: =IF($AG$101=0,0,$AG$101)-$AE$97 -> -164.6 | K64: =IF($AG$164=0,0,$AG$164)-$AE$160 -> -189.29 | M64: =IF($AG$227=0,0,$AG$227)-$AE$223 -> -181.06 | O64: =IF($AG$290=0,0,$AG$290)-$AE$286 -> -172.83 | Q64: =IF($AG$353=0,0,$AG$353)-$AE$349 -> -181.06 | S64: =IF($AG$416=0,0,$AG$416)-$AE$412 -> -181.06 | U64: =IF($AG$479=0,0,$AG$479)-$AE$475 -> -181.06 | W64: =IF($AG$542=0,0,$AG$542)-$AE$538 -> -181.06 | Y64: =IF($AG$605=0,0,$AG$605)-$AE$601 -> -172.83 | AA64: =IF($AG$668=0,0,$AG$668)-$AE$664 -> -181.06 | AC64: =IF($AG$731=0,0,$AG$731)-$AE$727 -> -189.29 | AE64: =SUM($G$64:$AD$64) -> -2148.03
B65: =Labels!B151 -> Stunden zu Soll-Stunden (kumuliert) | G65: =IF(G40=0,0,$G$64) -> -172.83 | I65: =IF(I40=0,0,SUM($G$64:$J$64)) -> -337.43 | K65: =IF(K40=0,0,SUM($G$64:$L$64)) -> -526.72 | M65: =IF(M40=0,0,SUM($G$64:$N$64)) -> -707.78 | O65: =IF(O40=0,0,SUM($G$64:$P$64)) -> -880.61 | Q65: =IF(Q40=0,0,SUM($G$64:$R$64)) -> -1061.67 | S65: =IF(S40=0,0,SUM($G$64:$T$64)) -> -1242.73 | U65: =IF(U40=0,0,SUM($G$64:$V$64)) -> -1423.79 | W65: =IF(W40=0,0,SUM($G$64:$X$64)) -> -1604.85 | Y65: =IF(Y40=0,0,SUM($G$64:$Z$64)) -> -1777.68 | AA65: =IF(AA40=0,0,SUM($G$64:$AB$64)) -> -1958.74 | AC65: =IF(AC40=0,0,SUM($G$64:$AD$64)) -> -2148.03
A66: =Labels!B153 -> Ferienkontrolle | B66: =Labels!B154 -> Ferienguthaben Vorjahr | G66: =IF($AA$4=0,0,$AA$4) -> 0 | I66: =Labels!B155 -> Ferienguthaben nach Art. 12.1 GAV | M66: =IF($AA$5=0,0,$AA$5) -> 0 | O66: =Labels!B156 -> Ferienguthaben total | S66: =SUM(G66+M66) -> 0 | U66: =Labels!B157 -> Ferien bezogen | Y66: =IF($AV$4=0,0,$AV$4) -> 0 | AA66: =Labels!B158 -> Aktuelles Ferienguthaben | AE66: =IF(S66=0,0,S66-Y66) -> 0
A69: =$A$3 -> Mitarbeiter/In | B69: =IF($B$3="","",$B$3) -> Muster Peter | AF69: =AF3 -> 0
A70: =$A$4 -> Anstellung % | B70: 100 | D70: =Labels!B90 -> im Februar
A71: =$A$5 -> Saldo für das Jahr | D71: =IF($AE$64=0,0,$AE$64) -> -2148.03
A72: =TEXT(DATE(YEAR(AP28),MONTH(AP28)+1,1),"MMMM"&Labels!B13) -> Februar | B72: =$B$9 -> Saldo Monat + / - | F72: =(AG75-(SUM(AG76:AG90)-AE97))*-1 -> -164.6 | K72: =$K$9 -> = | L72: =$L$9 -> Gelbe Felder müssen ausgefüllt werden (die übrigen werden automatisch berechnet)
A73: =$A$10 -> Tag | B73: =AF10+1 -> 2021-02-01 | C73: =B73+1 -> 2021-02-02 | D73: 2021-02-03 | E73: 2021-02-04 | F73: 2021-02-05 | G73: 2021-02-06 | H73: 2021-02-07 | I73: 2021-02-08 | J73: 2021-02-09 | K73: 2021-02-10 | L73: 2021-02-11 | M73: 2021-02-12 | N73: 2021-02-13 | O73: 2021-02-14 | P73: 2021-02-15 | Q73: 2021-02-16 | R73: 2021-02-17 | S73: 2021-02-18 | T73: 2021-02-19 | U73: 2021-02-20 | V73: 2021-02-21 | W73: 2021-02-22 | X73: 2021-02-23 | Y73: 2021-02-24 | Z73: 2021-02-25 | AA73: 2021-02-26 | AB73: 2021-02-27 | AC73: 2021-02-28 | AD73: =IF(MOD($AE$95,4)=0,$AC$73+1,"") ->  | AG73: =COUNT(B75:AF75)&" "&Labels!$B$63 -> 20 Tage
A74: =$A$11 -> Kalenderwoche | B74: =IF(B73="","",TRUNC((B73-DATE(YEAR(B73+3-MOD(B73-2,7)),1,MOD(B73-2,7)-9))/7)) -> 5 | C74: 5 | D74: 5 | E74: 5 | F74: 5 | G74: 5 | H74: 5 | I74: 6 | J74: 6 | K74: 6 | L74: 6 | M74: 6 | N74: 6 | O74: 6 | P74: 7 | Q74: 7 | R74: 7 | S74: 7 | T74: 7 | U74: 7 | V74: 7 | W74: 8 | X74: 8 | Y74: 8 | Z74: 8 | AA74: 8 | AB74: 8 | AC74: 8
A75: =$A$12 -> Sollstunden | B75: =IF(MOD(B73,7)>=2,$J$7*$B$70%,"") -> 8.23 | C75: 8.23 | D75: 8.23 | E75: 8.23 | F75: 8.23 | I75: 8.23 | J75: 8.23 | K75: 8.23 | L75: 8.23 | M75: 8.23 | P75: 8.23 | Q75: 8.23 | R75: 8.23 | S75: 8.23 | T75: 8.23 | W75: 8.23 | X75: 8.23 | Y75: 8.23 | Z75: 8.23 | AA75: 8.23 | AD75: =IF(AD73<>"",IF(MOD(AD73,7)>=2,$J$7*$B$70%,""),"") ->  | AG75: =IF($AD$73="",SUM(B75:AC75),SUM(B75:AF75)) -> 164.6
A76: =$A$13 -> Absenz in Std | B76: =B842 -> 0 | C76: =C842 -> 0 | D76: 0 | E76: 0 | F76: 0 | G76: 0 | H76: 0 | I76: 0 | J76: 0 | K76: 0 | L76: 0 | M76: 0 | N76: 0 | O76: 0 | P76: 0 | Q76: 0 | R76: 0 | S76: 0 | T76: 0 | U76: 0 | V76: 0 | W76: 0 | X76: 0 | Y76: 0 | Z76: 0 | AA76: 0 | AB76: 0 | AC76: 0 | AD76: =IF(AD73<>"",AD842,"") ->  | AG76: =SUM(AK3:AK12) -> 0
A77: =$A$14 -> Code | B77: =IF(B842<>0,IF(MAX(B829:B841)<B842,Labels!$B$163,INDEX($AH$829:$AH$841,MATCH(MAX(B829:B841),B829:B841,0))),"") ->  | C77: =IF(C842<>0,IF(MAX(C829:C841)<C842,Labels!$B$163,INDEX($AH$829:$AH$841,MATCH(MAX(C829:C841),C829:C841,0))),"") ->  | D77: =IF(D842<>0,IF(MAX(D829:D841)<D842,Labels!$B$163,INDEX($AH$829:$AH$841,MATCH(MAX(D829:D841),D829:D841,0))),"") ->  | E77: =IF(E842<>0,IF(MAX(E829:E841)<E842,Labels!$B$163,INDEX($AH$829:$AH$841,MATCH(MAX(E829:E841),E829:E841,0))),"") ->  | F77: =IF(F842<>0,IF(MAX(F829:F841)<F842,Labels!$B$163,INDEX($AH$829:$AH$841,MATCH(MAX(F829:F841),F829:F841,0))),"") ->  | G77: =IF(G842<>0,IF(MAX(G829:G841)<G842,Labels!$B$163,INDEX($AH$829:$AH$841,MATCH(MAX(G829:G841),G829:G841,0))),"") ->  | H77: =IF(H842<>0,IF(MAX(H829:H841)<H842,Labels!$B$163,INDEX($AH$829:$AH$841,MATCH(MAX(H829:H841),H829:H841,0))),"") ->  | I77: =IF(I842<>0,IF(MAX(I829:I841)<I842,Labels!$B$163,INDEX($AH$829:$AH$841,MATCH(MAX(I829:I841),I829:I841,0))),"") ->  | J77: =IF(J842<>0,IF(MAX(J829:J841)<J842,Labels!$B$163,INDEX($AH$829:$AH$841,MATCH(MAX(J829:J841),J829:J841,0))),"") ->  | K77: =IF(K842<>0,IF(MAX(K829:K841)<K842,Labels!$B$163,INDEX($AH$829:$AH$841,MATCH(MAX(K829:K841),K829:K841,0))),"") ->  | L77: =IF(L842<>0,IF(MAX(L829:L841)<L842,Labels!$B$163,INDEX($AH$829:$AH$841,MATCH(MAX(L829:L841),L829:L841,0))),"") ->  | M77: =IF(M842<>0,IF(MAX(M829:M841)<M842,Labels!$B$163,INDEX($AH$829:$AH$841,MATCH(MAX(M829:M841),M829:M841,0))),"") ->  | N77: =IF(N842<>0,IF(MAX(N829:N841)<N842,Labels!$B$163,INDEX($AH$829:$AH$841,MATCH(MAX(N829:N841),N829:N841,0))),"") ->  | O77: =IF(O842<>0,IF(MAX(O829:O841)<O842,Labels!$B$163,INDEX($AH$829:$AH$841,MATCH(MAX(O829:O841),O829:O841,0))),"") ->  | P77: =IF(P842<>0,IF(MAX(P829:P841)<P842,Labels!$B$163,INDEX($AH$829:$AH$841,MATCH(MAX(P829:P841),P829:P841,0))),"") ->  | Q77: =IF(Q842<>0,IF(MAX(Q829:Q841)<Q842,Labels!$B$163,INDEX($AH$829:$AH$841,MATCH(MAX(Q829:Q841),Q829:Q841,0))),"") ->  | R77: =IF(R842<>0,IF(MAX(R829:R841)<R842,Labels!$B$163,INDEX($AH$829:$AH$841,MATCH(MAX(R829:R841),R829:R841,0))),"") ->  | S77: =IF(S842<>0,IF(MAX(S829:S841)<S842,Labels!$B$163,INDEX($AH$829:$AH$841,MATCH(MAX(S829:S841),S829:S841,0))),"") ->  | T77: =IF(T842<>0,IF(MAX(T829:T841)<T842,Labels!$B$163,INDEX($AH$829:$AH$841,MATCH(MAX(T829:T841),T829:T841,0))),"") ->  | U77: =IF(U842<>0,IF(MAX(U829:U841)<U842,Labels!$B$163,INDEX($AH$829:$AH$841,MATCH(MAX(U829:U841),U829:U841,0))),"") ->  | V77: =IF(V842<>0,IF(MAX(V829:V841)<V842,Labels!$B$163,INDEX($AH$829:$AH$841,MATCH(MAX(V829:V841),V829:V841,0))),"") ->  | W77: =IF(W842<>0,IF(MAX(W829:W841)<W842,Labels!$B$163,INDEX($AH$829:$AH$841,MATCH(MAX(W829:W841),W829:W841,0))),"") ->  | X77: =IF(X842<>0,IF(MAX(X829:X841)<X842,Labels!$B$163,INDEX($AH$829:$AH$841,MATCH(MAX(X829:X841),X829:X841,0))),"") ->  | Y77: =IF(Y842<>0,IF(MAX(Y829:Y841)<Y842,Labels!$B$163,INDEX($AH$829:$AH$841,MATCH(MAX(Y829:Y841),Y829:Y841,0))),"") ->  | Z77: =IF(Z842<>0,IF(MAX(Z829:Z841)<Z842,Labels!$B$163,INDEX($AH$829:$AH$841,MATCH(MAX(Z829:Z841),Z829:Z841,0))),"") ->  | AA77: =IF(AA842<>0,IF(MAX(AA829:AA841)<AA842,Labels!$B$163,INDEX($AH$829:$AH$841,MATCH(MAX(AA829:AA841),AA829:AA841,0))),"") ->  | AB77: =IF(AB842<>0,IF(MAX(AB829:AB841)<AB842,Labels!$B$163,INDEX($AH$829:$AH$841,MATCH(MAX(AB829:AB841),AB829:AB841,0))),"") ->  | AC77: =IF(AC842<>0,IF(MAX(AC829:AC841)<AC842,Labels!$B$163,INDEX($AH$829:$AH$841,MATCH(MAX(AC829:AC841),AC829:AC841,0))),"") ->  | AD77: =IF(AD842<>0,IF(MAX(AD829:AD841)<AD842,Labels!$B$163,INDEX($AH$829:$AH$841,MATCH(MAX(AD829:AD841),AD829:AD841,0))),"") -> div
A78: =$A$15 -> 00.00-06.00h | AG78: =IF($AD$73="",SUM(B78:AC78),SUM(B78:AF78)) -> 0
A79: =$A$16 -> 06.00-20.00h | AG79: =IF($AD$73="",SUM(B79:AC79),SUM(B79:AF79)) -> 0
A80: =$A$17 -> 20.00-24.00h | AG80: =IF($AD$73="",SUM(B80:AC80),SUM(B80:AF80)) -> 0 | AH80: [0]
A81: =$A$18 -> Feiertag "ft" | B81: =IF(WEEKDAY(B73,2)<=6,IF(KALENDER!E5="x",Labels!$B$118,""),"") ->  | C81: =IF(WEEKDAY(C73,2)<=6,IF(KALENDER!F5="x",Labels!$B$118,""),"") ->  | D81: =IF(WEEKDAY(D73,2)<=6,IF(KALENDER!G5="x",Labels!$B$118,""),"") ->  | E81: =IF(WEEKDAY(E73,2)<=6,IF(KALENDER!H5="x",Labels!$B$118,""),"") ->  | F81: =IF(WEEKDAY(F73,2)<=6,IF(KALENDER!I5="x",Labels!$B$118,""),"") ->  | G81: =IF(WEEKDAY(G73,2)<=6,IF(KALENDER!J5="x",Labels!$B$118,""),"") ->  | H81: =IF(WEEKDAY(H73,2)<=6,IF(KALENDER!K5="x",Labels!$B$118,""),"") ->  | I81: =IF(WEEKDAY(I73,2)<=6,IF(KALENDER!L5="x",Labels!$B$118,""),"") ->  | J81: =IF(WEEKDAY(J73,2)<=6,IF(KALENDER!M5="x",Labels!$B$118,""),"") ->  | K81: =IF(WEEKDAY(K73,2)<=6,IF(KALENDER!N5="x",Labels!$B$118,""),"") ->  | L81: =IF(WEEKDAY(L73,2)<=6,IF(KALENDER!O5="x",Labels!$B$118,""),"") ->  | M81: =IF(WEEKDAY(M73,2)<=6,IF(KALENDER!P5="x",Labels!$B$118,""),"") ->  | N81: =IF(WEEKDAY(N73,2)<=6,IF(KALENDER!Q5="x",Labels!$B$118,""),"") ->  | O81: =IF(WEEKDAY(O73,2)<=6,IF(KALENDER!R5="x",Labels!$B$118,""),"") ->  | P81: =IF(WEEKDAY(P73,2)<=6,IF(KALENDER!S5="x",Labels!$B$118,""),"") ->  | Q81: =IF(WEEKDAY(Q73,2)<=6,IF(KALENDER!T5="x",Labels!$B$118,""),"") ->  | R81: =IF(WEEKDAY(R73,2)<=6,IF(KALENDER!U5="x",Labels!$B$118,""),"") ->  | S81: =IF(WEEKDAY(S73,2)<=6,IF(KALENDER!V5="x",Labels!$B$118,""),"") ->  | T81: =IF(WEEKDAY(T73,2)<=6,IF(KALENDER!W5="x",Labels!$B$118,""),"") ->  | U81: =IF(WEEKDAY(U73,2)<=6,IF(KALENDER!X5="x",Labels!$B$118,""),"") ->  | V81: =IF(WEEKDAY(V73,2)<=6,IF(KALENDER!Y5="x",Labels!$B$118,""),"") ->  | W81: =IF(WEEKDAY(W73,2)<=6,IF(KALENDER!Z5="x",Labels!$B$118,""),"") ->  | X81: =IF(WEEKDAY(X73,2)<=6,IF(KALENDER!AA5="x",Labels!$B$118,""),"") ->  | Y81: =IF(WEEKDAY(Y73,2)<=6,IF(KALENDER!AB5="x",Labels!$B$118,""),"") ->  | Z81: =IF(WEEKDAY(Z73,2)<=6,IF(KALENDER!AC5="x",Labels!$B$118,""),"") ->  | AA81: =IF(WEEKDAY(AA73,2)<=6,IF(KALENDER!AD5="x",Labels!$B$118,""),"") ->  | AB81: =IF(WEEKDAY(AB73,2)<=6,IF(KALENDER!AE5="x",Labels!$B$118,""),"") ->  | AC81: =IF(WEEKDAY(AC73,2)<=6,IF(KALENDER!AF5="x",Labels!$B$118,""),"") ->  | AD81: =IF(WEEKDAY(AD73,2)<=6,IF(KALENDER!AG5="x",Labels!$B$118,""),"") ->  | AE81: =IF(WEEKDAY(AE73,2)<=6,IF(KALENDER!AH5="x",Labels!$B$118,""),"") ->  | AF81: =IF(WEEKDAY(AF73,2)<=6,IF(KALENDER!AI5="x",Labels!$B$118,""),"") -> 
A82: =$A$19 -> Gutschrift "ft" | B82: =IF(AND(B81=Labels!$B$118,WEEKDAY(B73,2)<6),$J$7*$B$70%,"") ->  | C82: =IF(AND(C81=Labels!$B$118,WEEKDAY(C73,2)<6),$J$7*$B$70%,"") ->  | D82: =IF(AND(D81=Labels!$B$118,WEEKDAY(D73,2)<6),$J$7*$B$70%,"") ->  | E82: =IF(AND(E81=Labels!$B$118,WEEKDAY(E73,2)<6),$J$7*$B$70%,"") ->  | F82: =IF(AND(F81=Labels!$B$118,WEEKDAY(F73,2)<6),$J$7*$B$70%,"") ->  | G82: =IF(AND(G81=Labels!$B$118,WEEKDAY(G73,2)<6),$J$7*$B$70%,"") ->  | H82: =IF(AND(H81=Labels!$B$118,WEEKDAY(H73,2)<6),$J$7*$B$70%,"") ->  | I82: =IF(AND(I81=Labels!$B$118,WEEKDAY(I73,2)<6),$J$7*$B$70%,"") ->  | J82: =IF(AND(J81=Labels!$B$118,WEEKDAY(J73,2)<6),$J$7*$B$70%,"") ->  | K82: =IF(AND(K81=Labels!$B$118,WEEKDAY(K73,2)<6),$J$7*$B$70%,"") ->  | L82: =IF(AND(L81=Labels!$B$118,WEEKDAY(L73,2)<6),$J$7*$B$70%,"") ->  | M82: =IF(AND(M81=Labels!$B$118,WEEKDAY(M73,2)<6),$J$7*$B$70%,"") ->  | N82: =IF(AND(N81=Labels!$B$118,WEEKDAY(N73,2)<6),$J$7*$B$70%,"") ->  | O82: =IF(AND(O81=Labels!$B$118,WEEKDAY(O73,2)<6),$J$7*$B$70%,"") ->  | P82: =IF(AND(P81=Labels!$B$118,WEEKDAY(P73,2)<6),$J$7*$B$70%,"") ->  | Q82: =IF(AND(Q81=Labels!$B$118,WEEKDAY(Q73,2)<6),$J$7*$B$70%,"") ->  | R82: =IF(AND(R81=Labels!$B$118,WEEKDAY(R73,2)<6),$J$7*$B$70%,"") ->  | S82: =IF(AND(S81=Labels!$B$118,WEEKDAY(S73,2)<6),$J$7*$B$70%,"") ->  | T82: =IF(AND(T81=Labels!$B$118,WEEKDAY(T73,2)<6),$J$7*$B$70%,"") ->  | U82: =IF(AND(U81=Labels!$B$118,WEEKDAY(U73,2)<6),$J$7*$B$70%,"") ->  | V82: =IF(AND(V81=Labels!$B$118,WEEKDAY(V73,2)<6),$J$7*$B$70%,"") ->  | W82: =IF(AND(W81=Labels!$B$118,WEEKDAY(W73,2)<6),$J$7*$B$70%,"") ->  | X82: =IF(AND(X81=Labels!$B$118,WEEKDAY(X73,2)<6),$J$7*$B$70%,"") ->  | Y82: =IF(AND(Y81=Labels!$B$118,WEEKDAY(Y73,2)<6),$J$7*$B$70%,"") ->  | Z82: =IF(AND(Z81=Labels!$B$118,WEEKDAY(Z73,2)<6),$J$7*$B$70%,"") ->  | AA82: =IF(AND(AA81=Labels!$B$118,WEEKDAY(AA73,2)<6),$J$7*$B$70%,"") ->  | AB82: =IF(AND(AB81=Labels!$B$118,WEEKDAY(AB73,2)<6),$J$7*$B$70%,"") ->  | AC82: =IF(AND(AC81=Labels!$B$118,WEEKDAY(AC73,2)<6),$J$7*$B$70%,"") ->  | AD82: =IF(AND(AD81=Labels!$B$118,WEEKDAY(AD73,2)<6),$J$7*$B$70%,"") ->  | AE82: =IF(AND(AE81=Labels!$B$118,WEEKDAY(AE73,2)<6),$J$7*$B$70%,"") ->  | AF82: =IF(AND(AF81=Labels!$B$118,WEEKDAY(AF73,2)<6),$J$7*$B$70%,"") ->  | AG82: 0
A83: =$A$20 -> Tagestotal | B83: =SUM(B78:B80) -> 0 | C83: =SUM(C78:C80) -> 0 | D83: 0 | E83: 0 | F83: 0 | G83: 0 | H83: 0 | I83: 0 | J83: 0 | K83: 0 | L83: 0 | M83: 0 | N83: 0 | O83: 0 | P83: 0 | Q83: 0 | R83: 0 | S83: 0 | T83: 0 | U83: 0 | V83: 0 | W83: 0 | X83: 0 | Y83: 0 | Z83: 0 | AA83: 0 | AB83: 0 | AC83: 0 | AD83: =IF(AD73="","",SUM(AD78:AD80)) -> 
A84: =$A$21 -> .
A85: =$A$22 -> .
A86: =$A$23 -> Monatsübergang | B86: =IF(WEEKDAY(B73)=1,TEXT(B73-1,"MMM"&Labels!B13),"") ->  | AC86: =IF(AND(WEEKDAY(AC73)>1,WEEKDAY(AC73)<7,AD73=""),TEXT(DATE($B$5,MONTH(AC73)+1,1),"MMM"&Labels!B13),"") ->  | AD86: =IF(ISERROR(WEEKDAY(AD73)),"",IF(AND(WEEKDAY(AD73)>1,WEEKDAY(AD73)<7),TEXT(DATE($B$5,MONTH(AD73)+1,1),"MMM"&Labels!B13),"")) -> 
A87: =$A$24 -> Wochentotal | B87: =IF(WEEKDAY(B73)=7,SUMIF($B11:$AF11,B74,$B20:$AF20)+SUMIF($B74:$AF74,B74,$B83:$AF83)+SUMIF($B137:$AF137,B74,$B146:$AF146),B86) ->  | C87: =IF(WEEKDAY(C73)=7,SUMIF($B11:$AF11,C74,$B20:$AF20)+SUMIF($B74:$AF74,C74,$B83:$AF83)+SUMIF($B137:$AF137,C74,$B146:$AF146),"") ->  | G87: 0 | N87: 0 | U87: 0 | AB87: 0 | AC87: =IF(WEEKDAY(AC73)=7,SUMIF($B11:$AF11,AC74,$B20:$AF20)+SUMIF($B74:$AF74,AC74,$B83:$AF83)+SUMIF($B137:$AF137,AC74,$B146:$AF146),AC86) ->  | AD87: =IF(ISERROR(WEEKDAY(AD73)=7),"",IF(WEEKDAY(AD73)=7,SUMIF($B11:$AF11,AD74,$B20:$AF20)+SUMIF($B74:$AF74,AD74,$B83:$AF83)+SUMIF($B137:$AF137,AD74,$B146:$AF146),AD86)) -> 
A88: =$A$25 -> Zeitzuschlag 1) | B88: =IF(B95="FALSCH","",B95) ->  | C88: =IF(C95="FALSCH","",C95) ->  | AG88: 0
A89: =$A$26 -> Zeitzuschlag 2) | B89: =IF((B78+B80)=0,"",SUM(B78,B80)) ->  | C89: =IF((C78+C80)=0,"",SUM(C78,C80)) ->  | AG89: 0 | AH89: [1]
A90: =$A$27 -> Zeitzuschlag 3) | B90: =SUM(B91:B94) -> 0 | C90: =SUM(C91:C94) -> 0 | D90: 0 | E90: 0 | F90: 0 | G90: 0 | H90: 0 | I90: 0 | J90: 0 | K90: 0 | L90: 0 | M90: 0 | N90: 0 | O90: 0 | P90: 0 | Q90: 0 | R90: 0 | S90: 0 | T90: 0 | U90: 0 | V90: 0 | W90: 0 | X90: 0 | Y90: 0 | Z90: 0 | AA90: 0 | AB90: 0 | AC90: 0 | AD90: =IF(ISERROR(WEEKDAY(AD73)=1),"",SUM(AD91:AD94)) ->  | AG90: 0 | AH90: [2]
A91: =$A$28 -> Sonntag Tag | B91: =IF(WEEKDAY(B73)=1,B79,"") ->  | C91: =IF(WEEKDAY(C73)=1,C79,"") ->  | H91: 0 | O91: 0 | V91: 0 | AC91: 0 | AD91: =IF(ISERROR(WEEKDAY(AD73)=1),"",IF(WEEKDAY(AD73)=1,AD79,"")) ->  | AG91: 0 | AH91: [3]
A92: =$A$29 -> Sonntag Nacht | B92: =IF(WEEKDAY(B73)=1,SUM(B78+B80),"") ->  | C92: =IF(WEEKDAY(C73)=1,SUM(C78+C80),"") ->  | H92: 0 | O92: 0 | V92: 0 | AC92: 0 | AD92: =IF(ISERROR(WEEKDAY(AD73)=1),"",IF(WEEKDAY(AD73)=1,SUM(AD78+AD80),"")) ->  | AG92: 0 | AH92: [4]
A93: =$A$30 -> ft-Tazuschlag | B93: =IF(B81=Labels!$B$118,B79,"") ->  | C93: =IF(C81=Labels!$B$118,C79,"") ->  | D93: =IF(D81=Labels!$B$118,D79,"") ->  | E93: =IF(E81=Labels!$B$118,E79,"") ->  | F93: =IF(F81=Labels!$B$118,F79,"") ->  | G93: =IF(G81=Labels!$B$118,G79,"") ->  | H93: =IF(H81=Labels!$B$118,H79,"") ->  | I93: =IF(I81=Labels!$B$118,I79,"") ->  | J93: =IF(J81=Labels!$B$118,J79,"") ->  | K93: =IF(K81=Labels!$B$118,K79,"") ->  | L93: =IF(L81=Labels!$B$118,L79,"") ->  | M93: =IF(M81=Labels!$B$118,M79,"") ->  | N93: =IF(N81=Labels!$B$118,N79,"") ->  | O93: =IF(O81=Labels!$B$118,O79,"") ->  | P93: =IF(P81=Labels!$B$118,P79,"") ->  | Q93: =IF(Q81=Labels!$B$118,Q79,"") ->  | R93: =IF(R81=Labels!$B$118,R79,"") ->  | S93: =IF(S81=Labels!$B$118,S79,"") ->  | T93: =IF(T81=Labels!$B$118,T79,"") ->  | U93: =IF(U81=Labels!$B$118,U79,"") ->  | V93: =IF(V81=Labels!$B$118,V79,"") ->  | W93: =IF(W81=Labels!$B$118,W79,"") ->  | X93: =IF(X81=Labels!$B$118,X79,"") ->  | Y93: =IF(Y81=Labels!$B$118,Y79,"") ->  | Z93: =IF(Z81=Labels!$B$118,Z79,"") ->  | AA93: =IF(AA81=Labels!$B$118,AA79,"") ->  | AB93: =IF(AB81=Labels!$B$118,AB79,"") ->  | AC93: =IF(AC81=Labels!$B$118,AC79,"") ->  | AD93: =IF(AD81=Labels!$B$118,AD79,"") ->  | AG93: 0 | AH93: [5]
A94: =$A$31 -> ft-Nazuschlag | B94: =IF(B81=Labels!$B$118,SUM(B78,B80),"") ->  | C94: =IF(C81=Labels!$B$118,SUM(C78,C80),"") ->  | D94: =IF(D81=Labels!$B$118,SUM(D78,D80),"") ->  | E94: =IF(E81=Labels!$B$118,SUM(E78,E80),"") ->  | F94: =IF(F81=Labels!$B$118,SUM(F78,F80),"") ->  | G94: =IF(G81=Labels!$B$118,SUM(G78,G80),"") ->  | H94: =IF(H81=Labels!$B$118,SUM(H78,H80),"") ->  | I94: =IF(I81=Labels!$B$118,SUM(I78,I80),"") ->  | J94: =IF(J81=Labels!$B$118,SUM(J78,J80),"") ->  | K94: =IF(K81=Labels!$B$118,SUM(K78,K80),"") ->  | L94: =IF(L81=Labels!$B$118,SUM(L78,L80),"") ->  | M94: =IF(M81=Labels!$B$118,SUM(M78,M80),"") ->  | N94: =IF(N81=Labels!$B$118,SUM(N78,N80),"") ->  | O94: =IF(O81=Labels!$B$118,SUM(O78,O80),"") ->  | P94: =IF(P81=Labels!$B$118,SUM(P78,P80),"") ->  | Q94: =IF(Q81=Labels!$B$118,SUM(Q78,Q80),"") ->  | R94: =IF(R81=Labels!$B$118,SUM(R78,R80),"") ->  | S94: =IF(S81=Labels!$B$118,SUM(S78,S80),"") ->  | T94: =IF(T81=Labels!$B$118,SUM(T78,T80),"") ->  | U94: =IF(U81=Labels!$B$118,SUM(U78,U80),"") ->  | V94: =IF(V81=Labels!$B$118,SUM(V78,V80),"") ->  | W94: =IF(W81=Labels!$B$118,SUM(W78,W80),"") ->  | X94: =IF(X81=Labels!$B$118,SUM(X78,X80),"") ->  | Y94: =IF(Y81=Labels!$B$118,SUM(Y78,Y80),"") ->  | Z94: =IF(Z81=Labels!$B$118,SUM(Z78,Z80),"") ->  | AA94: =IF(AA81=Labels!$B$118,SUM(AA78,AA80),"") ->  | AB94: =IF(AB81=Labels!$B$118,SUM(AB78,AB80),"") ->  | AC94: =IF(AC81=Labels!$B$118,SUM(AC78,AC80),"") ->  | AD94: =IF(AD81=Labels!$B$118,SUM(AD78,AD80),"") ->  | AG94: 0 | AH94: [6]
A95: =$A$32 -> Zuschlag blind (Wochentotal) | B95: =IF(OR(ISTEXT(B87),B87="",B87<$B$7),"",ROUND(((B87-$B$7)*25%)/25,4)*25) ->  | C95: =IF(OR(ISTEXT(C87),C87="",C87<$B$7),"",ROUND(((C87-$B$7)*25%)/25,4)*25) ->  | AE95: =YEAR(AC73) -> 2021 | AG95: =AG79 -> 0 | AH95: [7]
B96: =$B$33 -> 1) 25% Zeitzuschlag für Überschreitung Wochentotal | L96: =$L$33 -> 2) 100% Zeitzuschlag für Nachtarbeit | T96: =$T$33 -> Eingabe der ausbezahlten Stunden Vorjahressaldo | AG96: =SUM(AG78+AG80) -> 0 | AH96: [8]
B97: =$B$34 -> 3) 100% Zeitzuschlag für Sonn- und Feiertagsarbeit | T97: =$T$34 -> Eingabe der ausbezahlten Stunden laufendes Jahr (Überstunden) | AG97: =SUM(AG78:AG80) -> 0 | AH97: [9]
A98: =$A$35 -> Bemerkungen | AG98: =SUM(AG76+AG82) -> 0 | AH98: [10]
AG99: =SUM(AG76:AG90) -> 0 | AH99: [11]
AG100: =AG75 -> 164.6
AG101: =SUM(AG99-AG75) -> -164.6
A102: =$A$39 -> Zusammenstellung | G102: =$G$39 -> Jan | I102: =$I$39 -> Feb | K102: =$K$39 -> Mrz | M102: =$M$39 -> Apr | O102: =$O$39 -> Mai | Q102: =$Q$39 -> Jun | S102: =$S$39 -> Jul | U102: =$U$39 -> Aug | W102: =$W$39 -> Sep | Y102: =$Y$39 -> Okt | AA102: =$AA$39 -> Nov | AC102: =$AC$39 -> Dez | AE102: =$AE$39 -> Jahr
A103: =$A$40 -> Anstellung % | G103: =IF($B$4=0,0,$B$4) -> 100 | I103: =IF($B$70=0,0,$B$70) -> 100 | K103: =IF($B$133=0,0,$B$133) -> 100 | M103: =IF($B$196=0,0,$B$196) -> 100 | O103: =IF($B$259=0,0,$B$259) -> 100 | Q103: =IF($B$322=0,0,$B$322) -> 100 | S103: =IF($B$385=0,0,$B$385) -> 100 | U103: =IF($B$448=0,0,$B$448) -> 100 | W103: =IF($B$511=0,0,$B$511) -> 100 | Y103: =IF($B$574=0,0,$B$574) -> 100 | AA103: =IF($B$637=0,0,$B$637) -> 100 | AC103: =IF($B$700=0,0,$B$700) -> 100
A104: =$A$41 -> Sollstunden gemäss GAV | G104: =IF($AG$37=0,0,$AG$37) -> 172.83 | I104: =IF($AG$100=0,0,$AG$100) -> 164.6 | K104: =IF($AG$138=0,0,$AG$138) -> 189.29 | M104: =IF($AG$226=0,0,$AG$226) -> 181.06 | O104: =IF($AG$289=0,0,$AG$289) -> 172.83 | Q104: =IF($AG$352=0,0,$AG$352) -> 181.06 | S104: =IF($AG$415=0,0,$AG$415) -> 181.06 | U104: =IF($AG$478=0,0,$AG$478) -> 181.06 | W104: =IF($AG$541=0,0,$AG$541) -> 181.06 | Y104: =IF($AG$604=0,0,$AG$604) -> 172.83 | AA104: =IF($AG$667=0,0,$AG$667) -> 181.06 | AC104: =IF($AG$730=0,0,$AG$730) -> 189.29 | AE104: =SUM(G104:AD104) -> 2148.03
A105: =$A$42 -> Produktive Stunden | B105: =$B$42 -> 06.00 - 20.00 Uhr | G105: =IF($AG$32=0,0,$AG$32) -> 0 | I105: =IF($AG$95=0,0,$AG$95) -> 0 | K105: =IF($AG$158=0,0,$AG$158) -> 0 | M105: =IF($AG$221=0,0,$AG$221) -> 0 | O105: =IF($AG$284=0,0,$AG$284) -> 0 | Q105: =IF($AG$347=0,0,$AG$347) -> 0 | S105: =IF($AG$410=0,0,$AG$410) -> 0 | U105: =IF($AG$473=0,0,$AG$473) -> 0 | W105: =IF($AG$536=0,0,$AG$536) -> 0 | Y105: =IF($AG$599=0,0,$AG$599) -> 0 | AA105: =IF($AG$662=0,0,$AG$662) -> 0 | AC105: =IF($AG$725=0,0,$AG$725) -> 0 | AE105: =SUM(G105:AD105) -> 0
B106: =$B$43 -> Nacht-, Sonn-, Feiertagsarbeit | G106: =IF($AG$33=0,0,$AG$33) -> 0 | I106: =IF($AG$96=0,0,$AG$96) -> 0 | K106: =IF($AG$159=0,0,$AG$159) -> 0 | M106: =IF($AG$222=0,0,$AG$222) -> 0 | O106: =IF($AG$285=0,0,$AG$285) -> 0 | Q106: =IF($AG$348=0,0,$AG$348) -> 0 | S106: =IF($AG$411=0,0,$AG$411) -> 0 | U106: =IF($AG$474=0,0,$AG$474) -> 0 | W106: =IF($AG$537=0,0,$AG$537) -> 0 | Y106: =IF($AG$600=0,0,$AG$600) -> 0 | AA106: =IF($AG$663=0,0,$AG$663) -> 0 | AC106: =IF($AG$726=0,0,$AG$726) -> 0 | AE106: =SUM(G106:AD106) -> 0
A107: =$A$44 -> Zeitzuschläge | B107: =$B$44 -> aus Wochentotal | G107: =IF($AG$25=0,0,$AG$25) -> 0 | I107: =IF($AG$88=0,0,$AG$88) -> 0 | K107: =IF($AG$151=0,0,$AG$151) -> 0 | M107: =IF($AG$214=0,0,$AG$214) -> 0 | O107: =IF($AG$277=0,0,$AG$277) -> 0 | Q107: =IF($AG$340=0,0,$AG$340) -> 0 | S107: =IF($AG$403=0,0,$AG$403) -> 0 | U107: =IF($AG$466=0,0,$AG$466) -> 0 | W107: =IF($AG$529=0,0,$AG$529) -> 0 | Y107: =IF($AG$592=0,0,$AG$592) -> 0 | AA107: =IF($AG$655=0,0,$AG$655) -> 0 | AC107: =IF($AG$718=0,0,$AG$718) -> 0 | AE107: =SUM(G107:AD107) -> 0
B108: =$B$45 -> aus Nacht-, Sonn-, Feiertagsarbeiten | G108: =IF($AJ$20=0,0,$AJ$20) -> 0 | I108: =IF($AK$20=0,0,$AK$20) -> 0 | K108: =IF($AL$20=0,0,$AL$20) -> 0 | M108: =IF($AM$20=0,0,$AM$20) -> 0 | O108: =IF($AN$20=0,0,$AN$20) -> 0 | Q108: =IF($AO$20=0,0,$AO$20) -> 0 | S108: =IF($AP$20=0,0,$AP$20) -> 0 | U108: =IF($AQ$20=0,0,$AQ$20) -> 0 | W108: =IF($AR$20=0,0,$AR$20) -> 0 | Y108: =IF($AS$20=0,0,$AS$20) -> 0 | AA108: =IF($AT$20=0,0,$AT$20) -> 0 | AC108: =IF($AU$20=0,0,$AU$20) -> 0 | AE108: =SUM(G108:AD108) -> 0
A109: =$A$46 -> Unproduktive Stunden
A110: =$A$47 -> Absenzen, Kurzabsenzen Art. 11 GAV | F110: =$F$47 -> a | G110: =IF($AJ$3=0,0,$AJ$3) -> 0 | I110: =IF($AK$3=0,0,$AK$3) -> 0 | K110: =IF($AL$3=0,0,$AL$3) -> 0 | M110: =IF($AM$3=0,0,$AM$3) -> 0 | O110: =IF($AN$3=0,0,$AN$3) -> 0 | Q110: =IF($AO$3=0,0,$AO$3) -> 0 | S110: =IF($AP$3=0,0,$AP$3) -> 0 | U110: =IF($AQ$3=0,0,$AQ$3) -> 0 | W110: =IF($AR$3=0,0,$AR$3) -> 0 | Y110: =IF($AS$3=0,0,$AS$3) -> 0 | AA110: =IF(AT$3=0,0,$AT$3) -> 0 | AC110: =IF($AU$3=0,0,$AU$3) -> 0 | AE110: =IF($AV$3=0,0,$AV$3) -> 0
A111: =$A$48 -> Ferien Art. 12.1 GAV | F111: =$F$48 -> f | G111: =IF($AJ$4=0,0,$AJ$4) -> 0 | I111: =IF($AK$4=0,0,$AK$4) -> 0 | K111: =IF($AL$4=0,0,$AL$4) -> 0 | M111: =IF($AM$4=0,0,$AM$4) -> 0 | O111: =IF($AN$4=0,0,$AN$4) -> 0 | Q111: =IF($AO$4=0,0,$AO$4) -> 0 | S111: =IF($AP$4=0,0,$AP$4) -> 0 | U111: =IF($AQ$4=0,0,$AQ$4) -> 0 | W111: =IF($AR$4=0,0,$AR$4) -> 0 | Y111: =IF($AS$4=0,0,$AS$4) -> 0 | AA111: =IF($AT$4=0,0,$AT$4) -> 0 | AC111: =IF($AU$4=0,0,$AU$4) -> 0 | AE111: =IF($AV$4=0,0,$AV$4) -> 0
A112: =$A$49 -> Feiertage Art. 12.2 GAV | C112: =IF($AJ$17="","",$AJ$17) ->  | F112: =$F$49 -> ft | G112: =IF($AJ$15=0,0,$AJ$15) -> 0 | I112: =IF($AK$15=0,0,$AK$15) -> 0 | K112: =IF($AL$15=0,0,$AL$15) -> 0 | M112: =IF($AM$15=0,0,$AM$15) -> 0 | O112: =IF($AN$15=0,0,$AN$15) -> 0 | Q112: =IF($AO$15=0,0,$AO$15) -> 0 | S112: =IF($AP$15=0,0,$AP$15) -> 0 | U112: =IF($AQ$15=0,0,$AQ$15) -> 0 | W112: =IF($AR$15=0,0,$AR$15) -> 0 | Y112: =IF($AS$15=0,0,$AS$15) -> 0 | AA112: =IF($AT$15=0,0,$AT$15) -> 0 | AC112: =IF($AU$15=0,0,$AU$15) -> 0 | AE112: =IF($AV$15=0,0,$AV$15) -> 0
A113: =$A$50 -> Krankheit Art. 13 GAV | F113: =$F$50 -> k | G113: =IF($AJ$5=0,0,$AJ$5) -> 0 | I113: =IF($AK$5=0,0,$AK$5) -> 0 | K113: =IF($AL$5=0,0,$AL$5) -> 0 | M113: =IF($AM$5=0,0,$AM$5) -> 0 | O113: =IF($AN$5=0,0,$AN$5) -> 0 | Q113: =IF($AO$5=0,0,$AO$5) -> 0 | S113: =IF($AP$5=0,0,$AP$5) -> 0 | U113: =IF($AQ$5=0,0,$AQ$5) -> 0 | W113: =IF($AR$5=0,0,$AR$5) -> 0 | Y113: =IF($AS$5=0,0,$AS$5) -> 0 | AA113: =IF($AT$5=0,0,$AT$5) -> 0 | AC113: =IF($AU$5=0,0,$AU$5) -> 0 | AE113: =IF($AV$5=0,0,$AV$5) -> 0
A114: =$A$51 -> Unfall Art. 14 GAV | F114: =$F$51 -> u | G114: =IF($AJ$6=0,0,$AJ$6) -> 0 | I114: =IF($AK$6=0,0,$AK$6) -> 0 | K114: =IF($AL$6=0,0,$AL$6) -> 0 | M114: =IF($AM$6=0,0,$AM$6) -> 0 | O114: =IF($AN$6=0,0,$AN$6) -> 0 | Q114: =IF($AO$6=0,0,$AO$6) -> 0 | S114: =IF($AP$6=0,0,$AP$6) -> 0 | U114: =IF($AQ$6=0,0,$AQ$6) -> 0 | W114: =IF($AR$6=0,0,$AR$6) -> 0 | Y114: =IF($AS$6=0,0,$AS$6) -> 0 | AA114: =IF($AT$6=0,0,$AT$6) -> 0 | AC114: =IF($AU$6=0,0,$AU$6) -> 0 | AE114: =IF($AV$6=0,0,$AV$6) -> 0
A115: =$A$52 -> Schwangerschaft/Mutterschaft Art. 15 GAV | F115: =$F$52 -> s | G115: =IF($AJ$7=0,0,$AJ$7) -> 0 | I115: =IF($AK$7=0,0,$AK$7) -> 0 | K115: =IF($AL$7=0,0,$AL$7) -> 0 | M115: =IF($AM$7=0,0,$AM$7) -> 0 | O115: =IF($AN$7=0,0,$AN$7) -> 0 | Q115: =IF($AO$7=0,0,$AO$7) -> 0 | S115: =IF($AP$7=0,0,$AP$7) -> 0 | U115: =IF($AQ$7=0,0,$AQ$7) -> 0 | W115: =IF($AR$7=0,0,$AR$7) -> 0 | Y115: =IF($AS$7=0,0,$AS$7) -> 0 | AA115: =IF($AT$7=0,0,$AT$7) -> 0 | AC115: =IF($AU$7=0,0,$AU$7) -> 0 | AE115: =IF($AV$7=0,0,$AV$7) -> 0
A116: =$A$53 -> Militär/Beförderung/Zivilschutz Art. 16 GAV | F116: =$F$53 -> m | G116: =IF($AJ$8=0,0,$AJ$8) -> 0 | I116: =IF($AK$8=0,0,$AK$8) -> 0 | K116: =IF($AL$8=0,0,$AL$8) -> 0 | M116: =IF($AM$8=0,0,$AM$8) -> 0 | O116: =IF($AN$8=0,0,$AN$8) -> 0 | Q116: =IF($AO$8=0,0,$AO$8) -> 0 | S116: =IF($AP$8=0,0,$AP$8) -> 0 | U116: =IF($AQ$8=0,0,$AQ$8) -> 0 | W116: =IF($AR$8=0,0,$AR$8) -> 0 | Y116: =IF($AS$8=0,0,$AS$8) -> 0 | AA116: =IF($AT$8=0,0,$AT$8) -> 0 | AC116: =IF($AU$8=0,0,$AU$8) -> 0 | AE116: =IF($AV$8=0,0,$AV$8) -> 0
A117: =$A$54 -> Kurzarbeit und Schlechtwetterausfälle | F117: =$F$54 -> ka | G117: =IF($AJ$11=0,0,$AJ$11) -> 0 | I117: =IF($AK$11=0,0,$AK$11) -> 0 | K117: =IF($AL$11=0,0,$AL$11) -> 0 | M117: =IF($AM$11=0,0,$AM$11) -> 0 | O117: =IF($AN$11=0,0,$AN$11) -> 0 | Q117: =IF($AO$11=0,0,$AO$11) -> 0 | S117: =IF($AP$11=0,0,$AP$11) -> 0 | U117: =IF($AQ$11=0,0,$AQ$11) -> 0 | W117: =IF($AR$11=0,0,$AR$11) -> 0 | Y117: =IF($AS$11=0,0,$AS$11) -> 0 | AA117: =IF($AT$11=0,0,$AT$11) -> 0 | AC117: =IF($AU$11=0,0,$AU$11) -> 0 | AE117: =IF($AV$11=0,0,$AV$11) -> 0
A118: =$A$55 -> Berufsschule | F118: =$F$55 -> bs | G118: =IF($AJ$9=0,0,$AJ$9) -> 0 | I118: =IF($AK$9=0,0,$AK$9) -> 0 | K118: =IF($AL$9=0,0,$AL$9) -> 0 | M118: =IF($AM$9=0,0,$AM$9) -> 0 | O118: =IF($AN$9=0,0,$AN$9) -> 0 | Q118: =IF($AO$9=0,0,$AO$9) -> 0 | S118: =IF($AP$9=0,0,$AP$9) -> 0 | U118: =IF($AQ$9=0,0,$AQ$9) -> 0 | W118: =IF($AR$9=0,0,$AR$9) -> 0 | Y118: =IF($AS$9=0,0,$AS$9) -> 0 | AA118: =IF($AT$9=0,0,$AT$9) -> 0 | AC118: =IF($AU$9=0,0,$AU$9) -> 0 | AE118: =IF($AV$9=0,0,$AV$9) -> 0
A119: =$A$56 -> Kurse | F119: =$F$56 -> ku | G119: =IF($AJ$10=0,0,$AJ$10) -> 0 | I119: =IF($AK$10=0,0,$AK$10) -> 0 | K119: =IF($AL$10=0,0,$AL$10) -> 0 | M119: =IF($AM$10=0,0,$AM$10) -> 0 | O119: =IF($AN$10=0,0,$AN$10) -> 0 | Q119: =IF($AO$10=0,0,$AO$10) -> 0 | S119: =IF($AP$10=0,0,$AP$10) -> 0 | U119: =IF($AQ$10=0,0,$AQ$10) -> 0 | W119: =IF($AR$10=0,0,$AR$10) -> 0 | Y119: =IF($AS$10=0,0,$AS$10) -> 0 | AA119: =IF($AT$10=0,0,$AT$10) -> 0 | AC119: =IF($AU$10=0,0,$AU$10) -> 0 | AE119: =IF($AV$10=0,0,$AV$10) -> 0
A120: =$A$57 -> Kompensations-Std | B120: =$B$57 -> aus Vorjahr | F120: =$F$57 -> kv | G120: =IF($AJ$12=0,0,$AJ$12) -> 0 | I120: =IF($AK$12=0,0,$AK$12) -> 0 | K120: =IF($AL$12=0,0,$AL$12) -> 0 | M120: =IF($AM$12=0,0,$AM$12) -> 0 | O120: =IF($AN$12=0,0,$AN$12) -> 0 | Q120: =IF($AO$12=0,0,$AO$12) -> 0 | S120: =IF($AP$12=0,0,$AP$12) -> 0 | U120: =IF($AQ$12=0,0,$AQ$12) -> 0 | W120: =IF($AR$12=0,0,$AR$12) -> 0 | AE120: =IF($AV$12=0,0,$AV$12) -> 0
B121: =$B$58 -> aus laufendem Jahr (Kontrolle) | F121: =$F$58 -> kj | G121: =IF($AJ$14=0,0,$AJ$14) -> 0 | I121: =IF($AK$14=0,0,$AK$14) -> 0 | K121: =IF($AL$14=0,0,$AL$14) -> 0 | M121: =IF($AM$14=0,0,$AM$14) -> 0 | O121: =IF($AN$14=0,0,$AN$14) -> 0 | Q121: =IF($AO$14=0,0,$AO$14) -> 0 | S121: =IF($AP$14=0,0,$AP$14) -> 0 | U121: =IF($AQ$14=0,0,$AQ$14) -> 0 | W121: =IF($AR$14=0,0,$AR$14) -> 0 | Y121: =IF($AS$14=0,0,$AS$14) -> 0 | AA121: =IF($AT$14=0,0,$AT$14) -> 0 | AC121: =IF($AU$14=0,0,$AU$14) -> 0 | AE121: =IF($AV$14=0,0,$AV$14) -> 0
A122: =$A$59 -> Auszahlung | B122: =$B$59 -> Stunden Vorjahressaldo | G122: =IF($AJ$18=0,0,$AJ$18) -> 0 | I122: =IF($AK$18=0,0,$AK$18) -> 0 | K122: =IF($AL$18=0,0,$AL$18) -> 0 | M122: =IF($AM$18=0,0,$AM$18) -> 0 | O122: =IF($AN$18=0,0,$AN$18) -> 0 | Q122: =IF($AO$18=0,0,$AO$18) -> 0 | S122: =IF($AP$18=0,0,$AP$18) -> 0 | U122: =IF($AQ$18=0,0,$AQ$18) -> 0 | W122: =IF($AR$18=0,0,$AR$18) -> 0 | AE122: =IF($AV$18=0,0,$AV$18) -> 0
A123: =$A$60 -> Differenz | B123: =$B$60 -> nach Kompensation und Auszahlung | G123: =IF(ROUND($P$4,3)=0,0,$P$4-SUM(G120+G122)) -> 0 | I123: =IF(ROUND(G123,3)=0,0,G123-(SUM(I122+I120))) -> 0 | K123: =IF(ROUND(I123,3)=0,0,I123-(SUM(K122+K120))) -> 0 | M123: =IF(ROUND(K123,3)=0,0,K123-(SUM(M122+M120))) -> 0 | O123: =IF(ROUND(M123,3)=0,0,M123-(SUM(O122+O120))) -> 0 | Q123: =IF(ROUND(O123,3)=0,0,O123-(SUM(Q122+Q120))) -> 0 | S123: =IF(ROUND(Q123,3)=0,0,Q123-(SUM(S122+S120))) -> 0 | U123: =IF(ROUND(S123,3)=0,0,S123-(SUM(U122+U120))) -> 0 | W123: =IF(ROUND(U123,3)=0,0,U123-(SUM(W122+W120))) -> 0 | Y123: =$Y$60 -> 
A124: =$A$61 -> Auszahlung | B124: =$B$61 -> Stunden laufendes Jahr | G124: =IF($AJ$19=0,0,$AJ$19) -> 0 | I124: =IF($AK$19=0,0,$AK$19) -> 0 | K124: =IF($AL$19=0,0,$AL$19) -> 0 | M124: =IF($AM$19=0,0,$AM$19) -> 0 | O124: =IF($AN$19=0,0,$AN$19) -> 0 | Q124: =IF($AO$19=0,0,$AO$19) -> 0 | S124: =IF($AP$19=0,0,$AP$19) -> 0 | U124: =IF($AQ$19=0,0,$AQ$19) -> 0 | W124: =IF($AR$19=0,0,$AR$19) -> 0 | Y124: =IF($AS$19=0,0,$AS$19) -> 0 | AA124: =IF($AT$19=0,0,$AT$19) -> 0 | AC124: =IF($AU$19=0,0,$AU$19) -> 0 | AE124: =IF($AV$19=0,0,$AV$19) -> 0
A125: =$A$62 -> Fehlstunden | B125: =$B$62 -> laufendes Jahr (Kontrolle) | F125: =$F$62 -> fe | G125: =IF($AJ$13=0,0,$AJ$13) -> 0 | I125: =IF($AK$13=0,0,$AK$13) -> 0 | K125: =IF($AL$13=0,0,$AL$13) -> 0 | M125: =IF($AM$13=0,0,$AM$13) -> 0 | O125: =IF($AN$13=0,0,$AN$13) -> 0 | Q125: =IF($AO$13=0,0,$AO$13) -> 0 | S125: =IF($AP$13=0,0,$AP$13) -> 0 | U125: =IF($AQ$13=0,0,$AQ$13) -> 0 | W125: =IF($AR$13=0,0,$AR$13) -> 0 | Y125: =IF($AS$13=0,0,$AS$13) -> 0 | AA125: =IF($AT$13=0,0,$AT$13) -> 0 | AC125: =IF($AU$13=0,0,$AU$13) -> 0 | AE125: =IF($AV$13=0,0,$AV$13) -> 0
A126: =$A$63 -> Total inkl. Zeitzuschläge | B126: =$B$63 -> Stunden produktiv und unproduktiv | G126: =IF($AG$36=0,0,$AG$36) -> 0 | I126: =IF($AG$99=0,0,$AG$99) -> 0 | K126: =IF($AG$162=0,0,$AG$162) -> 0 | M126: =IF($AG$225=0,0,$AG$225) -> 0 | O126: =IF($AG$288=0,0,$AG$288) -> 0 | Q126: =IF($AG$351=0,0,$AG$351) -> 0 | S126: =IF($AG$414=0,0,$AG$414) -> 0 | U126: =IF($AG$477=0,0,$AG$477) -> 0 | W126: =IF($AG$540=0,0,$AG$540) -> 0 | Y126: =IF($AG$603=0,0,$AG$603) -> 0 | AA126: =IF($AG$666=0,0,$AG$666) -> 0 | AC126: =IF($AG$729=0,0,$AG$729) -> 0 | AE126: =SUM($G$63:$AD$63) -> 0
A127: =$A$64 -> Vergleich | B127: =$B$64 -> Stunden zu Soll-Stunden (inkl. allfälli- ge Minusstunden Vorjahr) | G127: =$G$64 -> -172.83 | I127: =$I$64 -> -164.6 | K127: =$K$64 -> -189.29 | M127: =$M$64 -> -181.06 | O127: =$O$64 -> -172.83 | Q127: =$Q$64 -> -181.06 | S127: =$S$64 -> -181.06 | U127: =$U$64 -> -181.06 | W127: =$W$64 -> -181.06 | Y127: =$Y$64 -> -172.83 | AA127: =$AA$64 -> -181.06 | AC127: =$AC$64 -> -189.29 | AE127: =$AE$64 -> -2148.03
B128: =$B$65 -> Stunden zu Soll-Stunden (kumuliert) | G128: =$G$65 -> -172.83 | I128: =$I$65 -> -337.43 | K128: =$K$65 -> -526.72 | M128: =$M$65 -> -707.78 | O128: =$O$65 -> -880.61 | Q128: =$Q$65 -> -1061.67 | S128: =$S$65 -> -1242.73 | U128: =$U$65 -> -1423.79 | W128: =$W$65 -> -1604.85 | Y128: =$Y$65 -> -1777.68 | AA128: =$AA$65 -> -1958.74 | AC128: =$AC$65 -> -2148.03 | AE128: =$AE$65 -> 0
A129: =$A$66 -> Ferienkontrolle | B129: =$B$66 -> Ferienguthaben Vorjahr | G129: =IF($AA$4=0,0,$AA$4) -> 0 | I129: =$I$66 -> Ferienguthaben nach Art. 12.1 GAV | M129: =IF($AA$5=0,0,$AA$5) -> 0 | O129: =$O$66 -> Ferienguthaben total | S129: =SUM(G129+M129) -> 0 | U129: =$U$66 -> Ferien bezogen | Y129: =IF($AV$4=0,0,$AV$4) -> 0 | AA129: =$AA$66 -> Aktuelles Ferienguthaben | AE129: =IF(S129=0,0,S129-Y129) -> 0
A132: =$A$3 -> Mitarbeiter/In | B132: =IF($B$3="","",$B$3) -> Muster Peter | AF132: =AF3 -> 0
A133: =$A$4 -> Anstellung % | B133: 100 | D133: =Labels!B91 -> im März
A134: =$A$5 -> Saldo für das Jahr | D134: =IF($AE$64=0,0,$AE$64) -> -2148.03
A135: =TEXT(DATE(YEAR(AP28),MONTH(AP28)+2,1),"MMMM"&Labels!B13) -> März | B135: =$B$9 -> Saldo Monat + / - | F135: =(AG138-(SUM(AG139:AG153)-AE160))*-1 -> -189.29 | K135: =$K$9 -> = | L135: =$L$9 -> Gelbe Felder müssen ausgefüllt werden (die übrigen werden automatisch berechnet)
A136: =$A$10 -> Tag | B136: =IF(MOD($AE$95,4)>=1,$AC$73+1,$AC$73+2) -> 2021-03-01 | C136: =B136+1 -> 2021-03-02 | D136: 2021-03-03 | E136: 2021-03-04 | F136: 2021-03-05 | G136: 2021-03-06 | H136: 2021-03-07 | I136: 2021-03-08 | J136: 2021-03-09 | K136: 2021-03-10 | L136: 2021-03-11 | M136: 2021-03-12 | N136: 2021-03-13 | O136: 2021-03-14 | P136: 2021-03-15 | Q136: 2021-03-16 | R136: 2021-03-17 | S136: 2021-03-18 | T136: 2021-03-19 | U136: 2021-03-20 | V136: 2021-03-21 | W136: 2021-03-22 | X136: 2021-03-23 | Y136: 2021-03-24 | Z136: 2021-03-25 | AA136: 2021-03-26 | AB136: 2021-03-27 | AC136: 2021-03-28 | AD136: 2021-03-29 | AE136: 2021-03-30 | AF136: 2021-03-31 | AG136: =COUNT(B138:AF138)&" "&Labels!$B$63 -> 23 Tage
A137: =$A$11 -> Kalenderwoche | B137: =IF(B136="","",TRUNC((B136-DATE(YEAR(B136+3-MOD(B136-2,7)),1,MOD(B136-2,7)-9))/7)) -> 9 | C137: 9 | D137: 9 | E137: 9 | F137: 9 | G137: 9 | H137: 9 | I137: 10 | J137: 10 | K137: 10 | L137: 10 | M137: 10 | N137: 10 | O137: 10 | P137: 11 | Q137: 11 | R137: 11 | S137: 11 | T137: 11 | U137: 11 | V137: 11 | W137: 12 | X137: 12 | Y137: 12 | Z137: 12 | AA137: 12 | AB137: 12 | AC137: 12 | AD137: 13 | AE137: 13 | AF137: 13
A138: =$A$12 -> Sollstunden | B138: =IF(MOD(B136,7)>=2,$J$7*$B$133%,"") -> 8.23 | C138: 8.23 | D138: 8.23 | E138: 8.23 | F138: 8.23 | I138: 8.23 | J138: 8.23 | K138: 8.23 | L138: 8.23 | M138: 8.23 | P138: 8.23 | Q138: 8.23 | R138: 8.23 | S138: 8.23 | T138: 8.23 | W138: 8.23 | X138: 8.23 | Y138: 8.23 | Z138: 8.23 | AA138: 8.23 | AD138: 8.23 | AE138: 8.23 | AF138: 8.23 | AG138: =SUM(B138:AF138) -> 189.29
A139: =$A$13 -> Absenz in Std | B139: =B865 -> 0 | C139: =C865 -> 0 | D139: 0 | E139: 0 | F139: 0 | G139: 0 | H139: 0 | I139: 0 | J139: 0 | K139: 0 | L139: 0 | M139: 0 | N139: 0 | O139: 0 | P139: 0 | Q139: 0 | R139: 0 | S139: 0 | T139: 0 | U139: 0 | V139: 0 | W139: 0 | X139: 0 | Y139: 0 | Z139: 0 | AA139: 0 | AB139: 0 | AC139: 0 | AD139: 0 | AE139: 0 | AF139: 0 | AG139: =SUM(AL3:AL12) -> 0
A140: =$A$14 -> Code | B140: =IF(B865<>0,IF(MAX(B852:B864)<B865,Labels!$B$163,INDEX($AH$852:$AH$864,MATCH(MAX(B852:B864),B852:B864,0))),"") ->  | C140: =IF(C865<>0,IF(MAX(C852:C864)<C865,Labels!$B$163,INDEX($AH$852:$AH$864,MATCH(MAX(C852:C864),C852:C864,0))),"") ->  | D140: =IF(D865<>0,IF(MAX(D852:D864)<D865,Labels!$B$163,INDEX($AH$852:$AH$864,MATCH(MAX(D852:D864),D852:D864,0))),"") ->  | E140: =IF(E865<>0,IF(MAX(E852:E864)<E865,Labels!$B$163,INDEX($AH$852:$AH$864,MATCH(MAX(E852:E864),E852:E864,0))),"") ->  | F140: =IF(F865<>0,IF(MAX(F852:F864)<F865,Labels!$B$163,INDEX($AH$852:$AH$864,MATCH(MAX(F852:F864),F852:F864,0))),"") ->  | G140: =IF(G865<>0,IF(MAX(G852:G864)<G865,Labels!$B$163,INDEX($AH$852:$AH$864,MATCH(MAX(G852:G864),G852:G864,0))),"") ->  | H140: =IF(H865<>0,IF(MAX(H852:H864)<H865,Labels!$B$163,INDEX($AH$852:$AH$864,MATCH(MAX(H852:H864),H852:H864,0))),"") ->  | I140: =IF(I865<>0,IF(MAX(I852:I864)<I865,Labels!$B$163,INDEX($AH$852:$AH$864,MATCH(MAX(I852:I864),I852:I864,0))),"") ->  | J140: =IF(J865<>0,IF(MAX(J852:J864)<J865,Labels!$B$163,INDEX($AH$852:$AH$864,MATCH(MAX(J852:J864),J852:J864,0))),"") ->  | K140: =IF(K865<>0,IF(MAX(K852:K864)<K865,Labels!$B$163,INDEX($AH$852:$AH$864,MATCH(MAX(K852:K864),K852:K864,0))),"") ->  | L140: =IF(L865<>0,IF(MAX(L852:L864)<L865,Labels!$B$163,INDEX($AH$852:$AH$864,MATCH(MAX(L852:L864),L852:L864,0))),"") ->  | M140: =IF(M865<>0,IF(MAX(M852:M864)<M865,Labels!$B$163,INDEX($AH$852:$AH$864,MATCH(MAX(M852:M864),M852:M864,0))),"") ->  | N140: =IF(N865<>0,IF(MAX(N852:N864)<N865,Labels!$B$163,INDEX($AH$852:$AH$864,MATCH(MAX(N852:N864),N852:N864,0))),"") ->  | O140: =IF(O865<>0,IF(MAX(O852:O864)<O865,Labels!$B$163,INDEX($AH$852:$AH$864,MATCH(MAX(O852:O864),O852:O864,0))),"") ->  | P140: =IF(P865<>0,IF(MAX(P852:P864)<P865,Labels!$B$163,INDEX($AH$852:$AH$864,MATCH(MAX(P852:P864),P852:P864,0))),"") ->  | Q140: =IF(Q865<>0,IF(MAX(Q852:Q864)<Q865,Labels!$B$163,INDEX($AH$852:$AH$864,MATCH(MAX(Q852:Q864),Q852:Q864,0))),"") ->  | R140: =IF(R865<>0,IF(MAX(R852:R864)<R865,Labels!$B$163,INDEX($AH$852:$AH$864,MATCH(MAX(R852:R864),R852:R864,0))),"") ->  | S140: =IF(S865<>0,IF(MAX(S852:S864)<S865,Labels!$B$163,INDEX($AH$852:$AH$864,MATCH(MAX(S852:S864),S852:S864,0))),"") ->  | T140: =IF(T865<>0,IF(MAX(T852:T864)<T865,Labels!$B$163,INDEX($AH$852:$AH$864,MATCH(MAX(T852:T864),T852:T864,0))),"") ->  | U140: =IF(U865<>0,IF(MAX(U852:U864)<U865,Labels!$B$163,INDEX($AH$852:$AH$864,MATCH(MAX(U852:U864),U852:U864,0))),"") ->  | V140: =IF(V865<>0,IF(MAX(V852:V864)<V865,Labels!$B$163,INDEX($AH$852:$AH$864,MATCH(MAX(V852:V864),V852:V864,0))),"") ->  | W140: =IF(W865<>0,IF(MAX(W852:W864)<W865,Labels!$B$163,INDEX($AH$852:$AH$864,MATCH(MAX(W852:W864),W852:W864,0))),"") ->  | X140: =IF(X865<>0,IF(MAX(X852:X864)<X865,Labels!$B$163,INDEX($AH$852:$AH$864,MATCH(MAX(X852:X864),X852:X864,0))),"") ->  | Y140: =IF(Y865<>0,IF(MAX(Y852:Y864)<Y865,Labels!$B$163,INDEX($AH$852:$AH$864,MATCH(MAX(Y852:Y864),Y852:Y864,0))),"") ->  | Z140: =IF(Z865<>0,IF(MAX(Z852:Z864)<Z865,Labels!$B$163,INDEX($AH$852:$AH$864,MATCH(MAX(Z852:Z864),Z852:Z864,0))),"") ->  | AA140: =IF(AA865<>0,IF(MAX(AA852:AA864)<AA865,Labels!$B$163,INDEX($AH$852:$AH$864,MATCH(MAX(AA852:AA864),AA852:AA864,0))),"") ->  | AB140: =IF(AB865<>0,IF(MAX(AB852:AB864)<AB865,Labels!$B$163,INDEX($AH$852:$AH$864,MATCH(MAX(AB852:AB864),AB852:AB864,0))),"") ->  | AC140: =IF(AC865<>0,IF(MAX(AC852:AC864)<AC865,Labels!$B$163,INDEX($AH$852:$AH$864,MATCH(MAX(AC852:AC864),AC852:AC864,0))),"") ->  | AD140: =IF(AD865<>0,IF(MAX(AD852:AD864)<AD865,Labels!$B$163,INDEX($AH$852:$AH$864,MATCH(MAX(AD852:AD864),AD852:AD864,0))),"") ->  | AE140: =IF(AE865<>0,IF(MAX(AE852:AE864)<AE865,Labels!$B$163,INDEX($AH$852:$AH$864,MATCH(MAX(AE852:AE864),AE852:AE864,0))),"") ->  | AF140: =IF(AF865<>0,IF(MAX(AF852:AF864)<AF865,Labels!$B$163,INDEX($AH$852:$AH$864,MATCH(MAX(AF852:AF864),AF852:AF864,0))),"") -> 
A141: =$A$15 -> 00.00-06.00h | AG141: =SUM(B141:AF141) -> 0
A142: =$A$16 -> 06.00-20.00h | AG142: =SUM(B142:AF142) -> 0
A143: =$A$17 -> 20.00-24.00h | AG143: =SUM(B143:AF143) -> 0 | AH143: [0]
A144: =$A$18 -> Feiertag "ft" | B144: =IF(WEEKDAY(B136,2)<=6,IF(KALENDER!E7="x",Labels!$B$118,""),"") ->  | C144: =IF(WEEKDAY(C136,2)<=6,IF(KALENDER!F7="x",Labels!$B$118,""),"") ->  | D144: =IF(WEEKDAY(D136,2)<=6,IF(KALENDER!G7="x",Labels!$B$118,""),"") ->  | E144: =IF(WEEKDAY(E136,2)<=6,IF(KALENDER!H7="x",Labels!$B$118,""),"") ->  | F144: =IF(WEEKDAY(F136,2)<=6,IF(KALENDER!I7="x",Labels!$B$118,""),"") ->  | G144: =IF(WEEKDAY(G136,2)<=6,IF(KALENDER!J7="x",Labels!$B$118,""),"") ->  | H144: =IF(WEEKDAY(H136,2)<=6,IF(KALENDER!K7="x",Labels!$B$118,""),"") ->  | I144: =IF(WEEKDAY(I136,2)<=6,IF(KALENDER!L7="x",Labels!$B$118,""),"") ->  | J144: =IF(WEEKDAY(J136,2)<=6,IF(KALENDER!M7="x",Labels!$B$118,""),"") ->  | K144: =IF(WEEKDAY(K136,2)<=6,IF(KALENDER!N7="x",Labels!$B$118,""),"") ->  | L144: =IF(WEEKDAY(L136,2)<=6,IF(KALENDER!O7="x",Labels!$B$118,""),"") ->  | M144: =IF(WEEKDAY(M136,2)<=6,IF(KALENDER!P7="x",Labels!$B$118,""),"") ->  | N144: =IF(WEEKDAY(N136,2)<=6,IF(KALENDER!Q7="x",Labels!$B$118,""),"") ->  | O144: =IF(WEEKDAY(O136,2)<=6,IF(KALENDER!R7="x",Labels!$B$118,""),"") ->  | P144: =IF(WEEKDAY(P136,2)<=6,IF(KALENDER!S7="x",Labels!$B$118,""),"") ->  | Q144: =IF(WEEKDAY(Q136,2)<=6,IF(KALENDER!T7="x",Labels!$B$118,""),"") ->  | R144: =IF(WEEKDAY(R136,2)<=6,IF(KALENDER!U7="x",Labels!$B$118,""),"") ->  | S144: =IF(WEEKDAY(S136,2)<=6,IF(KALENDER!V7="x",Labels!$B$118,""),"") ->  | T144: =IF(WEEKDAY(T136,2)<=6,IF(KALENDER!W7="x",Labels!$B$118,""),"") ->  | U144: =IF(WEEKDAY(U136,2)<=6,IF(KALENDER!X7="x",Labels!$B$118,""),"") ->  | V144: =IF(WEEKDAY(V136,2)<=6,IF(KALENDER!Y7="x",Labels!$B$118,""),"") ->  | W144: =IF(WEEKDAY(W136,2)<=6,IF(KALENDER!Z7="x",Labels!$B$118,""),"") ->  | X144: =IF(WEEKDAY(X136,2)<=6,IF(KALENDER!AA7="x",Labels!$B$118,""),"") ->  | Y144: =IF(WEEKDAY(Y136,2)<=6,IF(KALENDER!AB7="x",Labels!$B$118,""),"") ->  | Z144: =IF(WEEKDAY(Z136,2)<=6,IF(KALENDER!AC7="x",Labels!$B$118,""),"") ->  | AA144: =IF(WEEKDAY(AA136,2)<=6,IF(KALENDER!AD7="x",Labels!$B$118,""),"") ->  | AB144: =IF(WEEKDAY(AB136,2)<=6,IF(KALENDER!AE7="x",Labels!$B$118,""),"") ->  | AC144: =IF(WEEKDAY(AC136,2)<=6,IF(KALENDER!AF7="x",Labels!$B$118,""),"") ->  | AD144: =IF(WEEKDAY(AD136,2)<=6,IF(KALENDER!AG7="x",Labels!$B$118,""),"") ->  | AE144: =IF(WEEKDAY(AE136,2)<=6,IF(KALENDER!AH7="x",Labels!$B$118,""),"") ->  | AF144: =IF(WEEKDAY(AF136,2)<=6,IF(KALENDER!AI7="x",Labels!$B$118,""),"") -> 
A145: =$A$19 -> Gutschrift "ft" | B145: =IF(AND(B144=Labels!$B$118,WEEKDAY(B136,2)<6),$J$7*$B$133%,"") ->  | C145: =IF(AND(C144=Labels!$B$118,WEEKDAY(C136,2)<6),$J$7*$B$133%,"") ->  | D145: =IF(AND(D144=Labels!$B$118,WEEKDAY(D136,2)<6),$J$7*$B$133%,"") ->  | E145: =IF(AND(E144=Labels!$B$118,WEEKDAY(E136,2)<6),$J$7*$B$133%,"") ->  | F145: =IF(AND(F144=Labels!$B$118,WEEKDAY(F136,2)<6),$J$7*$B$133%,"") ->  | G145: =IF(AND(G144=Labels!$B$118,WEEKDAY(G136,2)<6),$J$7*$B$133%,"") ->  | H145: =IF(AND(H144=Labels!$B$118,WEEKDAY(H136,2)<6),$J$7*$B$133%,"") ->  | I145: =IF(AND(I144=Labels!$B$118,WEEKDAY(I136,2)<6),$J$7*$B$133%,"") ->  | J145: =IF(AND(J144=Labels!$B$118,WEEKDAY(J136,2)<6),$J$7*$B$133%,"") ->  | K145: =IF(AND(K144=Labels!$B$118,WEEKDAY(K136,2)<6),$J$7*$B$133%,"") ->  | L145: =IF(AND(L144=Labels!$B$118,WEEKDAY(L136,2)<6),$J$7*$B$133%,"") ->  | M145: =IF(AND(M144=Labels!$B$118,WEEKDAY(M136,2)<6),$J$7*$B$133%,"") ->  | N145: =IF(AND(N144=Labels!$B$118,WEEKDAY(N136,2)<6),$J$7*$B$133%,"") ->  | O145: =IF(AND(O144=Labels!$B$118,WEEKDAY(O136,2)<6),$J$7*$B$133%,"") ->  | P145: =IF(AND(P144=Labels!$B$118,WEEKDAY(P136,2)<6),$J$7*$B$133%,"") ->  | Q145: =IF(AND(Q144=Labels!$B$118,WEEKDAY(Q136,2)<6),$J$7*$B$133%,"") ->  | R145: =IF(AND(R144=Labels!$B$118,WEEKDAY(R136,2)<6),$J$7*$B$133%,"") ->  | S145: =IF(AND(S144=Labels!$B$118,WEEKDAY(S136,2)<6),$J$7*$B$133%,"") ->  | T145: =IF(AND(T144=Labels!$B$118,WEEKDAY(T136,2)<6),$J$7*$B$133%,"") ->  | U145: =IF(AND(U144=Labels!$B$118,WEEKDAY(U136,2)<6),$J$7*$B$133%,"") ->  | V145: =IF(AND(V144=Labels!$B$118,WEEKDAY(V136,2)<6),$J$7*$B$133%,"") ->  | W145: =IF(AND(W144=Labels!$B$118,WEEKDAY(W136,2)<6),$J$7*$B$133%,"") ->  | X145: =IF(AND(X144=Labels!$B$118,WEEKDAY(X136,2)<6),$J$7*$B$133%,"") ->  | Y145: =IF(AND(Y144=Labels!$B$118,WEEKDAY(Y136,2)<6),$J$7*$B$133%,"") ->  | Z145: =IF(AND(Z144=Labels!$B$118,WEEKDAY(Z136,2)<6),$J$7*$B$133%,"") ->  | AA145: =IF(AND(AA144=Labels!$B$118,WEEKDAY(AA136,2)<6),$J$7*$B$133%,"") ->  | AB145: =IF(AND(AB144=Labels!$B$118,WEEKDAY(AB136,2)<6),$J$7*$B$133%,"") ->  | AC145: =IF(AND(AC144=Labels!$B$118,WEEKDAY(AC136,2)<6),$J$7*$B$133%,"") ->  | AD145: =IF(AND(AD144=Labels!$B$118,WEEKDAY(AD136,2)<6),$J$7*$B$133%,"") ->  | AE145: =IF(AND(AE144=Labels!$B$118,WEEKDAY(AE136,2)<6),$J$7*$B$133%,"") ->  | AF145: =IF(AND(AF144=Labels!$B$118,WEEKDAY(AF136,2)<6),$J$7*$B$133%,"") ->  | AG145: =SUM(B145:AF145) -> 0
A146: =$A$20 -> Tagestotal | B146: =SUM(B141:B143) -> 0 | C146: =SUM(C141:C143) -> 0 | D146: 0 | E146: 0 | F146: 0 | G146: 0 | H146: 0 | I146: 0 | J146: 0 | K146: 0 | L146: 0 | M146: 0 | N146: 0 | O146: 0 | P146: 0 | Q146: 0 | R146: 0 | S146: 0 | T146: 0 | U146: 0 | V146: 0 | W146: 0 | X146: 0 | Y146: 0 | Z146: 0 | AA146: 0 | AB146: 0 | AC146: 0 | AD146: 0 | AE146: 0 | AF146: 0
A147: =$A$21 -> .
A148: =$A$22 -> .
A149: =$A$23 -> Monatsübergang | B149: =IF(WEEKDAY(B136)=1,TEXT(B136-1,"MMM"&Labels!B13),"") ->  | AF149: =IF(AND(WEEKDAY(AF136)>1,WEEKDAY(AF136)<7),TEXT(DATE($B$5,MONTH(AF136)+1,1),"MMM"&Labels!B13),"") -> Apr
A150: =$A$24 -> Wochentotal | B150: =IF(WEEKDAY(B136)=7,SUMIF($B74:$AF74,B137,$B83:$AF83)+SUMIF($B137:$AF137,B137,$B146:$AF146)+SUMIF($B200:$AF200,B137,$B209:$AF209),B149) ->  | C150: =IF(WEEKDAY(C136)=7,SUMIF($B74:$AF74,C137,$B83:$AF83)+SUMIF($B137:$AF137,C137,$B146:$AF146)+SUMIF($B200:$AF200,C137,$B209:$AF209),"") ->  | G150: 0 | N150: 0 | U150: 0 | AB150: 0 | AF150: =IF(WEEKDAY(AF136)=7,SUMIF($B74:$AF74,AF137,$B83:$AF83)+SUMIF($B137:$AF137,AF137,$B146:$AF146)+SUMIF($B200:$AF200,AF137,$B209:$AF209),AF149) -> Apr
A151: =$A$25 -> Zeitzuschlag 1) | B151: =IF(B158="FALSCH","",B158) ->  | C151: =IF(C158="FALSCH","",C158) ->  | AG151: =SUM(B151:AF151) -> 0
A152: =$A$26 -> Zeitzuschlag 2) | B152: =IF((B141+B143)=0,"",SUM(B141,B143)) ->  | C152: =IF((C141+C143)=0,"",SUM(C141,C143)) ->  | AG152: 0 | AH152: [1]
A153: =$A$27 -> Zeitzuschlag 3) | B153: =SUM(B154:B157) -> 0 | C153: =SUM(C154:C157) -> 0 | D153: 0 | E153: 0 | F153: 0 | G153: 0 | H153: 0 | I153: 0 | J153: 0 | K153: 0 | L153: 0 | M153: 0 | N153: 0 | O153: 0 | P153: 0 | Q153: 0 | R153: 0 | S153: 0 | T153: 0 | U153: 0 | V153: 0 | W153: 0 | X153: 0 | Y153: 0 | Z153: 0 | AA153: 0 | AB153: 0 | AC153: 0 | AD153: 0 | AE153: 0 | AF153: 0 | AG153: =SUM(B153:AF153) -> 0 | AH153: [2]
A154: =$A$28 -> Sonntag Tag | B154: =IF(WEEKDAY(B136)=1,B142,"") ->  | C154: =IF(WEEKDAY(C136)=1,C142,"") ->  | H154: 0 | O154: 0 | V154: 0 | AC154: 0 | AG154: 0 | AH154: [3]
A155: =$A$29 -> Sonntag Nacht | B155: =IF(WEEKDAY(B136)=1,SUM(B141+B143),"") ->  | C155: =IF(WEEKDAY(C136)=1,SUM(C141+C143),"") ->  | H155: 0 | O155: 0 | V155: 0 | AC155: 0 | AG155: 0 | AH155: [4]
A156: =$A$30 -> ft-Tazuschlag | B156: =IF(B144=Labels!$B$118,B142,"") ->  | C156: =IF(C144=Labels!$B$118,C142,"") ->  | D156: =IF(D144=Labels!$B$118,D142,"") ->  | E156: =IF(E144=Labels!$B$118,E142,"") ->  | F156: =IF(F144=Labels!$B$118,F142,"") ->  | G156: =IF(G144=Labels!$B$118,G142,"") ->  | H156: =IF(H144=Labels!$B$118,H142,"") ->  | I156: =IF(I144=Labels!$B$118,I142,"") ->  | J156: =IF(J144=Labels!$B$118,J142,"") ->  | K156: =IF(K144=Labels!$B$118,K142,"") ->  | L156: =IF(L144=Labels!$B$118,L142,"") ->  | M156: =IF(M144=Labels!$B$118,M142,"") ->  | N156: =IF(N144=Labels!$B$118,N142,"") ->  | O156: =IF(O144=Labels!$B$118,O142,"") ->  | P156: =IF(P144=Labels!$B$118,P142,"") ->  | Q156: =IF(Q144=Labels!$B$118,Q142,"") ->  | R156: =IF(R144=Labels!$B$118,R142,"") ->  | S156: =IF(S144=Labels!$B$118,S142,"") ->  | T156: =IF(T144=Labels!$B$118,T142,"") ->  | U156: =IF(U144=Labels!$B$118,U142,"") ->  | V156: =IF(V144=Labels!$B$118,V142,"") ->  | W156: =IF(W144=Labels!$B$118,W142,"") ->  | X156: =IF(X144=Labels!$B$118,X142,"") ->  | Y156: =IF(Y144=Labels!$B$118,Y142,"") ->  | Z156: =IF(Z144=Labels!$B$118,Z142,"") ->  | AA156: =IF(AA144=Labels!$B$118,AA142,"") ->  | AB156: =IF(AB144=Labels!$B$118,AB142,"") ->  | AC156: =IF(AC144=Labels!$B$118,AC142,"") ->  | AD156: =IF(AD144=Labels!$B$118,AD142,"") ->  | AE156: =IF(AE144=Labels!$B$118,AE142,"") ->  | AF156: =IF(AF144=Labels!$B$118,AF142,"") ->  | AG156: 0 | AH156: [5]
A157: =$A$31 -> ft-Nazuschlag | B157: =IF(B144=Labels!$B$118,SUM(B141,B143),"") ->  | C157: =IF(C144=Labels!$B$118,SUM(C141,C143),"") ->  | D157: =IF(D144=Labels!$B$118,SUM(D141,D143),"") ->  | E157: =IF(E144=Labels!$B$118,SUM(E141,E143),"") ->  | F157: =IF(F144=Labels!$B$118,SUM(F141,F143),"") ->  | G157: =IF(G144=Labels!$B$118,SUM(G141,G143),"") ->  | H157: =IF(H144=Labels!$B$118,SUM(H141,H143),"") ->  | I157: =IF(I144=Labels!$B$118,SUM(I141,I143),"") ->  | J157: =IF(J144=Labels!$B$118,SUM(J141,J143),"") ->  | K157: =IF(K144=Labels!$B$118,SUM(K141,K143),"") ->  | L157: =IF(L144=Labels!$B$118,SUM(L141,L143),"") ->  | M157: =IF(M144=Labels!$B$118,SUM(M141,M143),"") ->  | N157: =IF(N144=Labels!$B$118,SUM(N141,N143),"") ->  | O157: =IF(O144=Labels!$B$118,SUM(O141,O143),"") ->  | P157: =IF(P144=Labels!$B$118,SUM(P141,P143),"") ->  | Q157: =IF(Q144=Labels!$B$118,SUM(Q141,Q143),"") ->  | R157: =IF(R144=Labels!$B$118,SUM(R141,R143),"") ->  | S157: =IF(S144=Labels!$B$118,SUM(S141,S143),"") ->  | T157: =IF(T144=Labels!$B$118,SUM(T141,T143),"") ->  | U157: =IF(U144=Labels!$B$118,SUM(U141,U143),"") ->  | V157: =IF(V144=Labels!$B$118,SUM(V141,V143),"") ->  | W157: =IF(W144=Labels!$B$118,SUM(W141,W143),"") ->  | X157: =IF(X144=Labels!$B$118,SUM(X141,X143),"") ->  | Y157: =IF(Y144=Labels!$B$118,SUM(Y141,Y143),"") ->  | Z157: =IF(Z144=Labels!$B$118,SUM(Z141,Z143),"") ->  | AA157: =IF(AA144=Labels!$B$118,SUM(AA141,AA143),"") ->  | AB157: =IF(AB144=Labels!$B$118,SUM(AB141,AB143),"") ->  | AC157: =IF(AC144=Labels!$B$118,SUM(AC141,AC143),"") ->  | AD157: =IF(AD144=Labels!$B$118,SUM(AD141,AD143),"") ->  | AE157: =IF(AE144=Labels!$B$118,SUM(AE141,AE143),"") ->  | AF157: =IF(AF144=Labels!$B$118,SUM(AF141,AF143),"") ->  | AG157: 0 | AH157: [6]
A158: =$A$32 -> Zuschlag blind (Wochentotal) | B158: =IF(OR(ISTEXT(B150),B150="",B150<$B$7),"",ROUND(((B150-$B$7)*25%)/25,4)*25) ->  | C158: =IF(OR(ISTEXT(C150),C150="",C150<$B$7),"",ROUND(((C150-$B$7)*25%)/25,4)*25) ->  | AG158: =AG142 -> 0 | AH158: [7]
B159: =$B$33 -> 1) 25% Zeitzuschlag für Überschreitung Wochentotal | L159: =$L$33 -> 2) 100% Zeitzuschlag für Nachtarbeit | T159: =$T$33 -> Eingabe der ausbezahlten Stunden Vorjahressaldo | AG159: =SUM(AG141+AG143) -> 0 | AH159: [8]
B160: =$B$34 -> 3) 100% Zeitzuschlag für Sonn- und Feiertagsarbeit | T160: =$T$34 -> Eingabe der ausbezahlten Stunden laufendes Jahr (Überstunden) | AG160: =SUM(AG141:AG143) -> 0 | AH160: [9]
A161: =$A$35 -> Bemerkungen | AG161: =SUM(AG139+AG145) -> 0 | AH161: [10]
AG162: =SUM(AG139:AG153) -> 0 | AH162: [11]
AG163: =AG138 -> 189.29
AG164: =SUM(AG162-AG138) -> -189.29
A165: =$A$39 -> Zusammenstellung | G165: =$G$39 -> Jan | I165: =$I$39 -> Feb | K165: =$K$39 -> Mrz | M165: =$M$39 -> Apr | O165: =$O$39 -> Mai | Q165: =$Q$39 -> Jun | S165: =$S$39 -> Jul | U165: =$U$39 -> Aug | W165: =$W$39 -> Sep | Y165: =$Y$39 -> Okt | AA165: =$AA$39 -> Nov | AC165: =$AC$39 -> Dez | AE165: =$AE$39 -> Jahr
A166: =$A$40 -> Anstellung % | G166: =IF($B$4=0,0,$B$4) -> 100 | I166: =IF($B$70=0,0,$B$70) -> 100 | K166: =IF($B$133=0,0,$B$133) -> 100 | M166: =IF($B$196=0,0,$B$196) -> 100 | O166: =IF($B$259=0,0,$B$259) -> 100 | Q166: =IF($B$322=0,0,$B$322) -> 100 | S166: =IF($B$385=0,0,$B$385) -> 100 | U166: =IF($B$448=0,0,$B$448) -> 100 | W166: =IF($B$511=0,0,$B$511) -> 100 | Y166: =IF($B$574=0,0,$B$574) -> 100 | AA166: =IF($B$637=0,0,$B$637) -> 100 | AC166: =IF($B$700=0,0,$B$700) -> 100
A167: =$A$41 -> Sollstunden gemäss GAV | G167: =IF($AG$37=0,0,$AG$37) -> 172.83 | I167: =IF($AG$100=0,0,$AG$100) -> 164.6 | K167: =IF($AG$138=0,0,$AG$138) -> 189.29 | M167: =IF($AG$226=0,0,$AG$226) -> 181.06 | O167: =IF($AG$289=0,0,$AG$289) -> 172.83 | Q167: =IF($AG$352=0,0,$AG$352) -> 181.06 | S167: =IF($AG$415=0,0,$AG$415) -> 181.06 | U167: =IF($AG$478=0,0,$AG$478) -> 181.06 | W167: =IF($AG$541=0,0,$AG$541) -> 181.06 | Y167: =IF($AG$604=0,0,$AG$604) -> 172.83 | AA167: =IF($AG$667=0,0,$AG$667) -> 181.06 | AC167: =IF($AG$730=0,0,$AG$730) -> 189.29 | AE167: =SUM(G167:AD167) -> 2148.03
A168: =$A$42 -> Produktive Stunden | B168: =$B$42 -> 06.00 - 20.00 Uhr | G168: =IF($AG$32=0,0,$AG$32) -> 0 | I168: =IF($AG$95=0,0,$AG$95) -> 0 | K168: =IF($AG$158=0,0,$AG$158) -> 0 | M168: =IF($AG$221=0,0,$AG$221) -> 0 | O168: =IF($AG$284=0,0,$AG$284) -> 0 | Q168: =IF($AG$347=0,0,$AG$347) -> 0 | S168: =IF($AG$410=0,0,$AG$410) -> 0 | U168: =IF($AG$473=0,0,$AG$473) -> 0 | W168: =IF($AG$536=0,0,$AG$536) -> 0 | Y168: =IF($AG$599=0,0,$AG$599) -> 0 | AA168: =IF($AG$662=0,0,$AG$662) -> 0 | AC168: =IF($AG$725=0,0,$AG$725) -> 0 | AE168: =SUM(G168:AD168) -> 0
B169: =$B$43 -> Nacht-, Sonn-, Feiertagsarbeit | G169: =IF($AG$33=0,0,$AG$33) -> 0 | I169: =IF($AG$96=0,0,$AG$96) -> 0 | K169: =IF($AG$159=0,0,$AG$159) -> 0 | M169: =IF($AG$222=0,0,$AG$222) -> 0 | O169: =IF($AG$285=0,0,$AG$285) -> 0 | Q169: =IF($AG$348=0,0,$AG$348) -> 0 | S169: =IF($AG$411=0,0,$AG$411) -> 0 | U169: =IF($AG$474=0,0,$AG$474) -> 0 | W169: =IF($AG$537=0,0,$AG$537) -> 0 | Y169: =IF($AG$600=0,0,$AG$600) -> 0 | AA169: =IF($AG$663=0,0,$AG$663) -> 0 | AC169: =IF($AG$726=0,0,$AG$726) -> 0 | AE169: =SUM(G169:AD169) -> 0
A170: =$A$44 -> Zeitzuschläge | B170: =$B$44 -> aus Wochentotal | G170: =IF($AG$25=0,0,$AG$25) -> 0 | I170: =IF($AG$88=0,0,$AG$88) -> 0 | K170: =IF($AG$151=0,0,$AG$151) -> 0 | M170: =IF($AG$214=0,0,$AG$214) -> 0 | O170: =IF($AG$277=0,0,$AG$277) -> 0 | Q170: =IF($AG$340=0,0,$AG$340) -> 0 | S170: =IF($AG$403=0,0,$AG$403) -> 0 | U170: =IF($AG$466=0,0,$AG$466) -> 0 | W170: =IF($AG$529=0,0,$AG$529) -> 0 | Y170: =IF($AG$592=0,0,$AG$592) -> 0 | AA170: =IF($AG$655=0,0,$AG$655) -> 0 | AC170: =IF($AG$718=0,0,$AG$718) -> 0 | AE170: =SUM(G170:AD170) -> 0
B171: =$B$45 -> aus Nacht-, Sonn-, Feiertagsarbeiten | G171: =IF($AJ$20=0,0,$AJ$20) -> 0 | I171: =IF($AK$20=0,0,$AK$20) -> 0 | K171: =IF($AL$20=0,0,$AL$20) -> 0 | M171: =IF($AM$20=0,0,$AM$20) -> 0 | O171: =IF($AN$20=0,0,$AN$20) -> 0 | Q171: =IF($AO$20=0,0,$AO$20) -> 0 | S171: =IF($AP$20=0,0,$AP$20) -> 0 | U171: =IF($AQ$20=0,0,$AQ$20) -> 0 | W171: =IF($AR$20=0,0,$AR$20) -> 0 | Y171: =IF($AS$20=0,0,$AS$20) -> 0 | AA171: =IF($AT$20=0,0,$AT$20) -> 0 | AC171: =IF($AU$20=0,0,$AU$20) -> 0 | AE171: =SUM(G171:AD171) -> 0
A172: =$A$46 -> Unproduktive Stunden
A173: =$A$47 -> Absenzen, Kurzabsenzen Art. 11 GAV | F173: =$F$47 -> a | G173: =IF($AJ$3=0,0,$AJ$3) -> 0 | I173: =IF($AK$3=0,0,$AK$3) -> 0 | K173: =IF($AL$3=0,0,$AL$3) -> 0 | M173: =IF($AM$3=0,0,$AM$3) -> 0 | O173: =IF($AN$3=0,0,$AN$3) -> 0 | Q173: =IF($AO$3=0,0,$AO$3) -> 0 | S173: =IF($AP$3=0,0,$AP$3) -> 0 | U173: =IF($AQ$3=0,0,$AQ$3) -> 0 | W173: =IF($AR$3=0,0,$AR$3) -> 0 | Y173: =IF($AS$3=0,0,$AS$3) -> 0 | AA173: =IF(AT$3=0,0,$AT$3) -> 0 | AC173: =IF($AU$3=0,0,$AU$3) -> 0 | AE173: =IF($AV$3=0,0,$AV$3) -> 0
A174: =$A$48 -> Ferien Art. 12.1 GAV | F174: =$F$48 -> f | G174: =IF($AJ$4=0,0,$AJ$4) -> 0 | I174: =IF($AK$4=0,0,$AK$4) -> 0 | K174: =IF($AL$4=0,0,$AL$4) -> 0 | M174: =IF($AM$4=0,0,$AM$4) -> 0 | O174: =IF($AN$4=0,0,$AN$4) -> 0 | Q174: =IF($AO$4=0,0,$AO$4) -> 0 | S174: =IF($AP$4=0,0,$AP$4) -> 0 | U174: =IF($AQ$4=0,0,$AQ$4) -> 0 | W174: =IF($AR$4=0,0,$AR$4) -> 0 | Y174: =IF($AS$4=0,0,$AS$4) -> 0 | AA174: =IF($AT$4=0,0,$AT$4) -> 0 | AC174: =IF($AU$4=0,0,$AU$4) -> 0 | AE174: =IF($AV$4=0,0,$AV$4) -> 0
A175: =$A$49 -> Feiertage Art. 12.2 GAV | C175: =IF($AJ$17="","",$AJ$17) ->  | F175: =$F$49 -> ft | G175: =IF($AJ$15=0,0,$AJ$15) -> 0 | I175: =IF($AK$15=0,0,$AK$15) -> 0 | K175: =IF($AL$15=0,0,$AL$15) -> 0 | M175: =IF($AM$15=0,0,$AM$15) -> 0 | O175: =IF($AN$15=0,0,$AN$15) -> 0 | Q175: =IF($AO$15=0,0,$AO$15) -> 0 | S175: =IF($AP$15=0,0,$AP$15) -> 0 | U175: =IF($AQ$15=0,0,$AQ$15) -> 0 | W175: =IF($AR$15=0,0,$AR$15) -> 0 | Y175: =IF($AS$15=0,0,$AS$15) -> 0 | AA175: =IF($AT$15=0,0,$AT$15) -> 0 | AC175: =IF($AU$15=0,0,$AU$15) -> 0 | AE175: =IF($AV$15=0,0,$AV$15) -> 0
A176: =$A$50 -> Krankheit Art. 13 GAV | F176: =$F$50 -> k | G176: =IF($AJ$5=0,0,$AJ$5) -> 0 | I176: =IF($AK$5=0,0,$AK$5) -> 0 | K176: =IF($AL$5=0,0,$AL$5) -> 0 | M176: =IF($AM$5=0,0,$AM$5) -> 0 | O176: =IF($AN$5=0,0,$AN$5) -> 0 | Q176: =IF($AO$5=0,0,$AO$5) -> 0 | S176: =IF($AP$5=0,0,$AP$5) -> 0 | U176: =IF($AQ$5=0,0,$AQ$5) -> 0 | W176: =IF($AR$5=0,0,$AR$5) -> 0 | Y176: =IF($AS$5=0,0,$AS$5) -> 0 | AA176: =IF($AT$5=0,0,$AT$5) -> 0 | AC176: =IF($AU$5=0,0,$AU$5) -> 0 | AE176: =IF($AV$5=0,0,$AV$5) -> 0
A177: =$A$51 -> Unfall Art. 14 GAV | F177: =$F$51 -> u | G177: =IF($AJ$6=0,0,$AJ$6) -> 0 | I177: =IF($AK$6=0,0,$AK$6) -> 0 | K177: =IF($AL$6=0,0,$AL$6) -> 0 | M177: =IF($AM$6=0,0,$AM$6) -> 0 | O177: =IF($AN$6=0,0,$AN$6) -> 0 | Q177: =IF($AO$6=0,0,$AO$6) -> 0 | S177: =IF($AP$6=0,0,$AP$6) -> 0 | U177: =IF($AQ$6=0,0,$AQ$6) -> 0 | W177: =IF($AR$6=0,0,$AR$6) -> 0 | Y177: =IF($AS$6=0,0,$AS$6) -> 0 | AA177: =IF($AT$6=0,0,$AT$6) -> 0 | AC177: =IF($AU$6=0,0,$AU$6) -> 0 | AE177: =IF($AV$6=0,0,$AV$6) -> 0
A178: =$A$52 -> Schwangerschaft/Mutterschaft Art. 15 GAV | F178: =$F$52 -> s | G178: =IF($AJ$7=0,0,$AJ$7) -> 0 | I178: =IF($AK$7=0,0,$AK$7) -> 0 | K178: =IF($AL$7=0,0,$AL$7) -> 0 | M178: =IF($AM$7=0,0,$AM$7) -> 0 | O178: =IF($AN$7=0,0,$AN$7) -> 0 | Q178: =IF($AO$7=0,0,$AO$7) -> 0 | S178: =IF($AP$7=0,0,$AP$7) -> 0 | U178: =IF($AQ$7=0,0,$AQ$7) -> 0 | W178: =IF($AR$7=0,0,$AR$7) -> 0 | Y178: =IF($AS$7=0,0,$AS$7) -> 0 | AA178: =IF($AT$7=0,0,$AT$7) -> 0 | AC178: =IF($AU$7=0,0,$AU$7) -> 0 | AE178: =IF($AV$7=0,0,$AV$7) -> 0
A179: =$A$53 -> Militär/Beförderung/Zivilschutz Art. 16 GAV | F179: =$F$53 -> m | G179: =IF($AJ$8=0,0,$AJ$8) -> 0 | I179: =IF($AK$8=0,0,$AK$8) -> 0 | K179: =IF($AL$8=0,0,$AL$8) -> 0 | M179: =IF($AM$8=0,0,$AM$8) -> 0 | O179: =IF($AN$8=0,0,$AN$8) -> 0 | Q179: =IF($AO$8=0,0,$AO$8) -> 0 | S179: =IF($AP$8=0,0,$AP$8) -> 0 | U179: =IF($AQ$8=0,0,$AQ$8) -> 0 | W179: =IF($AR$8=0,0,$AR$8) -> 0 | Y179: =IF($AS$8=0,0,$AS$8) -> 0 | AA179: =IF($AT$8=0,0,$AT$8) -> 0 | AC179: =IF($AU$8=0,0,$AU$8) -> 0 | AE179: =IF($AV$8=0,0,$AV$8) -> 0
A180: =$A$54 -> Kurzarbeit und Schlechtwetterausfälle | F180: =$F$54 -> ka | G180: =IF($AJ$11=0,0,$AJ$11) -> 0 | I180: =IF($AK$11=0,0,$AK$11) -> 0 | K180: =IF($AL$11=0,0,$AL$11) -> 0 | M180: =IF($AM$11=0,0,$AM$11) -> 0 | O180: =IF($AN$11=0,0,$AN$11) -> 0 | Q180: =IF($AO$11=0,0,$AO$11) -> 0 | S180: =IF($AP$11=0,0,$AP$11) -> 0 | U180: =IF($AQ$11=0,0,$AQ$11) -> 0 | W180: =IF($AR$11=0,0,$AR$11) -> 0 | Y180: =IF($AS$11=0,0,$AS$11) -> 0 | AA180: =IF($AT$11=0,0,$AT$11) -> 0 | AC180: =IF($AU$11=0,0,$AU$11) -> 0 | AE180: =IF($AV$11=0,0,$AV$11) -> 0
A181: =$A$55 -> Berufsschule | F181: =$F$55 -> bs | G181: =IF($AJ$9=0,0,$AJ$9) -> 0 | I181: =IF($AK$9=0,0,$AK$9) -> 0 | K181: =IF($AL$9=0,0,$AL$9) -> 0 | M181: =IF($AM$9=0,0,$AM$9) -> 0 | O181: =IF($AN$9=0,0,$AN$9) -> 0 | Q181: =IF($AO$9=0,0,$AO$9) -> 0 | S181: =IF($AP$9=0,0,$AP$9) -> 0 | U181: =IF($AQ$9=0,0,$AQ$9) -> 0 | W181: =IF($AR$9=0,0,$AR$9) -> 0 | Y181: =IF($AS$9=0,0,$AS$9) -> 0 | AA181: =IF($AT$9=0,0,$AT$9) -> 0 | AC181: =IF($AU$9=0,0,$AU$9) -> 0 | AE181: =IF($AV$9=0,0,$AV$9) -> 0
A182: =$A$56 -> Kurse | F182: =$F$56 -> ku | G182: =IF($AJ$10=0,0,$AJ$10) -> 0 | I182: =IF($AK$10=0,0,$AK$10) -> 0 | K182: =IF($AL$10=0,0,$AL$10) -> 0 | M182: =IF($AM$10=0,0,$AM$10) -> 0 | O182: =IF($AN$10=0,0,$AN$10) -> 0 | Q182: =IF($AO$10=0,0,$AO$10) -> 0 | S182: =IF($AP$10=0,0,$AP$10) -> 0 | U182: =IF($AQ$10=0,0,$AQ$10) -> 0 | W182: =IF($AR$10=0,0,$AR$10) -> 0 | Y182: =IF($AS$10=0,0,$AS$10) -> 0 | AA182: =IF($AT$10=0,0,$AT$10) -> 0 | AC182: =IF($AU$10=0,0,$AU$10) -> 0 | AE182: =IF($AV$10=0,0,$AV$10) -> 0
A183: =$A$57 -> Kompensations-Std | B183: =$B$57 -> aus Vorjahr | F183: =$F$57 -> kv | G183: =IF($AJ$12=0,0,$AJ$12) -> 0 | I183: =IF($AK$12=0,0,$AK$12) -> 0 | K183: =IF($AL$12=0,0,$AL$12) -> 0 | M183: =IF($AM$12=0,0,$AM$12) -> 0 | O183: =IF($AN$12=0,0,$AN$12) -> 0 | Q183: =IF($AO$12=0,0,$AO$12) -> 0 | S183: =IF($AP$12=0,0,$AP$12) -> 0 | U183: =IF($AQ$12=0,0,$AQ$12) -> 0 | W183: =IF($AR$12=0,0,$AR$12) -> 0 | AE183: =IF($AV$12=0,0,$AV$12) -> 0
B184: =$B$58 -> aus laufendem Jahr (Kontrolle) | F184: =$F$58 -> kj | G184: =IF($AJ$14=0,0,$AJ$14) -> 0 | I184: =IF($AK$14=0,0,$AK$14) -> 0 | K184: =IF($AL$14=0,0,$AL$14) -> 0 | M184: =IF($AM$14=0,0,$AM$14) -> 0 | O184: =IF($AN$14=0,0,$AN$14) -> 0 | Q184: =IF($AO$14=0,0,$AO$14) -> 0 | S184: =IF($AP$14=0,0,$AP$14) -> 0 | U184: =IF($AQ$14=0,0,$AQ$14) -> 0 | W184: =IF($AR$14=0,0,$AR$14) -> 0 | Y184: =IF($AS$14=0,0,$AS$14) -> 0 | AA184: =IF($AT$14=0,0,$AT$14) -> 0 | AC184: =IF($AU$14=0,0,$AU$14) -> 0 | AE184: =IF($AV$14=0,0,$AV$14) -> 0
A185: =$A$59 -> Auszahlung | B185: =$B$59 -> Stunden Vorjahressaldo | G185: =IF($AJ$18=0,0,$AJ$18) -> 0 | I185: =IF($AK$18=0,0,$AK$18) -> 0 | K185: =IF($AL$18=0,0,$AL$18) -> 0 | M185: =IF($AM$18=0,0,$AM$18) -> 0 | O185: =IF($AN$18=0,0,$AN$18) -> 0 | Q185: =IF($AO$18=0,0,$AO$18) -> 0 | S185: =IF($AP$18=0,0,$AP$18) -> 0 | U185: =IF($AQ$18=0,0,$AQ$18) -> 0 | W185: =IF($AR$18=0,0,$AR$18) -> 0 | AE185: =IF($AV$18=0,0,$AV$18) -> 0
A186: =$A$60 -> Differenz | B186: =$B$60 -> nach Kompensation und Auszahlung | G186: =IF(ROUND($P$4,3)=0,0,$P$4-SUM(G183+G185)) -> 0 | I186: =IF(ROUND(G186,3)=0,0,G186-(SUM(I185+I183))) -> 0 | K186: =IF(ROUND(I186,3)=0,0,I186-(SUM(K185+K183))) -> 0 | M186: =IF(ROUND(K186,3)=0,0,K186-(SUM(M185+M183))) -> 0 | O186: =IF(ROUND(M186,3)=0,0,M186-(SUM(O185+O183))) -> 0 | Q186: =IF(ROUND(O186,3)=0,0,O186-(SUM(Q185+Q183))) -> 0 | S186: =IF(ROUND(Q186,3)=0,0,Q186-(SUM(S185+S183))) -> 0 | U186: =IF(ROUND(S186,3)=0,0,S186-(SUM(U185+U183))) -> 0 | W186: =IF(ROUND(U186,3)=0,0,U186-(SUM(W185+W183))) -> 0 | Y186: =$Y$60 -> 
A187: =$A$61 -> Auszahlung | B187: =$B$61 -> Stunden laufendes Jahr | G187: =IF($AJ$19=0,0,$AJ$19) -> 0 | I187: =IF($AK$19=0,0,$AK$19) -> 0 | K187: =IF($AL$19=0,0,$AL$19) -> 0 | M187: =IF($AM$19=0,0,$AM$19) -> 0 | O187: =IF($AN$19=0,0,$AN$19) -> 0 | Q187: =IF($AO$19=0,0,$AO$19) -> 0 | S187: =IF($AP$19=0,0,$AP$19) -> 0 | U187: =IF($AQ$19=0,0,$AQ$19) -> 0 | W187: =IF($AR$19=0,0,$AR$19) -> 0 | Y187: =IF($AS$19=0,0,$AS$19) -> 0 | AA187: =IF($AT$19=0,0,$AT$19) -> 0 | AC187: =IF($AU$19=0,0,$AU$19) -> 0 | AE187: =IF($AV$19=0,0,$AV$19) -> 0
A188: =$A$62 -> Fehlstunden | B188: =$B$62 -> laufendes Jahr (Kontrolle) | F188: =$F$62 -> fe | G188: =IF($AJ$13=0,0,$AJ$13) -> 0 | I188: =IF($AK$13=0,0,$AK$13) -> 0 | K188: =IF($AL$13=0,0,$AL$13) -> 0 | M188: =IF($AM$13=0,0,$AM$13) -> 0 | O188: =IF($AN$13=0,0,$AN$13) -> 0 | Q188: =IF($AO$13=0,0,$AO$13) -> 0 | S188: =IF($AP$13=0,0,$AP$13) -> 0 | U188: =IF($AQ$13=0,0,$AQ$13) -> 0 | W188: =IF($AR$13=0,0,$AR$13) -> 0 | Y188: =IF($AS$13=0,0,$AS$13) -> 0 | AA188: =IF($AT$13=0,0,$AT$13) -> 0 | AC188: =IF($AU$13=0,0,$AU$13) -> 0 | AE188: =IF($AV$13=0,0,$AV$13) -> 0
A189: =$A$63 -> Total inkl. Zeitzuschläge | B189: =$B$63 -> Stunden produktiv und unproduktiv | G189: =IF($AG$36=0,0,$AG$36) -> 0 | I189: =IF($AG$99=0,0,$AG$99) -> 0 | K189: =IF($AG$162=0,0,$AG$162) -> 0 | M189: =IF($AG$225=0,0,$AG$225) -> 0 | O189: =IF($AG$288=0,0,$AG$288) -> 0 | Q189: =IF($AG$351=0,0,$AG$351) -> 0 | S189: =IF($AG$414=0,0,$AG$414) -> 0 | U189: =IF($AG$477=0,0,$AG$477) -> 0 | W189: =IF($AG$540=0,0,$AG$540) -> 0 | Y189: =IF($AG$603=0,0,$AG$603) -> 0 | AA189: =IF($AG$666=0,0,$AG$666) -> 0 | AC189: =IF($AG$729=0,0,$AG$729) -> 0 | AE189: =SUM($G$63:$AD$63) -> 0
A190: =$A$64 -> Vergleich | B190: =$B$64 -> Stunden zu Soll-Stunden (inkl. allfälli- ge Minusstunden Vorjahr) | G190: =IF($AG$38=0,0,$AG$38)-$AE$34+$P$5 -> -172.83 | I190: =IF($AG$101=0,0,$AG$101)-$AE$97 -> -164.6 | K190: =IF($AG$164=0,0,$AG$164)-$AE$160 -> -189.29 | M190: =IF($AG$227=0,0,$AG$227)-$AE$223 -> -181.06 | O190: =IF($AG$290=0,0,$AG$290)-$AE$286 -> -172.83 | Q190: =IF($AG$353=0,0,$AG$353)-$AE$349 -> -181.06 | S190: =IF($AG$416=0,0,$AG$416)-$AE$412 -> -181.06 | U190: =IF($AG$479=0,0,$AG$479)-$AE$475 -> -181.06 | W190: =IF($AG$542=0,0,$AG$542)-$AE$538 -> -181.06 | Y190: =IF($AG$605=0,0,$AG$605)-$AE$601 -> -172.83 | AA190: =IF($AG$668=0,0,$AG$668)-$AE$664 -> -181.06 | AC190: =IF($AG$731=0,0,$AG$731)-$AE$727 -> -189.29 | AE190: =SUM($G$64:$AD$64) -> -2148.03
B191: =$B$65 -> Stunden zu Soll-Stunden (kumuliert) | G191: =$G$65 -> -172.83 | I191: =$I$65 -> -337.43 | K191: =$K$65 -> -526.72 | M191: =$M$65 -> -707.78 | O191: =$O$65 -> -880.61 | Q191: =$Q$65 -> -1061.67 | S191: =$S$65 -> -1242.73 | U191: =$U$65 -> -1423.79 | W191: =$W$65 -> -1604.85 | Y191: =$Y$65 -> -1777.68 | AA191: =$AA$65 -> -1958.74 | AC191: =$AC$65 -> -2148.03
A192: =$A$66 -> Ferienkontrolle | B192: =$B$66 -> Ferienguthaben Vorjahr | G192: =IF($AA$4=0,0,$AA$4) -> 0 | I192: =$I$66 -> Ferienguthaben nach Art. 12.1 GAV | M192: =IF($AA$5=0,0,$AA$5) -> 0 | O192: =$O$66 -> Ferienguthaben total | S192: =SUM(G192+M192) -> 0 | U192: =$U$66 -> Ferien bezogen | Y192: =IF($AV$4=0,0,$AV$4) -> 0 | AA192: =$AA$66 -> Aktuelles Ferienguthaben | AE192: =IF(S192=0,0,S192-Y192) -> 0
A195: =$A$3 -> Mitarbeiter/In | B195: =IF($B$3="","",$B$3) -> Muster Peter | AF195: =AF3 -> 0
A196: =$A$4 -> Anstellung % | B196: 100 | D196: =Labels!B92 -> im April
A197: =$A$5 -> Saldo für das Jahr | D197: =IF($AE$64=0,0,$AE$64) -> -2148.03
A198: =TEXT(DATE(YEAR(AP28),MONTH(AP28)+3,1),"MMMM"&Labels!B13) -> April | B198: =$B$9 -> Saldo Monat + / - | F198: =(AG201-(SUM(AG202:AG216)-AE223))*-1 -> -181.06 | K198: =$K$9 -> = | L198: =$L$9 -> Gelbe Felder müssen ausgefüllt werden (die übrigen werden automatisch berechnet)
A199: =$A$10 -> Tag | B199: =AF136+1 -> 2021-04-01 | C199: =B199+1 -> 2021-04-02 | D199: =C199+1 -> 2021-04-03 | E199: 2021-04-04 | F199: 2021-04-05 | G199: 2021-04-06 | H199: 2021-04-07 | I199: 2021-04-08 | J199: 2021-04-09 | K199: 2021-04-10 | L199: 2021-04-11 | M199: 2021-04-12 | N199: 2021-04-13 | O199: 2021-04-14 | P199: 2021-04-15 | Q199: 2021-04-16 | R199: 2021-04-17 | S199: 2021-04-18 | T199: 2021-04-19 | U199: 2021-04-20 | V199: 2021-04-21 | W199: 2021-04-22 | X199: 2021-04-23 | Y199: 2021-04-24 | Z199: 2021-04-25 | AA199: 2021-04-26 | AB199: 2021-04-27 | AC199: 2021-04-28 | AD199: 2021-04-29 | AE199: 2021-04-30 | AG199: =COUNT(B201:AF201)&" "&Labels!$B$63 -> 22 Tage
A200: =$A$11 -> Kalenderwoche | B200: =IF(B199="","",TRUNC((B199-DATE(YEAR(B199+3-MOD(B199-2,7)),1,MOD(B199-2,7)-9))/7)) -> 13 | C200: 13 | D200: 13 | E200: 13 | F200: 14 | G200: 14 | H200: 14 | I200: 14 | J200: 14 | K200: 14 | L200: 14 | M200: 15 | N200: 15 | O200: 15 | P200: 15 | Q200: 15 | R200: 15 | S200: 15 | T200: 16 | U200: 16 | V200: 16 | W200: 16 | X200: 16 | Y200: 16 | Z200: 16 | AA200: 17 | AB200: 17 | AC200: 17 | AD200: 17 | AE200: 17
A201: =$A$12 -> Sollstunden | B201: =IF(MOD(B199,7)>=2,$J$7*$B$196%,"") -> 8.23 | C201: 8.23 | F201: 8.23 | G201: 8.23 | H201: 8.23 | I201: 8.23 | J201: 8.23 | M201: 8.23 | N201: 8.23 | O201: 8.23 | P201: 8.23 | Q201: 8.23 | T201: 8.23 | U201: 8.23 | V201: 8.23 | W201: 8.23 | X201: 8.23 | AA201: 8.23 | AB201: 8.23 | AC201: 8.23 | AD201: 8.23 | AE201: 8.23 | AG201: =SUM(B201:AF201) -> 181.06
A202: =$A$13 -> Absenz in Std | B202: =B888 -> 0 | C202: =C888 -> 0 | D202: 0 | E202: 0 | F202: 0 | G202: 0 | H202: 0 | I202: 0 | J202: 0 | K202: 0 | L202: 0 | M202: 0 | N202: 0 | O202: 0 | P202: 0 | Q202: 0 | R202: 0 | S202: 0 | T202: 0 | U202: 0 | V202: 0 | W202: 0 | X202: 0 | Y202: 0 | Z202: 0 | AA202: 0 | AB202: 0 | AC202: 0 | AD202: 0 | AE202: 0 | AG202: =SUM(AM3:AM12) -> 0
A203: =$A$14 -> Code | B203: =IF(B888<>0,IF(MAX(B875:B887)<B888,Labels!$B$163,INDEX($AH$875:$AH$887,MATCH(MAX(B875:B887),B875:B887,0))),"") ->  | C203: =IF(C888<>0,IF(MAX(C875:C887)<C888,Labels!$B$163,INDEX($AH$875:$AH$887,MATCH(MAX(C875:C887),C875:C887,0))),"") ->  | D203: =IF(D888<>0,IF(MAX(D875:D887)<D888,Labels!$B$163,INDEX($AH$875:$AH$887,MATCH(MAX(D875:D887),D875:D887,0))),"") ->  | E203: =IF(E888<>0,IF(MAX(E875:E887)<E888,Labels!$B$163,INDEX($AH$875:$AH$887,MATCH(MAX(E875:E887),E875:E887,0))),"") ->  | F203: =IF(F888<>0,IF(MAX(F875:F887)<F888,Labels!$B$163,INDEX($AH$875:$AH$887,MATCH(MAX(F875:F887),F875:F887,0))),"") ->  | G203: =IF(G888<>0,IF(MAX(G875:G887)<G888,Labels!$B$163,INDEX($AH$875:$AH$887,MATCH(MAX(G875:G887),G875:G887,0))),"") ->  | H203: =IF(H888<>0,IF(MAX(H875:H887)<H888,Labels!$B$163,INDEX($AH$875:$AH$887,MATCH(MAX(H875:H887),H875:H887,0))),"") ->  | I203: =IF(I888<>0,IF(MAX(I875:I887)<I888,Labels!$B$163,INDEX($AH$875:$AH$887,MATCH(MAX(I875:I887),I875:I887,0))),"") ->  | J203: =IF(J888<>0,IF(MAX(J875:J887)<J888,Labels!$B$163,INDEX($AH$875:$AH$887,MATCH(MAX(J875:J887),J875:J887,0))),"") ->  | K203: =IF(K888<>0,IF(MAX(K875:K887)<K888,Labels!$B$163,INDEX($AH$875:$AH$887,MATCH(MAX(K875:K887),K875:K887,0))),"") ->  | L203: =IF(L888<>0,IF(MAX(L875:L887)<L888,Labels!$B$163,INDEX($AH$875:$AH$887,MATCH(MAX(L875:L887),L875:L887,0))),"") ->  | M203: =IF(M888<>0,IF(MAX(M875:M887)<M888,Labels!$B$163,INDEX($AH$875:$AH$887,MATCH(MAX(M875:M887),M875:M887,0))),"") ->  | N203: =IF(N888<>0,IF(MAX(N875:N887)<N888,Labels!$B$163,INDEX($AH$875:$AH$887,MATCH(MAX(N875:N887),N875:N887,0))),"") ->  | O203: =IF(O888<>0,IF(MAX(O875:O887)<O888,Labels!$B$163,INDEX($AH$875:$AH$887,MATCH(MAX(O875:O887),O875:O887,0))),"") ->  | P203: =IF(P888<>0,IF(MAX(P875:P887)<P888,Labels!$B$163,INDEX($AH$875:$AH$887,MATCH(MAX(P875:P887),P875:P887,0))),"") ->  | Q203: =IF(Q888<>0,IF(MAX(Q875:Q887)<Q888,Labels!$B$163,INDEX($AH$875:$AH$887,MATCH(MAX(Q875:Q887),Q875:Q887,0))),"") ->  | R203: =IF(R888<>0,IF(MAX(R875:R887)<R888,Labels!$B$163,INDEX($AH$875:$AH$887,MATCH(MAX(R875:R887),R875:R887,0))),"") ->  | S203: =IF(S888<>0,IF(MAX(S875:S887)<S888,Labels!$B$163,INDEX($AH$875:$AH$887,MATCH(MAX(S875:S887),S875:S887,0))),"") ->  | T203: =IF(T888<>0,IF(MAX(T875:T887)<T888,Labels!$B$163,INDEX($AH$875:$AH$887,MATCH(MAX(T875:T887),T875:T887,0))),"") ->  | U203: =IF(U888<>0,IF(MAX(U875:U887)<U888,Labels!$B$163,INDEX($AH$875:$AH$887,MATCH(MAX(U875:U887),U875:U887,0))),"") ->  | V203: =IF(V888<>0,IF(MAX(V875:V887)<V888,Labels!$B$163,INDEX($AH$875:$AH$887,MATCH(MAX(V875:V887),V875:V887,0))),"") ->  | W203: =IF(W888<>0,IF(MAX(W875:W887)<W888,Labels!$B$163,INDEX($AH$875:$AH$887,MATCH(MAX(W875:W887),W875:W887,0))),"") ->  | X203: =IF(X888<>0,IF(MAX(X875:X887)<X888,Labels!$B$163,INDEX($AH$875:$AH$887,MATCH(MAX(X875:X887),X875:X887,0))),"") ->  | Y203: =IF(Y888<>0,IF(MAX(Y875:Y887)<Y888,Labels!$B$163,INDEX($AH$875:$AH$887,MATCH(MAX(Y875:Y887),Y875:Y887,0))),"") ->  | Z203: =IF(Z888<>0,IF(MAX(Z875:Z887)<Z888,Labels!$B$163,INDEX($AH$875:$AH$887,MATCH(MAX(Z875:Z887),Z875:Z887,0))),"") ->  | AA203: =IF(AA888<>0,IF(MAX(AA875:AA887)<AA888,Labels!$B$163,INDEX($AH$875:$AH$887,MATCH(MAX(AA875:AA887),AA875:AA887,0))),"") ->  | AB203: =IF(AB888<>0,IF(MAX(AB875:AB887)<AB888,Labels!$B$163,INDEX($AH$875:$AH$887,MATCH(MAX(AB875:AB887),AB875:AB887,0))),"") ->  | AC203: =IF(AC888<>0,IF(MAX(AC875:AC887)<AC888,Labels!$B$163,INDEX($AH$875:$AH$887,MATCH(MAX(AC875:AC887),AC875:AC887,0))),"") ->  | AD203: =IF(AD888<>0,IF(MAX(AD875:AD887)<AD888,Labels!$B$163,INDEX($AH$875:$AH$887,MATCH(MAX(AD875:AD887),AD875:AD887,0))),"") ->  | AE203: =IF(AE888<>0,IF(MAX(AE875:AE887)<AE888,Labels!$B$163,INDEX($AH$875:$AH$887,MATCH(MAX(AE875:AE887),AE875:AE887,0))),"") -> 
A204: =$A$15 -> 00.00-06.00h | AG204: =SUM(B204:AF204) -> 0
A205: =$A$16 -> 06.00-20.00h | AG205: =SUM(B205:AF205) -> 0
A206: =$A$17 -> 20.00-24.00h | AG206: =SUM(B206:AF206) -> 0 | AH206: [0]
... 781 more rows
